Workbook

Sheet RESUMO MODULO TOTAL
E1: Ministério do Desenvolvimento Regional
E2: Companhia de Desenvolvimento dos Vales do São Francisco e do Parnaíba
B5: OBRA: | C5: =B56 -> CONTRATAÇÃO DE SERVIÇOS DE EXECUÇÃO DE PAVIMENTAÇÃO EM BLOCO INTERTRAVADO DE CONCRETO EM VIAS DE DIVERSOS MUNICÍPIOS INSERIDOS NA ÁREA DE ATUAÇÃO DA 13ª SUPERINTENDÊNCIA REGIONAL DA CODEVASF, NO ESTADO DA PARAÍBA | I5: BDI Serviços (%): | L5: =BDI!C14 -> 0.2339
B6: DATA: | C6: 2025-07-03 | I6: BDI Diferenciado Serviços (%): | L6: =BDI!C69 -> 0.15
B7: PRAZO DE EXECUÇÃO: | G7: R$/m² | H7: =L53/H24 -> 181.9488463 | I7: BDI Fornecimentos (%): | L7: =L6 -> 0.15
F8: Sistema de Referência: SICRO 04/2025; SINAPI 06/2025; ORSE 05/2025;
B9: PLANILHA DE ORÇAMENTAÇÃO
B10: ITEM | C10: CÓDIGO | D10: FONTE | E10: DISCRIMINAÇÃO | F10: TIPO | G10: UNID. | H10: QUANT. | I10: VR.UNIT.S/BDI | J10: PR. UNIT.C/BDI | K10: C. TOT.S/BDI | L10: P. TOT.C/BDI | M10: =L53 -> 57313886.57
B11: 1 | E11: SERVIÇOS PRELIMINARES | K11: =SUM(K12:K13) -> 1337150.74 | L11: =SUM(L12:L13) -> 1649907 | M11: =L11/$L$53 -> 0.02878721194
B12: =[244]MEMÓRIA!B11 -> 1.1 | C12: CPU.1 | D12: Codevasf | E12: Mobilização | F12: SERV | G12: kmxfrente | H12: =Mob!B65*Mob!H6 -> 3150 | I12: =Mob!B62 -> 212.2461517 | J12: =TRUNC(_xlfn.IFS(F12="SERV",I12*(1+$L$5),F12="SERV DIF",I12*(1+$L$6),F12="FORN",I12*(1+$L$7)),2) -> 261.89 | K12: =TRUNC(H12*I12,2) -> 668575.37 | L12: =TRUNC(H12*J12,2) -> 824953.5 | M12: 0.01439360597 | N12: INCC | P12: TERRAPLENAGEM | Q12: =(SUMIF(N:N,"TERRAPLENAGEM",L:L)/$L$53) -> 0.01828206152 | R12: =(SUMIF(N:N,"TERRAPLENAGEM",L:L)) -> 1047816
B13: =[244]MEMÓRIA!B14 -> 1.2 | C13: CPU.2 | D13: Codevasf | E13: Desmobilização | F13: SERV | G13: kmxfrente | H13: =Mob!B65*Mob!H6 -> 3150 | I13: =Mob!B62 -> 212.2461517 | J13: =TRUNC(_xlfn.IFS(F13="SERV",I13*(1+$L$5),F13="SERV DIF",I13*(1+$L$6),F13="FORN",I13*(1+$L$7)),2) -> 261.89 | K13: =TRUNC(H13*I13,2) -> 668575.37 | L13: =TRUNC(H13*J13,2) -> 824953.5 | M13: 0.01439360597 | N13: INCC | P13: PAVIMENTAÇÃO | Q13: =SUMIF(N:N,"PAVIMENTAÇÃO",L:L)/$L$53 -> 0.8147212064 | R13: =(SUMIF(N:N,"PAVIMENTAÇÃO",L:L)) -> 46694838.81
B14: =[244]MEMÓRIA!B34 -> 2 | E14: INSTALAÇÃO DE CANTEIRO | K14: =SUM(K15:K16) -> 622454.4 | L14: =SUM(L15:L16) -> 768045.6 | M14: 0.01340068954 | P14: CONSULTORIA | R14: =(SUMIF(N:N,"CONSULTORIA",M:M)) -> 0
B15: =[244]MEMÓRIA!B36 -> 2.1 | C15: Canteiro | D15: Codevasf | E15: Canteiro de Obras | F15: SERV | G15: und | H15: ='MC MODULO'!D10 -> 45 | I15: =' Canteiro'!F10 -> 6400 | J15: =TRUNC(_xlfn.IFS(F15="SERV",I15*(1+$L$5),F15="SERV DIF",I15*(1+$L$6),F15="FORN",I15*(1+$L$7)),2) -> 7896.96 | K15: =TRUNC(H15*I15,2) -> 288000 | L15: =TRUNC(H15*J15,2) -> 355363.2 | M15: 0.006200298414 | N15: INCC | P15: DRENAGEM | Q15: =SUMIF(N:N,"DRENAGEM",L:L)/$L$53 -> 0.05090912822 | R15: =(SUMIF(N:N,"DRENAGEM",L:L)) -> 2917800
B16: =[244]MEMÓRIA!B61 -> 2.3 | C16: 103689 | D16: SINAPI | E16: Fornecimento e instalação de placa de obra com chapa galvanizada e estrutura de madeira. af_03/2022_ps | F16: SERV | G16: m² | H16: ='MC MODULO'!H25 -> 720 | I16: =VLOOKUP(C16,'COMP Sint. Sinapi 06-25'!$A:$D,4,0) -> 464.52 | J16: =TRUNC(_xlfn.IFS(F16="SERV",I16*(1+$L$5),F16="SERV DIF",I16*(1+$L$6),F16="FORN",I16*(1+$L$7)),2) -> 573.17 | K16: 334454.4 | L16: 412682.4 | M16: 0.007200391122 | N16: INCC | P16: ADMINISTRAÇÃO LOCAL | R16: =(SUMIF(N:N,"ADMINISTRAÇÃO LOCAL",M:M)) -> 0
B17: =[244]MEMÓRIA!B128 -> 3 | E17: ADMINISTRAÇÃO LOCAL DA OBRA | K17: =SUM(K18:K18) -> 1384251.97 | L17: =SUM(L18:L18) -> 1708028.51 | M17: 0.02980130318 | P17: SINALIZAÇÃO VERTICAL | R17: =(SUMIF(N:N,"SINALIZAÇÃO VERTICAL",M:M)) -> 0
B18: =[244]MEMÓRIA!B130 -> 3.1 | C18: Adm Local | D18: Codevasf | E18: Administração Local da Obra | F18: SERV | G18: und | H18: 1 | I18: ='Adm Local'!J249 -> 1384251.976 | J18: =TRUNC(_xlfn.IFS(F18="SERV",I18*(1+$L$5),F18="SERV DIF",I18*(1+$L$6),F18="FORN",I18*(1+$L$7)),2) -> 1708028.51 | K18: =TRUNC(H18*I18,2) -> 1384251.97 | L18: =TRUNC(H18*J18,2) -> 1708028.51 | M18: 0.02980130318 | N18: INCC | P18: SINALIZAÇÃO HORIZONTAL | R18: =(SUMIF(N:N,"SINALIZAÇÃO HORIZONTAL",M:M)) -> 0
B19: =[244]MEMÓRIA!B156 -> 4 | E19: TERRAPLANAGEM | K19: =SUM(K20:K21) -> 849649.5 | L19: =SUM(L20:L21) -> 1047816 | M19: 0.01828206152 | P19: CAP | R19: =(SUMIF(N:N,"CAP",M:M)) -> 0
B20: =[244]MEMÓRIA!B158 -> 4.1 | C20: 5502114 | D20: SICRO | E20: Escavação, carga e transporte de material de 1ª categoria - DMT de 1.000 a 1.200 m - caminho de serviço em leito natural - com escavadeira e caminhão basculante de 14 m³ | F20: SERV | G20: m³ | H20: ='MC MODULO'!H37 -> 85050 | I20: =ROUND(IF(D20="CODEVASF",VLOOKUP(C20,'CPU CODEVASF'!E:I,5,FALSE),VLOOKUP(C20,'SINTÉTICO SICRO 04-25'!A:D,4,FALSE)),6) -> 8.02 | J20: =TRUNC(_xlfn.IFS(F20="SERV",I20*(1+$L$5),F20="SERV DIF",I20*(1+$L$6),F20="FORN",I20*(1+$L$7)),2) -> 9.89 | K20: =TRUNC(H20*I20,2) -> 682101 | L20: =TRUNC(H20*J20,2) -> 841144.5 | M20: 0.01467610295 | N20: TERRAPLENAGEM | P20: IMPRIMAÇÃO | R20: =(SUMIF(N:N,"IMPRIMAÇÃO",M:M)) -> 0
B21: =[244]MEMÓRIA!B170 -> 4.2 | C21: 4413942 | D21: SICRO | E21: Espalhamento de material em bota-fora | F21: SERV | G21: m³ | H21: ='MC MODULO'!H44 -> 85050 | I21: =ROUND(IF(D21="CODEVASF",VLOOKUP(C21,'CPU CODEVASF'!E:I,5,FALSE),VLOOKUP(C21,'SINTÉTICO SICRO 04-25'!A:D,4,FALSE)),6) -> 1.97 | J21: =TRUNC(_xlfn.IFS(F21="SERV",I21*(1+$L$5),F21="SERV DIF",I21*(1+$L$6),F21="FORN",I21*(1+$L$7)),2) -> 2.43 | K21: 167548.5 | L21: 206671.5 | M21: 0.003605958562 | N21: TERRAPLENAGEM | P21: EMULSÃO ASFÁLTICA | R21: =(SUMIF(N:N,"EMULSÃO ASFÁLTICA",M:M)) -> 0
B22: =[244]MEMÓRIA!B363 -> 5 | E22: PAVIMENTAÇÃO | K22: =SUM(K23:K30) -> 33181032.15 | L22: =SUM(L23:L30) -> 39412283.4 | M22: 0.6876567924 | P22: OBRAS COMPLEMENTARES | R22: =(SUMIF(N:N,"OBRAS COMPLEMENTARES",M:M)) -> 0
B23: 5.1 | C23: 36170 | D23: SINAPI | E23: bloquete/piso intertravado de concreto - modelo onda/16 faces/retangular/t ijolinho/paver/holandes/paralelepipedo, *22 cm x 11* cm, e = 8 cm, resistencia de 35 mpa (nbr 9781), cor natural | F23: FORN | G23: m² | H23: =H24*'CPU SINAPI'!E8 -> 316260 | I23: =ROUND(VLOOKUP(C23,'INSUMOS SINAPI 06-25'!$A:$E,5,0),6) -> 57.15 | J23: =TRUNC(_xlfn.IFS(F23="SERV",I23*(1+$L$5),F23="SERV DIF",I23*(1+$L$6),F23="FORN",I23*(1+$L$7)),2) -> 65.72 | K23: =TRUNC(H23*I23,2) -> 18074259 | L23: =TRUNC(H23*J23,2) -> 20784607.2 | M23: 0.3626452234 | N23: PAVIMENTAÇÃO | P23: MOBILIZAÇÃO | R23: =(SUMIF(N:N,"MOBILIZAÇÃO",M:M)) -> 0
B24: 5.2 | C24: 92404 ADAPTADA | D24: SINAPI | E24: execução de pavimento em piso intertravado, com bloco 16 faces de 22 x 11 cm, espessura 8 cm. af_10/2022 - exclusive fornecimento de bloquete | F24: SERV | G24: m² | H24: ='MC MODULO'!H51 -> 315000 | I24: =ROUND('CPU SINAPI'!G15,6) -> 18.78 | J24: =TRUNC(_xlfn.IFS(F24="SERV",I24*(1+$L$5),F24="SERV DIF",I24*(1+$L$6),F24="FORN",I24*(1+$L$7)),2) -> 23.17 | K24: 5915700 | L24: 7298550 | M24: 0.127343484 | N24: PAVIMENTAÇÃO | O24: 0.3 | P24: INCC | Q24: =(SUMIF(N:N,"INCC",L:L))/$L$53 -> 0.1160876039 | R24: =(SUMIF(N:N,"INCC",L:L)) -> 6653431.76
B25: 5.3 | C25: 5914640 | D25: SICRO | E25: Transporte com cavalo mecânico com semirreboque com capacidade de 30 t - rodovia pavimentada | F25: SERV | G25: tkm | H25: ='MC MODULO'!H56 -> 5544000 | I25: =ROUND(IF(D25="CODEVASF",VLOOKUP(C25,'CPU CODEVASF'!E:I,5,FALSE),VLOOKUP(C25,'SINTÉTICO SICRO 04-25'!A:D,4,FALSE)),6) -> 0.56 | J25: =TRUNC(_xlfn.IFS(F25="SERV",I25*(1+$L$5),F25="SERV DIF",I25*(1+$L$6),F25="FORN",I25*(1+$L$7)),2) -> 0.69 | K25: 3104640 | L25: 3825360 | M25: 0.06674403411 | N25: PAVIMENTAÇÃO | O25: =H24*O24 -> 94500
B26: 5.4 | C26: 5915373 | D26: SICRO | E26: Carga, manobra e descarga de materiais diversos em caminhão carroceria com capacidade de 7 t e com guindauto de 20 t.m | F26: SERV | G26: t | H26: ='MC MODULO'!H62 -> 55440 | I26: =ROUND(IF(D26="CODEVASF",VLOOKUP(C26,'CPU CODEVASF'!E:I,5,FALSE),VLOOKUP(C26,'SINTÉTICO SICRO 04-25'!A:D,4,FALSE)),6) -> 17.01 | J26: =TRUNC(_xlfn.IFS(F26="SERV",I26*(1+$L$5),F26="SERV DIF",I26*(1+$L$6),F26="FORN",I26*(1+$L$7)),2) -> 20.98 | K26: 943034.4 | L26: 1163131.2 | M26: 0.02029405559 | N26: PAVIMENTAÇÃO
B27: 5.5 | C27: 5915321 | D27: SICRO | E27: Transporte com caminhão basculante de 14 m³ - rodovia pavimentada (areia) | F27: SERV | G27: tkm | H27: ='MC MODULO'!H68 -> 1323000 | I27: =ROUND(IF(D27="CODEVASF",VLOOKUP(C27,'CPU CODEVASF'!E:I,5,FALSE),VLOOKUP(C27,'SINTÉTICO SICRO 04-25'!A:D,4,FALSE)),6) -> 0.65 | J27: =TRUNC(_xlfn.IFS(F27="SERV",I27*(1+$L$5),F27="SERV DIF",I27*(1+$L$6),F27="FORN",I27*(1+$L$7)),2) -> 0.8 | K27: 859950 | L27: 1058400 | M27: 0.0184667288 | N27: PAVIMENTAÇÃO
B28: 5.6 | C28: 5915321 | D28: SICRO | E28: Transporte com caminhão basculante de 14 m³ - rodovia pavimentada (pó de pedra) | F28: SERV | G28: tkm | H28: ='MC MODULO'!H73 -> 297675 | I28: =ROUND(IF(D28="CODEVASF",VLOOKUP(C28,'CPU CODEVASF'!E:I,5,FALSE),VLOOKUP(C28,'SINTÉTICO SICRO 04-25'!A:D,4,FALSE)),6) -> 0.65 | J28: =TRUNC(_xlfn.IFS(F28="SERV",I28*(1+$L$5),F28="SERV DIF",I28*(1+$L$6),F28="FORN",I28*(1+$L$7)),2) -> 0.8 | K28: 193488.75 | L28: 238140 | M28: 0.004155013981 | N28: PAVIMENTAÇÃO
B29: 5.7 | C29: 4011320 | D29: SICRO | E29: =VLOOKUP(C29,'SINTÉTICO SICRO'!A:D,2,FALSE) -> Base ou sub-base estabilizada granulometricamente com mistura solo brita (70% - 30%) na pista com material de jazida e brita comercial - 100% Proctor modificado | F29: SERV | G29: m³ | H29: ='MC MODULO'!H78 -> 47250 | I29: =ROUND(IF(D29="CODEVASF",VLOOKUP(C29,'CPU CODEVASF'!E:I,5,FALSE),VLOOKUP(C29,'SINTÉTICO SICRO 04-25'!A:D,4,FALSE)),6) -> 76.36 | J29: =TRUNC(_xlfn.IFS(F29="SERV",I29*(1+$L$5),F29="SERV DIF",I29*(1+$L$6),F29="FORN",I29*(1+$L$7)),2) -> 94.22 | K29: 3608010 | L29: 4451895 | M29: 0.07767567803 | N29: PAVIMENTAÇÃO | O29: =H29*O24 -> 14175
B30: 5.8 | C30: 4011209 | D30: SICRO | E30: Regularização do subleito - 100% Proctor intermediário | F30: SERV | G30: m² | H30: ='MC MODULO'!H83 -> 315000 | I30: =ROUND(IF(D30="CODEVASF",VLOOKUP(C30,'CPU CODEVASF'!E:I,5,FALSE),VLOOKUP(C30,'SINTÉTICO SICRO 04-25'!A:D,4,FALSE)),6) -> 1.53 | J30: =TRUNC(_xlfn.IFS(F30="SERV",I30*(1+$L$5),F30="SERV DIF",I30*(1+$L$6),F30="FORN",I30*(1+$L$7)),2) -> 1.88 | K30: 481950 | L30: 592200 | M30: 0.01033257445 | N30: PAVIMENTAÇÃO
B31: 6 | E31: SINALIZAÇÃO | K31: =SUM(K32:K35) -> 427615.2 | L31: =SUM(L32:L35) -> 527551.65 | M31: 0.009204604356
B32: 6.1 | C32: 5213440 | D32: SICRO | E32: Placa de regulamentação em aço D = 0,60 m - película retrorrefletiva tipo I + SI - fornecimento e implantação | F32: SERV | G32: und | H32: ='MC MODULO'!H90 -> 135 | I32: =ROUND(IF(D32="CODEVASF",VLOOKUP(C32,'CPU CODEVASF'!E:I,5,FALSE),VLOOKUP(C32,'SINTÉTICO SICRO 04-25'!A:D,4,FALSE)),6) -> 278.02 | J32: =TRUNC(_xlfn.IFS(F32="SERV",I32*(1+$L$5),F32="SERV DIF",I32*(1+$L$6),F32="FORN",I32*(1+$L$7)),2) -> 343.04 | K32: =TRUNC(H32*I32,2) -> 37532.7 | L32: =TRUNC(H32*J32,2) -> 46310.4 | M32: 0.0008080136032 | N32: INCC
B33: 6.2 | C33: 5213464 | D33: SICRO | E33: Placa de advertência em aço, lado de 0,60 m - película retrorrefletiva tipo I + SI - fornecimento e implantação | F33: SERV | G33: und | H33: ='MC MODULO'!H95 -> 135 | I33: =ROUND(IF(D33="CODEVASF",VLOOKUP(C33,'CPU CODEVASF'!E:I,5,FALSE),VLOOKUP(C33,'SINTÉTICO SICRO 04-25'!A:D,4,FALSE)),6) -> 278.06 | J33: =TRUNC(_xlfn.IFS(F33="SERV",I33*(1+$L$5),F33="SERV DIF",I33*(1+$L$6),F33="FORN",I33*(1+$L$7)),2) -> 343.09 | K33: 37538.1 | L33: 46317.15 | M33: 0.0008081313757 | N33: INCC
B34: 6.3 | C34: 5213863 | D34: SICRO | E34: Suporte metálico galvanizado para placa de advertência ou regulamentação - lado ou diâmetro de 0,60 m - fornecimento e implantação | F34: SERV | G34: und | H34: ='MC MODULO'!H101 -> 270 | I34: =ROUND(IF(D34="CODEVASF",VLOOKUP(C34,'CPU CODEVASF'!E:I,5,FALSE),VLOOKUP(C34,'SINTÉTICO SICRO 04-25'!A:D,4,FALSE)),6) -> 466.52 | J34: =TRUNC(_xlfn.IFS(F34="SERV",I34*(1+$L$5),F34="SERV DIF",I34*(1+$L$6),F34="FORN",I34*(1+$L$7)),2) -> 575.63 | K34: 125960.4 | L34: 155420.1 | M34: 0.002711735485 | N34: INCC
B35: 6.4 | C35: 5213400 | D35: SICRO | E35: Pintura de faixa com tinta acrílica - espessura de 0,4 mm | F35: SERV | G35: m² | H35: ='MC MODULO'!H106+'MC MODULO'!H111 -> 10800 | I35: =ROUND(IF(D35="CODEVASF",VLOOKUP(C35,'CPU CODEVASF'!E:I,5,FALSE),VLOOKUP(C35,'SINTÉTICO SICRO 04-25'!A:D,4,FALSE)),6) -> 20.98 | J35: =TRUNC(_xlfn.IFS(F35="SERV",I35*(1+$L$5),F35="SERV DIF",I35*(1+$L$6),F35="FORN",I35*(1+$L$7)),2) -> 25.88 | K35: 226584 | L35: 279504 | M35: 0.004876723892 | N35: INCC
B36: 7 | E36: DRENAGEM | K36: =SUM(K37:K38) -> 2385612 | L36: =SUM(L37:L38) -> 2942964 | M36: 0.05134818412 | O36: 0.15
B37: 7.1 | C37: 2003943 | D37: SICRO | E37: Meio-fio de concreto - MFC 03 moldado no local com extrusora e concreto usinado - areia e brita comerciais | F37: SERV | G37: m | H37: ='MC MODULO'!H118 -> 90000 | I37: =ROUND(IF(D37="CODEVASF",VLOOKUP(C37,'CPU CODEVASF'!E:I,5,FALSE),VLOOKUP(C37,'SINTÉTICO SICRO 04-25'!A:D,4,FALSE)),6) -> 26.28 | J37: =TRUNC(_xlfn.IFS(F37="SERV",I37*(1+$L$5),F37="SERV DIF",I37*(1+$L$6),F37="FORN",I37*(1+$L$7)),2) -> 32.42 | K37: =TRUNC(H37*I37,2) -> 2365200 | L37: =TRUNC(H37*J37,2) -> 2917800 | M37: 0.05090912822 | N37: DRENAGEM | O37: =H37*O36 -> 13500
B38: 7.2 | C38: 4915724 | D38: SICRO | E38: Caiação mecanizada com fixador de cal | F38: SERV | G38: m² | H38: ='MC MODULO'!H123 -> 10800 | I38: =ROUND(IF(D38="CODEVASF",VLOOKUP(C38,'CPU CODEVASF'!E:I,5,FALSE),VLOOKUP(C38,'SINTÉTICO SICRO 04-25'!A:D,4,FALSE)),6) -> 1.89 | J38: =TRUNC(_xlfn.IFS(F38="SERV",I38*(1+$L$5),F38="SERV DIF",I38*(1+$L$6),F38="FORN",I38*(1+$L$7)),2) -> 2.33 | K38: 20412 | L38: 25164 | M38: 0.0004390558991 | N38: INCC
B39: 8 | E39: SERVIÇOS COMPLEMENTARES | K39: =SUM(K40:K40) -> 68700.01 | L39: =SUM(L40:L40) -> 84735 | M39: 0.001478437514
B40: 8.1 | C40: CPU-02 | D40: Codevasf | E40: Conserto de quebra no ramal na rua sem pavimento com fornecimento de material hidráulico | F40: SERV | G40: m | H40: ='MC MODULO'!H130 -> 4500 | I40: =ROUND(IF(D40="CODEVASF",VLOOKUP(C40,'CPU CODEVASF'!E:I,5,FALSE),VLOOKUP(C40,'SINTÉTICO SICRO 04-25'!A:D,4,FALSE)),6) -> 15.26667 | J40: =TRUNC(_xlfn.IFS(F40="SERV",I40*(1+$L$5),F40="SERV DIF",I40*(1+$L$6),F40="FORN",I40*(1+$L$7)),2) -> 18.83 | K40: =TRUNC(H40*I40,2) -> 68700.01 | L40: =TRUNC(H40*J40,2) -> 84735 | M40: 0.001478437514 | N40: INCC
B41: 9 | E41: PROJETO EXECUTIVO | K41: =SUM(K42:K42) -> 1532411.68 | L41: =SUM(L42:L42) -> 1890000 | M41: 0.03297630144
B42: 9.1 | C42: CPU.7 | D42: Codevasf | E42: Projeto Executivo | F42: SERV | G42: m² | H42: ='MC MODULO'!H137 -> 315000 | I42: =ROUND(('Projeto Executivo'!G29)/(1+$L$5),6) -> 4.864799 | J42: =TRUNC(_xlfn.IFS(F42="SERV",I42*(1+$L$5),F42="SERV DIF",I42*(1+$L$6),F42="FORN",I42*(1+$L$7)),2) -> 6 | K42: =TRUNC(H42*I42,2) -> 1532411.68 | L42: =TRUNC(H42*J42,2) -> 1890000 | M42: 0.03297630144 | N42: INCC
B43: 10 | E43: MOMENTO DE TRANSPORTE | K43: =SUM(K44:K52) -> 5909132.68 | L43: =SUM(L44:L52) -> 7282555.41 | M43: 0.127064414
B44: 10.1 | C44: 5914359 | D44: SICRO | E44: Transporte com caminhão basculante de 10 m³ - rodovia em leito natural | F44: SERV | G44: tkm | H44: =SUMIF('MOMENTO DE TRANSPORTE - PRINC'!A:A,'RESUMO MODULO TOTAL'!C44,'MOMENTO DE TRANSPORTE - PRINC'!K:K)+SUMIF('MOMENTO DE TRANSPORTE - AUX'!A:A,'RESUMO MODULO TOTAL'!C44,'MOMENTO DE TRANSPORTE - AUX'!K:K) -> 233749.152 | I44: =ROUND(IF(D44="CODEVASF",VLOOKUP(C44,'CPU CODEVASF'!E:I,5,FALSE),VLOOKUP(C44,'SINTÉTICO SICRO 04-25'!A:D,4,FALSE)),6) -> 1.18 | J44: =TRUNC(_xlfn.IFS(F44="SERV",I44*(1+$L$5),F44="SERV DIF",I44*(1+$L$6),F44="FORN",I44*(1+$L$7)),2) -> 1.45 | K44: =TRUNC(H44*I44,2) -> 275823.99 | L44: =TRUNC(H44*J44,2) -> 338936.27 | M44: 0.005913684977 | N44: PAVIMENTAÇÃO
B45: 10.2 | C45: 5914374 | D45: SICRO | E45: Transporte com caminhão basculante de 10 m³ - rodovia em revestimento primário | F45: SERV | G45: tkm | H45: =SUMIF('MOMENTO DE TRANSPORTE - PRINC'!A:A,'RESUMO MODULO TOTAL'!C45,'MOMENTO DE TRANSPORTE - PRINC'!K:K)+SUMIF('MOMENTO DE TRANSPORTE - AUX'!A:A,'RESUMO MODULO TOTAL'!C45,'MOMENTO DE TRANSPORTE - AUX'!K:K) -> 233749.152 | I45: =ROUND(IF(D45="CODEVASF",VLOOKUP(C45,'CPU CODEVASF'!E:I,5,FALSE),VLOOKUP(C45,'SINTÉTICO SICRO 04-25'!A:D,4,FALSE)),6) -> 0.94 | J45: =TRUNC(_xlfn.IFS(F45="SERV",I45*(1+$L$5),F45="SERV DIF",I45*(1+$L$6),F45="FORN",I45*(1+$L$7)),2) -> 1.15 | K45: 219724.2 | L45: 268811.52 | M45: 0.004690163869 | N45: PAVIMENTAÇÃO
B46: 10.3 | C46: 5914389 | D46: SICRO | E46: Transporte com caminhão basculante de 10 m³ - rodovia pavimentada | F46: SERV | G46: tkm | H46: =SUMIF('MOMENTO DE TRANSPORTE - PRINC'!A:A,'RESUMO MODULO TOTAL'!C46,'MOMENTO DE TRANSPORTE - PRINC'!K:K)+SUMIF('MOMENTO DE TRANSPORTE - AUX'!A:A,'RESUMO MODULO TOTAL'!C46,'MOMENTO DE TRANSPORTE - AUX'!K:K) -> 6389797.428 | I46: =ROUND(IF(D46="CODEVASF",VLOOKUP(C46,'CPU CODEVASF'!E:I,5,FALSE),VLOOKUP(C46,'SINTÉTICO SICRO 04-25'!A:D,4,FALSE)),6) -> 0.77 | J46: =TRUNC(_xlfn.IFS(F46="SERV",I46*(1+$L$5),F46="SERV DIF",I46*(1+$L$6),F46="FORN",I46*(1+$L$7)),2) -> 0.95 | K46: 4920144.01 | L46: 6070307.55 | M46: 0.1059133818 | N46: PAVIMENTAÇÃO
B47: 10.4 | C47: 5914449 | D47: SICRO | E47: Transporte com caminhão carroceria de 15 t - rodovia em leito natural | F47: SERV | G47: tkm | H47: =SUMIF('MOMENTO DE TRANSPORTE - PRINC'!A:A,'RESUMO MODULO TOTAL'!C47,'MOMENTO DE TRANSPORTE - PRINC'!K:K)+SUMIF('MOMENTO DE TRANSPORTE - AUX'!A:A,'RESUMO MODULO TOTAL'!C47,'MOMENTO DE TRANSPORTE - AUX'!K:K) -> 5362.2 | I47: =ROUND(IF(D47="CODEVASF",VLOOKUP(C47,'CPU CODEVASF'!E:I,5,FALSE),VLOOKUP(C47,'SINTÉTICO SICRO 04-25'!A:D,4,FALSE)),6) -> 1.04 | J47: =TRUNC(_xlfn.IFS(F47="SERV",I47*(1+$L$5),F47="SERV DIF",I47*(1+$L$6),F47="FORN",I47*(1+$L$7)),2) -> 1.28 | K47: 5576.68 | L47: 6863.61 | M47: 0.0001197547472 | N47: PAVIMENTAÇÃO
B48: 10.5 | C48: 5914464 | D48: SICRO | E48: Transporte com caminhão carroceria de 15 t - rodovia em revestimento primário | F48: SERV | G48: tkm | H48: =SUMIF('MOMENTO DE TRANSPORTE - PRINC'!A:A,'RESUMO MODULO TOTAL'!C48,'MOMENTO DE TRANSPORTE - PRINC'!K:K)+SUMIF('MOMENTO DE TRANSPORTE - AUX'!A:A,'RESUMO MODULO TOTAL'!C48,'MOMENTO DE TRANSPORTE - AUX'!K:K) -> 5362.2 | I48: =ROUND(IF(D48="CODEVASF",VLOOKUP(C48,'CPU CODEVASF'!E:I,5,FALSE),VLOOKUP(C48,'SINTÉTICO SICRO 04-25'!A:D,4,FALSE)),6) -> 0.83 | J48: =TRUNC(_xlfn.IFS(F48="SERV",I48*(1+$L$5),F48="SERV DIF",I48*(1+$L$6),F48="FORN",I48*(1+$L$7)),2) -> 1.02 | K48: 4450.62 | L48: 5469.44 | M48: 9.542957784e-05 | N48: PAVIMENTAÇÃO
B49: 10.6 | C49: 5914479 | D49: SICRO | E49: Transporte com caminhão carroceria de 15 t - rodovia pavimentada | F49: SERV | G49: tkm | H49: =SUMIF('MOMENTO DE TRANSPORTE - PRINC'!A:A,'RESUMO MODULO TOTAL'!C49,'MOMENTO DE TRANSPORTE - PRINC'!K:K)+SUMIF('MOMENTO DE TRANSPORTE - AUX'!A:A,'RESUMO MODULO TOTAL'!C49,'MOMENTO DE TRANSPORTE - AUX'!K:K) -> 128692.8 | I49: =ROUND(IF(D49="CODEVASF",VLOOKUP(C49,'CPU CODEVASF'!E:I,5,FALSE),VLOOKUP(C49,'SINTÉTICO SICRO 04-25'!A:D,4,FALSE)),6) -> 0.68 | J49: =TRUNC(_xlfn.IFS(F49="SERV",I49*(1+$L$5),F49="SERV DIF",I49*(1+$L$6),F49="FORN",I49*(1+$L$7)),2) -> 0.83 | K49: 87511.1 | L49: 106815.02 | M49: 0.001863684813 | N49: PAVIMENTAÇÃO
B50: 10.7 | C50: 5914569 | D50: SICRO | E50: Transporte com caminhão betoneira - rodovia pavimentada | F50: SERV | G50: tkm | H50: =SUMIF('MOMENTO DE TRANSPORTE - PRINC'!A:A,'RESUMO MODULO TOTAL'!C50,'MOMENTO DE TRANSPORTE - PRINC'!K:K)+SUMIF('MOMENTO DE TRANSPORTE - AUX'!A:A,'RESUMO MODULO TOTAL'!C50,'MOMENTO DE TRANSPORTE - AUX'!K:K) -> 508032 | I50: =ROUND(IF(D50="CODEVASF",VLOOKUP(C50,'CPU CODEVASF'!E:I,5,FALSE),VLOOKUP(C50,'SINTÉTICO SICRO 04-25'!A:D,4,FALSE)),6) -> 0.71 | J50: =TRUNC(_xlfn.IFS(F50="SERV",I50*(1+$L$5),F50="SERV DIF",I50*(1+$L$6),F50="FORN",I50*(1+$L$7)),2) -> 0.87 | K50: 360702.72 | L50: 441987.84 | M50: 0.007711705949 | N50: PAVIMENTAÇÃO
B51: 10.8 | C51: 5914554 | D51: SICRO | E51: Transporte com caminhão betoneira - rodovia em revestimento primário | F51: SERV | G51: tkm | H51: =SUMIF('MOMENTO DE TRANSPORTE - PRINC'!A:A,'RESUMO MODULO TOTAL'!C51,'MOMENTO DE TRANSPORTE - PRINC'!K:K)+SUMIF('MOMENTO DE TRANSPORTE - AUX'!A:A,'RESUMO MODULO TOTAL'!C51,'MOMENTO DE TRANSPORTE - AUX'!K:K) -> 18144 | I51: =ROUND(IF(D51="CODEVASF",VLOOKUP(C51,'CPU CODEVASF'!E:I,5,FALSE),VLOOKUP(C51,'SINTÉTICO SICRO 04-25'!A:D,4,FALSE)),6) -> 0.86 | J51: =TRUNC(_xlfn.IFS(F51="SERV",I51*(1+$L$5),F51="SERV DIF",I51*(1+$L$6),F51="FORN",I51*(1+$L$7)),2) -> 1.06 | K51: 15603.84 | L51: 19232.64 | M51: 0.0003355668434 | N51: PAVIMENTAÇÃO
B52: 10.9 | C52: 5914539 | D52: SICRO | E52: Transporte com caminhão betoneira - rodovia em leito natural | F52: SERV | G52: tkm | H52: =SUMIF('MOMENTO DE TRANSPORTE - PRINC'!A:A,'RESUMO MODULO TOTAL'!C52,'MOMENTO DE TRANSPORTE - PRINC'!K:K)+SUMIF('MOMENTO DE TRANSPORTE - AUX'!A:A,'RESUMO MODULO TOTAL'!C52,'MOMENTO DE TRANSPORTE - AUX'!K:K) -> 18144 | I52: =ROUND(IF(D52="CODEVASF",VLOOKUP(C52,'CPU CODEVASF'!E:I,5,FALSE),VLOOKUP(C52,'SINTÉTICO SICRO 04-25'!A:D,4,FALSE)),6) -> 1.08 | J52: =TRUNC(_xlfn.IFS(F52="SERV",I52*(1+$L$5),F52="SERV DIF",I52*(1+$L$6),F52="FORN",I52*(1+$L$7)),2) -> 1.33 | K52: 19595.52 | L52: 24131.52 | M52: 0.0004210414167 | N52: PAVIMENTAÇÃO
B53: TOTAL GERAL DA OBRA COM BDI | K53: =SUM(K11,K14,K17,K19,K22,K31,K36,K39,K41,K43) -> 47698010.33 | L53: =SUM(L11,L14,L17,L19,L22,L31,L36,L39,L41,L43) -> 57313886.57
B56: CONTRATAÇÃO DE SERVIÇOS DE EXECUÇÃO DE PAVIMENTAÇÃO EM BLOCO INTERTRAVADO DE CONCRETO EM VIAS DE DIVERSOS MUNICÍPIOS INSERIDOS NA ÁREA DE ATUAÇÃO DA 13ª SUPERINTENDÊNCIA REGIONAL DA CODEVASF, NO ESTADO DA PARAÍBA
F137: =99.6*2 -> 199.2
F139: =1500*2 -> 3000
F140: =1500*2 -> 3000
F141: =1500*2 -> 3000
F142: =1500*2 -> 3000
F143: =113.18*2 -> 226.36
F144: =1121.33*2 -> 2242.66
F224: =H14+H18+H26+H30 -> 370441

Sheet CRONOGRAMA TOTAL
A2: ='RESUMO MODULO TOTAL'!B56 -> CONTRATAÇÃO DE SERVIÇOS DE EXECUÇÃO DE PAVIMENTAÇÃO EM BLOCO INTERTRAVADO DE CONCRETO EM VIAS DE DIVERSOS MUNICÍPIOS INSERIDOS NA ÁREA DE ATUAÇÃO DA 13ª SUPERINTENDÊNCIA REGIONAL DA CODEVASF, NO ESTADO DA PARAÍBA
A3: Cronograma Físico e Financeiro
A4: Item | B4: Descrição | C4: Total Por Etapa | D4: 30 DIAS | E4: 60 DIAS | F4: 90 DIAS | G4: 120 DIAS | H4: 150 DIAS | I4: 180 DIAS | J4: 210 DIAS | K4: 240 DIAS | L4: 270 DIAS | M4: 300 DIAS | N4: 330 DIAS | O4: 360 DIAS
B5: ='RESUMO MODULO TOTAL'!E11 -> SERVIÇOS PRELIMINARES | C5: =SUM(D5:O5) -> 1 | D5: 0.5 | O5: 0.5
C6: ='RESUMO MODULO TOTAL'!L11 -> 1649907 | D6: =$C$6*D5 -> 824953.5 | O6: =$C$6*O5 -> 824953.5 | P6: =SUM(D6:O6) -> 1649907 | Q6: =IF(P6=C6,"OK","") -> OK
B7: ='RESUMO MODULO TOTAL'!E14 -> INSTALAÇÃO DE CANTEIRO | C7: =SUM(D7:O7) -> 1 | D7: 0.1 | E7: 0.5 | F7: 0.4
C8: ='RESUMO MODULO TOTAL'!L14 -> 768045.6 | D8: =$C$8*D7 -> 76804.56 | E8: =$C$8*E7 -> 384022.8 | F8: 307218.24 | G8: 0 | H8: 0 | I8: 0 | J8: 0 | K8: 0 | L8: 0 | M8: 0 | N8: 0 | O8: 0 | P8: =SUM(D8:O8) -> 768045.6 | Q8: =IF(P8=C8,"OK","") -> OK
B9: ='RESUMO MODULO TOTAL'!E17 -> ADMINISTRAÇÃO LOCAL DA OBRA | C9: =SUM(D9:O9) -> 1 | D9: =(D6+D8+D12+D14+D16+D18+D20+D22+D24)/($O$31-$C$10) -> 0.01621696151 | E9: =(E6+E8+E12+E14+E16+E18+E20+E22+E24)/($O$31-$C$10) -> 0.006906157254 | F9: 0.02333257369 | G9: 0.01780764789 | H9: 0.0348022602 | I9: 0.159480521 | J9: 0.1312266314 | K9: 0.1312266314 | L9: 0.1312266314 | M9: 0.1312266314 | N9: 0.158451272 | O9: 0.05809608076
C10: ='RESUMO MODULO TOTAL'!L17 -> 1708028.51 | D10: =$C$10*D9 -> 27699.03261 | E10: =$C$10*E9 -> 11795.91348 | F10: =$C$10*F9 -> 39852.70108 | G10: 30415.97029 | H10: 59443.25264 | I10: 272397.2766 | J10: 224138.8278 | K10: 224138.8278 | L10: 224138.8278 | M10: 224138.8278 | N10: 270639.29 | O10: 99229.76225 | P10: =SUM(D10:O10) -> 1708028.51 | Q10: =IF(P10=C10,"OK","") -> OK
B11: ='RESUMO MODULO TOTAL'!E19 -> TERRAPLANAGEM | C11: =SUM(D11:O11) -> 1 | F11: =1/4 -> 0.25 | G11: =1/4 -> 0.25 | H11: =1/4 -> 0.25 | I11: =1/4 -> 0.25
C12: ='RESUMO MODULO TOTAL'!L19 -> 1047816 | D12: =$C$14*D11 -> 0 | E12: =$C$12*E11 -> 0 | F12: 261954 | G12: 261954 | H12: 261954 | I12: 261954 | J12: 0 | K12: 0 | L12: 0 | M12: 0 | N12: 0 | O12: 0 | P12: =SUM(D12:O12) -> 1047816 | Q12: =IF(P12=C12,"OK","") -> OK
B13: ='RESUMO MODULO TOTAL'!E22 -> PAVIMENTAÇÃO | C13: =SUM(D13:O13) -> 1 | I13: =1/6 -> 0.1666666667 | J13: =1/6 -> 0.1666666667 | K13: 0.1666666667 | L13: 0.1666666667 | M13: 0.1666666667 | N13: 0.1666666667
C14: ='RESUMO MODULO TOTAL'!L22 -> 39412283.4 | D14: =$C$14*D13 -> 0 | E14: =$C$14*E13 -> 0 | F14: 0 | G14: 0 | H14: 0 | I14: 6568713.9 | J14: 6568713.9 | K14: 6568713.9 | L14: 6568713.9 | M14: 6568713.9 | N14: 6568713.9 | O14: 0 | P14: =SUM(D14:O14) -> 39412283.4 | Q14: =IF(P14=C14,"OK","") -> OK
B15: ='RESUMO MODULO TOTAL'!E31 -> SINALIZAÇÃO | C15: =SUM(D15:O15) -> 1 | O15: 1
C16: ='RESUMO MODULO TOTAL'!L31 -> 527551.65 | D16: =$C$16*D15 -> 0 | E16: =$C$16*E15 -> 0 | F16: 0 | G16: 0 | H16: 0 | I16: 0 | J16: 0 | K16: 0 | L16: 0 | M16: 0 | N16: 0 | O16: 527551.65 | P16: =SUM(D16:O16) -> 527551.65 | Q16: =IF(P16=C16,"OK","") -> OK
B17: ='RESUMO MODULO TOTAL'!E36 -> DRENAGEM | C17: =SUM(D17:O17) -> 1 | N17: 0.5 | O17: 0.5
C18: ='RESUMO MODULO TOTAL'!L36 -> 2942964 | D18: =$C$18*D17 -> 0 | E18: =$C$18*E17 -> 0 | F18: 0 | G18: 0 | H18: 0 | I18: 0 | J18: 0 | K18: 0 | L18: 0 | M18: 0 | N18: 1471482 | O18: 1471482 | P18: =SUM(D18:O18) -> 2942964 | Q18: =IF(P18=C18,"OK","") -> OK
B19: ='RESUMO MODULO TOTAL'!E39 -> SERVIÇOS COMPLEMENTARES | C19: =SUM(D19:O19) -> 1 | N19: 0.5 | O19: 0.5
C20: ='RESUMO MODULO TOTAL'!L39 -> 84735 | D20: =$C$20*D19 -> 0 | E20: =$C$20*E19 -> 0 | F20: 0 | G20: 0 | H20: 0 | I20: 0 | J20: 0 | K20: 0 | L20: 0 | M20: 0 | N20: 42367.5 | O20: 42367.5 | P20: =SUM(D20:O20) -> 84735 | Q20: =IF(P20=C20,"OK","") -> OK
B21: ='RESUMO MODULO TOTAL'!E41 -> PROJETO EXECUTIVO | C21: =SUM(D21:O21) -> 1 | H21: 0.5 | I21: 0.5
C22: ='RESUMO MODULO TOTAL'!L41 -> 1890000 | D22: =$C$22*D21 -> 0 | E22: =$C$22*E21 -> 0 | F22: 0 | G22: 0 | H22: 945000 | I22: 945000 | J22: 0 | K22: 0 | L22: 0 | M22: 0 | N22: 0 | O22: 0 | P22: =SUM(D22:O22) -> 1890000 | Q22: =IF(P22=C22,"OK","") -> OK
B23: ='RESUMO MODULO TOTAL'!E43 -> MOMENTO DE TRANSPORTE | C23: =SUM(D23:O23) -> 1 | F23: 0.1 | G23: 0.1 | H23: 0.1 | I23: 0.15 | J23: 0.1 | K23: 0.1 | L23: 0.1 | M23: 0.1 | N23: 0.1 | O23: 0.05
C24: ='RESUMO MODULO TOTAL'!L43 -> 7282555.41 | D24: =$C$24*D23 -> 0 | E24: =$C$24*E23 -> 0 | F24: 728255.541 | G24: 728255.541 | H24: 728255.541 | I24: 1092383.311 | J24: 728255.541 | K24: 728255.541 | L24: 728255.541 | M24: 728255.541 | N24: 728255.541 | O24: 364127.7705 | P24: =SUM(D24:O24) -> 7282555.41 | Q24: =IF(P24=C24,"OK","") -> OK
A26: Porcentagem | D26: =SUM(D6+D8+D10+D12+D14+D16+D18+D20+D22+D24)/$O$31 -> 0.01621696151 | E26: =SUM(E6+E8+E10+E12+E14+E16+E18+E20+E22+E24)/$O$31 -> 0.006906157254 | F26: 0.02333257369 | G26: 0.01780764789 | H26: 0.0348022602 | I26: 0.159480521 | J26: 0.1312266314 | K26: 0.1312266314 | L26: 0.1312266314 | M26: 0.1312266314 | N26: 0.158451272 | O26: 0.05809608076
A27: Custo | D27: =$O$31*D26 -> 929457.0926 | E27: =$O$31*E26 -> 395818.7135 | F27: =$O$31*F26 -> 1337280.482 | G27: 1020625.511 | H27: 1994652.794 | I27: 9140448.488 | J27: 7521108.269 | K27: 7521108.269 | L27: 7521108.269 | M27: 7521108.269 | N27: 9081458.231 | O27: 3329712.183
A28: Porcentagem Acumulado | D28: =D26 -> 0.01621696151 | E28: =D28+E26 -> 0.02312311877 | F28: =E28+F26 -> 0.04645569246 | G28: 0.06426334035 | H28: 0.09906560055 | I28: 0.2585461215 | J28: 0.3897727529 | K28: 0.5209993844 | L28: 0.6522260158 | M28: 0.7834526472 | N28: 0.9419039192 | O28: =N28+O26 -> 1
A29: Custo Acumulado | D29: =D27 -> 929457.0926 | E29: =D29+E27 -> 1325275.806 | F29: 2662556.288 | G29: 3683181.799 | H29: 5677834.593 | I29: 14818283.08 | J29: 22339391.35 | K29: 29860499.62 | L29: 37381607.89 | M29: 44902716.16 | N29: 53984174.39 | O29: =INT(N29+O27) -> 57313886
D31: Total Geral | N31: R$ | O31: =C6+C8+C10+C12+C14+C16+C18+C20+C22+C24 -> 57313886.57
O34: =O29-O31 -> -0.5699999928
F137: =99.6*2 -> 199.2
F139: =1500*2 -> 3000
F140: =1500*2 -> 3000
F141: =1500*2 -> 3000
F142: =1500*2 -> 3000
F143: =113.18*2 -> 226.36
F144: =1121.33*2 -> 2242.66
F224: =H14+H18+H26+H30 -> 0.0348022602

Sheet MOMENTO DE TRANSPORTE - PRINC
B5: ='RESUMO MODULO TOTAL'!B56 -> CONTRATAÇÃO DE SERVIÇOS DE EXECUÇÃO DE PAVIMENTAÇÃO EM BLOCO INTERTRAVADO DE CONCRETO EM VIAS DE DIVERSOS MUNICÍPIOS INSERIDOS NA ÁREA DE ATUAÇÃO DA 13ª SUPERINTENDÊNCIA REGIONAL DA CODEVASF, NO ESTADO DA PARAÍBA
B6: DATA BASE: | C6: ='MOMENTO DE TRANSPORTE - AUX'!C6 -> Paraíba - Abril/2025
C8: RESUMO DO TRANSPORTE PRINCIPAL
B9: CODIGO | C9: DESCRIÇÃO | D9: TKM
B10: 5914359 | C10: =VLOOKUP(B10,'SINTÉTICO SICRO'!$A:$D,2,0) -> Transporte com caminhão basculante de 10 m³ - rodovia em leito natural | D10: =ROUND(SUMIF('MOMENTO DE TRANSPORTE - PRINC'!A:A,B10,'MOMENTO DE TRANSPORTE - PRINC'!K:K),2) -> 194954.45
B11: 5914374 | C11: =VLOOKUP(B11,'SINTÉTICO SICRO'!$A:$D,2,0) -> Transporte com caminhão basculante de 10 m³ - rodovia em revestimento primário | D11: =ROUND(SUMIF('MOMENTO DE TRANSPORTE - PRINC'!A:A,B11,'MOMENTO DE TRANSPORTE - PRINC'!K:K),2) -> 194954.45
B12: 5914389 | C12: =VLOOKUP(B12,'SINTÉTICO SICRO'!$A:$D,2,0) -> Transporte com caminhão basculante de 10 m³ - rodovia pavimentada | D12: =ROUND(SUMIF('MOMENTO DE TRANSPORTE - PRINC'!A:A,B12,'MOMENTO DE TRANSPORTE - PRINC'!K:K),2) -> 5458724.46
B13: 5914539 | C13: =VLOOKUP(B13,'SINTÉTICO SICRO'!$A:$D,2,0) -> Transporte com caminhão betoneira - rodovia em leito natural | D13: =ROUND(SUMIF('MOMENTO DE TRANSPORTE - PRINC'!A:A,B13,'MOMENTO DE TRANSPORTE - PRINC'!K:K),2) -> 18144
B14: 5914554 | C14: =VLOOKUP(B14,'SINTÉTICO SICRO'!$A:$D,2,0) -> Transporte com caminhão betoneira - rodovia em revestimento primário | D14: =ROUND(SUMIF('MOMENTO DE TRANSPORTE - PRINC'!A:A,B14,'MOMENTO DE TRANSPORTE - PRINC'!K:K),2) -> 18144
B15: 5914569 | C15: =VLOOKUP(B15,'SINTÉTICO SICRO'!$A:$D,2,0) -> Transporte com caminhão betoneira - rodovia pavimentada | D15: =ROUND(SUMIF('MOMENTO DE TRANSPORTE - PRINC'!A:A,B15,'MOMENTO DE TRANSPORTE - PRINC'!K:K),2) -> 508032
B17: TIPO (P, RP ou LN) | C17: DMT ESTIMADA (DISTRIBUIÇÃO DO ITEM NA PISTA
B18: P | C18: 70
B20: SISTEMA DE CUSTOS REFERENCIAIS DE OBRAS - SICRO
B21: Custo Unitário de Referência | D21: =$C$6 -> Paraíba - Abril/2025 | I21: Quantitativo | K21: un
B22: 4011320 | C22: =VLOOKUP(B22,'SINTÉTICO SICRO'!$A$4:$D$1048576,2,0) -> Base ou sub-base estabilizada granulometricamente com mistura solo brita (70% - 30%) na pista com material de jazida e brita comercial - 100% Proctor modificado | I22: =SUMIF('RESUMO MODULO TOTAL'!C:C,'MOMENTO DE TRANSPORTE - PRINC'!B22,'RESUMO MODULO TOTAL'!H:H)*0.8 -> 37800
B23: D - ATIVIDADES AUXILIARES | D23: Quantidade | E23: Unidade
B24: 4016096 | C24: =VLOOKUP(B24,'SINTÉTICO SICRO'!$A$4:$D$1048576,2,0) -> Escavação e carga de material de jazida com escavadeira hidráulica de 1,56 m³ | D24: 0.77019 | E24: m³
B26: F - MOMENTO DE TRANSPORTE | D26: Quantidade | E26: Unidade | F26: CÓDIGO TRANSPORTE
F27: LN | G27: RP | H27: P | I27: TIPO (P, RP ou LN) | J27: DMT ESTIMADA (km) | K27: QUANTITATIVO TOTAL DE TRANSPORTE (tkm)
A28: =IF(I28="P",H28,IF(I28="RP",G28,IF(I28="LN",F28,""))) -> 5914389 | B28: 4016096 | C28: =VLOOKUP(B28,'SINTÉTICO SICRO'!$A$4:$D$1048576,2,0) -> Escavação e carga de material de jazida com escavadeira hidráulica de 1,56 m³ | D28: 1.44411 | E28: tkm | F28: 5914359 | G28: 5914374 | H28: 5914389 | I28: =$B$18 -> P | J28: =C18 -> 70 | K28: =IF(ISBLANK(J28),"",J28*D28)*I22 -> 3821115.06
A29: =IF(I29="P",H29,IF(I29="RP",G29,IF(I29="LN",F29,""))) -> 5914389 | B29: M0191 | C29: Brita 1 - Caminhão basculante 10 m³ | D29: 0.6189 | E29: tkm | F29: 5914359 | G29: 5914374 | H29: 5914389 | I29: =$B$18 -> P | J29: =C18 -> 70 | K29: =IF(ISBLANK(J29),"",J29*D29)*I22 -> 1637609.4
B31: Obs.
B33: SISTEMA DE CUSTOS REFERENCIAIS DE OBRAS - SICRO
B34: Custo Unitário de Referência | D34: =$C$6 -> Paraíba - Abril/2025 | I34: Quantitativo | K34: m
B35: 2003943 | C35: =VLOOKUP(B35,'SINTÉTICO SICRO'!A:D,2,0) -> Meio-fio de concreto - MFC 03 moldado no local com extrusora e concreto usinado - areia e brita comerciais | I35: =SUMIF('RESUMO MODULO TOTAL'!C:C,'MOMENTO DE TRANSPORTE - PRINC'!B35,'RESUMO MODULO TOTAL'!H:H)*0.8 -> 72000
B36: D - ATIVIDADES AUXILIARES | D36: Quantidade | E36: Unidade
B37: 1107928 | C37: Concreto fck = 20 MPa - confecção em betoneira e lançamento manual - areia e brita comerciais | D37: 0.042 | E37: m³
B38: 4805750 | C38: Enchimento de junta de concreto com argamassa asfáltica de densidade 1.700 kg/m³ - espessura de 1 cm | D38: 0.03 | E38: kg
B40: F - MOMENTO DE TRANSPORTE | D40: Quantidade | E40: Unidade | F40: CÓDIGO TRANSPORTE
F41: LN | G41: RP | H41: P | I41: TIPO (P, RP ou LN) | J41: DMT ESTIMADA (km) | K41: QUANTITATIVO TOTAL DE TRANSPORTE (tkm)
A42: =IF(I42="P",H42,IF(I42="RP",G42,IF(I42="LN",F42,""))) -> 5914569 | B42: 1107928 | C42: Concreto fck = 20 MPa - confecção em central dosadora de 30 m³/h - areia e brita comerciais - Caminhão betoneira 8 m³ | D42: 0.1008 | E42: tkm | F42: 5914539 | G42: 5914554 | H42: 5914569 | I42: =$B$18 -> P | J42: =C18 -> 70 | K42: =IF(ISBLANK(J42),"",J42*D42)*I35 -> 508032
B44: TIPO (P, RP ou LN) | C44: DMT ESTIMADA (DISTRIBUIÇÃO DO ITEM NA PISTA
B45: LN | C45: 20
B47: SISTEMA DE CUSTOS REFERENCIAIS DE OBRAS - SICRO
B48: Custo Unitário de Referência | D48: =$C$6 -> Paraíba - Abril/2025 | I48: Quantitativo | K48: un
B49: 4011320 | C49: =VLOOKUP(B49,'SINTÉTICO SICRO'!$A$4:$D$1048576,2,0) -> Base ou sub-base estabilizada granulometricamente com mistura solo brita (70% - 30%) na pista com material de jazida e brita comercial - 100% Proctor modificado | I49: =SUMIF('RESUMO MODULO TOTAL'!C:C,'MOMENTO DE TRANSPORTE - PRINC'!B49,'RESUMO MODULO TOTAL'!H:H)*0.1 -> 4725
B50: D - ATIVIDADES AUXILIARES | D50: Quantidade | E50: Unidade
B51: 4016096 | C51: =VLOOKUP(B51,'SINTÉTICO SICRO'!$A$4:$D$1048576,2,0) -> Escavação e carga de material de jazida com escavadeira hidráulica de 1,56 m³ | D51: 0.77019 | E51: m³
B53: F - MOMENTO DE TRANSPORTE | D53: Quantidade | E53: Unidade | F53: CÓDIGO TRANSPORTE
F54: LN | G54: RP | H54: P | I54: TIPO (P, RP ou LN) | J54: DMT ESTIMADA (km) | K54: QUANTITATIVO TOTAL DE TRANSPORTE (tkm)
A55: =IF(I55="P",H55,IF(I55="RP",G55,IF(I55="LN",F55,""))) -> 5914359 | B55: 4016096 | C55: =VLOOKUP(B55,'SINTÉTICO SICRO'!$A$4:$D$1048576,2,0) -> Escavação e carga de material de jazida com escavadeira hidráulica de 1,56 m³ | D55: 1.44411 | E55: tkm | F55: 5914359 | G55: 5914374 | H55: 5914389 | I55: =$B$45 -> LN | J55: =C45 -> 20 | K55: =IF(ISBLANK(J55),"",J55*D55)*I49 -> 136468.395
A56: =IF(I56="P",H56,IF(I56="RP",G56,IF(I56="LN",F56,""))) -> 5914359 | B56: M0191 | C56: Brita 1 - Caminhão basculante 10 m³ | D56: 0.6189 | E56: tkm | F56: 5914359 | G56: 5914374 | H56: 5914389 | I56: =$B$45 -> LN | J56: =C45 -> 20 | K56: =IF(ISBLANK(J56),"",J56*D56)*I49 -> 58486.05
B58: Obs.
B59: SISTEMA DE CUSTOS REFERENCIAIS DE OBRAS - SICRO
B60: Custo Unitário de Referência | D60: =$C$6 -> Paraíba - Abril/2025 | I60: Quantitativo | K60: m
B61: 2003943 | C61: =VLOOKUP(B61,'SINTÉTICO SICRO'!A:D,2,0) -> Meio-fio de concreto - MFC 03 moldado no local com extrusora e concreto usinado - areia e brita comerciais | I61: =SUMIF('RESUMO MODULO TOTAL'!C:C,'MOMENTO DE TRANSPORTE - PRINC'!B61,'RESUMO MODULO TOTAL'!H:H)*0.1 -> 9000
B62: D - ATIVIDADES AUXILIARES | D62: Quantidade | E62: Unidade
B63: 1107928 | C63: Concreto fck = 20 MPa - confecção em betoneira e lançamento manual - areia e brita comerciais | D63: 0.042 | E63: m³
B64: 4805750 | C64: Enchimento de junta de concreto com argamassa asfáltica de densidade 1.700 kg/m³ - espessura de 1 cm | D64: 0.03 | E64: kg
B66: F - MOMENTO DE TRANSPORTE | D66: Quantidade | E66: Unidade | F66: CÓDIGO TRANSPORTE
F67: LN | G67: RP | H67: P | I67: TIPO (P, RP ou LN) | J67: DMT ESTIMADA (km) | K67: QUANTITATIVO TOTAL DE TRANSPORTE (tkm)
A68: =IF(I68="P",H68,IF(I68="RP",G68,IF(I68="LN",F68,""))) -> 5914539 | B68: 1107928 | C68: =VLOOKUP(B68,'SINTÉTICO SICRO'!A:D,2,0) -> Concreto fck = 20 MPa - confecção em central dosadora de 30 m³/h - areia e brita comerciais | D68: 0.1008 | E68: tkm | F68: 5914539 | G68: 5914554 | H68: 5914569 | I68: =$B$45 -> LN | J68: =C45 -> 20 | K68: =IF(ISBLANK(J68),"",J68*D68)*I61 -> 18144
B70: TIPO (P, RP ou LN) | C70: DMT ESTIMADA (DISTRIBUIÇÃO DO ITEM NA PISTA
B71: RP | C71: 20
B73: SISTEMA DE CUSTOS REFERENCIAIS DE OBRAS - SICRO
B74: Custo Unitário de Referência | D74: =$C$6 -> Paraíba - Abril/2025 | I74: Quantitativo | K74: un
B75: 4011320 | C75: =VLOOKUP(B75,'SINTÉTICO SICRO'!$A$4:$D$1048576,2,0) -> Base ou sub-base estabilizada granulometricamente com mistura solo brita (70% - 30%) na pista com material de jazida e brita comercial - 100% Proctor modificado | I75: =SUMIF('RESUMO MODULO TOTAL'!C:C,'MOMENTO DE TRANSPORTE - PRINC'!B75,'RESUMO MODULO TOTAL'!H:H)*0.1 -> 4725
B76: D - ATIVIDADES AUXILIARES | D76: Quantidade | E76: Unidade
B77: 4016096 | C77: =VLOOKUP(B77,'SINTÉTICO SICRO'!$A$4:$D$1048576,2,0) -> Escavação e carga de material de jazida com escavadeira hidráulica de 1,56 m³ | D77: 0.77019 | E77: m³
B79: F - MOMENTO DE TRANSPORTE | D79: Quantidade | E79: Unidade | F79: CÓDIGO TRANSPORTE
F80: LN | G80: RP | H80: P | I80: TIPO (P, RP ou LN) | J80: DMT ESTIMADA (km) | K80: QUANTITATIVO TOTAL DE TRANSPORTE (tkm)
A81: =IF(I81="P",H81,IF(I81="RP",G81,IF(I81="LN",F81,""))) -> 5914374 | B81: 4016096 | C81: Escavação e carga de material de jazida com escavadeira hidráulica de 1,56 m³ | D81: 1.44411 | E81: tkm | F81: 5914359 | G81: 5914374 | H81: 5914389 | I81: =$B$71 -> RP | J81: =C71 -> 20 | K81: =IF(ISBLANK(J81),"",J81*D81)*I75 -> 136468.395
A82: =IF(I82="P",H82,IF(I82="RP",G82,IF(I82="LN",F82,""))) -> 5914374 | B82: M0191 | C82: Brita 1 - Caminhão basculante 10 m³ | D82: 0.6189 | E82: tkm | F82: 5914359 | G82: 5914374 | H82: 5914389 | I82: =$B$71 -> RP | J82: =C71 -> 20 | K82: =IF(ISBLANK(J82),"",J82*D82)*I75 -> 58486.05
B84: Obs.
B85: SISTEMA DE CUSTOS REFERENCIAIS DE OBRAS - SICRO
B86: Custo Unitário de Referência | D86: =$C$6 -> Paraíba - Abril/2025 | I86: Quantitativo | K86: m
B87: 2003943 | C87: =VLOOKUP(B87,'SINTÉTICO SICRO'!A:D,2,0) -> Meio-fio de concreto - MFC 03 moldado no local com extrusora e concreto usinado - areia e brita comerciais | I87: =SUMIF('RESUMO MODULO TOTAL'!C:C,'MOMENTO DE TRANSPORTE - PRINC'!B87,'RESUMO MODULO TOTAL'!H:H)*0.1 -> 9000
B88: D - ATIVIDADES AUXILIARES | D88: Quantidade | E88: Unidade
B89: 1107928 | C89: Concreto fck = 20 MPa - confecção em betoneira e lançamento manual - areia e brita comerciais | D89: 0.042 | E89: m³
B90: 4805750 | C90: Enchimento de junta de concreto com argamassa asfáltica de densidade 1.700 kg/m³ - espessura de 1 cm | D90: 0.03 | E90: kg
B92: F - MOMENTO DE TRANSPORTE | D92: Quantidade | E92: Unidade | F92: CÓDIGO TRANSPORTE
F93: LN | G93: RP | H93: P | I93: TIPO (P, RP ou LN) | J93: DMT ESTIMADA (km) | K93: QUANTITATIVO TOTAL DE TRANSPORTE (tkm)
A94: =IF(I94="P",H94,IF(I94="RP",G94,IF(I94="LN",F94,""))) -> 5914554 | B94: 1107928 | C94: =VLOOKUP(B94,'SINTÉTICO SICRO'!A:D,2,0) -> Concreto fck = 20 MPa - confecção em central dosadora de 30 m³/h - areia e brita comerciais | D94: 0.1008 | E94: tkm | F94: 5914539 | G94: 5914554 | H94: 5914569 | I94: =$B$71 -> RP | J94: =C71 -> 20 | K94: =IF(ISBLANK(J94),"",J94*D94)*I87 -> 18144
F137: =99.6*2 -> 199.2
F139: =1500*2 -> 3000
F140: =1500*2 -> 3000
F141: =1500*2 -> 3000
F142: =1500*2 -> 3000
F143: =113.18*2 -> 226.36
F144: =1121.33*2 -> 2242.66
F224: =H14+H18+H26+H30 -> 0

Sheet MOMENTO DE TRANSPORTE - AUX
B5: ='RESUMO MODULO TOTAL'!B56 -> CONTRATAÇÃO DE SERVIÇOS DE EXECUÇÃO DE PAVIMENTAÇÃO EM BLOCO INTERTRAVADO DE CONCRETO EM VIAS DE DIVERSOS MUNICÍPIOS INSERIDOS NA ÁREA DE ATUAÇÃO DA 13ª SUPERINTENDÊNCIA REGIONAL DA CODEVASF, NO ESTADO DA PARAÍBA
B6: DATA BASE: | C6: ='Material Sicro 04-25'!B2 -> Paraíba - Abril/2025
C8: RESUMO DO TRANSPORTE AUXILIAR
B9: CODIGO | C9: DESCRIÇÃO | D9: TKM
B10: 5914359 | C10: =VLOOKUP(B10,'SINTÉTICO SICRO'!$A:$D,2,0) -> Transporte com caminhão basculante de 10 m³ - rodovia em leito natural | D10: =ROUND(SUMIF($A:$A,B10,$K:$K),2) -> 38794.71
B11: 5914374 | C11: =VLOOKUP(B11,'SINTÉTICO SICRO'!$A:$D,2,0) -> Transporte com caminhão basculante de 10 m³ - rodovia em revestimento primário | D11: 38794.71
B12: 5914389 | C12: =VLOOKUP(B12,'SINTÉTICO SICRO'!$A:$D,2,0) -> Transporte com caminhão basculante de 10 m³ - rodovia pavimentada | D12: 931072.97
B13: 5914449 | C13: =VLOOKUP(B13,'SINTÉTICO SICRO'!$A:$D,2,0) -> Transporte com caminhão carroceria de 15 t - rodovia em leito natural | D13: 5362.2
B14: 5914464 | C14: =VLOOKUP(B14,'SINTÉTICO SICRO'!$A:$D,2,0) -> Transporte com caminhão carroceria de 15 t - rodovia em revestimento primário | D14: 5362.2
B15: 5914479 | C15: =VLOOKUP(B15,'SINTÉTICO SICRO'!$A:$D,2,0) -> Transporte com caminhão carroceria de 15 t - rodovia pavimentada | D15: 128692.8
B17: TIPO (P, RP ou LN) | C17: DMT ATÉ 50 KM NÃO DEVE SER PAGA | D17: SOMENTE DEVE SER ADICIONADO A DISTÂNCIA EXCEDENTE A 50 KM
B18: P | D18: 150
B20: SISTEMA DE CUSTOS REFERENCIAIS DE OBRAS - SICRO | I20: Quantitivo
B21: Custo Unitário de Referência | E21: =$C$6 -> Paraíba - Abril/2025 | I21: (Coeficiente na composição principal) x (quantidade da principal no orçamento) | K21: m³
B22: 1107892 | C22: =VLOOKUP(B22,'SINTÉTICO SICRO'!$A$4:$D$1048576,2,0) -> Concreto fck = 20 MPa - confecção em betoneira e lançamento manual - areia e brita comerciais | I22: =('MOMENTO DE TRANSPORTE - PRINC'!$D$37*VLOOKUP(C31,'RESUMO MODULO TOTAL'!$C$11:$L$52,6,0))*0.8 -> 3024
B23: F - MOMENTO DE TRANSPORTE | D23: Quantidade | E23: Unidade | F23: DMT
F24: LN | G24: RP | H24: P | I24: TIPO (P, RP ou LN) | J24: DMT ESTIMADA (km) | K24: QUANTITATIVO TOTAL DE TRANSPORTE DE MATERIAL (tkm)
A25: =IF(I25="P",H25,IF(I25="RP",G25,IF(I25="LN",F25,""))) -> 5914479 | B25: M0030 | C25: Aditivo plastificante e retardador de pega para concreto e argamassa - Caminhão carroceria 15 t | D25: 0.00085 | E25: tkm | F25: 5914449 | G25: 5914464 | H25: 5914479 | I25: =$B$18 -> P | J25: =D18 -> 150 | K25: =IF(ISBLANK(J25),"",J25*(D25*$I$22)) -> 385.56
A26: =IF(I26="P",H26,IF(I26="RP",G26,IF(I26="LN",F26,""))) -> 5914389 | B26: M0082 | C26: Areia média lavada - Caminhão basculante 10 m³ | D26: 0.95001 | E26: tkm | F26: 5914359 | G26: 5914374 | H26: 5914389 | I26: =$B$18 -> P | J26: =J25 -> 150 | K26: =IF(ISBLANK(J26),"",J26*(D26*$I$22)) -> 430924.536
A27: 5914389 | B27: M0191 | C27: Brita 1 - Caminhão basculante 10 m³ | D27: 0.55131 | E27: tkm | F27: 5914359 | G27: 5914374 | H27: 5914389 | I27: P | J27: =J26 -> 150 | K27: =IF(ISBLANK(J27),"",J27*(D27*$I$22)) -> 250074.216
A28: 5914389 | B28: M0192 | C28: Brita 2 - Caminhão basculante 10 m³ | D28: 0.55131 | E28: tkm | F28: 5914359 | G28: 5914374 | H28: 5914389 | I28: P | J28: =J27 -> 150 | K28: =IF(ISBLANK(J28),"",J28*(D28*$I$22)) -> 250074.216
A29: 5914479 | B29: M0424 | C29: Cimento Portland CP II - 32 - saco - Caminhão carroceria 15 t | D29: 0.28215 | E29: tkm | F29: 5914449 | G29: 5914464 | H29: 5914479 | I29: P | J29: =J28 -> 150 | K29: =IF(ISBLANK(J29),"",J29*(D29*$I$22)) -> 127983.24
B31: PRINCIPAL: | C31: 2003943
B32: SISTEMA DE CUSTOS REFERENCIAIS DE OBRAS - SICRO | I32: Quantitivo
B33: Custo Unitário de Referência | E33: =$C$6 -> Paraíba - Abril/2025 | H33: m² | I33: (Coeficiente na composição principal) x (quantidade da principal no orçamento) | K33: kg
B34: 2003842 | C34: Enchimento de junta de concreto com argamassa asfáltica de densidade 1.700 kg/m³ - espessura de 1 cm | I34: =('MOMENTO DE TRANSPORTE - PRINC'!$D$38*VLOOKUP(C39,'RESUMO MODULO TOTAL'!$C$11:$L$52,6,0))*0.8 -> 2160
B35: F - MOMENTO DE TRANSPORTE | D35: Quantidade | E35: Unidade | F35: DMT
F36: LN | G36: RP | H36: P | I36: TIPO (P, RP ou LN) | J36: DMT ESTIMADA (km) | K36: QUANTITATIVO TOTAL DE TRANSPORTE DE MATERIAL (tkm)
A37: =IF(I37="P",H37,IF(I37="RP",G37,IF(I37="LN",F37,""))) -> 5914479 | B37: M2158 | C37: Argamassa asfáltica - Caminhão carroceria com capacidade de 15 t - 188 Kw | D37: 0.001 | E37: tkm | F37: 5914449 | G37: 5914464 | H37: 5914479 | I37: =$B$18 -> P | J37: =D18 -> 150 | K37: =IF(ISBLANK(J37),"",J37*(D37*$I$34)) -> 324
B39: PRINCIPAL: | C39: 2003943
B40: TIPO (P, RP ou LN) | C40: DMT ATÉ 50 KM NÃO DEVE SER PAGA | D40: SOMENTE DEVE SER ADICIONADO A DISTÂNCIA EXCEDENTE A 50 KM
B41: LN | D41: 50
B43: SISTEMA DE CUSTOS REFERENCIAIS DE OBRAS - SICRO | I43: Quantitivo
B44: Custo Unitário de Referência | E44: =$C$6 -> Paraíba - Abril/2025 | I44: (Coeficiente na composição principal) x (quantidade da principal no orçamento) | K44: m³
B45: 1107892 | C45: =VLOOKUP(B45,'SINTÉTICO SICRO'!$A$4:$D$1048576,2,0) -> Concreto fck = 20 MPa - confecção em betoneira e lançamento manual - areia e brita comerciais | I45: =('MOMENTO DE TRANSPORTE - PRINC'!D63*VLOOKUP(C54,'RESUMO MODULO TOTAL'!$C$11:$L$52,6,0))*0.1 -> 378
B46: F - MOMENTO DE TRANSPORTE | D46: Quantidade | E46: Unidade | F46: DMT
F47: LN | G47: RP | H47: P | I47: TIPO (P, RP ou LN) | J47: DMT ESTIMADA (km) | K47: QUANTITATIVO TOTAL DE TRANSPORTE DE MATERIAL (tkm)
A48: =IF(I48="P",H48,IF(I48="RP",G48,IF(I48="LN",F48,""))) -> 5914449 | B48: M0030 | C48: Aditivo plastificante e retardador de pega para concreto e argamassa - Caminhão carroceria 15 t | D48: 0.00085 | E48: tkm | F48: 5914449 | G48: 5914464 | H48: 5914479 | I48: =$B$41 -> LN | J48: =D41 -> 50 | K48: =IF(ISBLANK(J48),"",J48*(D48*$I$45)) -> 16.065
A49: =IF(I49="P",H49,IF(I49="RP",G49,IF(I49="LN",F49,""))) -> 5914359 | B49: M0082 | C49: Areia média lavada - Caminhão basculante 10 m³ | D49: 0.95001 | E49: tkm | F49: 5914359 | G49: 5914374 | H49: 5914389 | I49: =$B$41 -> LN | J49: =J48 -> 50 | K49: =IF(ISBLANK(J49),"",J49*(D49*$I$45)) -> 17955.189
A50: 5914359 | B50: M0191 | C50: Brita 1 - Caminhão basculante 10 m³ | D50: 0.55131 | E50: tkm | F50: 5914359 | G50: 5914374 | H50: 5914389 | I50: =$B$41 -> LN | J50: =J49 -> 50 | K50: =IF(ISBLANK(J50),"",J50*(D50*$I$45)) -> 10419.759
A51: 5914359 | B51: M0192 | C51: Brita 2 - Caminhão basculante 10 m³ | D51: 0.55131 | E51: tkm | F51: 5914359 | G51: 5914374 | H51: 5914389 | I51: =$B$41 -> LN | J51: =J50 -> 50 | K51: =IF(ISBLANK(J51),"",J51*(D51*$I$45)) -> 10419.759
A52: 5914449 | B52: M0424 | C52: Cimento Portland CP II - 32 - saco - Caminhão carroceria 15 t | D52: 0.28215 | E52: tkm | F52: 5914449 | G52: 5914464 | H52: 5914479 | I52: =$B$41 -> LN | J52: =J51 -> 50 | K52: =IF(ISBLANK(J52),"",J52*(D52*$I$45)) -> 5332.635
B54: PRINCIPAL: | C54: 2003943
B55: SISTEMA DE CUSTOS REFERENCIAIS DE OBRAS - SICRO | I55: Quantitivo
B56: Custo Unitário de Referência | E56: =$C$6 -> Paraíba - Abril/2025 | H56: m² | I56: (Coeficiente na composição principal) x (quantidade da principal no orçamento) | K56: kg
B57: 2003842 | C57: Enchimento de junta de concreto com argamassa asfáltica de densidade 1.700 kg/m³ - espessura de 1 cm | I57: =('MOMENTO DE TRANSPORTE - PRINC'!D64*VLOOKUP(C62,'RESUMO MODULO TOTAL'!$C$11:$L$52,6,0))*0.1 -> 270
B58: F - MOMENTO DE TRANSPORTE | D58: Quantidade | E58: Unidade | F58: DMT
F59: LN | G59: RP | H59: P | I59: TIPO (P, RP ou LN) | J59: DMT ESTIMADA (km) | K59: QUANTITATIVO TOTAL DE TRANSPORTE DE MATERIAL (tkm)
A60: =IF(I60="P",H60,IF(I60="RP",G60,IF(I60="LN",F60,""))) -> 5914449 | B60: M2158 | C60: Argamassa asfáltica - Caminhão carroceria com capacidade de 15 t - 188 Kw | D60: 0.001 | E60: tkm | F60: 5914449 | G60: 5914464 | H60: 5914479 | I60: =$B$41 -> LN | J60: =$D$41 -> 50 | K60: =IF(ISBLANK(J60),"",J60*(D60*$I$57)) -> 13.5
B62: PRINCIPAL: | C62: 2003943
B63: TIPO (P, RP ou LN) | C63: DMT ATÉ 50 KM NÃO DEVE SER PAGA | D63: SOMENTE DEVE SER ADICIONADO A DISTÂNCIA EXCEDENTE A 50 KM
B64: RP | D64: 50
B66: SISTEMA DE CUSTOS REFERENCIAIS DE OBRAS - SICRO | I66: Quantitivo
B67: Custo Unitário de Referência | E67: =$C$6 -> Paraíba - Abril/2025 | I67: (Coeficiente na composição principal) x (quantidade da principal no orçamento) | K67: m³
B68: 1107892 | C68: =VLOOKUP(B68,'SINTÉTICO SICRO'!$A$4:$D$1048576,2,0) -> Concreto fck = 20 MPa - confecção em betoneira e lançamento manual - areia e brita comerciais | I68: =('MOMENTO DE TRANSPORTE - PRINC'!D89*VLOOKUP(C77,'RESUMO MODULO TOTAL'!$C$11:$L$52,6,0))*0.1 -> 378
B69: F - MOMENTO DE TRANSPORTE | D69: Quantidade | E69: Unidade | F69: DMT
F70: LN | G70: RP | H70: P | I70: TIPO (P, RP ou LN) | J70: DMT ESTIMADA (km) | K70: QUANTITATIVO TOTAL DE TRANSPORTE DE MATERIAL (tkm)
A71: =IF(I71="P",H71,IF(I71="RP",G71,IF(I71="LN",F71,""))) -> 5914464 | B71: M0030 | C71: Aditivo plastificante e retardador de pega para concreto e argamassa - Caminhão carroceria 15 t | D71: 0.00085 | E71: tkm | F71: 5914449 | G71: 5914464 | H71: 5914479 | I71: =$B$64 -> RP | J71: =D64 -> 50 | K71: =IF(ISBLANK(J71),"",J71*(D71*$I$68)) -> 16.065
A72: =IF(I72="P",H72,IF(I72="RP",G72,IF(I72="LN",F72,""))) -> 5914374 | B72: M0082 | C72: Areia média lavada - Caminhão basculante 10 m³ | D72: 0.95001 | E72: tkm | F72: 5914359 | G72: 5914374 | H72: 5914389 | I72: =$B$64 -> RP | J72: =D64 -> 50 | K72: =IF(ISBLANK(J72),"",J72*(D72*$I$68)) -> 17955.189
A73: 5914374 | B73: M0191 | C73: Brita 1 - Caminhão basculante 10 m³ | D73: 0.55131 | E73: tkm | F73: 5914359 | G73: 5914374 | H73: 5914389 | I73: =$B$64 -> RP | J73: =D64 -> 50 | K73: =IF(ISBLANK(J73),"",J73*(D73*$I$68)) -> 10419.759
A74: 5914374 | B74: M0192 | C74: Brita 2 - Caminhão basculante 10 m³ | D74: 0.55131 | E74: tkm | F74: 5914359 | G74: 5914374 | H74: 5914389 | I74: =$B$64 -> RP | J74: =D64 -> 50 | K74: =IF(ISBLANK(J74),"",J74*(D74*$I$68)) -> 10419.759
A75: 5914464 | B75: M0424 | C75: Cimento Portland CP II - 32 - saco - Caminhão carroceria 15 t | D75: 0.28215 | E75: tkm | F75: 5914449 | G75: 5914464 | H75: 5914479 | I75: =$B$64 -> RP | J75: =D64 -> 50 | K75: =IF(ISBLANK(J75),"",J75*(D75*$I$68)) -> 5332.635
B77: PRINCIPAL: | C77: 2003943
B78: SISTEMA DE CUSTOS REFERENCIAIS DE OBRAS - SICRO | I78: Quantitivo
B79: Custo Unitário de Referência | E79: =$C$6 -> Paraíba - Abril/2025 | H79: m² | I79: (Coeficiente na composição principal) x (quantidade da principal no orçamento) | K79: kg
B80: 2003842 | C80: Enchimento de junta de concreto com argamassa asfáltica de densidade 1.700 kg/m³ - espessura de 1 cm | I80: =('MOMENTO DE TRANSPORTE - PRINC'!D90*VLOOKUP(C85,'RESUMO MODULO TOTAL'!$C$11:$L$52,6,0))*0.1 -> 270
B81: F - MOMENTO DE TRANSPORTE | D81: Quantidade | E81: Unidade | F81: DMT
F82: LN | G82: RP | H82: P | I82: TIPO (P, RP ou LN) | J82: DMT ESTIMADA (km) | K82: QUANTITATIVO TOTAL DE TRANSPORTE DE MATERIAL (tkm)
A83: =IF(I83="P",H83,IF(I83="RP",G83,IF(I83="LN",F83,""))) -> 5914464 | B83: M2158 | C83: Argamassa asfáltica - Caminhão carroceria com capacidade de 15 t - 188 Kw | D83: 0.001 | E83: tkm | F83: 5914449 | G83: 5914464 | H83: 5914479 | I83: =$B$64 -> RP | J83: =D64 -> 50 | K83: =IF(ISBLANK(J83),"",J83*(D83*$I$80)) -> 13.5
B85: PRINCIPAL: | C85: 2003943
A87: =IF(I87="P",H87,IF(I87="RP",G87,IF(I87="LN",F87,""))) -> 
F137: =99.6*2 -> 199.2
F139: =1500*2 -> 3000
F140: =1500*2 -> 3000
F141: =1500*2 -> 3000
F142: =1500*2 -> 3000
F143: =113.18*2 -> 226.36
F144: =1121.33*2 -> 2242.66
F224: =H14+H18+H26+H30 -> 5914389

Sheet Mob
A4: ='RESUMO MODULO TOTAL'!B56 -> CONTRATAÇÃO DE SERVIÇOS DE EXECUÇÃO DE PAVIMENTAÇÃO EM BLOCO INTERTRAVADO DE CONCRETO EM VIAS DE DIVERSOS MUNICÍPIOS INSERIDOS NA ÁREA DE ATUAÇÃO DA 13ª SUPERINTENDÊNCIA REGIONAL DA CODEVASF, NO ESTADO DA PARAÍBA
A5: MOBILIZAÇÃO/DESMOBILIZAÇÃO (MOB) | F5: Frentes de serviços | H5: ='MC MODULO'!G1 -> 45
F6: Distância da Capital ao Canteiro: | H6: 70 | I6: Fica a cargo de cada SR colocar a distancia adequada de acordo com o historico de mobilização
F8: Velocidade média de transporte (pavim.): | H8: 60
A10: Transporte dos equipamentos
A11: CODIGO | B11: EQUIPAMENTO | C11: VEÍCULO TRANSPORTADOR | D11: QTDE | E11: K | F11: FU | G11: CUSTO DO TRANSPORTE
G12: (R$/h) | H12: (R$)/km
A13: E9524 | B13: =VLOOKUP(A13,'Equipamentos 04-25'!$A:$K,2,FALSE) -> Motoniveladora - 93 kW | C13: =IFERROR(INDEX('Tabelas 2 e 3 mob'!A:K,MATCH(A13,'Tabelas 2 e 3 mob'!A:A,0),9),"ERRO") -> E9665 | D13: 1 | E13: 2 | F13: 1 | G13: =IF(C13="Veículo(s) da própria frota.",0,INDEX('Equipamentos 04-25'!B:K,MATCH(C13,'Equipamentos 04-25'!A:A,0),9)) -> 404.7552 | H13: =((D13*E13*F13)/$H$8)*G13 -> 13.49184
A14: E9526 | B14: =VLOOKUP(A14,'Equipamentos 04-25'!$A:$K,2,FALSE) -> Retroescavadeira de pneus - capacidade da caçamba da pá-carregadeira de 0,76 m³ e da retroescavadeira de 0,29 m³ - 58 kW | C14: =IFERROR(INDEX('Tabelas 2 e 3 mob'!A:K,MATCH(A14,'Tabelas 2 e 3 mob'!A:A,0),9),"ERRO") -> E9665 | D14: 1 | E14: 2 | F14: 1 | G14: =IF(C14="Veículo(s) da própria frota.",0,INDEX('Equipamentos 04-25'!B:K,MATCH(C14,'Equipamentos 04-25'!A:A,0),9)) -> 404.7552 | H14: =((D14*E14*F14)/$H$8)*G14 -> 13.49184
A15: E9577 | B15: =VLOOKUP(A15,'Equipamentos 04-25'!$A:$K,2,FALSE) -> Trator agrícola sobre pneus - 77 kW | C15: =IFERROR(INDEX('Tabelas 2 e 3 mob'!A:K,MATCH(A15,'Tabelas 2 e 3 mob'!A:A,0),9),"ERRO") -> E9665 | D15: 1 | E15: 2 | F15: 0.5 | G15: =IF(C15="Veículo(s) da própria frota.",0,INDEX('Equipamentos 04-25'!B:K,MATCH(C15,'Equipamentos 04-25'!A:A,0),9)) -> 404.7552 | H15: 6.74592
A16: E9518 | B16: =VLOOKUP(A16,'Equipamentos 04-25'!$A:$K,2,FALSE) -> Grade de 24 discos rebocável de D = 60 cm (24") | C16: =IFERROR(INDEX('Tabelas 2 e 3 mob'!A:K,MATCH(A16,'Tabelas 2 e 3 mob'!A:A,0),9),"ERRO") -> Veículo(s) da própria frota. | D16: 1 | E16: 2 | F16: 0 | G16: =IF(C16="Veículo(s) da própria frota.",0,INDEX(Equipamentos!B:K,MATCH(C16,Equipamentos!A:A,0),9)) -> 0 | H16: 0
A17: E9530 | B17: =VLOOKUP(A17,'Equipamentos 04-25'!$A:$K,2,FALSE) -> Rolo compactador liso vibratório autopropelido por pneus de 11 t - 97 kW | C17: =IFERROR(INDEX('Tabelas 2 e 3 mob'!A:K,MATCH(A17,'Tabelas 2 e 3 mob'!A:A,0),9),"ERRO") -> E9666 | D17: 1 | E17: 2 | F17: 0.5 | G17: =IF(C17="Veículo(s) da própria frota.",0,INDEX('Equipamentos 04-25'!B:K,MATCH(C17,'Equipamentos 04-25'!A:A,0),9)) -> 447.7778 | H17: 7.462963333
A18: E9558 | B18: =VLOOKUP(A18,'Equipamentos 04-25'!$A:$K,2,FALSE) -> Tanque de estocagem de asfalto com capacidade de 30.000 l | C18: =IFERROR(INDEX('Tabelas 2 e 3 mob'!A:K,MATCH(A18,'Tabelas 2 e 3 mob'!A:A,0),9),"ERRO") -> E9665 | D18: 0 | E18: 2 | F18: 1 | G18: =IF(C18="Veículo(s) da própria frota.",0,INDEX('Equipamentos 04-25'!B:K,MATCH(C18,'Equipamentos 04-25'!A:A,0),9)) -> 404.7552 | H18: 0
A19: E9758 | B19: =VLOOKUP(A19,'Equipamentos 04-25'!$A:$K,2,FALSE) -> Vibroacabadora de asfalto sobre pneus - 97 kW | C19: =IFERROR(INDEX('Tabelas 2 e 3 mob'!A:K,MATCH(A19,'Tabelas 2 e 3 mob'!A:A,0),9),"ERRO") -> E9018 | D19: 0 | E19: 2 | F19: 0.5 | G19: =IF(C19="Veículo(s) da própria frota.",0,INDEX('Equipamentos 04-25'!B:K,MATCH(C19,'Equipamentos 04-25'!A:A,0),9)) -> 533.2265 | H19: 0
A20: E9685 | B20: =VLOOKUP(A20,'Equipamentos 04-25'!$A:$K,2,FALSE) -> Rolo compactador pé de carneiro vibratório autopropelido por pneus de 11,6 t - 82 kW | C20: =IFERROR(INDEX('Tabelas 2 e 3 mob'!A:K,MATCH(A20,'Tabelas 2 e 3 mob'!A:A,0),9),"ERRO") -> E9666 | D20: 1 | E20: 2 | F20: 0.5 | G20: =IF(C20="Veículo(s) da própria frota.",0,INDEX('Equipamentos 04-25'!B:K,MATCH(C20,'Equipamentos 04-25'!A:A,0),9)) -> 447.7778 | H20: 7.462963333
A21: E9605 | B21: =VLOOKUP(A21,'Equipamentos 04-25'!$A:$K,2,FALSE) -> Caminhão tanque com capacidade de 6.000 l - 136 kW | C21: =IFERROR(INDEX('Tabelas 2 e 3 mob'!A:K,MATCH(A21,'Tabelas 2 e 3 mob'!A:A,0),9),"ERRO") -> E9605 | D21: 1 | E21: 1 | F21: 1 | G21: =IF(C21="Veículo(s) da própria frota.",0,INDEX('Equipamentos 04-25'!B:K,MATCH(C21,'Equipamentos 04-25'!A:A,0),9)) -> 246.6442 | H21: 4.110736667
A22: E9579 | B22: =VLOOKUP(A22,'Equipamentos 04-25'!$A:$K,2,FALSE) -> Caminhão basculante com capacidade de 10 m³ - 210 kW | C22: =IFERROR(INDEX('Tabelas 2 e 3 mob'!A:K,MATCH(A22,'Tabelas 2 e 3 mob'!A:A,0),9),"ERRO") -> E9579 | D22: 5 | E22: 1 | F22: 1 | G22: =IF(C22="Veículo(s) da própria frota.",0,INDEX('Equipamentos 04-25'!B:K,MATCH(C22,'Equipamentos 04-25'!A:A,0),9)) -> 288.0187 | H22: 24.00155833
A23: E9509 | B23: =VLOOKUP(A23,'Equipamentos 04-25'!$A:$K,2,FALSE) -> Caminhão tanque distribuidor de asfalto com capacidade de 6.000 l - 7 kW/136 kW | C23: =IFERROR(INDEX('Tabelas 2 e 3 mob'!A:K,MATCH(A23,'Tabelas 2 e 3 mob'!A:A,0),9),"ERRO") -> E9509 | D23: 0 | E23: 1 | F23: 1 | G23: =IF(C23="Veículo(s) da própria frota.",0,INDEX('Equipamentos 04-25'!B:K,MATCH(C23,'Equipamentos 04-25'!A:A,0),9)) -> 260.8648 | H23: 0
A24: E9762 | B24: =VLOOKUP(A24,'Equipamentos 04-25'!$A:$K,2,FALSE) -> Rolo compactador de pneus autopropelido de 27 t - 85 kW | C24: =IFERROR(INDEX('Tabelas 2 e 3 mob'!A:K,MATCH(A24,'Tabelas 2 e 3 mob'!A:A,0),9),"ERRO") -> E9666 | D24: 1 | E24: 2 | F24: 0.5 | G24: =IF(C24="Veículo(s) da própria frota.",0,INDEX('Equipamentos 04-25'!B:K,MATCH(C24,'Equipamentos 04-25'!A:A,0),9)) -> 447.7778 | H24: 7.462963333
A25: E9681 | B25: =VLOOKUP(A25,'Equipamentos 04-25'!$A:$K,2,FALSE) -> Rolo compactador liso tandem vibratório autopropelido de 10,4 t - 82 kW | C25: =IFERROR(INDEX('Tabelas 2 e 3 mob'!A:K,MATCH(A25,'Tabelas 2 e 3 mob'!A:A,0),9),"ERRO") -> E9666 | D25: 0 | E25: 2 | F25: 0.5 | G25: =IF(C25="Veículo(s) da própria frota.",0,INDEX('Equipamentos 04-25'!B:K,MATCH(C25,'Equipamentos 04-25'!A:A,0),9)) -> 447.7778 | H25: 0
A26: E9545 | B26: =VLOOKUP(A26,'Equipamentos 04-25'!$A:$K,2,FALSE) -> Vibroacabadora de asfalto sobre esteiras - 97 kW | C26: =IFERROR(INDEX('Tabelas 2 e 3 mob'!A:K,MATCH(A26,'Tabelas 2 e 3 mob'!A:A,0),9),"ERRO") -> E9018 | D26: 0 | E26: 2 | F26: 0.5 | G26: =IF(C26="Veículo(s) da própria frota.",0,INDEX('Equipamentos 04-25'!B:K,MATCH(C26,'Equipamentos 04-25'!A:A,0),9)) -> 533.2265 | H26: 0
A27: E9571 | B27: =VLOOKUP(A27,'Equipamentos 04-25'!$A:$K,2,FALSE) -> Caminhão tanque com capacidade de 10.000 l - 188 kW | C27: =IFERROR(INDEX('Tabelas 2 e 3 mob'!A:K,MATCH(A27,'Tabelas 2 e 3 mob'!A:A,0),9),"ERRO") -> E9571 | D27: 1 | E27: 1 | F27: 1 | G27: =IF(C27="Veículo(s) da própria frota.",0,INDEX('Equipamentos 04-25'!B:K,MATCH(C27,'Equipamentos 04-25'!A:A,0),9)) -> 325.0994 | H27: 5.418323333
A28: E9514 | B28: =VLOOKUP(A28,'Equipamentos 04-25'!$A:$K,2,FALSE) -> Distribuidor de agregados sobre pneus autopropelido - 130 kW | C28: =IFERROR(INDEX('Tabelas 2 e 3 mob'!A:K,MATCH(A28,'Tabelas 2 e 3 mob'!A:A,0),9),"ERRO") -> E9665 | D28: 1 | E28: 2 | F28: 0.5 | G28: =IF(C28="Veículo(s) da própria frota.",0,INDEX('Equipamentos 04-25'!B:K,MATCH(C28,'Equipamentos 04-25'!A:A,0),9)) -> 404.7552 | H28: 6.74592
A29: E9511 | B29: =VLOOKUP(A29,'Equipamentos 04-25'!$A:$K,2,FALSE) -> Carregadeira de pneus com capacidade de 3,40 m³ - 195 kW | C29: =IFERROR(INDEX('Tabelas 2 e 3 mob'!A:K,MATCH(A29,'Tabelas 2 e 3 mob'!A:A,0),9),"ERRO") -> E9665 | D29: 1 | E29: 2 | F29: 1 | G29: =IF(C29="Veículo(s) da própria frota.",0,INDEX('Equipamentos 04-25'!B:K,MATCH(C29,'Equipamentos 04-25'!A:A,0),9)) -> 404.7552 | H29: 13.49184
A30: E9779 | B30: =VLOOKUP(A30,'Equipamentos 04-25'!$A:$K,2,FALSE) -> Grupo gerador - 113 kVA | C30: =IFERROR(INDEX('Tabelas 2 e 3 mob'!A:K,MATCH(A30,'Tabelas 2 e 3 mob'!A:A,0),9),"ERRO") -> Veículo(s) da própria frota. | D30: 1 | E30: 2 | F30: 0 | G30: =IF(C30="Veículo(s) da própria frota.",0,INDEX('Equipamentos 04-25'!B:K,MATCH(C30,'Equipamentos 04-25'!A:A,0),9)) -> 0 | H30: 0
A31: E9559 | B31: =VLOOKUP(A31,'Equipamentos 04-25'!$A:$K,2,FALSE) -> Aquecedor de fluido térmico - 12 kW | C31: =IFERROR(INDEX('Tabelas 2 e 3 mob'!A:K,MATCH(A31,'Tabelas 2 e 3 mob'!A:A,0),9),"ERRO") -> Veículo(s) da própria frota. | D31: 1 | E31: 2 | F31: 0 | G31: =IF(C31="Veículo(s) da própria frota.",0,INDEX('Equipamentos 04-25'!B:K,MATCH(C31,'Equipamentos 04-25'!A:A,0),9)) -> 0 | H31: 0
A32: E9584 | B32: =VLOOKUP(A32,'Equipamentos 04-25'!$A:$K,2,FALSE) -> Carregadeira de pneus com capacidade de 1,72 m³ - 113 kW | C32: =IFERROR(INDEX('Tabelas 2 e 3 mob'!A:K,MATCH(A32,'Tabelas 2 e 3 mob'!A:A,0),9),"ERRO") -> E9665 | D32: 1 | E32: 2 | F32: 1 | G32: =IF(C32="Veículo(s) da própria frota.",0,INDEX('Equipamentos 04-25'!B:K,MATCH(C32,'Equipamentos 04-25'!A:A,0),9)) -> 404.7552 | H32: 13.49184
A33: E9021 | B33: =VLOOKUP(A33,'Equipamentos 04-25'!$A:$K,2,FALSE) -> Grupo gerador - 456 kVA | C33: =IFERROR(INDEX('Tabelas 2 e 3 mob'!A:K,MATCH(A33,'Tabelas 2 e 3 mob'!A:A,0),9),"ERRO") -> E9508 | D33: 1 | E33: 2 | F33: 1 | G33: =IF(C33="Veículo(s) da própria frota.",0,INDEX('Equipamentos 04-25'!B:K,MATCH(C33,'Equipamentos 04-25'!A:A,0),9)) -> 179.914 | H33: 5.997133333
A34: E9687 | B34: =VLOOKUP(A34,'Equipamentos 04-25'!$A:$K,2,FALSE) -> Caminhão carroceria com capacidade de 5 t - 120 kW | C34: =IFERROR(INDEX('Tabelas 2 e 3 mob'!A:K,MATCH(A34,'Tabelas 2 e 3 mob'!A:A,0),9),"ERRO") -> E9687 | D34: 1 | E34: 1 | F34: 1 | G34: =IF(C34="Veículo(s) da própria frota.",0,INDEX('Equipamentos 04-25'!B:K,MATCH(C34,'Equipamentos 04-25'!A:A,0),9)) -> 151.3833 | H34: 2.523055
A35: E9667 | B35: =VLOOKUP(A35,'Equipamentos 04-25'!$A:$K,2,FALSE) -> Caminhão basculante com capacidade de 14 m³ - 210 kW | C35: =IFERROR(INDEX('Tabelas 2 e 3 mob'!A:K,MATCH(A35,'Tabelas 2 e 3 mob'!A:A,0),9),"ERRO") -> E9667 | D35: 1 | E35: 1 | F35: 1 | G35: =IF(C35="Veículo(s) da própria frota.",0,INDEX('Equipamentos 04-25'!B:K,MATCH(C35,'Equipamentos 04-25'!A:A,0),9)) -> 307.1733 | H35: 5.119555
A36: E9644 | B36: =VLOOKUP(A36,'Equipamentos 04-25'!$A:$K,2,FALSE) -> Caminhão demarcador de faixas com sistema de pintura a frio - 28 kW/129 kW | C36: =IFERROR(INDEX('Tabelas 2 e 3 mob'!A:K,MATCH(A36,'Tabelas 2 e 3 mob'!A:A,0),9),"ERRO") -> E9644 | D36: 1 | E36: 1 | F36: 1 | G36: =IF(C36="Veículo(s) da própria frota.",0,INDEX('Equipamentos 04-25'!B:K,MATCH(C36,'Equipamentos 04-25'!A:A,0),9)) -> 394.8272 | H36: 6.580453333
A37: E9592 | B37: =VLOOKUP(A37,'Equipamentos 04-25'!$A:$K,2,FALSE) -> Caminhão carroceria com capacidade de 15 t - 188 kW | C37: =IFERROR(INDEX('Tabelas 2 e 3 mob'!A:K,MATCH(A37,'Tabelas 2 e 3 mob'!A:A,0),9),"ERRO") -> E9592 | D37: 1 | E37: 1 | F37: 1 | G37: =IF(C37="Veículo(s) da própria frota.",0,INDEX('Equipamentos 04-25'!B:K,MATCH(C37,'Equipamentos 04-25'!A:A,0),9)) -> 265.2319 | H37: 4.420531667
A38: E9540 | B38: =VLOOKUP(A38,'Equipamentos 04-25'!$A:$K,2,FALSE) -> Trator sobre esteiras com lâmina - 127 kW | C38: =IFERROR(INDEX('Tabelas 2 e 3 mob'!A:K,MATCH(A38,'Tabelas 2 e 3 mob'!A:A,0),9),"ERRO") -> E9018 | D38: 1 | E38: 2 | F38: 0.5 | G38: =IF(C38="Veículo(s) da própria frota.",0,INDEX('Equipamentos 04-25'!B:K,MATCH(C38,'Equipamentos 04-25'!A:A,0),9)) -> 533.2265 | H38: 8.887108333
A39: E9515 | B39: =VLOOKUP(A39,'Equipamentos 04-25'!$A:$K,2,FALSE) -> Escavadeira hidráulica sobre esteiras com caçamba com capacidade de 1,56 m³ - 118 kW | C39: =IFERROR(INDEX('Tabelas 2 e 3 mob'!A:K,MATCH(A39,'Tabelas 2 e 3 mob'!A:A,0),9),"ERRO") -> E9666 | D39: 1 | E39: 2 | F39: 1 | G39: =IF(C39="Veículo(s) da própria frota.",0,INDEX('Equipamentos 04-25'!B:K,MATCH(C39,'Equipamentos 04-25'!A:A,0),9)) -> 447.7778 | H39: 14.92592667
A40: E9506 | B40: =VLOOKUP(A40,'Equipamentos 04-25'!$A:$K,2,FALSE) -> Caminhão basculante com capacidade de 6 m³ - 136 kW | C40: =IFERROR(INDEX('Tabelas 2 e 3 mob'!A:K,MATCH(A40,'Tabelas 2 e 3 mob'!A:A,0),9),"ERRO") -> E9506 | D40: 1 | E40: 1 | F40: 1 | G40: =IF(C40="Veículo(s) da própria frota.",0,INDEX('Equipamentos 04-25'!B:K,MATCH(C40,'Equipamentos 04-25'!A:A,0),9)) -> 182.0229 | H40: 3.033715
A41: E9256 | B41: =VLOOKUP(A41,'Equipamentos 04-25'!$A:$K,2,FALSE) -> Equipamento para pintura com cal rebocável com dois bicos aplicadores e capacidade de 2.200 l | C41: =IFERROR(INDEX('Tabelas 2 e 3 mob'!A:K,MATCH(A41,'Tabelas 2 e 3 mob'!A:A,0),9),"ERRO") -> Veículo(s) da própria frota. | D41: 1 | E41: 2 | F41: 0 | G41: =IF(C41="Veículo(s) da própria frota.",0,INDEX('Equipamentos 04-25'!B:K,MATCH(C41,'Equipamentos 04-25'!A:A,0),9)) -> 0 | H41: 0
A42: E9156 | B42: =VLOOKUP(A42,'Equipamentos 04-25'!$A:$K,2,FALSE) -> Soprador de ar costal - 2,6 kW | C42: =IFERROR(INDEX('Tabelas 2 e 3 mob'!A:K,MATCH(A42,'Tabelas 2 e 3 mob'!A:A,0),9),"ERRO") -> Veículo(s) da própria frota. | D42: 1 | E42: 2 | F42: 0 | G42: =IF(C42="Veículo(s) da própria frota.",0,INDEX('Equipamentos 04-25'!B:K,MATCH(C42,'Equipamentos 04-25'!A:A,0),9)) -> 0 | H42: 0
A43: E9146 | B43: =VLOOKUP(A43,'Equipamentos 04-25'!$A:$K,2,FALSE) -> Caminhão silo com capacidade de 30 m³ - 368 kW | C43: =IFERROR(INDEX('Tabelas 2 e 3 mob'!A:K,MATCH(A43,'Tabelas 2 e 3 mob'!A:A,0),9),"ERRO") -> E9146 | D43: 1 | E43: 1 | F43: 1 | G43: =IF(C43="Veículo(s) da própria frota.",0,INDEX('Equipamentos 04-25'!B:K,MATCH(C43,'Equipamentos 04-25'!A:A,0),9)) -> 597.9811 | H43: 9.966351667
A44: E9599 | B44: =VLOOKUP(A44,'Equipamentos 04-25'!$A:$K,2,FALSE) -> Central de concreto com capacidade de 30 m³/h - dosadora RS | C44: =IFERROR(INDEX('Tabelas 2 e 3 mob'!A:K,MATCH(A44,'Tabelas 2 e 3 mob'!A:A,0),9),"ERRO") -> E9018 | D44: 1 | E44: 2 | F44: 1 | G44: =IF(C44="Veículo(s) da própria frota.",0,INDEX('Equipamentos 04-25'!B:K,MATCH(C44,'Equipamentos 04-25'!A:A,0),9)) -> 533.2265 | H44: 17.77421667
A45: E9103 | B45: =VLOOKUP(A45,'Equipamentos 04-25'!$A:$K,2,FALSE) -> Extrusora para meio-fio de concreto - 10,44 kW | C45: =IFERROR(INDEX('Tabelas 2 e 3 mob'!A:K,MATCH(A45,'Tabelas 2 e 3 mob'!A:A,0),9),"ERRO") -> Veículo(s) da própria frota. | D45: 1 | E45: 2 | F45: 0 | G45: =IF(C45="Veículo(s) da própria frota.",0,INDEX('Equipamentos 04-25'!B:K,MATCH(C45,'Equipamentos 04-25'!A:A,0),9)) -> 0 | H45: 0
A46: E9071 | B46: =VLOOKUP(A46,'Equipamentos 04-25'!$A:$K,2,FALSE) -> Transportador manual carrinho de mão com capacidade de 80 l | C46: =IFERROR(INDEX('Tabelas 2 e 3 mob'!A:K,MATCH(A46,'Tabelas 2 e 3 mob'!A:A,0),9),"ERRO") -> Veículo(s) da própria frota. | D46: 0 | E46: 2 | F46: 0 | G46: =IF(C46="Veículo(s) da própria frota.",0,INDEX('Equipamentos 04-25'!B:K,MATCH(C46,'Equipamentos 04-25'!A:A,0),9)) -> 0 | H46: 0
A47: E9064 | B47: =VLOOKUP(A47,'Equipamentos 04-25'!$A:$K,2,FALSE) -> Transportador manual gerica com capacidade de 180 l | C47: =IFERROR(INDEX('Tabelas 2 e 3 mob'!A:K,MATCH(A47,'Tabelas 2 e 3 mob'!A:A,0),9),"ERRO") -> Veículo(s) da própria frota. | D47: 0 | E47: 2 | F47: 0 | G47: =IF(C47="Veículo(s) da própria frota.",0,INDEX('Equipamentos 04-25'!B:K,MATCH(C47,'Equipamentos 04-25'!A:A,0),9)) -> 0 | H47: 0
A48: E9066 | B48: =VLOOKUP(A48,'Equipamentos 04-25'!$A:$K,2,FALSE) -> Grupo gerador - 14 kVA | C48: =IFERROR(INDEX('Tabelas 2 e 3 mob'!A:K,MATCH(A48,'Tabelas 2 e 3 mob'!A:A,0),9),"ERRO") -> Veículo(s) da própria frota. | D48: 0 | E48: 2 | F48: 0 | G48: =IF(C48="Veículo(s) da própria frota.",0,INDEX('Equipamentos 04-25'!B:K,MATCH(C48,'Equipamentos 04-25'!A:A,0),9)) -> 0 | H48: 0
A49: E9535 | B49: =VLOOKUP(A49,'Equipamentos 04-25'!$A:$K,2,FALSE) -> Serra circular com bancada - D = 30 cm - 4 kW | C49: =IFERROR(INDEX('Tabelas 2 e 3 mob'!A:K,MATCH(A49,'Tabelas 2 e 3 mob'!A:A,0),9),"ERRO") -> Veículo(s) da própria frota. | D49: 0 | E49: 2 | F49: 0 | G49: =IF(C49="Veículo(s) da própria frota.",0,INDEX('Equipamentos 04-25'!B:K,MATCH(C49,'Equipamentos 04-25'!A:A,0),9)) -> 0 | H49: 0
A50: E9507 | B50: =VLOOKUP(A50,'Equipamentos 04-25'!$A:$K,2,FALSE) -> Plotadora de recorte com computador e programa computacional | C50: =IFERROR(INDEX('Tabelas 2 e 3 mob'!A:K,MATCH(A50,'Tabelas 2 e 3 mob'!A:A,0),9),"ERRO") -> Veículo(s) da própria frota. | D50: 0 | E50: 2 | F50: 0 | G50: =IF(C50="Veículo(s) da própria frota.",0,INDEX('Equipamentos 04-25'!B:K,MATCH(C50,'Equipamentos 04-25'!A:A,0),9)) -> 0 | H50: 0
A51: E9568 | B51: =VLOOKUP(A51,'Equipamentos 04-25'!$A:$K,2,FALSE) -> Furadeira de impacto de 12,5 mm - 0,80 kW | C51: =IFERROR(INDEX('Tabelas 2 e 3 mob'!A:K,MATCH(A51,'Tabelas 2 e 3 mob'!A:A,0),9),"ERRO") -> Veículo(s) da própria frota. | D51: 0 | E51: 2 | F51: 0 | G51: =IF(C51="Veículo(s) da própria frota.",0,INDEX('Equipamentos 04-25'!B:K,MATCH(C51,'Equipamentos 04-25'!A:A,0),9)) -> 0 | H51: 0
A52: E9753 | B52: =VLOOKUP(A52,'Equipamentos 04-25'!$A:$K,2,FALSE) -> Grupo gerador - 23 kVA | C52: =IFERROR(INDEX('Tabelas 2 e 3 mob'!A:K,MATCH(A52,'Tabelas 2 e 3 mob'!A:A,0),9),"ERRO") -> Veículo(s) da própria frota. | D52: 0 | E52: 2 | F52: 0 | G52: =IF(C52="Veículo(s) da própria frota.",0,INDEX('Equipamentos 04-25'!B:K,MATCH(C52,'Equipamentos 04-25'!A:A,0),9)) -> 0 | H52: 0
A53: E9623 | B53: =VLOOKUP(A53,'Equipamentos 04-25'!$A:$K,2,FALSE) -> Máquina de bancada guilhotina - 4,00 kW | C53: =IFERROR(INDEX('Tabelas 2 e 3 mob'!A:K,MATCH(A53,'Tabelas 2 e 3 mob'!A:A,0),9),"ERRO") -> Veículo(s) da própria frota. | D53: 0 | E53: 2 | F53: 0 | G53: =IF(C53="Veículo(s) da própria frota.",0,INDEX('Equipamentos 04-25'!B:K,MATCH(C53,'Equipamentos 04-25'!A:A,0),9)) -> 0 | H53: 0
A54: E9622 | B54: =VLOOKUP(A54,'Equipamentos 04-25'!$A:$K,2,FALSE) -> Máquina de bancada universal para corte de chapa - 1,50 kW | C54: =IFERROR(INDEX('Tabelas 2 e 3 mob'!A:K,MATCH(A54,'Tabelas 2 e 3 mob'!A:A,0),9),"ERRO") -> Veículo(s) da própria frota. | D54: 0 | E54: 2 | F54: 0 | G54: =IF(C54="Veículo(s) da própria frota.",0,INDEX('Equipamentos 04-25'!B:K,MATCH(C54,'Equipamentos 04-25'!A:A,0),9)) -> 0 | H54: 0
A55: E9678 | B55: =VLOOKUP(A55,'Equipamentos 04-25'!$A:$K,2,FALSE) -> Fresadora a frio - 455 kW | C55: =IFERROR(INDEX('Tabelas 2 e 3 mob'!A:K,MATCH(A55,'Tabelas 2 e 3 mob'!A:A,0),9),"ERRO") -> E9666 | D55: 0 | E55: 2 | F55: 1 | G55: =IF(C55="Veículo(s) da própria frota.",0,INDEX('Equipamentos 04-25'!B:K,MATCH(C55,'Equipamentos 04-25'!A:A,0),9)) -> 447.7778 | H55: 0
A56: E9686 | B56: =VLOOKUP(A56,'Equipamentos 04-25'!$A:$K,2,FALSE) -> Caminhão guindauto com capacidade de elevação de 6,2 t e carroceria de 7 t - 136 kW | C56: =IFERROR(INDEX('Tabelas 2 e 3 mob'!A:K,MATCH(A56,'Tabelas 2 e 3 mob'!A:A,0),9),"ERRO") -> E9686 | D56: 1 | E56: 2 | F56: 1 | G56: =IF(C56="Veículo(s) da própria frota.",0,INDEX('Equipamentos 04-25'!B:K,MATCH(C56,'Equipamentos 04-25'!A:A,0),9)) -> 289.1819 | H56: =((D56*E56*F56)/$H$8)*G56 -> 9.639396667
G57: TOTAL | H57: =SUM(H13:H56) -> 212.2461517
A60: CUSTO TOTAL MOBILIZAÇÃO E DESMOBILIZAÇÃO
A61: DESCRIÇÃO | B61: VALOR
A62: Custo Mobilização (km) | B62: =H57 -> 212.2461517
A63: BDI (%) | B63: =BDI!C14 -> 0.2339
A64: Custo Mobilização (R$/km) com BDI | B64: =B62+(B62*B63) -> 261.8905265
A65: Total de Frentes | B65: ='MC MODULO'!G1 -> 45
A66: Custo Mobilização (frentes x distancia) | B66: =B64*H6*B65 -> 824955.1586
F137: =99.6*2 -> 199.2
F139: =1500*2 -> 3000
F140: =1500*2 -> 3000
F141: =1500*2 -> 3000
F142: =1500*2 -> 3000
F143: =113.18*2 -> 226.36
F144: =1121.33*2 -> 2242.66
F224: =H14+H18+H26+H30 -> 13.49184

Sheet Canteiro
A4: CANTEIRO DE OBRAS PARA CONSTRUÇAO RODOVIÁRIA
A5: Descrição dos serviços | B5: Tipo de container | C5: Unidade | D5: Quantidade | E5: Preço unitário (R$) | F5: Total (R$)
A6: Escritório e seção técnica
A7: ALUGUEL DE CONTAINER – ESCRITÓRIO SEM BANHEIRO – 6,20 X 2,40 M, EQUIPADO COM 01 AR-CONDICIONADO; | B7: 10490* | C7: mês | D7: 2 | E7: 1400 | F7: =TRUNC(D7*E7,2) -> 2800
A8: Banheiro e vestiário
A9: ALUGUEL DE CONTAINER – BANHEIRO COM 4 CHUVEIROS, 1 LAVATÓRIO, 1 MICTÓRIO E 4 BACIAS – 6,20 X 2,40 M. | B9: 10491* | C9: mês | D9: 2 | E9: 1800 | F9: =TRUNC(D9*E9,2) -> 3600
D10: TOTAL DO CANTEIRO | F10: =SUM(F7:F9) -> 6400
D11: BDI | F11: =BDI!C14 -> 0.2339
A12: *O sistema de referência é o ORSE | D12: TOTAL DO CANTEIRO (com BDI) | F12: =F10+(F10*F11) -> 7896.96
F137: =99.6*2 -> 199.2
F139: =1500*2 -> 3000
F140: =1500*2 -> 3000
F141: =1500*2 -> 3000
F142: =1500*2 -> 3000
F143: =113.18*2 -> 226.36
F144: =1121.33*2 -> 2242.66
F224: =H14+H18+H26+H30 -> 0

Sheet Adm Local
A4: parcela fixa da administração local (mão de obra)
A5: Código | B5: Discriminação | C5: Unidade | D5: Quantidade | F5: Custo Unitário (R$) | H5: Custo Total (R$)
B6: Mão de Obra
B7: Gerência Técnica
B8: Geral
A9: P9955 | B9: Engenheiro chefe | C9: mês | D9: 0.5 | F9: =VLOOKUP(A9,'Pessoal Sicro 04-25'!$A$2:$G$118,4,0) -> 31661.8259 | H9: =F9*D9 -> 15830.91295
A10: P9840 | B10: Encarregado geral | C10: mês | D10: 0.5 | F10: =VLOOKUP(A10,'Pessoal Sicro 04-25'!$A$2:$G$118,4,0) -> 11545.5231 | H10: =F10*D10 -> 5772.76155
A11: P9897 | B11: Técnico de meio ambiente | C11: mês | D11: 0 | F11: =VLOOKUP(A11,'Pessoal Sicro 04-25'!$A$2:$G$118,4,0) -> 7648.3333 | H11: =F11*D11 -> 0
A12: P9948 | B12: Motorista | C12: mês | D12: 0 | F12: =VLOOKUP(A12,'Pessoal Sicro 04-25'!$A$2:$G$118,4,0) -> 5381.3995 | H12: =F12*D12 -> 0
A13: P9878 | B13: Secretária | C13: mês | D13: 0 | F13: =VLOOKUP(A13,'Pessoal Sicro 04-25'!$A$2:$G$118,4,0) -> 6484.9723 | H13: =F13*D13 -> 0
F14: Subtotal do Item 1.1 | H14: =SUM(H9:I13) -> 21603.6745
B15: Auxiliar
A16: P9946 | B16: Engenheiro auxiliar | C16: mês | D16: 1 | F16: =VLOOKUP(A16,'Pessoal Sicro 04-25'!$A$2:$G$118,4,0) -> 23677.8178 | H16: =D16*F16 -> 23677.8178
A17: P9903 | B17: Auxiliar técnico | C17: mês | D17: 0 | F17: =VLOOKUP(A17,'Pessoal Sicro 04-25'!$A$2:$G$118,4,0) -> 4451.2157 | H17: =D17*F17 -> 0
F18: Subtotal do Item 1.2 | H18: =SUM(H16:I17) -> 23677.8178
B19: Gerência Administrativa
B20: Geral
A21: P9883 | B21: Chefe do setor administrativo | C21: mês | D21: 1 | F21: =VLOOKUP(A21,'Pessoal Sicro 04-25'!$A$2:$G$118,4,0) -> 7342.1572 | H21: =F21*D21 -> 7342.1572
A22: P9809 | B22: Encarregado administrativo | C22: mês | D22: 0 | F22: =VLOOKUP(A22,'Pessoal Sicro 04-25'!$A$2:$G$118,4,0) -> 7342.2457 | H22: =F22*D22 -> 0
A23: P9896 | B23: Porteiro | C23: mês | D23: 0 | F23: =VLOOKUP(A23,'Pessoal Sicro 04-25'!$A$2:$G$118,4,0) -> 3792.7153 | H23: =F23*D23 -> 0
A24: P9827 | B24: Vigia | C24: mês | D24: 0 | F24: =VLOOKUP(A24,'Pessoal Sicro 04-25'!$A$2:$G$118,4,0) -> 4467.5468 | H24: =F24*D24 -> 0
A25: P9948 | B25: Motorista | C25: mês | D25: 0 | F25: =VLOOKUP(A25,'Pessoal Sicro 04-25'!$A$2:$G$118,4,0) -> 5381.3995 | H25: =F25*D25 -> 0
F26: Subtotal do Item 1.3 | H26: =SUM(H21:I25) -> 7342.1572
B27: Auxiliar
A28: P9806 | B28: Auxiliar administrativo | C28: mês | D28: 1 | F28: =VLOOKUP(A28,'Pessoal Sicro 04-25'!$A$2:$G$118,4,0) -> 4191.9021 | H28: =F28*D28 -> 4191.9021
A29: P9842 | B29: Faxineiro | C29: mês | D29: 0 | F29: =VLOOKUP(A29,'Pessoal Sicro 04-25'!$A$2:$G$118,4,0) -> 3799.9827 | H29: =F29*D29 -> 0
F30: Subtotal do Item 1.4 | H30: =SUM(H28:I29) -> 4191.9021
H31: Total da Mão de Obra da Parcela Fixa | I31: =H30+H26+H18+H14 -> 56815.5516
A33: parcela fixa da administração local (veículos)
A34: Código | B34: Discriminação | C34: Unidade | D34: Quantidade | E34: Utilização Produtiva | F34: Utilização Improdutiva | G34: Custo Horário Produtivo (R$) | H34: Custo Horário Improdutivo (R$) | I34: Custo Total (R$)
A35: 2 | B35: Veículos
B36: Gerência Técnica
A37: 2.1 | B37: Geral
A38: E9093 | B38: Veículo Leve 53 kw | C38: mês | D38: 1 | E38: 44 | F38: 176 | G38: =VLOOKUP(A38,'Equipamentos 04-25'!$A$2:$K$541,10,0) -> 37.3998 | H38: =VLOOKUP(A38,'Equipamentos 04-25'!$A$2:$K$541,11,0) -> 6.6943 | I38: =((E38*G38)+(F38*H38))*D38 -> 2823.788
A39: E9560 | B39: Ônibus coletivo - 175 kw | C39: mês | D39: 0 | E39: 44 | F39: 176 | G39: =VLOOKUP(A39,'Equipamentos 04-25'!$A$2:$K$541,10,0) -> 346.6652 | H39: =VLOOKUP(A39,'Equipamentos 04-25'!$A$2:$K$541,11,0) -> 98.9493 | I39: =((E39*G39)+(F39*H39))*D39 -> 0
H40: Subtotal do Item 2 | I40: =SUM(I38:I39) -> 2823.788
A41: 2.2 | B41: Auxiliar
A42: E9093 | B42: Veículo Leve 53 kw | C42: mês | D42: 0 | E42: 44 | F42: 176 | G42: =G38 -> 37.3998 | H42: =H38 -> 6.6943 | I42: =((E42*G42)+(F42*H42))*D42 -> 0
H43: Subtotal do Item 2 | I43: =SUM(I42) -> 0
A44: 2.3 | B44: Gerência Administrativa
A45: E9093 | B45: Veículo Leve 53 kw | C45: mês | D45: 0 | E45: 44 | F45: 176 | G45: =G38 -> 37.3998 | H45: =H38 -> 6.6943 | I45: =((E45*G45)+(F45*H45))*D45 -> 0
H46: Subtotal do Item 2 | I46: =I45 -> 0
H47: Total dos Veículos da Parcela Fixa | I47: =I46+I43+I40 -> 2823.788
A49: Composição de custo da equipe de produção de terraplenagem
A50: Código | B50: Discriminação | C50: Unidade | D50: Quantidade | F50: Custo Unitário (R$) | H50: Custo Total (R$)
B51: Equipe de Produção de Terraplenagem
A52: 3.1 | B52: Mão de Obra
A53: ='Pessoal Sicro'!A65 -> P9892 | B53: Encarregado de produção | C53: mês | D53: 1 | F53: =VLOOKUP(A53,'Pessoal Sicro 04-25'!$A$2:$G$118,4,0) -> 34.6372 | H53: =F53*D53 -> 34.6372
F54: Subtotal do Item 3.1 | H54: =SUM(H53:H53) -> 34.6372
A55: Código | B55: Discriminação | C55: Unidade | D55: Quantidade | E55: Utilização Produtiva | F55: Utilização Improdutiva | G55: Custo Horário Produtivo (R$) | H55: Custo Horário Improdutivo (R$) | I55: Custo Total (R$)
A56: 3.2 | B56: Veículos
B57: Veículo Leve 53 kw | C57: mês | D57: 1 | E57: 44 | F57: 176 | G57: =G38 -> 37.3998 | H57: =H38 -> 6.6943 | I57: =((E57*G57)+(F57*H57))*D57 -> 2823.788
H58: Subtotal do Item 3.2 | I58: =SUM(I57:I57) -> 2823.788
H59: Total da Equipe de Produção de Terraplenagem | I59: =I58+H54 -> 2858.4252
A61: Composição de custo da equipe de produção de pavimentação
A62: Código | B62: Discriminação | C62: Unidade | D62: Quantidade | F62: Custo Unitário (R$) | H62: Custo Total (R$)
B63: Equipe de Produção de Pavimentação
A64: 3.1 | B64: Mão de Obra
A65: ='Pessoal Sicro'!A70 -> P9901 | B65: Encarregado de produção | C65: mês | D65: 1 | F65: =VLOOKUP(A65,'Pessoal Sicro 04-25'!$A$2:$G$118,4,0) -> 7482.0612 | H65: =F65*D65 -> 7482.0612
F66: Subtotal do Item 3.1 | H66: =SUM(H65:H65) -> 7482.0612
A67: Código | B67: Discriminação | C67: Unidade | D67: Quantidade | E67: Utilização Produtiva | F67: Utilização Improdutiva | G67: Custo Horário Produtivo (R$) | H67: Custo Horário Improdutivo (R$) | I67: Custo Total (R$)
A68: 3.2 | B68: Veículos
B69: Veículo Leve 53 kw | C69: mês | D69: 1 | E69: 44 | F69: 176 | G69: =G38 -> 37.3998 | H69: =H38 -> 6.6943 | I69: =((E69*G69)+(F69*H69))*D69 -> 2823.788
H70: Subtotal do Item 3.2 | I70: =SUM(I69:I69) -> 2823.788
H71: Total da Equipe de Produção de Pavimentação | I71: =I70+H66 -> 10305.8492
A73: Composição de custo da equipe de produção de drenagem
A74: Código | B74: Discriminação | C74: Unidade | D74: Quantidade | F74: Custo Unitário (R$) | H74: Custo Total (R$)
B75: Equipe de Produção de Pavimentação
A76: 3.1 | B76: Mão de Obra
A77: ='Pessoal Sicro'!A70 -> P9901 | B77: Encarregado de produção | C77: mês | D77: 1 | F77: =VLOOKUP(A77,'Pessoal Sicro 04-25'!$A$2:$G$118,4,0) -> 7482.0612 | H77: =F77*D77 -> 7482.0612
F78: Subtotal do Item 3.1 | H78: =SUM(H77:H77) -> 7482.0612
A79: Código | B79: Discriminação | C79: Unidade | D79: Quantidade | E79: Utilização Produtiva | F79: Utilização Improdutiva | G79: Custo Horário Produtivo (R$) | H79: Custo Horário Improdutivo (R$) | I79: Custo Total (R$)
A80: 3.2 | B80: Veículos
B81: Veículo Leve 53 kw | C81: mês | D81: 1 | E81: 44 | F81: 176 | G81: =G38 -> 37.3998 | H81: =H38 -> 6.6943 | I81: =((E81*G81)+(F81*H81))*D81 -> 2823.788
H82: Subtotal do Item 3.2 | I82: =SUM(I81:I81) -> 2823.788
H83: Total da Equipe de Produção de Pavimentação | I83: =I82+H78 -> 10305.8492
A85: Composição de custo da equipe de produção de sinalização
A86: Código | B86: Discriminação | C86: Unidade | D86: Quantidade | F86: Custo Unitário (R$) | H86: Custo Total (R$)
B87: Equipe de Produção de Pavimentação
A88: 3.1 | B88: Mão de Obra
A89: ='Pessoal Sicro'!A70 -> P9901 | B89: Encarregado de produção | C89: mês | D89: 1 | F89: =VLOOKUP(A89,'Pessoal Sicro 04-25'!$A$2:$G$118,4,0) -> 7482.0612 | H89: =F89*D89 -> 7482.0612
F90: Subtotal do Item 3.1 | H90: =SUM(H89:H89) -> 7482.0612
A91: Código | B91: Discriminação | C91: Unidade | D91: Quantidade | E91: Utilização Produtiva | F91: Utilização Improdutiva | G91: Custo Horário Produtivo (R$) | H91: Custo Horário Improdutivo (R$) | I91: Custo Total (R$)
A92: 3.2 | B92: Veículos
B93: Veículo Leve 53 kw | C93: mês | D93: 1 | E93: 44 | F93: 176 | G93: =G38 -> 37.3998 | H93: =H38 -> 6.6943 | I93: =((E93*G93)+(F93*H93))*D93 -> 2823.788
H94: Subtotal do Item 3.2 | I94: =SUM(I93:I93) -> 2823.788
H95: Total da Equipe de Produção de Pavimentação | I95: =I94+H90 -> 10305.8492
A97: Composição de custo da equipe topografia
A98: Código | B98: Discriminação | C98: Unidade | D98: Quantidade | F98: Custo Unitário (R$) | H98: Custo Total (R$)
B99: Equipe de Topografia
A100: 3.1 | B100: Mão de Obra
A101: P9949 | B101: Topográfo | C101: mês | D101: 1 | F101: =VLOOKUP(A101,'Pessoal Sicro 04-25'!$A$2:$G$118,4,0) -> 8523.7927 | H101: =F101*D101 -> 8523.7927
A102: P9950 | B102: Auxiliar de topografia | C102: mês | D102: 1 | F102: =VLOOKUP(A102,'Pessoal Sicro 04-25'!$A$2:$G$118,4,0) -> 5433.6492 | H102: =F102*D102 -> 5433.6492
F103: Subtotal do Item 3.1 | H103: =SUM(H101:I102) -> 13957.4419
A104: Código | B104: Discriminação | C104: Unidade | D104: Quantidade | E104: Utilização Produtiva | F104: Utilização Improdutiva | G104: Custo Horário Produtivo (R$) | H104: Custo Horário Improdutivo (R$) | I104: Custo Total (R$)
A105: 3.2 | B105: Veículos
B106: Veículo Leve 53 kw | C106: mês | D106: 1 | E106: 44 | F106: 176 | G106: =G38 -> 37.3998 | H106: =H38 -> 6.6943 | I106: =((E106*G106)+(F106*H106))*D106 -> 2823.788
H107: Subtotal do Item 3.2 | I107: =SUM(I106:I106) -> 2823.788
H108: Total da Equipe de Produção de Topografia | I108: =I107+H103 -> 16781.2299
A110: Composição de custo do setor de medicina e segurança do trabalho
A111: Código | B111: Discriminação | C111: Unidade | D111: Quantidade | F111: Custo Unitário (R$) | H111: Custo Total (R$)
A112: 4 | B112: Setor de Medicina e Segurança do Trabalho
A113: P9876 | B113: Técnico de segurança do trabalho | C113: mês | D113: 1 | F113: =VLOOKUP(A113,'Pessoal Sicro 04-25'!$A$2:$G$118,4,0) -> 7064.9936 | H113: =F113*D113 -> 7064.9936
A114: P9864 | B114: Engenheiro de segurança do trabalho | C114: mês | D114: 0 | F114: =VLOOKUP(A114,'Pessoal Sicro 04-25'!$A$2:$G$118,4,0) -> 24505.7467 | H114: =F114*D114 -> 0
A115: P9851 | B115: Médico do trabalho | C115: mês | D115: 0 | F115: =VLOOKUP(A115,'Pessoal Sicro 04-25'!$A$2:$G$118,4,0) -> 18660.7704 | H115: =F115*D115 -> 0
A116: P9951 | B116: Médico de câmara hiperbárica | C116: mês | D116: 0 | F116: =VLOOKUP(A116,'Pessoal Sicro 04-25'!$A$2:$G$118,4,0) -> 21233.0055 | H116: =F116*D116 -> 0
F117: Subtotal do Item 4 | H117: =SUM(H113:I116) -> 7064.9936
A119: Parcela Variável - Composição de custo da equipe de frente de serviço
A120: Código | B120: Discriminação | C120: Unidade | D120: Quantidade | F120: Custo Unitário (R$) | H120: Custo Total (R$)
A121: 5 | B121: Equipe de Frente de Serviço | C121: equipexmês
A122: P9875 | B122: Encarregado de Turma | C122: mês | D122: 1 | F122: =VLOOKUP(A122,'Pessoal Sicro 04-25'!$A$2:$G$118,4,0) -> 4868.211 | H122: =F122*D122 -> 4868.211
A123: P9804 | B123: Apontador | C123: mês | D123: 0.5 | F123: =VLOOKUP(A123,'Pessoal Sicro 04-25'!$A$2:$G$118,4,0) -> 4207.0957 | H123: =F123*D123 -> 2103.54785
F124: Subtotal do Item 5 | H124: =SUM(H122:I123) -> 6971.75885
A126: Parcela Variável - Composição de custo da equipe de frente de serviço (Terraplenagem) - Somente Compactação
A127: Código | B127: Discriminação | C127: Unidade | D127: Quantidade | F127: Produção Horária (und/h) | H127: Efs
A128: 5.1 | B128: Equipe de Frente de Serviço | C128: equipexmês
C129: mês | H129: =(D129)/(F129*182.49) -> 
C130: mês | H130: =(D130)/(F130*182.49) -> 
C131: mês | H131: =(D131)/(F131*182.49) -> 
F132: Total de Equipes para Terraplenagem | H132: =SUM(H131:I131) -> 
A134: Parcela Variável - Composição de custo da acompanhamento das frentes de serviço de pavimentação
A135: Código | B135: Discriminação | C135: Unidade | D135: Quantidade | F135: Produção Horária (und/h) | H135: Efs
A136: 5.2 | B136: Equipe de Frente de Serviço | C136: equipe x mês
A137: ='RESUMO MODULO TOTAL'!C23 -> 36170 | B137: ='RESUMO MODULO TOTAL'!E23 -> bloquete/piso intertravado de concreto - modelo onda/16 faces/retangular/t ijolinho/paver/holandes/paralelepipedo, *22 cm x 11* cm, e = 8 cm, resistencia de 35 mpa (nbr 9781), cor natural | C137: ='RESUMO MODULO TOTAL'!G23 -> m² | D137: ='RESUMO MODULO TOTAL'!H23 -> 316260 | F137: =99.6*2 -> 199.2 | H137: =(D137)/(F137*182.49) -> 8.699932064
A138: ='RESUMO MODULO TOTAL'!C24 -> 92404 ADAPTADA | B138: ='RESUMO MODULO TOTAL'!E24 -> execução de pavimento em piso intertravado, com bloco 16 faces de 22 x 11 cm, espessura 8 cm. af_10/2022 - exclusive fornecimento de bloquete | C138: ='RESUMO MODULO TOTAL'!G24 -> m² | D138: ='RESUMO MODULO TOTAL'!H24 -> 315000 | F138: =F137 -> 199.2 | H138: 8.66527098
A139: ='RESUMO MODULO TOTAL'!C25 -> 5914640 | B139: ='RESUMO MODULO TOTAL'!E25 -> Transporte com cavalo mecânico com semirreboque com capacidade de 30 t - rodovia pavimentada | C139: ='RESUMO MODULO TOTAL'!G25 -> tkm | D139: ='RESUMO MODULO TOTAL'!H25 -> 5544000 | F139: =1500*2 -> 3000 | H139: 10.12658228
A140: ='RESUMO MODULO TOTAL'!C26 -> 5915373 | B140: ='RESUMO MODULO TOTAL'!E26 -> Carga, manobra e descarga de materiais diversos em caminhão carroceria com capacidade de 7 t e com guindauto de 20 t.m | C140: ='RESUMO MODULO TOTAL'!G26 -> t | D140: ='RESUMO MODULO TOTAL'!H26 -> 55440 | F140: =1500*2 -> 3000 | H140: =(D140)/(F140*182.49) -> 0.1012658228
A141: ='RESUMO MODULO TOTAL'!C27 -> 5915321 | B141: ='RESUMO MODULO TOTAL'!E27 -> Transporte com caminhão basculante de 14 m³ - rodovia pavimentada (areia) | C141: ='RESUMO MODULO TOTAL'!G27 -> tkm | D141: ='RESUMO MODULO TOTAL'!H27 -> 1323000 | F141: =1500*2 -> 3000 | H141: =(D141)/(F141*182.49) -> 2.416570771
A142: ='RESUMO MODULO TOTAL'!C28 -> 5915321 | B142: ='RESUMO MODULO TOTAL'!E28 -> Transporte com caminhão basculante de 14 m³ - rodovia pavimentada (pó de pedra) | C142: ='RESUMO MODULO TOTAL'!G28 -> tkm | D142: ='RESUMO MODULO TOTAL'!H28 -> 297675 | F142: =1500*2 -> 3000 | H142: 0.5437284235
A143: ='RESUMO MODULO TOTAL'!C29 -> 4011320 | B143: ='RESUMO MODULO TOTAL'!E29 -> Base ou sub-base estabilizada granulometricamente com mistura solo brita (70% - 30%) na pista com material de jazida e brita comercial - 100% Proctor modificado | C143: ='RESUMO MODULO TOTAL'!G29 -> m³ | D143: ='RESUMO MODULO TOTAL'!H29 -> 47250 | F143: =113.18*2 -> 226.36 | H143: 1.143834144
A144: ='RESUMO MODULO TOTAL'!C30 -> 4011209 | B144: ='RESUMO MODULO TOTAL'!E30 -> Regularização do subleito - 100% Proctor intermediário | C144: ='RESUMO MODULO TOTAL'!G30 -> m² | D144: ='RESUMO MODULO TOTAL'!H30 -> 315000 | F144: =1121.33 -> 1121.33 | H144: 1.539352358
F145: Total de Equipes para Pavimentação | H145: =SUM(H137:I144) -> 33.23653684
A147: Parcela Variável - Composição de custo da acompanhamento das frentes de serviço de drenagem
A148: Código | B148: Discriminação | C148: Unidade | D148: Quantidade | F148: Efsdu | H148: Efs
A149: 5.3 | B149: Frentes de Serviço para Drenagem | C149: equipe x mês
A150: 2003373 | B150: =VLOOKUP(A150,'SINTÉTICO SICRO'!$A$4:$D$6373,2,0) -> Meio-fio de concreto - MFC 03 - areia e brita comerciais - fôrma de madeira | C150: m | D150: ='RESUMO MODULO TOTAL'!H37 -> 90000 | F150: 0.00021 | H150: =D150*F150 -> 18.9
F151: Total de Equipes para Drenagem | H151: =H150 -> 18.9
A153: Parcela Variável - Composição de custo da acompanhamento das frentes de serviço de sinalização
A154: Código | B154: Discriminação | C154: Unidade | D154: Quantidade | F154: Produção Horária (und/h) | H154: Efs
A155: 5.4 | B155: Frentes de Serviço para Sinalização | C155: equipe x mês
A156: 5213440 | B156: =VLOOKUP(A156,'SINTÉTICO SICRO'!$A$4:$D$6373,2,0) -> Placa de regulamentação em aço D = 0,60 m - película retrorrefletiva tipo I + SI - fornecimento e implantação | C156: ='RESUMO MODULO TOTAL'!G32 -> und | D156: ='RESUMO MODULO TOTAL'!H32 -> 135 | F156: 3 | H156: =0.2*((D156)/(F156*182.49)) -> 0.04931777084
A157: 5213464 | B157: =VLOOKUP(A157,'SINTÉTICO SICRO'!$A$4:$D$6373,2,0) -> Placa de advertência em aço, lado de 0,60 m - película retrorrefletiva tipo I + SI - fornecimento e implantação | C157: ='RESUMO MODULO TOTAL'!G33 -> und | D157: ='RESUMO MODULO TOTAL'!H33 -> 135 | F157: 3 | H157: =0.2*((D157)/(F157*182.49)) -> 0.04931777084
A158: 5213863 | B158: =VLOOKUP(A158,'SINTÉTICO SICRO'!$A$4:$D$6373,2,0) -> Suporte metálico galvanizado para placa de advertência ou regulamentação - lado ou diâmetro de 0,60 m - fornecimento e implantação | C158: ='RESUMO MODULO TOTAL'!G34 -> und | D158: ='RESUMO MODULO TOTAL'!H34 -> 270 | F158: 3 | H158: =0.2*((D158)/(F158*182.49)) -> 0.09863554167
A159: 5213400 | B159: =VLOOKUP(A159,'SINTÉTICO SICRO'!$A$4:$D$6373,2,0) -> Pintura de faixa com tinta acrílica - espessura de 0,4 mm | C159: ='RESUMO MODULO TOTAL'!G35 -> m² | D159: ='RESUMO MODULO TOTAL'!H35 -> 10800 | F159: 39.52 | H159: 0.2995006326
F160: Total de Equipes para Sinalização | H160: =SUM(H156:I159) -> 0.496771716
A162: 3. PARCELA VARIÁVEL - EQUIPE DE CONTROLE TECNOLÓGICO
A163: LABORATÓRIO DE SOLOS
A164: Item | B164: Discriminação | F164: Unidade | G164: Quantidade | H164: Custo Unitário (R$) | I164: Custo Total (R$)
B165: Laboratório de Solos (equipe x mês)
B166: Mão de Obra
A167: P9858 | B167: Laboratorista | F167: func./mês | G167: 1 | H167: =VLOOKUP(A167,'Pessoal Sicro 04-25'!$A$2:$G$118,4,0) -> 7166.0604 | I167: =TRUNC(G167*H167,2) -> 7166.06
A168: P9833 | B168: Auxiliar de laboratório | F168: func./mês | G168: 1 | H168: =VLOOKUP(A168,'Pessoal Sicro 04-25'!$A$2:$G$118,4,0) -> 5413.4635 | I168: =TRUNC(G168*H168,2) -> 5413.46
H169: Subtotal do Item | I169: =SUM(I167:I168) -> 12579.52
A170: Item | B170: Discriminação | C170: Und | D170: Quant | E170: Utilização Produtiva | F170: Utilização Improdutiva | G170: Horário Produtivo (R$) | H170: Horário Improdutivo (R$) | I170: Total (R$)
B171: Equipe de Controle Tecnológico
B172: Veículos
A173: E9125 | B173: Van furgão a diesel - 93 kW | C173: veic./mês | D173: 0.5 | E173: 44 | F173: 176 | G173: =VLOOKUP(A173,'Equipamentos 04-25'!$A$2:$K$533,10,0) -> 85.1782 | H173: =VLOOKUP(A173,'Equipamentos 04-25'!$A$2:$K$533,11,0) -> 46.5282 | I173: =D173*((E173*G173)+(F173*H173)) -> 5968.402
H174: Subtotal do Item | I174: =SUM(I173:I173) -> 5968.402
H175: Total da Equipe do Laboratório de Solos | I175: =I169+I174 -> 18547.922
A177: 3. PARCELA VARIÁVEL - EQUIPE DE CONTROLE TECNOLÓGICO
A178: LABORATÓRIO DE CONCRETO
A179: Item | B179: Discriminação | F179: Unidade | G179: Quantidade | H179: Custo Unitário (R$) | I179: Custo Total (R$)
B180: Laboratório de Solos (equipe x mês)
B181: Mão de Obra
A182: P9858 | B182: Laboratorista | F182: func./mês | G182: 1 | H182: =VLOOKUP(A182,'Pessoal Sicro 04-25'!$A$2:$G$118,4,0) -> 7166.0604 | I182: =TRUNC(G182*H182,2) -> 7166.06
A183: P9833 | B183: Auxiliar de laboratório | F183: func./mês | G183: 1 | H183: =VLOOKUP(A183,'Pessoal Sicro 04-25'!$A$2:$G$118,4,0) -> 5413.4635 | I183: =TRUNC(G183*H183,2) -> 5413.46
H184: Subtotal do Item | I184: =SUM(I182:I183) -> 12579.52
A185: Item | B185: Discriminação | C185: Und | D185: Quant | E185: Utilização Produtiva | F185: Utilização Improdutiva | G185: Horário Produtivo (R$) | H185: Horário Improdutivo (R$) | I185: Total (R$)
B186: Equipe de Controle Tecnológico
B187: Veículos
A188: E9125 | B188: Van furgão a diesel - 93 kW | C188: veic./mês | D188: 0.5 | E188: 44 | F188: 176 | G188: =VLOOKUP(A188,'Equipamentos 04-25'!$A$2:$K$533,10,0) -> 85.1782 | H188: =VLOOKUP(A188,'Equipamentos 04-25'!$A$2:$K$533,11,0) -> 46.5282 | I188: =D188*((E188*G188)+(F188*H188)) -> 5968.402
H189: Subtotal do Item | I189: =SUM(I188:I188) -> 5968.402
H190: Total da Equipe do Laboratório de Concreto | I190: =I184+I189 -> 18547.922
A192: Equipes de laboratório de solos para pavimentação
A193: Item | B193: Discriminação | F193: Und | G193: Quant | H193: QE | I193: Els
A194: ='RESUMO MODULO TOTAL'!C29 -> 4011320 | B194: =VLOOKUP(A194,'SINTÉTICO SICRO'!A:D,2,0) -> Base ou sub-base estabilizada granulometricamente com mistura solo brita (70% - 30%) na pista com material de jazida e brita comercial - 100% Proctor modificado | F194: =VLOOKUP(A194,'SINTÉTICO SICRO'!A:D,3,0) -> m³ | G194: ='RESUMO MODULO TOTAL'!H29 -> 47250 | H194: 21900 | I194: =G194/H194 -> 2.157534247
H195: Total de equipes de Laboratório de Solos para Pavimentação | I195: =I194 -> 2.157534247
A197: Equipes de laboratório de Concreto
A198: Item | B198: Discriminação | F198: Und | G198: Quant | H198: QE | I198: Ela
A199: ='RESUMO MODULO TOTAL'!C23 -> 36170 | B199: BLOQUETE/PISO INTERTRAVADO DE CONCRETO - MODELO ONDA/16 FACES/RETANGULAR/T IJOLINHO/PAVER/HOLANDES/PARALELEPIPEDO, *22 CM X 11* CM, E = 8 CM, RESISTENCIA DE 35 MPA (NBR 9781), COR NATURAL | F199: ='RESUMO MODULO TOTAL'!G23 -> m² | G199: ='RESUMO MODULO TOTAL'!H24 -> 315000 | H199: 9000 | I199: =G199/H199 -> 35
H200: Total de equipes de Laboratório de Concreto | I200: =SUM(I199:I199) -> 35
A202: manutenção do canteiro de obras e acampamentos
A203: Código | B203: Discriminação | C203: Unidade | D203: Quantidade | F203: Custo Unitário (R$) | H203: Custo Total (R$)
B204: Manutenção do Canteiro de Obras e Acampamentos
A205: 6.1 | B205: Mão de Obra
A206: P9952 | B206: Pedreiro | C206: mês | D206: 0 | F206: =VLOOKUP(A206,'Pessoal Sicro 04-25'!$A$2:$G$118,4,0) -> 4744.7367 | H206: =F206*D206 -> 0
A207: P9954 | B207: Servente | C207: mês | D207: 0 | F207: =VLOOKUP(A207,'Pessoal Sicro 04-25'!$A$2:$G$118,4,0) -> 3714.467 | H207: =F207*D207 -> 0
A208: P9953 | B208: Eletricista | C208: mês | D208: 0 | F208: =VLOOKUP(A208,'Pessoal Sicro 04-25'!$A$2:$G$118,4,0) -> 4760.968 | H208: =F208*D208 -> 0
F209: Subtotal do Item 6.1 | H209: =SUM(H206:I208) -> 0
A211: Código | B211: Discriminação | C211: Unidade | D211: Quantidade | F211: Custo Produtivo (R$) | H211: Custo Total (R$)
A212: 6.2 | B212: Equipamentos
B213: Caminhão guindauto de 6 toneladas | C213: h/mês | D213: 0 | H213: =F213*D213 -> 0
B214: Caminhão tanque de 8.000 litros | C214: h/mês | D214: 0 | H214: =F214*D214 -> 0
A215: E9524 | B215: Motoniveladora | C215: h/mês | D215: 0 | F215: ='Equipamentos 04-25'!J174 -> 280.5727 | H215: =F215*D215 -> 0
F216: Subtotal do Item 6.2 | H216: =SUM(H213:I215) -> 0
G217: Total da Manutenção do Canteiro de Obras e Acampamentos | H217: =H216+H209 -> 0
A221: Resumo das parcelas de administração local
A222: Código | B222: Discriminação | C222: Unidade | D222: Quantidade | F222: Custo Unitário (R$) | H222: Custo Total (R$)
B223: Parcela Fixa
B224: Mão de Obra | C224: mês | D224: 2 | F224: =H14+H18+H26+H30 -> 56815.5516 | H224: =F224*D224 -> 113631.1032
... 27 more rows

Sheet Projeto Executivo
A4: COMPOSIÇAO PREÇO PROJETO EXECUTIVO
A6: DISCRIMINAÇAO | F6: Pr. Unit. | G6: Pr. Total
A8: A· EOUIPE TECNICA | G8: =G9+G12 -> 17662.80508
B9: A. 1 - Pessoal de Nível Superior | C9: Unidade | D9: Quantitativo | E9: SICRO e Rel.Custos Gerais | G9: =G10+G11 -> 14757.99107
B10: Engenheiro | C10: mês | D10: 0.5 | E10: P9812 | F10: =VLOOKUP(E10,'Pessoal Sicro 04-25'!A:G,4,0) -> 25254.0858 | G10: =F10*D10 -> 12627.0429
B11: Topógrafo | C11: mês | D11: 0.25 | E11: P9949 | F11: =VLOOKUP(E11,'Pessoal Sicro 04-25'!A:G,4,0) -> 8523.7927 | G11: =F11*D11 -> 2130.948175
B12: A.2 - Pessoal de Nível Técnico e Aux. | G12: =G13+G14 -> 2904.814
B13: Auxiliar de topógrafo | C13: mês | D13: 0.125 | E13: P9950 | F13: =VLOOKUP(E13,'Pessoal Sicro 04-25'!A:G,4,0) -> 5433.6492 | G13: =F13*D13 -> 679.20615
B14: Auxiliar Técnico/Assistente de Engenharia | C14: mês | D14: 0.5 | E14: P9903 | F14: =VLOOKUP(E14,'Pessoal Sicro 04-25'!A:G,4,0) -> 4451.2157 | G14: =F14*D14 -> 2225.60785
A15: B - ENCARGOS SOCIAIS | G15: =G16 -> 0
B16: =CONCATENATE("Taxas ",'ENC. SOCIAIS'!E51,"%") -> Taxas 113,6% | C16: JÁ INCLUSAS EM "A"
A17: C - DESPESAS GERAIS | G17: =G18+G20+G19 -> 12738.47701
B18: C.1 - MATERIAIS DE CONSUMO | C18: Estimativa % como referência de equipe técnica com encargos sociais | D18: 0.03 | F18: =G8+G16 -> 17662.80508 | G18: =F18*D18 -> 529.8841522
B19: C.2 - VEÍCULOS (Veículo leve picape 4 x 4 com capacidade de 1,10 t - 147 kW) | C19: h | D19: 110 | E19: E9684 | F19: =VLOOKUP(E19,'Equipamentos 04-25'!A:K,10,0) -> 108.286 | G19: =F19*D19 -> 11911.46
B20: C.3 - Estação total eletrônica com alcance máximo de 3.000 m | C20: h | D20: 38.09884009 | E20: E9553 | F20: =VLOOKUP(E20,'Equipamentos 04-25'!A:K,10,0) -> 7.799 | G20: =F20*D20 -> 297.1328538
A21: D - ENSAIOS | G21: =SUM(G22:G25) -> 3652.308038
B22: Laboratorista | C22: mês | D22: =1/4 -> 0.25 | E22: P9858 | F22: =VLOOKUP(E22,'Pessoal Sicro 04-25'!A:G,4,0) -> 7166.0604 | G22: =F22*D22 -> 1791.5151
B23: Auxiliar de Laboratório | C23: mês | D23: =1/8 -> 0.125 | E23: P9833 | F23: =VLOOKUP(E23,'Pessoal Sicro 04-25'!A:G,4,0) -> 5413.4635 | G23: =F23*D23 -> 676.6829375
B24: Laboratório de solos | C24: mês | D24: =1/8 -> 0.125 | E24: B8957 | F24: ='Tabelas 1 e 2 04-25'!F20 -> 3520.5 | G24: =F24*D24 -> 440.0625
B25: Laboratório de asfalto | C25: mês | D25: 0.125 | E25: B8955 | F25: ='Tabelas 1 e 2 04-25'!F18 -> 5952.38 | G25: =F25*D25 -> 744.0475
A26: I - SOMA (A+B+C+D) | G26: =G8+G15+G17+G21 -> 34053.59012
A27: II - CUSTOS ADMINISTRATIVOS | D27: =BDI!C14 -> 0.2339 | G27: =D27*G26 -> 7965.134729
A28: TOTAL | G28: =G26+G27 -> 42018.72485
F29: Por m²: | G29: =G28/('MC MODULO'!C1*'MC MODULO'!C2) -> 6.002674978
F137: =99.6*2 -> 199.2
F139: =1500*2 -> 3000
F140: =1500*2 -> 3000
F141: =1500*2 -> 3000
F142: =1500*2 -> 3000
F143: =113.18*2 -> 226.36
F144: =1121.33*2 -> 2242.66
F224: =H14+H18+H26+H30 -> 0

Sheet CPU CODEVASF
A4: ='RESUMO MODULO TOTAL'!B56 -> CONTRATAÇÃO DE SERVIÇOS DE EXECUÇÃO DE PAVIMENTAÇÃO EM BLOCO INTERTRAVADO DE CONCRETO EM VIAS DE DIVERSOS MUNICÍPIOS INSERIDOS NA ÁREA DE ATUAÇÃO DA 13ª SUPERINTENDÊNCIA REGIONAL DA CODEVASF, NO ESTADO DA PARAÍBA
F5: BDI %: | G5: =BDI!$C$14 -> 0.2339
E6: Encargos Sociais: | G6: Horista | H6: Mensalista
G7: ='ENC. SOCIAIS'!E51/100 -> 1.136 | H7: ='ENC. SOCIAIS'!F51/100 -> 0.6989
A8: COMPOSIÇÕES DE CUSTO UNITARIO
A9: CPU-02 | B9: CODEVASF | D9: Correção de vazamentos no ramal na rua sem pavimento com fornecimento do material hidráulico | E9: m | F9: COEF. | G9: PRECO UNITÁRIO (R$) | H9: TOTAL (R$)
A11: SICRO | B11: SICRO | C11: P9824 | D11: =VLOOKUP(C11,'Pessoal Sicro'!$A$5:$G$1048576,2,0) -> Servente | E11: H | F11: 0.2 | G11: =VLOOKUP(C11,'Pessoal Sicro 04-25'!$A:$G,4,0) -> 20.0559 | H11: =F11*G11 -> 4.01118
A12: SICRO | B12: SICRO | C12: P9807 | D12: =VLOOKUP(C12,'Pessoal Sicro'!$A$5:$G$1048576,2,0) -> Bombeiro hidráulico | E12: H | F12: 0.1 | G12: =VLOOKUP(C12,'Pessoal Sicro 04-25'!$A:$G,4,0) -> 30.0549 | H12: 3.00549
A13: INS. SINAPI | B13: SINAPI | C13: 9867 | D13: TUBO PVC, SOLDAVEL, DN 20 MM, AGUA FRIA (NBR-5648) | E13: m | F13: 1 | G13: =IFERROR(VLOOKUP(C13,'INSUMOS SINAPI 06-25'!$A:$E,5,FALSE),VLOOKUP(C13,'COMP Sint. Sinapi 06-25'!A:D,4,FALSE)) -> 3.64 | H13: 3.64
A14: INSUMO | B14: ORSE | C14: 10585 | D14: Arco de serra | E14: un | F14: 0.1 | G14: 19.9 | H14: 1.99
A15: INS. SINAPI | B15: SINAPI | C15: 3859 | D15: LUVA SOLDAVEL COM ROSCA, PVC, 20 MM X 1/2", PARA AGUA FRIA PREDIAL | E15: un | F15: 2 | G15: =IFERROR(VLOOKUP(C15,'INSUMOS SINAPI 06-25'!$A:$E,5,FALSE),VLOOKUP(C15,'COMP Sint. Sinapi 06-25'!A:D,4,FALSE)) -> 1.31 | H15: 2.62
E16: Sub total: | H16: =SUM(H11:H15) -> 15.26667
F17: BDI | G17: =BDI!$C$14 -> 0.2339 | H17: =H16*G17 -> 3.570874113
G18: Total Serviços: | H18: =H16+H17 -> 18.83754411
E19: =A9 -> CPU-02 | F19: PREÇO UNITÁRIO TOTAL: | H19: =H18 -> 18.83754411 | I19: =H16 -> 15.26667
A21: CPU-04 | B21: CODEVASF | D21: CONTROLE TECNOLÓGICO - PROJETO | E21: m² | F21: COEF. | G21: PRECO UNITÁRIO (R$) | H21: TOTAL (R$)
A23: Insumo | B23: SICRO | C23: P9858 | D23: Laboratorista | E23: mês | F23: =0.15/14000 -> 1.071428571e-05 | G23: =VLOOKUP(C23,'Pessoal Sicro 04-25'!$A:$G,4,0) -> 7166.0604 | H23: =F23*G23 -> 0.07677921857
A24: Composição | B24: SICRO | C24: P9833 | D24: Auxiliar de Laboratório | E24: mês | F24: =0.15/14000 -> 1.071428571e-05 | G24: =VLOOKUP(C24,'Pessoal Sicro 04-25'!$A:$G,4,0) -> 5413.4635 | H24: 0.05800139464
A25: Composição | B25: SICRO | C25: *B8957 | D25: Laboratório de Solos | E25: mês | F25: 1.071428571e-05 | G25: ='Tabelas 1 e 2 04-25'!F20 -> 3520.5 | H25: 0.03771964286
A26: Composição | B26: SICRO | C26: *B8956 | D26: Laboratório de concreto | E26: mês | F26: 1.071428571e-05 | G26: ='Tabelas 1 e 2 04-25'!F19 -> 4642.56 | H26: 0.04974171429
B27: *Relatório de Custos Gerais do DNIT, página 1 | E27: Sub total: | H27: =SUM(H23:H26) -> 0.2222419704
F28: BDI | G28: =BDI!$C$14 -> 0.2339 | H28: =H27*G28 -> 0.05198239687
E29: CPU-20 | F29: PREÇO UNITÁRIO TOTAL: | H29: =H27+H28 -> 0.2742243672 | I29: =H27 -> 0.2222419704
F137: =99.6*2 -> 199.2
F139: =1500*2 -> 3000
F140: =1500*2 -> 3000
F141: =1500*2 -> 3000
F142: =1500*2 -> 3000
F143: =113.18*2 -> 226.36
F144: =1121.33*2 -> 2242.66
F224: =H14+H18+H26+H30 -> 20.87728583

Sheet CPU SINAPI
A1: SINAPI - SISTEMA NACIONAL DE PESQUISA DE CUSTOS E ÍNDICES DA CONSTRUÇÃO CIVIL
A2: PCI.818.01 - COMPOSIÇÕES ATIVAS ANALÍTICAS COM CUSTO | C2: ABRANGENCIA: NACIONAL DATA DE PREÇO : 06/2025(JOÃO PESSOA/PB) DATA REFERENCIA TECNICA: 12/2024
A3: * Composições constantes nos Relatórios publicados de Composições Analíticas para as 27 Unidades da Federação
A4: MACROCLASSE.CLASSE.GRUPO | B4: CÓDIGOS | C4: DESCRIÇÃO | D4: UNIDADE | E4: COEFICIENTE | F4: PREÇO UNITÁRIO | G4: PREÇO TOTAL
A5: 03.PAVI.INTE.004/001 | B5: 92404 ADAPTADA | C5: EXECUÇÃO DE PAVIMENTO EM PISO INTERTRAVADO, COM BLOCO 16 FACES DE 22 X 11 CM, ESPESSURA 8 CM. AF_10/2022 - EXCLUSIVE FORNECIMENTO DE BLOQUETE | D5: M2 | F5: Pavimento Intertravado | G5: =G17 -> 23.17
A6: INSUMO | B6: 370 | C6: AREIA MEDIA - POSTO JAZIDA/FORNECEDOR (RETIRADO NA JAZIDA, SEM TRANSPORTE) | D6: M3 | E6: 0.0568 | F6: =VLOOKUP($B6,'INSUMOS SINAPI 06-25'!$A:$E,5,0) -> 140 | G6: =ROUND(ROUND(E6,5)*ROUND(F6,2),2) -> 7.95
A7: INSUMO | B7: 4741 | C7: PO DE PEDRA (POSTO PEDREIRA/FORNECEDOR, SEM FRETE) | D7: M3 | E7: 0.0098 | F7: =VLOOKUP($B7,'INSUMOS SINAPI 06-25'!$A:$E,5,0) -> 93.96 | G7: =ROUND(ROUND(E7,5)*ROUND(F7,2),2) -> 0.92
A8: INSUMO | B8: 36170 | C8: BLOQUETE/PISO INTERTRAVADO DE CONCRETO - MODELO ONDA/16 FACES/RETANGULAR/T IJOLINHO/PAVER/HOLANDES/PARALELEPIPEDO, *22 CM X 11* CM, E = 8 CM, RESISTENCIA DE 35 MPA (NBR 9781), COR NATURAL | D8: M2 | E8: 1.004 | F8: 0 | G8: 0
A9: COMPOSICAO | B9: 88260 | C9: CALCETEIRO COM ENCARGOS COMPLEMENTARES | D9: H | E9: 0.2129 | F9: =VLOOKUP($B9,'COMP Sint. Sinapi 06-25'!$A:$D,4,0) -> 25.02 | G9: 5.33
A10: COMPOSICAO | B10: 88316 | C10: SERVENTE COM ENCARGOS COMPLEMENTARES | D10: H | E10: 0.2129 | F10: =VLOOKUP($B10,'COMP Sint. Sinapi 06-25'!$A:$D,4,0) -> 20.27 | G10: 4.32
A11: COMPOSICAO | B11: 91277 | C11: PLACA VIBRATÓRIA REVERSÍVEL COM MOTOR 4 TEMPOS A GASOLINA, FORÇA CENTRÍFUG A DE 25 KN (2500 KGF), POTÊNCIA 5,5 CV - CHP DIURNO. AF_08/2015 | D11: CHP | E11: 0.0055 | F11: =VLOOKUP($B11,'COMP Sint. Sinapi 06-25'!$A:$D,4,0) -> 10.08 | G11: 0.06
A12: COMPOSICAO | B12: 91278 | C12: =VLOOKUP($B12,'COMP Sint. Sinapi'!$A:$D,2,0) -> PLACA VIBRATÓRIA REVERSÍVEL COM MOTOR 4 TEMPOS A GASOLINA, FORÇA CENTRÍFUGA DE 25 KN (2500 KGF), POTÊNCIA 5,5 CV - CHI DIURNO. AF_08/2015 | D12: CHP | E12: 0.101 | F12: =VLOOKUP($B12,'COMP Sint. Sinapi 06-25'!$A:$D,4,0) -> 0.67 | G12: 0.07
A13: COMPOSICAO | B13: 91283 | C13: =VLOOKUP($B13,'COMP Sint. Sinapi'!$A:$D,2,0) -> CORTADORA DE PISO COM MOTOR 4 TEMPOS A GASOLINA, POTÊNCIA DE 13 HP, COM DISCO DE CORTE DIAMANTADO SEGMENTADO PARA CONCRETO, DIÂMETRO DE 350 MM, FURO DE 1" (14 X 1") - CHP DIURNO. AF_08/2015 | D13: CHI | E13: 0.0038 | F13: =VLOOKUP($B13,'COMP Sint. Sinapi 06-25'!$A:$D,4,0) -> 10.56 | G13: =ROUND(ROUND(E13,5)*ROUND(F13,2),2) -> 0.04
A14: COMPOSICAO | B14: 91285 | C14: =VLOOKUP($B14,'COMP Sint. Sinapi'!$A:$D,2,0) -> CORTADORA DE PISO COM MOTOR 4 TEMPOS A GASOLINA, POTÊNCIA DE 13 HP, COM DISCO DE CORTE DIAMANTADO SEGMENTADO PARA CONCRETO, DIÂMETRO DE 350 MM, FURO DE 1" (14 X 1") - CHI DIURNO. AF_08/2015 | D14: CHI | E14: 0.1027 | F14: =VLOOKUP($B14,'COMP Sint. Sinapi 06-25'!$A:$D,4,0) -> 0.87 | G14: 0.09
D15: Sub total: | G15: =SUM(G6:G14) -> 18.78
F16: BDI | G16: =BDI!C14 -> 0.2339
D17: Total Serviços: | G17: =ROUND(ROUND(G15,2)*ROUND(1+G16,4),2) -> 23.17
F137: =99.6*2 -> 199.2
F139: =1500*2 -> 3000
F140: =1500*2 -> 3000
F141: =1500*2 -> 3000
F142: =1500*2 -> 3000
F143: =113.18*2 -> 226.36
F144: =1121.33*2 -> 2242.66
F224: =H14+H18+H26+H30 -> 0

Sheet BDI
A2: DETALHAMENTO DO BDI - SEM DESONERAÇÃO
A3: ='RESUMO MODULO TOTAL'!B56 -> CONTRATAÇÃO DE SERVIÇOS DE EXECUÇÃO DE PAVIMENTAÇÃO EM BLOCO INTERTRAVADO DE CONCRETO EM VIAS DE DIVERSOS MUNICÍPIOS INSERIDOS NA ÁREA DE ATUAÇÃO DA 13ª SUPERINTENDÊNCIA REGIONAL DA CODEVASF, NO ESTADO DA PARAÍBA
A4: DESCRIÇÃO DOS SERVIÇOS | B4: PREÇO DE VENDA (%) | C4: CUSTO DIRETO (%)
A5: ADMINISTRAÇÃO CENTRAL | C5: 0.06
A6: DESPESAS FINANCEIRAS | B6: 0.0102
A7: SEGUROS E GARANTIAS CONTRATUAIS | B7: 0.0025
A8: RISCOS | B8: 0.005
A9: LUCRO OPERACIONAL | C9: 0.07
A10: PIS | B10: 0.0065
A11: COFINS | B11: 0.03
A12: ISSQN | B12: 0.03
A13: Contribuição Previdenciaria | B13: 0
B14: BDI | C14: =ROUND((1+(C5+C9))/(1-(B6+B7+B8+B10+B11+B12+B13))-1,4) -> 0.2339
A15: Observação: O percentual de ISSQN aqui utilizado consiste apenas em um referencial médio.
A16: O valor real do ISSQN a ser adotado deve ser aquele proveniente das alíquotas dos municípios situados na área de influência das obras.
A56: DETALHAMENTO DO BDI DIFERENCIADO - SEM DESONERAÇÃO
A57: ='RESUMO MODULO TOTAL'!B56 -> CONTRATAÇÃO DE SERVIÇOS DE EXECUÇÃO DE PAVIMENTAÇÃO EM BLOCO INTERTRAVADO DE CONCRETO EM VIAS DE DIVERSOS MUNICÍPIOS INSERIDOS NA ÁREA DE ATUAÇÃO DA 13ª SUPERINTENDÊNCIA REGIONAL DA CODEVASF, NO ESTADO DA PARAÍBA
A59: DESCRIÇÃO DOS SERVIÇOS | B59: PREÇO DE VENDA (%) | C59: CUSTO DIRETO (%)
A60: ADMINISTRAÇÃO CENTRAL | C60: 0.0377
A61: DESPESA FINANCEIRAS | B61: 0.0102
A62: SEGUROS E GARANTIAS CONTRATUAIS | B62: 0.0025
A63: RISCOS | B63: 0.005
A64: LUCRO OPERACIONAL | C64: 0.05
A65: PIS | B65: 0.0065
A66: COFINS | B66: 0.03
A67: ISSQN | B67: 0
A68: Contribuição Previdenciaria | B68: 0
B69: BDI | C69: =ROUND((1+(C60+C64))/(1-(B61+B62+B63+B65+B66+B67+B68))-1,4) -> 0.15
A70: Fonte da composição, valores de referência e fórmula do BDI: Instrução Normativa N° 62/DNIT SEDE
F137: =99.6*2 -> 199.2
F139: =1500*2 -> 3000
F140: =1500*2 -> 3000
F141: =1500*2 -> 3000
F142: =1500*2 -> 3000
F143: =113.18*2 -> 226.36
F144: =1121.33*2 -> 2242.66
F224: =H14+H18+H26+H30 -> 0

Sheet ENC. SOCIAIS
A6: NOME DA CONCORRENTE:
A7: EDITAL:
A8: FOLHA:
A9: ='RESUMO MODULO TOTAL'!B56 -> CONTRATAÇÃO DE SERVIÇOS DE EXECUÇÃO DE PAVIMENTAÇÃO EM BLOCO INTERTRAVADO DE CONCRETO EM VIAS DE DIVERSOS MUNICÍPIOS INSERIDOS NA ÁREA DE ATUAÇÃO DA 13ª SUPERINTENDÊNCIA REGIONAL DA CODEVASF, NO ESTADO DA PARAÍBA
A11: DETALHAMENTO DOS ENCARGOS SOCIAIS (%)
A12: VIGÊNCIA A PARTIR DE 12/2023 | C12: COM DESONERAÇÃO | E12: SEM DESONERAÇÃO
C14: HORISTA | D14: MENSALISTA | E14: HORISTA | F14: MENSALISTA
A16: GRUPO A
A17: A1 | B17: INSS | C17: 0 | D17: 0 | E17: 20 | F17: 20
A18: A2 | B18: SESI | C18: 1.5 | D18: 1.5 | E18: 1.5 | F18: 1.5
A19: A3 | B19: SENAI | C19: 1 | D19: 1 | E19: 1 | F19: 1
A20: A4 | B20: INCRA | C20: 0.2 | D20: 0.2 | E20: 0.2 | F20: 0.2
A21: A5 | B21: SEBRAE | C21: 0.6 | D21: 0.6 | E21: 0.6 | F21: 0.6
A22: A6 | B22: Salário Educação | C22: 2.5 | D22: 2.5 | E22: 2.5 | F22: 2.5
A23: A7 | B23: Seguro Contra Acidentes de Trabalho | C23: 3 | D23: 3 | E23: 3 | F23: 3
A24: A8 | B24: FGTS | C24: 8 | D24: 8 | E24: 8 | F24: 8
A25: A9 | B25: SECONCI | C25: 1 | D25: 1 | E25: 0
A26: A | B26: Total | C26: =SUM(C17:C25) -> 17.8 | D26: =SUM(D17:D25) -> 17.8 | E26: =SUM(E17:E25) -> 36.8 | F26: =SUM(F17:F25) -> 36.8
A27: GRUPO B
A28: B1 | B28: Repouso Semanal Remunerado | C28: 17.88 | D28: - | E28: 18.02 | F28: -
A29: B2 | B29: Feriados | C29: 3.94 | D29: - | E29: 4.31 | F29: -
A30: B3 | B30: Auxílio-enfermidade | C30: 0.91 | D30: 0.69 | E30: 0.86 | F30: 0.65
A31: B4 | B31: 13° salário | C31: 10.98 | D31: 8.33 | E31: 10.96 | F31: 8.33
A32: B5 | B32: Licença-paternidade | C32: 0.07 | D32: 0.06 | E32: 0.07 | F32: 0.05
A33: B6 | B33: Faltas Justificadas | C33: 0.73 | D33: 0.56 | E33: 0.73 | F33: 0.56
A34: B7 | B34: Dias de chuva | C34: 1.45 | D34: - | E34: 2.04 | F34: -
A35: B8 | B35: Auxílio Acidente de Trabalho | C35: 0.11 | D35: 0.09 | E35: 0.1 | F35: 0.07
A36: B9 | B36: Férias Gozadas | C36: 11.35 | D36: 8.62 | E36: 9.76 | F36: 7.42
A37: B10 | B37: Salário Maternidade | C37: 0.03 | D37: 0.03 | E37: 0.03 | F37: 0.03
A38: B | B38: Total | C38: =SUM(C28:C37) -> 47.45 | D38: =SUM(D28:D37) -> 18.38 | E38: =SUM(E28:E37) -> 46.88 | F38: =SUM(F28:F37) -> 17.11
A39: GRUPO C
A40: C1 | B40: Aviso Prévio Indenizado | C40: 6.76 | D40: 5.14 | E40: 4.53 | F40: 3.45
A41: C2 | B41: Aviso Prévio Trabalhado | C41: 0.16 | D41: 0.12 | E41: 0.11 | F41: 0.08
A42: C3 | B42: Férias Indenizadas | C42: 2.28 | D42: 1.73 | E42: 4.29 | F42: 3.26
A43: C4 | B43: Depósito Rescisão Sem Justa Causa | C43: 3.81 | D43: 2.89 | E43: 2.96 | F43: 2.25
A44: C5 | B44: Indenização Adicional | C44: 0.57 | D44: 0.43 | E44: 0.38 | F44: 0.29
A45: C | B45: Total | C45: =SUM(C40:C44) -> 13.58 | D45: =SUM(D40:D44) -> 10.31 | E45: =SUM(E40:E44) -> 12.27 | F45: =SUM(F40:F44) -> 9.33
A46: GRUPO D
A47: D1 | B47: Reincidência de A sobre B | C47: 8.45 | D47: 3.27 | E47: 17.25 | F47: 6.3
A48: D2 | B48: Reincidência de Grupo A sobre Aviso Prévio Trabalhado e Reincidência do FGTS sobre Aviso Prévio Indenizado | C48: 0.57 | D48: 0.43 | E48: 0.4 | F48: 0.35
A49: D | B49: Total | C49: =SUM(C47:C48) -> 9.02 | D49: =SUM(D47:D48) -> 3.7 | E49: =SUM(E47:E48) -> 17.65 | F49: =SUM(F47:F48) -> 6.65
A51: T O T A L (%) | C51: =C26+C38+C45+C49 -> 87.85 | D51: =D26+D38+D45+D49 -> 50.19 | E51: =E26+E38+E45+E49 -> 113.6 | F51: =F26+F38+F45+F49 -> 69.89
H55: Fonte: Sinapi Cálculos e Parâmetros 5ª Edição - Atualizada em Agosto 2023
F137: =99.6*2 -> 199.2
F139: =1500*2 -> 3000
F140: =1500*2 -> 3000
F141: =1500*2 -> 3000
F142: =1500*2 -> 3000
F143: =113.18*2 -> 226.36
F144: =1121.33*2 -> 2242.66
F224: =H14+H18+H26+H30 -> 0

Sheet MEDICAO EM TKM
A5: PLANILHA DE MEDIÇAO DE TKM
A6: 5502114 | B6: =VLOOKUP(A6,'SINTÉTICO SICRO'!A:D,2,0) -> Escavação, carga e transporte de material de 1ª categoria - DMT de 1.000 a 1.200 m - caminho de serviço em leito natural - com escavadeira e caminhão basculante de 14 m³
A7: MOMENTO DE TRANSPORTE | D7: Quantidade (tkm) | E7: -
E8: -
A11: 4413942 | B11: =VLOOKUP(A11,'SINTÉTICO SICRO'!A:D,2,0) -> Espalhamento de material em bota-fora
A12: MOMENTO DE TRANSPORTE | D12: Quantidade (tkm) | E12: -
E13: -
A15: 4011320 | B15: =VLOOKUP(A15,'SINTÉTICO SICRO'!A:D,2,0) -> Base ou sub-base estabilizada granulometricamente com mistura solo brita (70% - 30%) na pista com material de jazida e brita comercial - 100% Proctor modificado
A16: MOMENTO DE TRANSPORTE | C16: Quantidade (tkm) | D16: Área Executada (m2) | E16: =('MC MODULO'!C1*'MC MODULO'!C2)*'MC MODULO'!G1 -> 315000
D17: espessura (m) | E17: 0.15 | F17: =(E16*E17)/'RESUMO MODULO TOTAL'!H29 -> 1
A18: 5914389 | B18: =VLOOKUP(A18,'SINTÉTICO SICRO'!A:D,2,0) -> Transporte com caminhão basculante de 10 m³ - rodovia pavimentada | C18: =SUM('MOMENTO DE TRANSPORTE - PRINC'!K28:K29) -> 5458724.46 | D18: =C18*$F$17 -> 5458724.46
A19: 5914359 | B19: =VLOOKUP(A19,'SINTÉTICO SICRO'!A:D,2,0) -> Transporte com caminhão basculante de 10 m³ - rodovia em leito natural | C19: =SUM('MOMENTO DE TRANSPORTE - PRINC'!K55:K56) -> 194954.445 | D19: =C19*$F$17 -> 194954.445
A20: 5914374 | B20: =VLOOKUP(A20,'SINTÉTICO SICRO'!A:D,2,0) -> Transporte com caminhão basculante de 10 m³ - rodovia em revestimento primário | C20: =SUM('MOMENTO DE TRANSPORTE - PRINC'!K81:K82) -> 194954.445 | D20: =C20*$F$17 -> 194954.445
A22: 4011209 | B22: =VLOOKUP(A22,'SINTÉTICO SICRO'!A:D,2,0) -> Regularização do subleito - 100% Proctor intermediário
A23: MOMENTO DE TRANSPORTE | D23: Quantidade (tkm)
A27: 5213440 | B27: Placa de regulamentação em aço D = 0,60 m - película retrorrefletiva tipo I + SI - fornecimento e implantação
A28: MOMENTO DE TRANSPORTE | D28: Quantidade (tkm)
A32: 5213464 | B32: =VLOOKUP(A32,'SINTÉTICO SICRO'!A:D,2,0) -> Placa de advertência em aço, lado de 0,60 m - película retrorrefletiva tipo I + SI - fornecimento e implantação
A33: MOMENTO DE TRANSPORTE | D33: Quantidade (tkm)
A37: 5213863 | B37: =VLOOKUP(A37,'SINTÉTICO SICRO'!A:D,2,0) -> Suporte metálico galvanizado para placa de advertência ou regulamentação - lado ou diâmetro de 0,60 m - fornecimento e implantação
A38: MOMENTO DE TRANSPORTE | D38: Quantidade (tkm)
A42: 5213400 | B42: =VLOOKUP(A42,'SINTÉTICO SICRO'!A:D,2,0) -> Pintura de faixa com tinta acrílica - espessura de 0,4 mm
A43: MOMENTO DE TRANSPORTE | D43: Quantidade (tkm)
A47: 2003943 | B47: =VLOOKUP(A47,'SINTÉTICO SICRO'!A:D,2,0) -> Meio-fio de concreto - MFC 03 moldado no local com extrusora e concreto usinado - areia e brita comerciais
A48: MOMENTO DE TRANSPORTE | D48: Quantidade (tkm) | E48: Extensao executada (m)
E49: 100 | F49: =E49/('MC MODULO'!C1*2) -> 0.05
A50: 5914569 | B50: =VLOOKUP(A50,'SINTÉTICO SICRO'!A:D,2,0) -> Transporte com caminhão betoneira - rodovia pavimentada | D50: ='MOMENTO DE TRANSPORTE - PRINC'!K42 -> 508032 | E50: =D50*$F$49 -> 25401.6
A51: 5914539 | B51: =VLOOKUP(A51,'SINTÉTICO SICRO'!A:D,2,0) -> Transporte com caminhão betoneira - rodovia em leito natural | D51: ='MOMENTO DE TRANSPORTE - PRINC'!K68 -> 18144 | E51: 907.2
A52: 5914554 | B52: =VLOOKUP(A52,'SINTÉTICO SICRO'!A:D,2,0) -> Transporte com caminhão betoneira - rodovia em revestimento primário | D52: ='MOMENTO DE TRANSPORTE - PRINC'!K94 -> 18144 | E52: 907.2
A53: 5914479 | B53: =VLOOKUP(A53,'SINTÉTICO SICRO'!A:D,2,0) -> Transporte com caminhão carroceria de 15 t - rodovia pavimentada | D53: =SUMIF('MOMENTO DE TRANSPORTE - AUX'!A25:A29,'MEDICAO EM TKM'!A53,'MOMENTO DE TRANSPORTE - AUX'!K25:K29)+'MOMENTO DE TRANSPORTE - AUX'!K37 -> 128692.8 | E53: 6434.64
A54: 5914389 | B54: =VLOOKUP(A54,'SINTÉTICO SICRO'!A:D,2,0) -> Transporte com caminhão basculante de 10 m³ - rodovia pavimentada | D54: =SUMIF('MOMENTO DE TRANSPORTE - AUX'!A25:A29,'MEDICAO EM TKM'!A54,'MOMENTO DE TRANSPORTE - AUX'!K25:K29) -> 931072.968 | E54: 46553.6484
A55: 5914449 | B55: =VLOOKUP(A55,'SINTÉTICO SICRO'!A:D,2,0) -> Transporte com caminhão carroceria de 15 t - rodovia em leito natural | D55: =SUMIF('MOMENTO DE TRANSPORTE - AUX'!A48:A53,'MEDICAO EM TKM'!A55,'MOMENTO DE TRANSPORTE - AUX'!K48:K53)+'MOMENTO DE TRANSPORTE - AUX'!K60 -> 5362.2 | E55: 268.11
A56: 5914359 | B56: =VLOOKUP(A56,'SINTÉTICO SICRO'!A:D,2,0) -> Transporte com caminhão basculante de 10 m³ - rodovia em leito natural | D56: =SUMIF('MOMENTO DE TRANSPORTE - AUX'!A48:A53,'MEDICAO EM TKM'!A56,'MOMENTO DE TRANSPORTE - AUX'!K48:K53) -> 38794.707 | E56: 1939.73535
A57: 5914464 | B57: =VLOOKUP(A57,'SINTÉTICO SICRO'!A:D,2,0) -> Transporte com caminhão carroceria de 15 t - rodovia em revestimento primário | D57: =SUMIF('MOMENTO DE TRANSPORTE - AUX'!A71:A75,'MEDICAO EM TKM'!A57,'MOMENTO DE TRANSPORTE - AUX'!K71:K75)+'MOMENTO DE TRANSPORTE - AUX'!K83 -> 5362.2 | E57: 268.11
A58: 5914374 | B58: =VLOOKUP(A58,'SINTÉTICO SICRO'!A:D,2,0) -> Transporte com caminhão basculante de 10 m³ - rodovia em revestimento primário | D58: =SUMIF('MOMENTO DE TRANSPORTE - AUX'!A71:A75,'MEDICAO EM TKM'!A57,'MOMENTO DE TRANSPORTE - AUX'!K71:K75) -> 5348.7 | E58: 267.435
A60: 4915724 | B60: =VLOOKUP(A60,'SINTÉTICO SICRO'!A:D,2,0) -> Caiação mecanizada com fixador de cal
A61: MOMENTO DE TRANSPORTE | D61: Quantidade (tkm)

Sheet MC MODULO
A1: Extensão | B1: = | C1: 1000 | D1: m | F1: QUANTIDADE DE MODULOS | G1: 45
A2: Largura | B2: = | C2: 7 | D2: m
A4: Extensão | B4: = | C4: 1 | D4: km
B6: MOBUILIZAÇÃO
A7: 1 | B7: Implantação da obra
B9: Módulos(un) | D9: Módulos(un)
B10: =G1 -> 45 | C10: = | D10: =B10 -> 45
A12: 2 | B12: Administração da obra
B14: Módulos(un) | D14: Módulos(un)
B15: =G1 -> 45 | C15: = | D15: =B15 -> 45
A17: 3 | B17: Canteiro de Obras e Almoxarifado
B19: Módulos(un) | D19: Módulos(un)
B20: =G1 -> 45 | C20: = | D20: =B20 -> 45
A22: 4 | B22: Placa de Obra em Chapa de Aço Galvanizado
B24: Módulos(un) | C24: Comprimento(m) | D24: Largura (m) | H24: Total de Area de placa (m²)
B25: =G1 -> 45 | C25: 2 | D25: 4 | H25: =C25*D25*B25*2 -> 720
B27: TERRAPLENAGEM
A29: 5 | B29: serviços topográficos para pavimentação, inclusive notas de serviços, acompanhamento e greide
B31: Extensão (m) | D31: Largura (m) | H31: area (m2)
B32: =C1*$G$1 -> 45000 | C32: x | D32: =$C$2 -> 7 | G32: = | H32: =B32*D32 -> 315000
A34: 6 | B34: Escavação, carga e transporte de material de 1ª categoria - DMT de 1.000 a 1.200 m - caminho de serviço em leito natural - com escavadeira e caminhão basculante de 14 m³
B36: Extensão (m) | D36: Largura (m) | F36: Espessura (m) | H36: Volume (m3)
B37: =C1*$G$1 -> 45000 | C37: x | D37: =$C$2 -> 7 | E37: x | F37: =0.15+0.08+0.04 -> 0.27 | G37: = | H37: =B37*D37*F37 -> 85050
A41: 7 | B41: Espalhamento de material em bota-fora
B43: Extensão (m) | D43: Largura (m) | F43: Espessura (m) | H43: Volume (m3)
B44: =C1*$G$1 -> 45000 | C44: x | D44: =$C$2 -> 7 | E44: x | F44: 0.27 | G44: = | H44: =B44*D44*F44 -> 85050
B46: PAVIMENTAÇÃO
A48: 8 | B48: Execução de Pavimento em Piso Intertravado, com Bloco Sextavado de 25 X 25 cm, espessura 8 cm. AF_12/2015
B50: Extensão (m) | C50: Largura (m) | H50: area (m2)
B51: =$C$1*G1 -> 45000 | C51: =$C$2 -> 7 | G51: = | H51: =C51*B51 -> 315000
A53: 8 | B53: Transporte com cavalo mecânico com semirreboque com capacidade de 30 t - rodovia pavimentada
B55: Dimensoes (m³) | C55: Densidade bloco Intertravado (t/m³) | D55: Peso total (t) | E55: Distancia (km) | H55: TKM
B56: =H51*0.08 -> 25200 | C56: 2.2 | D56: =C56*B56 -> 55440 | E56: 100 | G56: = | H56: =D56*E56 -> 5544000
A59: 8 | B59: Carga, manobra e descarga de materiais diversos em caminhão carroceria com capacidade de 7 t e com guindauto de 20 t.m
B61: Dimensoes (m³) | C61: Densidade bloco Intertravado (t/m³) | D61: Peso total (t) | H61: TKM
B62: =H51*0.08 -> 25200 | C62: 2.2 | D62: =C62*B62 -> 55440 | G62: = | H62: =D62 -> 55440
A65: 8 | B65: TRANSPORTE COM CAMINHÃO BASCULANTE DE 10 M³, EM VIA URBANA PAVIMENTADA , DMT ATÉ 30 KM (UNIDADE: TXKM). AF_07/2020 (areia) | U65: =7*20 -> 140
U66: =26*5 -> 130
B67: Area | C67: Densidade areia (t/m³) | D67: Peso total (t) | E67: Distancia (km) | H67: TKM | U67: =23*5 -> 115
B68: =H51 -> 315000 | C68: 1.5 | D68: =B68*C68*0.04 -> 18900 | E68: 70 | G68: = | H68: =D68*E68 -> 1323000 | U68: =U65+U66+U67 -> 385
A70: 8 | B70: TRANSPORTE COM CAMINHÃO BASCULANTE DE 10 M³, EM VIA URBANA PAVIMENTADA , DMT ATÉ 30 KM (UNIDADE: TXKM). AF_07/2020 (PO DE PEDRA) | U70: =7*20 -> 140
D71: 0.009 | U71: =26*5 -> 130
B72: Area | C72: Densidade pó de pedra (t/m³) | D72: Quantidade total de pó de pedra (m³) | E72: Peso total (t) | F72: Distancia (km) | H72: TKM | U72: =23*5 -> 115
B73: =H51 -> 315000 | C73: 1.5 | D73: =B73*D71 -> 2835 | E73: =D73*C73 -> 4252.5 | F73: 70 | G73: = | H73: =E73*F73 -> 297675 | U73: =U70+U71+U72 -> 385
A75: 9 | B75: Base ou sub-base de brita graduada com brita comercial
B77: Extensão (m) | D77: Largura (m) | F77: Espessura (m) | H77: Volume (m3)
B78: =C1*$G$1 -> 45000 | C78: x | D78: =$C$2 -> 7 | E78: x | F78: 0.15 | G78: = | H78: =B78*D78*F78 -> 47250
A80: 10 | B80: Regularização do subleito
B82: Extensão (m) | D82: Largura (m) | H82: area (m2)
B83: =C1*$G$1 -> 45000 | C83: x | D83: =$C$2 -> 7 | G83: = | H83: =B83*D83 -> 315000
B85: SINALIZAÇÃO
A87: 11 | B87: Fornecimento e implantação de placa de regulamentação em aço D = 0,60 m - película retrorrefletiva tipo I + SI
B89: Extensão (km) | D89: Quant. (un) | H89: Quant. (un)
B90: =$C$4*$G$1 -> 45 | C90: x | D90: 3 | G90: = | H90: =B90*D90 -> 135
A92: 11 | B92: Fornecimento e implantação de placa de advertencia
B94: Extensão (km) | D94: Quant. (un) | H94: Quant. (un)
B95: =$C$4*$G$1 -> 45 | C95: x | D95: 3 | G95: = | H95: =B95*D95 -> 135
A98: 12 | B98: Fornecimento e implantação de suporte metálico galvanizado para placa de regulamentação - D = 0,60 m
B100: Extensão (km) | D100: Quant. (un) | H100: Quant. (un)
B101: =$C$4*$G$1 -> 45 | C101: x | D101: 0.5 | G101: = | H101: =H95+H90 -> 270
A103: 13 | B103: Pintura de faixa com tinta acrílica - espessura de 0,4 mm (bordos)
B105: Extensão (m) | D105: Espessura (m) | H105: Quant. (m²)
B106: =C1*G1 -> 45000 | C106: x | D106: 0.1 | G106: = | H106: =B106*D106*2 -> 9000
B108: Pintura de faixa com tinta acrílica - espessura de 0,4 mm (faixa central)
H110: Quant. (m²)
H111: =B106*D106*0.4 -> 1800
B114: DRENAGEM
A115: 14 | B115: Meio-fio de concreto - MFC 03 - areia e brita comerciais - fôrma de madeira
B117: Extensão (m) | D117: Quant. (un) | H117: Extensão(m)
B118: =$C$1*$G$1 -> 45000 | C118: x | D118: 2 | G118: = | H118: =B118*D118 -> 90000
A120: 19 | B120: Caiação mecanizada com fixador de cal
B122: Extensão (m) | D122: Perimetro (m) | H122: Area (m²)
B123: =$C$1*$G$1 -> 45000 | C123: x | D123: =0.24 -> 0.24 | G123: = | H123: =B123*D123 -> 10800
B126: SERVIÇOS COMPLEMENTARES
A127: 15
B129: Extensão (m) | D129: Largura (m) | G129: 0.1 | H129: extensão (m)
B130: =$C$1*G1 -> 45000 | C130: x | D130: 1 | E130: x | G130: = | H130: =G129*B130 -> 4500
B133: PROJETO EXECUTIVO
A134: 16 | B134: Projeto Executivo
B136: Extensão (m) | D136: Largura (m) | F136: Quant. (un) | H136: Área (m²)
B137: =$C$1*G1 -> 45000 | C137: x | D137: =C2 -> 7 | E137: x | F137: =99.6*2 -> 199.2 | G137: = | H137: =B137*D137 -> 315000
B139: CONTROLE TECNOLOGICO - OBRA | F139: =1500*2 -> 3000
A140: 17 | B140: Projeto Executivo | F140: =1500*2 -> 3000
F141: =1500*2 -> 3000
B142: Extensão (m) | D142: Largura (m) | F142: =1500*2 -> 3000 | H142: meses
F143: =113.18*2 -> 226.36 | G143: = | H143: =0.5*G1 -> 22.5
F144: =1121.33*2 -> 2242.66
F224: =H14+H18+H26+H30 -> 0

Sheet Material Sicro (hidden)
A1: CGCIT | B1: SISTEMA DE CUSTOS REFERENCIAIS DE OBRAS - SICRO | D1: DNIT
B2: Paraíba - Janeiro/2025
A3: Código | B3: Descrição do Serviço | C3: Unidade | D3: Custo Unitário (R$)
A4: 307731 | B4: Aparelho de apoio de neoprene fretado para estruturas moldadas no local - fornecimento e instalação | C4: dm³ | D4: 135.19
A5: 307732 | B5: Aparelho de apoio de neoprene fretado para estruturas pré-moldadas - fornecimento e instalação | C5: dm³ | D5: 111.89
A6: 308308 | B6: Aparelho de apoio metálico elastomérico fixo com capacidade de 1.500 kN - fornecimento e instalação | C6: un | D6: 5546.55
A7: 308313 | B7: Aparelho de apoio metálico elastomérico fixo com capacidade de 10.000 kN - fornecimento e instalação | C7: un | D7: 34527.12
A8: 308309 | B8: Aparelho de apoio metálico elastomérico fixo com capacidade de 2.500 kN - fornecimento e instalação | C8: un | D8: 9132.36
A9: 308310 | B9: Aparelho de apoio metálico elastomérico fixo com capacidade de 4.000 kN - fornecimento e instalação | C9: un | D9: 12664.35
A10: 308311 | B10: Aparelho de apoio metálico elastomérico fixo com capacidade de 5.500 kN - fornecimento e instalação | C10: un | D10: 17775.8
A11: 308312 | B11: Aparelho de apoio metálico elastomérico fixo com capacidade de 7.500 kN - fornecimento e instalação | C11: un | D11: 24748.83
A12: 308307 | B12: Aparelho de apoio metálico elastomérico fixo com capacidade de 700 kN - fornecimento e instalação | C12: un | D12: 3426.71
A13: 308322 | B13: Aparelho de apoio metálico elastomérico multidirecional com capacidade de 1.500 kN - fornecimento e instalação | C13: un | D13: 4873.09
A14: 308327 | B14: Aparelho de apoio metálico elastomérico multidirecional com capacidade de 10.000 kN - fornecimento e instalação | C14: un | D14: 29587.16
A15: 308323 | B15: Aparelho de apoio metálico elastomérico multidirecional com capacidade de 2.500 kN - fornecimento e instalação | C15: un | D15: 7495.89
A16: 308324 | B16: Aparelho de apoio metálico elastomérico multidirecional com capacidade de 4.000 kN - fornecimento e instalação | C16: un | D16: 11181.41
A17: 308325 | B17: Aparelho de apoio metálico elastomérico multidirecional com capacidade de 5.500 kN - fornecimento e instalação | C17: un | D17: 15775.74
A18: 308326 | B18: Aparelho de apoio metálico elastomérico multidirecional com capacidade de 7.500 kN - fornecimento e instalação | C18: un | D18: 21888.64
A19: 308321 | B19: Aparelho de apoio metálico elastomérico multidirecional com capacidade de 700 kN - fornecimento e instalação | C19: un | D19: 4483.59
A20: 308315 | B20: Aparelho de apoio metálico elastomérico unidirecional com capacidade de 1.500 kN - fornecimento e instalação | C20: un | D20: 6246.39
A21: 308320 | B21: Aparelho de apoio metálico elastomérico unidirecional com capacidade de 10.000 kN - fornecimento e instalação | C21: un | D21: 43442.09
A22: 308316 | B22: Aparelho de apoio metálico elastomérico unidirecional com capacidade de 2.500 kN - fornecimento e instalação | C22: un | D22: 8956.91
A23: 308317 | B23: Aparelho de apoio metálico elastomérico unidirecional com capacidade de 4.000 kN - fornecimento e instalação | C23: un | D23: 17067.41
A24: 308318 | B24: Aparelho de apoio metálico elastomérico unidirecional com capacidade de 5.500 kN - fornecimento e instalação | C24: un | D24: 22307.08
A25: 308319 | B25: Aparelho de apoio metálico elastomérico unidirecional com capacidade de 7.500 kN - fornecimento e instalação | C25: un | D25: 25333.36
A26: 308314 | B26: Aparelho de apoio metálico elastomérico unidirecional com capacidade de 700 kN - fornecimento e instalação | C26: un | D26: 4491.11
A27: 308250 | B27: Aparelho de apoio metálico esférico fixo com capacidade de 1.000 kN - fornecimento e instalação | C27: un | D27: 7107.6
A28: 308251 | B28: Aparelho de apoio metálico esférico fixo com capacidade de 1.500 kN - fornecimento e instalação | C28: un | D28: 11059.49
A29: 308268 | B29: Aparelho de apoio metálico esférico fixo com capacidade de 10.000 kN - fornecimento e instalação | C29: un | D29: 72211.64
A30: 308252 | B30: Aparelho de apoio metálico esférico fixo com capacidade de 2.000 kN - fornecimento e instalação | C30: un | D30: 12857.32
A31: 308253 | B31: Aparelho de apoio metálico esférico fixo com capacidade de 2.500 kN - fornecimento e instalação | C31: un | D31: 15584.43
A32: 308254 | B32: Aparelho de apoio metálico esférico fixo com capacidade de 3.000 kN - fornecimento e instalação | C32: un | D32: 18594.53
A33: 308255 | B33: Aparelho de apoio metálico esférico fixo com capacidade de 3.500 kN - fornecimento e instalação | C33: un | D33: 21489.24
A34: 308256 | B34: Aparelho de apoio metálico esférico fixo com capacidade de 4.000 kN - fornecimento e instalação | C34: un | D34: 28778.51
A35: 308257 | B35: Aparelho de apoio metálico esférico fixo com capacidade de 4.500 kN - fornecimento e instalação | C35: un | D35: 30926.12
A36: 308258 | B36: Aparelho de apoio metálico esférico fixo com capacidade de 5.000 kN - fornecimento e instalação | C36: un | D36: 34534.84
A37: 308259 | B37: Aparelho de apoio metálico esférico fixo com capacidade de 5.500 kN - fornecimento e instalação | C37: un | D37: 36505.49
A38: 308260 | B38: Aparelho de apoio metálico esférico fixo com capacidade de 6.000 kN - fornecimento e instalação | C38: un | D38: 41086.94
A39: 308261 | B39: Aparelho de apoio metálico esférico fixo com capacidade de 6.500 kN - fornecimento e instalação | C39: un | D39: 44363.9
A40: 308262 | B40: Aparelho de apoio metálico esférico fixo com capacidade de 7.000 kN - fornecimento e instalação | C40: un | D40: 52579.65
A41: 308263 | B41: Aparelho de apoio metálico esférico fixo com capacidade de 7.500 kN - fornecimento e instalação | C41: un | D41: 56636.41
A42: 308264 | B42: Aparelho de apoio metálico esférico fixo com capacidade de 8.000 kN - fornecimento e instalação | C42: un | D42: 56844.26
A43: 308265 | B43: Aparelho de apoio metálico esférico fixo com capacidade de 8.500 kN - fornecimento e instalação | C43: un | D43: 57370.88
A44: 308266 | B44: Aparelho de apoio metálico esférico fixo com capacidade de 9.000 kN - fornecimento e instalação | C44: un | D44: 64819.68
A45: 308267 | B45: Aparelho de apoio metálico esférico fixo com capacidade de 9.500 kN - fornecimento e instalação | C45: un | D45: 68763.72
A46: 308288 | B46: Aparelho de apoio metálico esférico multidirecional com capacidade de 1.000 kN - fornecimento e instalação | C46: un | D46: 7949.61
A47: 308289 | B47: Aparelho de apoio metálico esférico multidirecional com capacidade de 1.500 kN - fornecimento e instalação | C47: un | D47: 11015.11
A48: 308306 | B48: Aparelho de apoio metálico esférico multidirecional com capacidade de 10.000 kN - fornecimento e instalação | C48: un | D48: 73149.58
A49: 308290 | B49: Aparelho de apoio metálico esférico multidirecional com capacidade de 2.000 kN - fornecimento e instalação | C49: un | D49: 14432.59
A50: 308291 | B50: Aparelho de apoio metálico esférico multidirecional com capacidade de 2.500 kN - fornecimento e instalação | C50: un | D50: 17259.82
A51: 308292 | B51: Aparelho de apoio metálico esférico multidirecional com capacidade de 3.000 kN - fornecimento e instalação | C51: un | D51: 19928.28
A52: 308293 | B52: Aparelho de apoio metálico esférico multidirecional com capacidade de 3.500 kN - fornecimento e instalação | C52: un | D52: 22531.81
A53: 308294 | B53: Aparelho de apoio metálico esférico multidirecional com capacidade de 4.000 kN - fornecimento e instalação | C53: un | D53: 25542.36
A54: 308295 | B54: Aparelho de apoio metálico esférico multidirecional com capacidade de 4.500 kN - fornecimento e instalação | C54: un | D54: 29475.8
A55: 308296 | B55: Aparelho de apoio metálico esférico multidirecional com capacidade de 5.000 kN - fornecimento e instalação | C55: un | D55: 32818.98
A56: 308297 | B56: Aparelho de apoio metálico esférico multidirecional com capacidade de 5.500 kN - fornecimento e instalação | C56: un | D56: 35528.39
A57: 308298 | B57: Aparelho de apoio metálico esférico multidirecional com capacidade de 6.000 kN - fornecimento e instalação | C57: un | D57: 41873.98
A58: 308299 | B58: Aparelho de apoio metálico esférico multidirecional com capacidade de 6.500 kN - fornecimento e instalação | C58: un | D58: 45225.75
A59: 308300 | B59: Aparelho de apoio metálico esférico multidirecional com capacidade de 7.000 kN - fornecimento e instalação | C59: un | D59: 48664.85
A60: 308301 | B60: Aparelho de apoio metálico esférico multidirecional com capacidade de 7.500 kN - fornecimento e instalação | C60: un | D60: 52487.42
A61: 308302 | B61: Aparelho de apoio metálico esférico multidirecional com capacidade de 8.000 kN - fornecimento e instalação | C61: un | D61: 56970.87
A62: 308303 | B62: Aparelho de apoio metálico esférico multidirecional com capacidade de 8.500 kN - fornecimento e instalação | C62: un | D62: 62170.5
A63: 308304 | B63: Aparelho de apoio metálico esférico multidirecional com capacidade de 9.000 kN - fornecimento e instalação | C63: un | D63: 65667.65
A64: 308305 | B64: Aparelho de apoio metálico esférico multidirecional com capacidade de 9.500 kN - fornecimento e instalação | C64: un | D64: 69673.38
A65: 308269 | B65: Aparelho de apoio metálico esférico unidirecional com capacidade de 1.000 kN - fornecimento e instalação | C65: un | D65: 10637.8
A66: 308270 | B66: Aparelho de apoio metálico esférico unidirecional com capacidade de 1.500 kN - fornecimento e instalação | C66: un | D66: 14327.54
A67: 308287 | B67: Aparelho de apoio metálico esférico unidirecional com capacidade de 10.000 kN - fornecimento e instalação | C67: un | D67: 78593.36
A68: 308271 | B68: Aparelho de apoio metálico esférico unidirecional com capacidade de 2.000 kN - fornecimento e instalação | C68: un | D68: 17449.08
A69: 308272 | B69: Aparelho de apoio metálico esférico unidirecional com capacidade de 2.500 kN - fornecimento e instalação | C69: un | D69: 20709.56
A70: 308273 | B70: Aparelho de apoio metálico esférico unidirecional com capacidade de 3.000 kN - fornecimento e instalação | C70: un | D70: 23679.82
A71: 308274 | B71: Aparelho de apoio metálico esférico unidirecional com capacidade de 3.500 kN - fornecimento e instalação | C71: un | D71: 27448.06
A72: 308275 | B72: Aparelho de apoio metálico esférico unidirecional com capacidade de 4.000 kN - fornecimento e instalação | C72: un | D72: 30647.94
A73: 308276 | B73: Aparelho de apoio metálico esférico unidirecional com capacidade de 4.500 kN - fornecimento e instalação | C73: un | D73: 35238.69
A74: 308277 | B74: Aparelho de apoio metálico esférico unidirecional com capacidade de 5.000 kN - fornecimento e instalação | C74: un | D74: 38981.21
A75: 308278 | B75: Aparelho de apoio metálico esférico unidirecional com capacidade de 5.500 kN - fornecimento e instalação | C75: un | D75: 42176.11
A76: 308279 | B76: Aparelho de apoio metálico esférico unidirecional com capacidade de 6.000 kN - fornecimento e instalação | C76: un | D76: 47116.83
A77: 308280 | B77: Aparelho de apoio metálico esférico unidirecional com capacidade de 6.500 kN - fornecimento e instalação | C77: un | D77: 50503.79
A78: 308281 | B78: Aparelho de apoio metálico esférico unidirecional com capacidade de 7.000 kN - fornecimento e instalação | C78: un | D78: 54250.21
A79: 308282 | B79: Aparelho de apoio metálico esférico unidirecional com capacidade de 7.500 kN - fornecimento e instalação | C79: un | D79: 58193.04
A80: 308283 | B80: Aparelho de apoio metálico esférico unidirecional com capacidade de 8.000 kN - fornecimento e instalação | C80: un | D80: 61877.66
A81: 308284 | B81: Aparelho de apoio metálico esférico unidirecional com capacidade de 8.500 kN - fornecimento e instalação | C81: un | D81: 66660.94
A82: 308285 | B82: Aparelho de apoio metálico esférico unidirecional com capacidade de 9.000 kN - fornecimento e instalação | C82: un | D82: 70573.43
A83: 308286 | B83: Aparelho de apoio metálico esférico unidirecional com capacidade de 9.500 kN - fornecimento e instalação | C83: un | D83: 74630.54
A84: 307733 | B84: Junta de dilatação em elastômero e perfil VV - L = 20 mm e H = 40 mm - fornecimento e instalação | C84: m | D84: 263.1
A85: 307734 | B85: Junta de dilatação em elastômero e perfil VV - L = 25 mm e H = 50 mm - fornecimento e instalação | C85: m | D85: 317.85
A86: 307735 | B86: Junta de dilatação em elastômero e perfil VV - L = 35 mm e H = 60 mm - fornecimento e instalação | C86: m | D86: 417.29
A87: 307736 | B87: Junta de dilatação em elastômero e perfil VV - L = 40 mm e H = 70 mm - fornecimento e instalação | C87: m | D87: 556.98
A88: 307737 | B88: Junta de dilatação em elastômero e perfil VV - L = 50 mm e H = 80 mm - fornecimento e instalação | C88: m | D88: 587.03
A89: 307730 | B89: Junta de dilatação em perfil extrudado de borracha vulcanizada | C89: m | D89: 0
A90: 307084 | B90: Lábios poliméricos em junta de pavimento de concreto - L = 20 mm e H = 30 mm - confecção e assentamento | C90: m | D90: 33.1
A91: 407818 | B91: Armação em aço CA-25 - fornecimento, preparo e colocação | C91: kg | D91: 12.05
A92: 407819 | B92: Armação em aço CA-50 - fornecimento, preparo e colocação | C92: kg | D92: 12.41
A93: 407820 | B93: Armação em aço CA-60 - fornecimento, preparo e colocação | C93: kg | D93: 13.7
A94: 407740 | B94: Chumbador tipo espera em aço CA-25 para fixação de estrutura metálica em concreto - fornecimento e instalação | C94: kg | D94: 14.65
A95: 408037 | B95: Luva de emenda com rosca cônica para aço CA-50 - D = 12,5 mm - fornecimento e instalação | C95: un | D95: 20.97
A96: 408038 | B96: Luva de emenda com rosca cônica para aço CA-50 - D = 16 mm - fornecimento e instalação | C96: un | D96: 33.02
A97: 408039 | B97: Luva de emenda com rosca cônica para aço CA-50 - D = 20 mm - fornecimento e instalação | C97: un | D97: 44.67
A98: 408041 | B98: Luva de emenda com rosca cônica para aço CA-50 - D = 25 mm - fornecimento e instalação | C98: un | D98: 57.95
A99: 408042 | B99: Luva de emenda com rosca cônica para aço CA-50 - D = 32 mm - fornecimento e instalação | C99: un | D99: 83.27
A100: 408031 | B100: Luva de emenda prensada para aço CA-50 - D = 12,5 mm - fornecimento e instalação | C100: un | D100: 23.07
A101: 408032 | B101: Luva de emenda prensada para aço CA-50 - D = 16 mm - fornecimento e instalação | C101: un | D101: 31.66
A102: 408033 | B102: Luva de emenda prensada para aço CA-50 - D = 20 mm - fornecimento e instalação | C102: un | D102: 43.4
A103: 408035 | B103: Luva de emenda prensada para aço CA-50 - D = 25 mm - fornecimento e instalação | C103: un | D103: 73.24
A104: 408036 | B104: Luva de emenda prensada para aço CA-50 - D = 32 mm - fornecimento e instalação | C104: un | D104: 163.64
A105: 408067 | B105: Tela de aço eletrossoldada - fornecimento, preparo e colocação | C105: kg | D105: 11.99
A106: 407743 | B106: Treliça nervurada três barras longitudinais interligadas por duas diagonais sinusoidal - fornecimento e instalação | C106: kg | D106: 12.23
A107: 607137 | B107: Arco metálico galvanizado tipo MP 152S - arco alto - vão = 10,08 m e altura = 6,12 m - aterro rodoviário mínimo = 0,90 m e máximo = 5,00 m - areia e brita comerciais | C107: m | D107: 60638.81
A108: 606785 | B108: Arco metálico galvanizado tipo MP 152S - arco alto - vão = 10,08 m e altura = 6,12 m - aterro rodoviário mínimo = 0,90 m e máximo = 5,00 m - areia extraída e brita produzida | C108: m | D108: 59974.14
A109: 607139 | B109: Arco metálico galvanizado tipo MP 152S - arco alto - vão = 10,31 m e altura = 6,17 m - aterro rodoviário mínimo = 0,90 m e máximo = 4,90 m - areia e brita comerciais | C109: m | D109: 61450.82
A110: 606787 | B110: Arco metálico galvanizado tipo MP 152S - arco alto - vão = 10,31 m e altura = 6,17 m - aterro rodoviário mínimo = 0,90 m e máximo = 4,90 m - areia extraída e brita produzida | C110: m | D110: 60457.6
A111: 607140 | B111: Arco metálico galvanizado tipo MP 152S - arco alto - vão = 10,36 m e altura = 5,38 m - aterro rodoviário mínimo = 1,20 m e máximo = 3,60 m - areia e brita comerciais | C111: m | D111: 56154.41
A112: 606788 | B112: Arco metálico galvanizado tipo MP 152S - arco alto - vão = 10,36 m e altura = 5,38 m - aterro rodoviário mínimo = 1,20 m e máximo = 3,60 m - areia extraída e brita produzida | C112: m | D112: 55882.94
A113: 607141 | B113: Arco metálico galvanizado tipo MP 152S - arco alto - vão = 10,54 m e altura = 6,05 m - aterro rodoviário mínimo = 1,20 m e máximo = 4,20 m - areia e brita comerciais | C113: m | D113: 62513.8
A114: 606789 | B114: Arco metálico galvanizado tipo MP 152S - arco alto - vão = 10,54 m e altura = 6,05 m - aterro rodoviário mínimo = 1,20 m e máximo = 4,20 m - areia extraída e brita produzida | C114: m | D114: 61823.04
A115: 607144 | B115: Arco metálico galvanizado tipo MP 152S - arco alto - vão = 10,57 m e altura = 5,41 m - aterro rodoviário mínimo = 1,20 m e máximo = 4,10 m - areia e brita comerciais | C115: m | D115: 73324.52
A116: 606792 | B116: Arco metálico galvanizado tipo MP 152S - arco alto - vão = 10,57 m e altura = 5,41 m - aterro rodoviário mínimo = 1,20 m e máximo = 4,10 m - areia extraída e brita produzida | C116: m | D116: 72693.58
A117: 607142 | B117: Arco metálico galvanizado tipo MP 152S - arco alto - vão = 10,74 m e altura = 6,48 m - aterro rodoviário mínimo = 1,20 m e máximo = 4,70 m - areia e brita comerciais | C117: m | D117: 65559.14
A118: 606790 | B118: Arco metálico galvanizado tipo MP 152S - arco alto - vão = 10,74 m e altura = 6,48 m - aterro rodoviário mínimo = 1,20 m e máximo = 4,70 m - areia extraída e brita produzida | C118: m | D118: 64816.15
A119: 607145 | B119: Arco metálico galvanizado tipo MP 152S - arco alto - vão = 10,77 m e altura = 6,10 m - aterro rodoviário mínimo = 1,20 m e máximo = 4,70 m - areia e brita comerciais | C119: m | D119: 80895.04
A120: 606793 | B120: Arco metálico galvanizado tipo MP 152S - arco alto - vão = 10,77 m e altura = 6,10 m - aterro rodoviário mínimo = 1,20 m e máximo = 4,70 m - areia extraída e brita produzida | C120: m | D120: 80189.39
A121: 607146 | B121: Arco metálico galvanizado tipo MP 152S - arco alto - vão = 10,97 m e altura = 6,53 m - aterro rodoviário mínimo = 1,20 m e máximo = 4,70 m - areia e brita comerciais | C121: m | D121: 84397.14
A122: 606794 | B122: Arco metálico galvanizado tipo MP 152S - arco alto - vão = 10,97 m e altura = 6,53 m - aterro rodoviário mínimo = 1,20 m e máximo = 4,70 m - areia extraída e brita produzida | C122: m | D122: 83631.26
A123: 607143 | B123: Arco metálico galvanizado tipo MP 152S - arco alto - vão = 11,35 m e altura = 7,12 m - aterro rodoviário mínimo = 1,20 m e máximo = 4,70 m - areia e brita comerciais | C123: m | D123: 70815.36
A124: 606791 | B124: Arco metálico galvanizado tipo MP 152S - arco alto - vão = 11,35 m e altura = 7,12 m - aterro rodoviário mínimo = 1,20 m e máximo = 4,70 m - areia extraída e brita produzida | C124: m | D124: 69959.97
A125: 607147 | B125: Arco metálico galvanizado tipo MP 152S - arco alto - vão = 11,58 m e altura = 7,16 m - aterro rodoviário mínimo = 1,20 m e máximo = 6,40 m - areia e brita comerciais | C125: m | D125: 91050.25
A126: 606795 | B126: Arco metálico galvanizado tipo MP 152S - arco alto - vão = 11,58 m e altura = 7,16 m - aterro rodoviário mínimo = 1,20 m e máximo = 6,40 m - areia extraída e brita produzida | C126: m | D126: 90167.72
A127: 607112 | B127: Arco metálico galvanizado tipo MP 152S - arco alto - vão = 6,12 m e altura = 2,77 m - aterro rodoviário mínimo = 0,75 m e máximo = 5,40 m - areia e brita comerciais | C127: m | D127: 29659.19
A128: 606760 | B128: Arco metálico galvanizado tipo MP 152S - arco alto - vão = 6,12 m e altura = 2,77 m - aterro rodoviário mínimo = 0,75 m e máximo = 5,40 m - areia extraída e brita produzida | C128: m | D128: 29427.85
A129: 607113 | B129: Arco metálico galvanizado tipo MP 152S - arco alto - vão = 6,30 m e altura = 3,68 m - aterro rodoviário mínimo = 0,75 m e máximo = 7,50 m - areia e brita comerciais | C129: m | D129: 36390.15
A130: 606761 | B130: Arco metálico galvanizado tipo MP 152S - arco alto - vão = 6,30 m e altura = 3,68 m - aterro rodoviário mínimo = 0,75 m e máximo = 7,50 m - areia extraída e brita produzida | C130: m | D130: 36124.22
A131: 606762 | B131: Arco metálico galvanizado tipo MP 152S - arco alto - vão = 6,55 m e altura = 3,56 m - aterro rodoviário mínimo = 0,75 m e máximo = 4,9 m - areia extraída e brita produzida | C131: m | D131: 34357.14
A132: 607114 | B132: Arco metálico galvanizado tipo MP 152S - arco alto - vão = 6,55 m e altura = 3,56 m - aterro rodoviário mínimo = 0,75 m e máximo = 4,90 m - areia e brita comerciais | C132: m | D132: 34628.09
A133: 607116 | B133: Arco metálico galvanizado tipo MP 152S - arco alto - vão = 6,78 m e altura = 3,61 m - aterro rodoviário mínimo = 0,75 m e máximo = 4,80 m - areia e brita comerciais | C133: m | D133: 36540.33
A134: 606764 | B134: Arco metálico galvanizado tipo MP 152S - arco alto - vão = 6,78 m e altura = 3,61 m - aterro rodoviário mínimo = 0,75 m e máximo = 4,80 m - areia extraída e brita produzida | C134: m | D134: 36257.97
A135: 607115 | B135: Arco metálico galvanizado tipo MP 152S - arco alto - vão = 6,96 m e altura = 4,42 m - aterro rodoviário mínimo = 0,75 m e máximo = 8,10 m - areia e brita comerciais | C135: m | D135: 41484.82
A136: 606763 | B136: Arco metálico galvanizado tipo MP 152S - arco alto - vão = 6,96 m e altura = 4,42 m - aterro rodoviário mínimo = 0,75 m e máximo = 8,10 m - areia extraída e brita produzida | C136: m | D136: 41145.13
A137: 607117 | B137: Arco metálico galvanizado tipo MP 152S - arco alto - vão = 6,99 m e altura = 4,27 m - aterro rodoviário mínimo = 0,75 m e máximo = 5,70 m - areia e brita comerciais | C137: m | D137: 41466.1
A138: 606765 | B138: Arco metálico galvanizado tipo MP 152S - arco alto - vão = 6,99 m e altura = 4,27 m - aterro rodoviário mínimo = 0,75 m e máximo = 5,70 m - areia extraída e brita produzida | C138: m | D138: 41135.73
A139: 607118 | B139: Arco metálico galvanizado tipo MP 152S - arco alto - vão = 7,01 m e altura = 3,63 m - aterro rodoviário mínimo = 0,75 m e máximo = 4,60 m - areia e brita comerciais | C139: m | D139: 37181.96
A140: 606766 | B140: Arco metálico galvanizado tipo MP 152S - arco alto - vão = 7,01 m e altura = 3,63 m - aterro rodoviário mínimo = 0,75 m e máximo = 4,60 m - areia extraída e brita produzida | C140: m | D140: 36890.47
A141: 607120 | B141: Arco metálico galvanizado tipo MP 152S - arco alto - vão = 7,24 m e altura = 3,68 m - aterro rodoviário mínimo = 0,90 m e máximo = 4,4 m - areia e brita comerciais | C141: m | D141: 37863.08
A142: 606768 | B142: Arco metálico galvanizado tipo MP 152S - arco alto - vão = 7,24 m e altura = 3,68 m - aterro rodoviário mínimo = 0,90 m e máximo = 4,40 m - areia extraída e brita produzida | C142: m | D142: 37556.12
A143: 607119 | B143: Arco metálico galvanizado tipo MP 152S - arco alto - vão = 7,42 m e altura = 4,52 m - aterro rodoviário mínimo = 0,90 m e máximo = 6,40 m - areia e brita comerciais | C143: m | D143: 43504.55
A144: 606767 | B144: Arco metálico galvanizado tipo MP 152S - arco alto - vão = 7,42 m e altura = 4,52 m - aterro rodoviário mínimo = 0,90 m e máximo = 6,40 m - areia extraída e brita produzida | C144: m | D144: 43130.21
A145: 607121 | B145: Arco metálico galvanizado tipo MP 152S - arco alto - vão = 7,47 m e altura = 4,19 m - aterro rodoviário mínimo = 0,90 m e máximo = 4,30 m - areia e brita comerciais | C145: m | D145: 41000.22
A146: 606769 | B146: Arco metálico galvanizado tipo MP 152S - arco alto - vão = 7,47 m e altura = 4,19 m - aterro rodoviário mínimo = 0,90 m e máximo = 4,30 m - areia extraída e brita produzida | C146: m | D146: 40650.25
A147: 607123 | B147: Arco metálico galvanizado tipo MP 152S - arco alto - vão = 7,67 m e altura = 3,99 m - aterro rodoviário mínimo = 0,90 m e máximo = 4,10 m - areia e brita comerciais | C147: m | D147: 40455.09
A148: 606771 | B148: Arco metálico galvanizado tipo MP 152S - arco alto - vão = 7,67 m e altura = 3,99 m - aterro rodoviário mínimo = 0,90 m e máximo = 4,10 m - areia extraída e brita produzida | C148: m | D148: 40106.43
A149: 607122 | B149: Arco metálico galvanizado tipo MP 152S - arco alto - vão = 7,85 m e altura = 4,60 m - aterro rodoviário mínimo = 0,90 m e máximo = 6,00 m - areia e brita comerciais | C149: m | D149: 44858.06
A150: 606770 | B150: Arco metálico galvanizado tipo MP 152S - arco alto - vão = 7,85 m e altura = 4,60 m - aterro rodoviário mínimo = 0,90 m e máximo = 6,00 m - areia extraída e brita produzida | C150: m | D150: 44455.96
A151: 607125 | B151: Arco metálico galvanizado tipo MP 152S - arco alto - vão = 7,90 m e altura = 4,04 m - aterro rodoviário mínimo = 0,90 m e máximo = 4,00 m - areia e brita comerciais | C151: m | D151: 41807.5
A152: 606773 | B152: Arco metálico galvanizado tipo MP 152S - arco alto - vão = 7,90 m e altura = 4,04 m - aterro rodoviário mínimo = 0,90 m e máximo = 4,00 m - areia extraída e brita produzida | C152: m | D152: 41440.65
A153: 607124 | B153: Arco metálico galvanizado tipo MP 152S - arco alto - vão = 8,08 m e altura = 4,65 m - aterro rodoviário mínimo = 0,90 m e máximo = 5,80 m - areia e brita comerciais | C153: m | D153: 45531.2
A154: 606772 | B154: Arco metálico galvanizado tipo MP 152S - arco alto - vão = 8,08 m e altura = 4,65 m - aterro rodoviário mínimo = 0,90 m e máximo = 5,80 m - areia extraída e brita produzida | C154: m | D154: 45116.23
A155: 607126 | B155: Arco metálico galvanizado tipo MP 152S - arco alto - vão = 8,31 m e altura = 4,70 m - aterro rodoviário mínimo = 0,90 m e máximo = 5,60 m - areia e brita comerciais | C155: m | D155: 46788.83
A156: 606774 | B156: Arco metálico galvanizado tipo MP 152S - arco alto - vão = 8,31 m e altura = 4,70 m - aterro rodoviário mínimo = 0,90 m e máximo = 5,60 m - areia extraída e brita produzida | C156: m | D156: 46353.86
A157: 607127 | B157: Arco metálico galvanizado tipo MP 152S - arco alto - vão = 8,36 m e altura = 4,11 m - aterro rodoviário mínimo = 0,90 m e máximo = 3,70 m - areia e brita comerciais | C157: m | D157: 43098.71
A158: 606775 | B158: Arco metálico galvanizado tipo MP 152S - arco alto - vão = 8,36 m e altura = 4,11 m - aterro rodoviário mínimo = 0,90 m e máximo = 3,70 m - areia extraída e brita produzida | C158: m | D158: 42709.82
A159: 607129 | B159: Arco metálico galvanizado tipo MP 152S - arco alto - vão = 8,59 m e altura = 4,39 m - aterro rodoviário mínimo = 0,90 m e máximo = 3,60 m - areia e brita comerciais | C159: m | D159: 45100.81
A160: 606777 | B160: Arco metálico galvanizado tipo MP 152S - arco alto - vão = 8,59 m e altura = 4,39 m - aterro rodoviário mínimo = 0,90 m e máximo = 3,60 m - areia extraída e brita produzida | C160: m | D160: 44674.91
A161: 607128 | B161: Arco metálico galvanizado tipo MP 152S - arco alto - vão = 8,97 m e altura = 5,00 m - aterro rodoviário mínimo = 0,90 m e máximo = 5,80 m - areia e brita comerciais | C161: m | D161: 49581.59
A162: 606776 | B162: Arco metálico galvanizado tipo MP 152S - arco alto - vão = 8,97 m e altura = 5,00 m - aterro rodoviário mínimo = 0,90 m e máximo = 5,80 m - areia extraída e brita produzida | C162: m | D162: 49083.96
A163: 607130 | B163: Arco metálico galvanizado tipo MP 152S - arco alto - vão = 9,17 m e altura = 5,49 m - aterro rodoviário mínimo = 0,90 m e máximo = 5,60 m - areia e brita comerciais | C163: m | D163: 52847.13
A164: 606778 | B164: Arco metálico galvanizado tipo MP 152S - arco alto - vão = 9,17 m e altura = 5,49 m - aterro rodoviário mínimo = 0,90 m e máximo = 5,60 m - areia extraída e brita produzida | C164: m | D164: 52300.15
A165: 607131 | B165: Arco metálico galvanizado tipo MP 152S - arco alto - vão = 9,22 m e altura = 4,70 m - aterro rodoviário mínimo = 0,90 m e máximo = 4,10 m - areia e brita comerciais | C165: m | D165: 49579.69
A166: 606779 | B166: Arco metálico galvanizado tipo MP 152S - arco alto - vão = 9,22 m e altura = 4,70 m - aterro rodoviário mínimo = 0,90 m e máximo = 4,10 m - areia extraída e brita produzida | C166: m | D166: 49095.79
A167: 607133 | B167: Arco metálico galvanizado tipo MP 152S - arco alto - vão = 9,45 m e altura = 4,75 m - aterro rodoviário mínimo = 0,90 m e máximo = 4,00 m - areia e brita comerciais | C167: m | D167: 50324.16
A168: 606781 | B168: Arco metálico galvanizado tipo MP 152S - arco alto - vão = 9,45 m e altura = 4,75 m - aterro rodoviário mínimo = 0,90 m e máximo = 4,00 m - areia extraída e brita produzida | C168: m | D168: 49825.71
A169: 607132 | B169: Arco metálico galvanizado tipo MP 152S - arco alto - vão = 9,63 m e altura = 5,59 m - aterro rodoviário mínimo = 0,90 m e máximo = 5,30 m - areia e brita comerciais | C169: m | D169: 54881.98
A170: 606780 | B170: Arco metálico galvanizado tipo MP 152S - arco alto - vão = 9,63 m e altura = 5,59 m - aterro rodoviário mínimo = 0,90 m e máximo = 5,30 m - areia extraída e brita produzida | C170: m | D170: 54296.65
A171: 607134 | B171: Arco metálico galvanizado tipo MP 152S - arco alto - vão = 9,65 m e altura = 5,41 m - aterro rodoviário mínimo = 0,90 m e máximo = 4,70 m - areia e brita comerciais | C171: m | D171: 54336.49
A172: 606782 | B172: Arco metálico galvanizado tipo MP 152S - arco alto - vão = 9,65 m e altura = 5,41 m - aterro rodoviário mínimo = 0,90 m e máximo = 4,70 m - areia extraída e brita produzida | C172: m | D172: 53764.55
A173: 607136 | B173: Arco metálico galvanizado tipo MP 152S - arco alto - vão = 9,68 m e altura = 5,23 m - aterro rodoviário mínimo = 0,90 m e máximo = 3,90 m - areia e brita comerciais | C173: m | D173: 53608.45
A174: 606784 | B174: Arco metálico galvanizado tipo MP 152S - arco alto - vão = 9,68 m e altura = 5,23 m - aterro rodoviário mínimo = 0,90 m e máximo = 3,90 m - areia extraída e brita produzida | C174: m | D174: 53054.78
A175: 607135 | B175: Arco metálico galvanizado tipo MP 152S - arco alto - vão = 9,86 m e altura = 6,07 m - aterro rodoviário mínimo = 0,90 m e máximo = 5,20 m - areia e brita comerciais | C175: m | D175: 59778.02
A176: 606783 | B176: Arco metálico galvanizado tipo MP 152S - arco alto - vão = 9,86 m e altura = 6,07 m - aterro rodoviário mínimo = 0,90 m e máximo = 5,20 m - areia extraída e brita produzida | C176: m | D176: 59136.17
A177: 607138 | B177: Arco metálico galvanizado tipo MP 152S - arco alto - vão = 9,91 m e altura = 5,28 m - aterro rodoviário mínimo = 0,90 m e máximo = 3,80 m - areia e brita comerciais | C177: m | D177: 54529.92
A178: 606786 | B178: Arco metálico galvanizado tipo MP 152S - arco alto - vão = 9,91 m e altura = 5,28 m - aterro rodoviário mínimo = 0,90 m e máximo = 3,80 m - areia extraída e brita produzida | C178: m | D178: 53940.1
A179: 606842 | B179: Arco metálico galvanizado tipo MP 152S - ovoide - vão = 7,21 m e altura = 7,82 m - aterro rodoviário mínimo = 0,75 m e máximo = 6,70 m - areia e brita comerciais | C179: m | D179: 67790.32
A180: 606832 | B180: Arco metálico galvanizado tipo MP 152S - ovoide - vão = 7,21 m e altura = 7,82 m - aterro rodoviário mínimo = 0,75 m e máximo = 6,70 m - areia extraída e brita produzida | C180: m | D180: 67422.72
A181: 606843 | B181: Arco metálico galvanizado tipo MP 152S - ovoide - vão = 7,31 m e altura = 7,87 m - aterro rodoviário mínimo = 0,90 m e máximo = 6,80 m - areia e brita comerciais | C181: m | D181: 70432.78
A182: 606833 | B182: Arco metálico galvanizado tipo MP 152S - ovoide - vão = 7,31 m e altura = 7,87 m - aterro rodoviário mínimo = 0,90 m e máximo = 6,80 m - areia extraída e brita produzida | C182: m | D182: 70047.84
A183: 606845 | B183: Arco metálico galvanizado tipo MP 152S - ovoide - vão = 7,57 m e altura = 8,44 m - aterro rodoviário mínimo = 0,90 m e máximo = 5,60 m - areia e brita comerciais | C183: m | D183: 73013.46
A184: 606835 | B184: Arco metálico galvanizado tipo MP 152S - ovoide - vão = 7,57 m e altura = 8,44 m - aterro rodoviário mínimo = 0,90 m e máximo = 5,60 m - areia extraída e brita produzida | C184: m | D184: 72628.68
A185: 606844 | B185: Arco metálico galvanizado tipo MP 152S - ovoide - vão = 7,77 m e altura = 7,90 m - aterro rodoviário mínimo = 0,90 m e máximo = 6,80 m - areia e brita comerciais | C185: m | D185: 71528.27
A186: 606834 | B186: Arco metálico galvanizado tipo MP 152S - ovoide - vão = 7,77 m e altura = 7,90 m - aterro rodoviário mínimo = 0,90 m e máximo = 6,80 m - areia extraída e brita produzida | C186: m | D186: 71132.46
A187: 606847 | B187: Arco metálico galvanizado tipo MP 152S - ovoide - vão = 8,13 m e altura = 8,01 m - aterro rodoviário mínimo = 0,90 m e máximo = 3,50 m - areia e brita comerciais | C187: m | D187: 76364.5
A188: 606837 | B188: Arco metálico galvanizado tipo MP 152S - ovoide - vão = 8,13 m e altura = 8,01 m - aterro rodoviário mínimo = 0,90 m e máximo = 3,50 m - areia extraída e brita produzida | C188: m | D188: 75933.79
A189: 606846 | B189: Arco metálico galvanizado tipo MP 152S - ovoide - vão = 8,36 m e altura = 8,23 m - aterro rodoviário mínimo = 0,90 m e máximo = 4,30 m - areia e brita comerciais | C189: m | D189: 78184.86
A190: 606836 | B190: Arco metálico galvanizado tipo MP 152S - ovoide - vão = 8,36 m e altura = 8,23 m - aterro rodoviário mínimo = 0,90 m e máximo = 4,30 m - areia extraída e brita produzida | C190: m | D190: 77748.95
A191: 606848 | B191: Arco metálico galvanizado tipo MP 152S - ovoide - vão = 8,56 m e altura = 8,48 m - aterro rodoviário mínimo = 0,90 m e máximo = 5,30 m - areia e brita comerciais | C191: m | D191: 77107.9
A192: 606838 | B192: Arco metálico galvanizado tipo MP 152S - ovoide - vão = 8,56 m e altura = 8,48 m - aterro rodoviário mínimo = 0,90 m e máximo = 5,30 m - areia extraída e brita produzida | C192: m | D192: 76655.27
A193: 606849 | B193: Arco metálico galvanizado tipo MP 152S - ovoide - vão = 8,71 m e altura = 9,32 m - aterro rodoviário mínimo = 0,90 m e máximo = 6,00 m - areia e brita comerciais | C193: m | D193: 83299.79
A194: 606839 | B194: Arco metálico galvanizado tipo MP 152S - ovoide - vão = 8,71 m e altura = 9,32 m - aterro rodoviário mínimo = 0,90 m e máximo = 6,00 m - areia extraída e brita produzida | C194: m | D194: 82856.75
A195: 606850 | B195: Arco metálico galvanizado tipo MP 152S - ovoide - vão = 9,15 m e altura = 9,04 m - aterro rodoviário mínimo = 0,90 m e máximo = 4,70 m - areia e brita comerciais | C195: m | D195: 83998.26
A196: 606840 | B196: Arco metálico galvanizado tipo MP 152S - ovoide - vão = 9,15 m e altura = 9,04 m - aterro rodoviário mínimo = 0,90 m e máximo = 4,70 m - areia extraída e brita produzida | C196: m | D196: 83515.78
A197: 606851 | B197: Arco metálico galvanizado tipo MP 152S - ovoide - vão = 9,15 m e altura = 9,50 m - aterro rodoviário mínimo = 0,90 m e máximo = 5,70 m - areia e brita comerciais | C197: m | D197: 84764.22
A198: 606841 | B198: Arco metálico galvanizado tipo MP 152S - ovoide - vão = 9,15 m e altura = 9,50 m - aterro rodoviário mínimo = 0,90 m e máximo = 5,70 m - areia extraída e brita produzida | C198: m | D198: 84300.56
A199: 605604 | B199: Argamassa de solo-cimento com 10% de cimento e material de jazida - preparo e injeção em tunnel liner | C199: m³ | D199: 295.1
A200: 605695 | B200: Bueiro metálico com chapas múltiplas MP 100 com revestimento em epóxi - D = 0,60 m - brita comercial | C200: m | D200: 1617.46
... 6292 more rows

Sheet Pessoal Sicro (hidden)
A1: CGCIT | B1: SISTEMA DE CUSTOS REFERENCIAIS DE OBRAS - SICRO | G1: DNIT
A3: Paraíba - Janeiro/2025
A4: Sem desoneração
A5: Código | B5: Descrição | C5: Unidade | D5: Salário (R$) | E5: Encargos Totais | F5: Custo (R$) | G5: Periculosidade/ Insalubridade
A6: P9801 | B6: Ajudante | C6: h | D6: 7.3926 | E6: 1.845771 | F6: 21.0376 | G6: 0
A7: P9802 | B7: Ajudante especializado | C7: h | D7: 8.8529 | E7: 1.796854 | F7: 24.7602 | G7: 0
A8: P9803 | B8: Almoxarife | C8: mês | D8: 2835.8 | E8: 1.106997 | F8: 5975.022 | G8: 0
A9: P9804 | B9: Apontador | C9: mês | D9: 1783.6781 | E9: 1.340306 | F9: 4174.3525 | G9: 0
A10: P9805 | B10: Armador | C10: h | D10: 11.35 | E10: 1.593398 | F10: 29.435 | G10: 0
A11: P9806 | B11: Auxiliar administrativo | C11: mês | D11: 1837.3706 | E11: 1.307841 | F11: 4240.3592 | G11: 0
A12: P9807 | B12: Bombeiro hidráulico | C12: h | D12: 11.35 | E12: 1.641825 | F12: 29.9847 | G12: 0
A13: P9808 | B13: Carpinteiro | C13: h | D13: 9.2915 | E13: 1.70178 | F13: 25.1035 | G13: 0
A14: P9809 | B14: Encarregado administrativo | C14: mês | D14: 3628.6177 | E14: 1.00966 | F14: 7292.2878 | G14: 0
A15: P9810 | B15: Eletricista | C15: h | D15: 9.4323 | E15: 1.727236 | F15: 25.7241 | G15: 0
A16: P9811 | B16: Encarregado especializado | C16: mês | D16: 3619.9926 | E16: 1.044079 | F16: 7399.5508 | G16: 0
A17: P9812 | B17: Engenheiro | C17: mês | D17: 13535.763 | E17: 0.831076 | F17: 24785.0107 | G17: 0
A18: P9814 | B18: Operacional | C18: mês | D18: 1647.8095 | E18: 1.470899 | F18: 4071.5708 | G18: 0
A19: P9815 | B19: Jardineiro | C19: h | D19: 10.47 | E19: 1.622053 | F19: 27.4528 | G19: 0
A20: P9819 | B20: Engenheiro supervisor | C20: mês | D20: 13535.763 | E20: 0.831076 | F20: 24785.0107 | G20: 0
A21: P9821 | B21: Pedreiro | C21: h | D21: 9.3928 | E21: 1.691479 | F21: 25.2805 | G21: 0
A22: P9822 | B22: Pintor | C22: h | D22: 11.35 | E22: 1.59197 | F22: 29.4188 | G22: 0
A23: P9823 | B23: Serralheiro | C23: h | D23: 10.3103 | E23: 1.638209 | F23: 27.2007 | G23: 0
A24: P9824 | B24: Servente | C24: h | D24: 6.9 | E24: 1.897199 | F24: 19.9906 | G24: 0
A25: P9825 | B25: Soldador | C25: h | D25: 13.2103 | E25: 1.523537 | F25: 33.3366 | G25: 0
A26: P9826 | B26: Chefe setor de finanças | C26: mês | D26: 13669.1151 | E26: 0.828869 | F26: 24999.0208 | G26: 0
A27: P9827 | B27: Vigia | C27: mês | D27: 1518 | E27: 1.634288 | F27: 4454.2491 | G27: 0.3
A28: P9830 | B28: Montador | C28: h | D28: 11.4499 | E28: 1.64646 | F28: 30.3017 | G28: 0
A29: P9833 | B29: Auxiliar de laboratório | C29: mês | D29: 2497 | E29: 1.161994 | F29: 5398.499 | G29: 0
A30: P9837 | B30: Oceanógrafo | C30: mês | D30: 5819.6024 | E30: 0.957607 | F30: 11392.4943 | G30: 0
A31: P9840 | B31: Encarregado geral | C31: mês | D31: 6006.4395 | E31: 0.935303 | F31: 11624.2803 | G31: 0
A32: P9842 | B32: Faxineiro | C32: mês | D32: 1584 | E32: 1.389147 | F32: 3784.4088 | G32: 0
A33: P9843 | B33: Operador de equipamento leve | C33: h | D33: 8.7976 | E33: 1.713793 | F33: 23.8748 | G33: 0
A34: P9845 | B34: Operador de equipamento pesado | C34: h | D34: 12.9147 | E34: 1.515688 | F34: 32.4893 | G34: 0
A35: P9846 | B35: Operador de equipamento especial | C35: h | D35: 18.2595 | E35: 1.386688 | F35: 43.5797 | G35: 0
A36: P9847 | B36: Perfurador de tubulão | C36: h | D36: 7.3876 | E36: 1.842681 | F36: 21.0005 | G36: 0
A37: P9848 | B37: Desenhista | C37: mês | D37: 3673.5964 | E37: 1.018174 | F37: 7413.9567 | G37: 0
A38: P9849 | B38: Condutor maquinista fluvial | C38: mês | D38: 2555.7737 | E38: 1.204828 | F38: 5635.0414 | G38: 0
A39: P9850 | B39: Copeiro | C39: mês | D39: 1681.8346 | E39: 1.341037 | F39: 3937.237 | G39: 0
A40: P9851 | B40: Médico do trabalho | C40: mês | D40: 9917.7777 | E40: 0.85652 | F40: 18412.5526 | G40: 0
A41: P9852 | B41: Blaster | C41: h | D41: 12.2456 | E41: 1.886358 | F41: 39.0188 | G41: 0.3
A42: P9853 | B42: Pré-marcador | C42: h | D42: 7.3867 | E42: 1.82589 | F42: 20.874 | G42: 0
A43: P9854 | B43: Recepcionista | C43: mês | D43: 1671.3907 | E43: 1.313186 | F43: 3866.2375 | G43: 0
A44: P9855 | B44: Marinheiro de máquinas | C44: mês | D44: 2318.7188 | E44: 1.246007 | F44: 5207.8586 | G44: 0
A45: P9856 | B45: Marinheiro de convés | C45: h | D45: 10.4478 | E45: 1.69032 | F45: 28.1079 | G45: 0
A46: P9857 | B46: Marinheiro de convés - mensalista | C46: mês | D46: 2298.51 | E46: 1.250135 | F46: 5171.9577 | G46: 0
A47: P9858 | B47: Laboratorista | C47: mês | D47: 3487 | E47: 1.051041 | F47: 7151.9799 | G47: 0
A48: P9859 | B48: Trabalhador de via | C48: h | D48: 6.9 | E48: 1.903014 | F48: 20.0307 | G48: 0
A49: P9861 | B49: Selecionador de material pétreo | C49: h | D49: 7.3867 | E49: 1.832783 | F49: 20.9249 | G49: 0
A50: P9864 | B50: Engenheiro de segurança do trabalho | C50: mês | D50: 13058.0529 | E50: 0.838489 | F50: 24007.0866 | G50: 0
A51: P9866 | B51: Motorista de caminhão | C51: h | D51: 10.7115 | E51: 1.586815 | F51: 27.7086 | G51: 0
A52: P9867 | B52: Técnico especializado - mensalista | C52: mês | D52: 3268.3659 | E52: 1.065383 | F52: 6750.4273 | G52: 0
A53: P9869 | B53: Encarregado de obras de artes especiais | C53: mês | D53: 3619.9926 | E53: 1.044079 | F53: 7399.5508 | G53: 0
A54: P9870 | B54: Motorista de veículo leve | C54: h | D54: 11.35 | E54: 1.558972 | F54: 29.0443 | G54: 0
A55: P9871 | B55: Motorista de veículo especial | C55: h | D55: 11.8867 | E55: 1.537884 | F55: 30.167 | G55: 0
A56: P9875 | B56: Encarregado de turma | C56: mês | D56: 2133.585 | E56: 1.234813 | F56: 4768.1634 | G56: 0
A57: P9876 | B57: Técnico de segurança do trabalho | C57: mês | D57: 3425.4 | E57: 1.057418 | F57: 7047.4796 | G57: 0
A58: P9878 | B58: Secretária | C58: mês | D58: 2977.0505 | E58: 1.075231 | F58: 6178.0674 | G58: 0
A59: P9880 | B59: Piloto fluvial | C59: mês | D59: 3456.53 | E59: 1.083689 | F59: 7202.3335 | G59: 0
A60: P9882 | B60: Técnico especializado | C60: h | D60: 14.8562 | E60: 1.457575 | F60: 36.5102 | G60: 0
A61: P9883 | B61: Chefe do setor administrativo | C61: mês | D61: 3628.5511 | E61: 1.009664 | F61: 7292.1685 | G61: 0
A62: P9884 | B62: Encarregado de terraplenagem | C62: mês | D62: 3619.9926 | E62: 1.044079 | F62: 7399.5508 | G62: 0
A63: P9885 | B63: Frentista de túnel | C63: h | D63: 7.3867 | E63: 1.895019 | F63: 21.3846 | G63: 0
A64: P9889 | B64: Técnico da qualidade | C64: mês | D64: 3726.8067 | E64: 1.027666 | F64: 7556.7192 | G64: 0
A65: P9892 | B65: Auxiliar de blaster | C65: h | D65: 10.5107 | E65: 1.962497 | F65: 34.2911 | G65: 0.3
A66: P9893 | B66: Encarregado de pavimentação | C66: mês | D66: 3619.9926 | E66: 1.044079 | F66: 7399.5508 | G66: 0
A67: P9896 | B67: Porteiro | C67: mês | D67: 1584 | E67: 1.38675 | F67: 3780.612 | G67: 0
A68: P9897 | B68: Técnico de meio ambiente | C68: mês | D68: 3732.7074 | E68: 1.042949 | F68: 7625.7308 | G68: 0
A69: P9900 | B69: Comprador | C69: mês | D69: 3455.7722 | E69: 1.041748 | F69: 7055.8159 | G69: 0
A70: P9901 | B70: Encarregado de superestrutura ferroviária | C70: mês | D70: 3619.9926 | E70: 1.044079 | F70: 7399.5508 | G70: 0
A71: P9903 | B71: Auxiliar técnico | C71: mês | D71: 1911.3576 | E71: 1.279559 | F71: 4357.0524 | G71: 0
A72: P9907 | B72: Comandante de longo curso | C72: mês | D72: 10759.7128 | E72: 0.861473 | F72: 20028.9148 | G72: 0
A73: P9908 | B73: Imediato | C73: mês | D73: 9084.0419 | E73: 0.880873 | F73: 17085.9291 | G73: 0
A74: P9909 | B74: Oficial de náutica | C74: mês | D74: 3014.8499 | E74: 1.135845 | F74: 6439.252 | G74: 0
A75: P9910 | B75: Oficial de máquinas | C75: mês | D75: 2953.1483 | E75: 1.138509 | F75: 6315.3342 | G75: 0
A76: P9913 | B76: Draguista | C76: mês | D76: 3093.9554 | E76: 1.122055 | F76: 6565.5435 | G76: 0
A77: P9915 | B77: Maquinista | C77: h | D77: 13.0562 | E77: 1.50401 | F77: 32.6928 | G77: 0
A78: P9916 | B78: Encarregado de conservação rodoviária | C78: mês | D78: 3619.9926 | E78: 1.044079 | F78: 7399.5508 | G78: 0
A79: P9920 | B79: Mestre fluvial | C79: mês | D79: 4310.1304 | E79: 1.018851 | F79: 8701.511 | G79: 0
A80: P9921 | B80: Mergulhador raso autônomo de emergência | C80: h | D80: 10.6046 | E80: 2.41884 | F80: 39.0158 | G80: 0.2603
A81: P9922 | B81: Mergulhador raso dependente de emergência | C81: h | D81: 10.5696 | E81: 2.475228 | F81: 39.9026 | G81: 0.3
A82: P9924 | B82: Mergulhador raso dependente | C82: h | D82: 10.5696 | E82: 3.623496 | F82: 52.0393 | G82: 0.3
A83: P9925 | B83: Mergulhador raso autônomo | C83: h | D83: 10.6046 | E83: 3.35589 | F83: 48.9528 | G83: 0.2603
A84: P9926 | B84: Mergulhador raso auxiliar de superfície | C84: h | D84: 10.6046 | E84: 2.220767 | F84: 36.9153 | G84: 0.2603
A85: P9927 | B85: Frentista de túnel com periculosidade | C85: h | D85: 7.3867 | E85: 2.223998 | F85: 26.0307 | G85: 0.3
A86: P9930 | B86: Eletricista com periculosidade | C86: h | D86: 9.4323 | E86: 2.054927 | F86: 31.6446 | G86: 0.3
A87: P9931 | B87: Operador de equipamento de mergulho | C87: h | D87: 18.9022 | E87: 1.802613 | F87: 55.7352 | G87: 0.146
A88: P9932 | B88: Operador de equipamento pesado com periculosidade | C88: h | D88: 12.9147 | E88: 1.844248 | F88: 40.607 | G88: 0.3
A89: P9933 | B89: Supervisor de mergulho raso | C89: mês | D89: 4158.4737 | E89: 1.325751 | F89: 10278.7115 | G89: 0.146
A90: P9934 | B90: Motorista de veículo especial com periculosidade | C90: h | D90: 11.8867 | E90: 1.865453 | F90: 37.6267 | G90: 0.3
A91: P9938 | B91: Operador de equipamento leve com periculosidade | C91: h | D91: 8.7976 | E91: 2.042355 | F91: 29.4047 | G91: 0.3
A92: P9939 | B92: Operador de equipamento leve com insalubridade | C92: h | D92: 8.7976 | E92: 2.272963 | F92: 31.554 | G92: 0.3137
A93: P9942 | B93: Marinheiro de convés com periculosidade | C93: h | D93: 10.4478 | E93: 2.019355 | F93: 34.6799 | G93: 0.3
A94: P9944 | B94: Operador de equipamento especial com periculosidade | C94: h | D94: 18.2595 | E94: 1.715245 | F94: 55.0568 | G94: 0.3
A95: P9946 | B95: Engenheiro auxiliar | C95: mês | D95: 12903 | E95: 0.834498 | F95: 23670.5276 | G95: 0
A96: P9947 | B96: Técnico florestal | C96: mês | D96: 3732.7074 | E96: 1.042949 | F96: 7625.7308 | G96: 0
A97: P9948 | B97: Motorista de veículo leve - mensalista | C97: mês | D97: 2497 | E97: 1.149272 | F97: 5366.7321 | G97: 0
A98: P9949 | B98: Topógrafo | C98: mês | D98: 4239.4 | E98: 1.009008 | F98: 8516.9885 | G98: 0
A99: P9950 | B99: Auxiliar de topografia | C99: mês | D99: 2497 | E99: 1.172368 | F99: 5424.4028 | G99: 0
A100: P9951 | B100: Médico de câmara hiperbárica | C100: mês | D100: 9917.7777 | E100: 1.052085 | F100: 20959.0908 | G100: 0.0612
A101: P9952 | B101: Pedreiro - mensalista | C101: mês | D101: 2066.4278 | E101: 1.267763 | F101: 4686.1685 | G101: 0
A102: P9953 | B102: Eletricista - mensalista | C102: mês | D102: 2075.0968 | E102: 1.289765 | F102: 4751.484 | G102: 0
A103: P9954 | B103: Servente - mensalista | C103: mês | D103: 1518 | E103: 1.439947 | F103: 3703.8395 | G103: 0
A104: P9955 | B104: Engenheiro chefe | C104: mês | D104: 17057.9277 | E104: 0.816669 | F104: 30988.6084 | G104: 0
A105: P9956 | B105: Motorista de caminhão com periculosidade | C105: h | D105: 10.7115 | E105: 1.91438 | F105: 34.4308 | G105: 0.3
A106: P9972 | B106: Técnico de batimetria | C106: mês | D106: 3125.551 | E106: 1.121881 | F106: 6632.0472 | G106: 0

Sheet Equipamentos (hidden)
A1: CGCIT | B1: SISTEMA DE CUSTOS REFERENCIAIS DE OBRAS - SICRO | K1: DNIT
B2: Paraíba - Janeiro/2025
A3: Código | B3: Descrição | C3: Valor de Aquisição (R$) | D3: Depreciação (R$/h) | E3: Oportunidade de Capital (R$/h) | F3: Seguros e Impostos (R$/h) | G3: Manutenção (R$/h) | H3: Operação (R$/h) | I3: Mão de Obra de Operação (R$/h) | J3: Custo Produtivo (R$/h) | K3: Custo Improdutivo (R$/h)
A4: E9001 | B4: Conjunto vibratório para tubos de concreto com encaixe PB e 3 jogos de fôrmas - D = 0,60 m - 2,20 kW | C4: 65210.5862 | D4: 8.6947 | E4: 2.0117 | F4: 0 | G4: 6.5211 | H4: 0 | I4: 0 | J4: 17.2275 | K4: 10.7064
A5: E9002 | B5: Conjunto vibratório para tubos de concreto com encaixe PB e 3 jogos de fôrmas - D = 0,80 m - 2,20 kW | C5: 88645.4462 | D5: 11.8194 | E5: 2.7347 | F5: 0 | G5: 8.8645 | H5: 0 | I5: 0 | J5: 23.4186 | K5: 14.5541
A6: E9003 | B6: Conjunto vibratório para tubos de concreto com encaixe PB e 3 jogos de fôrmas - D = 1,00 m - 2,20 kW | C6: 106203.5617 | D6: 14.1605 | E6: 3.2764 | F6: 0 | G6: 10.6204 | H6: 0 | I6: 0 | J6: 28.0573 | K6: 17.4369
A7: E9004 | B7: Conjunto vibratório para tubos de concreto com encaixe PB e 3 jogos de fôrmas - D = 1,20 m - 2,20 kW | C7: 112601.1739 | D7: 15.0135 | E7: 3.4737 | F7: 0 | G7: 11.2601 | H7: 0 | I7: 0 | J7: 29.7473 | K7: 18.4872
A8: E9005 | B8: Conjunto vibratório para tubos de concreto com encaixe PB e 3 jogos de fôrmas - D = 1,50 m - 2,20 kW | C8: 133701.0407 | D8: 17.8268 | E8: 4.1247 | F8: 0 | G8: 13.3701 | H8: 0 | I8: 0 | J8: 35.3216 | K8: 21.9515
A9: E9006 | B9: Equipamento para sondagem manual | C9: 4547.3984 | D9: 0.7731 | E9: 0.1683 | F9: 0 | G9: 0.4547 | H9: 0 | I9: 0 | J9: 1.3961 | K9: 0.9414
A10: E9007 | B10: Bomba de pistão triplex com capacidade de 7,80 m³/h (130 l/min) - 8,20 kW | C10: 159085.8659 | D10: 12.7269 | E10: 2.9447 | F10: 0 | G10: 11.136 | H10: 8.4082 | I10: 0 | J10: 35.2158 | K10: 15.6716
A11: E9008 | B11: Transportador manual de tubos de concreto com capacidade de 1 t | C11: 1626.1677 | D11: 1.4636 | E11: 0.1003 | F11: 0 | G11: 0.8131 | H11: 0 | I11: 0 | J11: 2.377 | K11: 1.5639
A12: E9009 | B12: Embarcação rebocadora - 268 kW | C12: 672328.3651 | D12: 8.7543 | E12: 3.901 | F12: 0 | G12: 19.4539 | H12: 274.8051 | I12: 135.2063 | J12: 442.1206 | K12: 147.8616
A13: E9010 | B13: Balança plataforma digital à bateria, com mesa de 75 x 75 cm e capacidade de 500 kg | C13: 4757.5671 | D13: 0.7136 | E13: 0.0978 | F13: 0 | G13: 0.3965 | H13: 0 | I13: 0 | J13: 1.2079 | K13: 0.8114
A14: E9011 | B14: Carro manual modelo plataforma de 200 x 80 cm com capacidade de 800 kg | C14: 1878.7174 | D14: 0.3382 | E14: 0.0696 | F14: 0 | G14: 0.1879 | H14: 0 | I14: 0 | J14: 0.5957 | K14: 0.4078
A15: E9014 | B15: Deflectômetro de impacto (FWD) instalado em picape com reboque e faixa de carga de 7 a 120 kN - 147 kW | C15: 2247904.428 | D15: 179.8324 | E15: 41.6087 | F15: 0 | G15: 112.3952 | H15: 0 | I15: 30.167 | J15: 364.0033 | K15: 251.6081
A16: E9015 | B16: Elevador de obra com capacidade de 1.000 kg - 9 kW | C16: 66725.7762 | D16: 5.3381 | E16: 1.2351 | F16: 0 | G16: 4.6708 | H16: 0 | I16: 23.8748 | J16: 35.1188 | K16: 30.448
A17: E9016 | B17: Usina misturadora móvel de reciclagem a frio com sistema de espuma de asfalto - 129,40 kW | C17: 9905973.193 | D17: 577.8484 | E17: 178.2662 | F17: 0 | G17: 742.948 | H17: 97.7684 | I17: 43.5797 | J17: 1640.4107 | K17: 799.6943
A18: E9017 | B18: Escavadeira hidráulica sobre esteira com capacidade de 0,4 m³ - 64 kW | C18: 719727.1915 | D18: 50.3809 | E18: 13.3222 | F18: 0 | G18: 50.3809 | H18: 44.9014 | I18: 32.4893 | J18: 191.4747 | K18: 96.1924
A19: E9020 | B19: Recicladora a frio - 455 kW | C19: 5255717.783 | D19: 306.5835 | E19: 94.581 | F19: 0 | G19: 437.9765 | H19: 491.1088 | I19: 43.5797 | J19: 1373.8295 | K19: 444.7442
A20: E9021 | B20: Grupo gerador - 456 kVA | C20: 353440.3069 | D20: 17.672 | E20: 6.2306 | F20: 0 | G20: 12.6229 | H20: 374.2681 | I20: 0 | J20: 410.7936 | K20: 23.9026
A21: E9022 | B21: Pórtico metálico rolante com capacidade de 25 t - 30 kW | C21: 856384.5194 | D21: 38.5373 | E21: 14.5307 | F21: 0 | G21: 29.9735 | H21: 0 | I21: 23.8748 | J21: 106.9163 | K21: 76.9428
A22: E9023 | B22: Guindaste móvel sobre esteiras com dragline com capacidade de 1,9 a 2,3 m³ - 270 kW | C22: 3827087.775 | D22: 133.9481 | E22: 64.9361 | F22: 0 | G22: 191.3544 | H22: 72.8568 | I22: 43.5797 | J22: 506.6751 | K22: 242.4639
A23: E9024 | B23: Misturador de nata cimento - 1,50 kW | C23: 8854.89 | D23: 0.7084 | E23: 0.1639 | F23: 0 | G23: 0.6198 | H23: 0 | I23: 23.8748 | J23: 25.3669 | K23: 24.7471
A24: E9025 | B24: Conjunto bomba e macaco hidráulico para protensão com capacidade de 7.000 kN - 15 kW | C24: 104875.2951 | D24: 5.9929 | E24: 1.8488 | F24: 0 | G24: 5.9929 | H24: 0 | I24: 43.5797 | J24: 57.4143 | K24: 51.4214
A25: E9026 | B25: Bomba para injeção de nata de cimento com capacidade de 2 MPa - 2,20 kW | C25: 33238.6281 | D25: 2.6591 | E25: 0.6152 | F25: 0 | G25: 2.3267 | H25: 0 | I25: 0 | J25: 5.601 | K25: 3.2743
A26: E9028 | B26: Bomba de alta pressão para hidrojateamento com capacidade de 18 MPa - 5,20 kW | C26: 5632.6151 | D26: 0.4506 | E26: 0.1043 | F26: 0 | G26: 0.5069 | H26: 9.5732 | I26: 23.8748 | J26: 34.5098 | K26: 24.4297
A27: E9029 | B27: Conjunto bomba e macaco hidráulico para protensão com capacidade de 8.000 kN - 20 kW | C27: 133360.7769 | D27: 7.6206 | E27: 2.351 | F27: 0 | G27: 7.6206 | H27: 0 | I27: 43.5797 | J27: 61.1719 | K27: 53.5513
A28: E9030 | B28: Bomba de protensão com leitura digital para tensionamento de estais - 3 kW | C28: 14592.5749 | D28: 0.8339 | E28: 0.2572 | F28: 0 | G28: 0.8339 | H28: 0 | I28: 0 | J28: 1.925 | K28: 1.0911
A29: E9031 | B29: Elevador de cremalheira com cabine simples, com capacidade de 1.500 kg e altura de até 100 m - 15 kW | C29: 339009.7767 | D29: 27.1208 | E29: 6.2751 | F29: 0 | G29: 23.7307 | H29: 0 | I29: 23.8748 | J29: 81.0014 | K29: 57.2707
A30: E9032 | B30: Equipamento para regulagem final de estais com até 37 cordoalhas - D = 15,7 mm - 20 kW | C30: 78190.5036 | D30: 4.468 | E30: 1.3784 | F30: 0 | G30: 4.468 | H30: 0 | I30: 43.5797 | J30: 53.8941 | K30: 49.4261
A31: E9033 | B31: Equipamento para regulagem final de estais de 38 a 55 cordoalhas - D = 15,7 mm - 30 kW | C31: 111684.5159 | D31: 6.382 | E31: 1.9688 | F31: 0 | G31: 6.382 | H31: 0 | I31: 43.5797 | J31: 58.3125 | K31: 51.9305
A32: E9034 | B32: Equipamento para regulagem final de estais de 56 a 73 cordoalhas - D = 15,7 mm - 40 kW | C32: 167478.5762 | D32: 9.5702 | E32: 2.9524 | F32: 0 | G32: 9.5702 | H32: 0 | I32: 43.5797 | J32: 65.6725 | K32: 56.1023
A33: E9035 | B33: Equipamento para regulagem final de estais de 74 a 91 cordoalhas - D = 15,7 mm - 50 kW | C33: 223273.4726 | D33: 12.7585 | E33: 3.936 | F33: 0 | G33: 12.7585 | H33: 0 | I33: 43.5797 | J33: 73.0327 | K33: 60.2742
A34: E9036 | B34: Grua fixa para alturas de 60 a 102 m, com alcance de 60 m com capacidade de 1.500 kg na ponta da lança - 37 kW | C34: 3677416.416 | D34: 183.8708 | E34: 64.8276 | F34: 0 | G34: 210.1381 | H34: 0 | I34: 43.5797 | J34: 502.4162 | K34: 292.2781
A35: E9038 | B35: Macaco hidráulico monocordoalha para tensionamento de estais - 3 kW | C35: 18263.8294 | D35: 1.0436 | E35: 0.322 | F35: 0 | G35: 1.0436 | H35: 0 | I35: 43.5797 | J35: 45.9889 | K35: 44.9453
A36: E9039 | B36: Máquina de solda por termofusão para tubos PEAD com gerador de 4 kW | C36: 118932.2822 | D36: 6.7961 | E36: 2.0966 | F36: 0 | G36: 6.7961 | H36: 4.1016 | I36: 43.5797 | J36: 63.3701 | K36: 52.4724
A37: E9040 | B37: Serra mármore - 1,45 kW | C37: 472.2754 | D37: 0.0425 | E37: 0.0087 | F37: 0 | G37: 0.0236 | H37: 0 | I37: 0 | J37: 0.0748 | K37: 0.0512
A38: E9042 | B38: Trator sobre esteiras com lâmina - 97 kW | C38: 1334313.124 | D38: 51.89 | E38: 22.8686 | F38: 0 | G38: 74.1285 | H38: 73.2885 | I38: 32.4893 | J38: 254.6649 | K38: 107.2479
A39: E9043 | B39: Embarcação de alumínio com comprimento de 6 m e motor de popa - 18,60 kW | C39: 26285.4287 | D39: 0.4107 | E39: 0.1549 | F39: 0 | G39: 0.4563 | H39: 39.1344 | I39: 39.467 | J39: 79.6233 | K39: 40.0326
A40: E9044 | B40: Central de concreto com capacidade de 150 m³/h - dosadora e misturadora | C40: 1978922.045 | D40: 113.0813 | E40: 34.8856 | F40: 0 | G40: 98.9461 | H40: 0 | I40: 43.5797 | J40: 290.4927 | K40: 191.5466
A41: E9045 | B41: Conjunto bomba e macaco hidráulico para elevação com capacidade de 496 kN | C41: 67739.6439 | D41: 5.4192 | E41: 1.2539 | F41: 0 | G41: 5.4192 | H41: 6.0595 | I41: 43.5797 | J41: 61.7315 | K41: 50.2528
A42: E9046 | B42: Conjunto bomba e macaco hidráulico para elevação com capacidade de 929 kN | C42: 85652.1729 | D42: 6.8522 | E42: 1.5854 | F42: 0 | G42: 6.8522 | H42: 6.0595 | I42: 43.5797 | J42: 64.929 | K42: 52.0173
A43: E9047 | B43: Conjunto bomba e macaco hidráulico para elevação com capacidade de 1.390 kN | C43: 115768.4844 | D43: 9.2615 | E43: 2.1429 | F43: 0 | G43: 9.2615 | H43: 6.0595 | I43: 43.5797 | J43: 70.3051 | K43: 54.9841
A44: E9048 | B44: Conjunto bomba e macaco hidráulico para elevação com capacidade de 1.859 kN | C44: 134019.3613 | D44: 10.7215 | E44: 2.4807 | F44: 0 | G44: 10.7215 | H44: 6.0595 | I44: 43.5797 | J44: 73.5629 | K44: 56.7819
A45: E9049 | B45: Bomba de alta pressão para hidrojateamento com capacidade de 250 MPa - 72 kW | C45: 713279.0881 | D45: 57.0623 | E45: 13.2028 | F45: 0 | G45: 64.1951 | H45: 58.2854 | I45: 23.8748 | J45: 216.6204 | K45: 94.1399
A46: E9050 | B46: Guindaste móvel sobre pneus com 2 eixos com capacidade de 18 t - 97 kW | C46: 3234925.908 | D46: 161.7463 | E46: 57.0271 | F46: 0 | G46: 207.9595 | H46: 26.1745 | I46: 30.167 | J46: 483.0744 | K46: 248.9404
A47: E9051 | B47: Máquina levantadora e posicionadora de via - 7,40 kW | C47: 993951.3656 | D47: 79.5161 | E47: 18.398 | F47: 0 | G47: 69.5766 | H47: 10.8987 | I47: 23.8748 | J47: 202.2642 | K47: 121.7889
A48: E9052 | B48: Empilhadeira a diesel com capacidade de 10 t - 82 kW | C48: 780961.4581 | D48: 62.4769 | E48: 14.4556 | F48: 0 | G48: 54.6673 | H48: 66.3806 | I48: 23.8748 | J48: 221.8552 | K48: 100.8073
A49: E9053 | B49: Perfuratriz hidráulica montada em flutuante - 32 kW | C49: 457254.8084 | D49: 14.2892 | E49: 2.9388 | F49: 0 | G49: 12.7015 | H49: 17.2698 | I49: 29.4047 | J49: 76.604 | K49: 46.6327
A50: E9054 | B50: Equipamento sobre forma-trilho para execução e acabamento de pavimento de concreto - 13,40 kW | C50: 1592451.516 | D50: 127.3961 | E50: 29.4763 | F50: 0 | G50: 79.6226 | H50: 19.7355 | I50: 23.8748 | J50: 280.1053 | K50: 180.7472
A51: E9055 | B51: Guincho pneumático com capacidade de 2,5 t | C51: 524251.9845 | D51: 47.1827 | E51: 9.7039 | F51: 0 | G51: 26.2126 | H51: 0 | I51: 0 | J51: 83.0992 | K51: 56.8866
A52: E9056 | B52: Plataforma autoelevatória de 12 x 24 m com capacidade de 150 t | C52: 806546.2514 | D52: 6.3011 | E52: 4.5358 | F52: 0 | G52: 14.0025 | H52: 0 | I52: 108.3786 | J52: 133.218 | K52: 119.2155
A53: E9057 | B53: Batelão sem propulsão com capacidade de 66 m³ | C53: 215682.6825 | D53: 1.685 | E53: 1.2129 | F53: 0 | G53: 2.8084 | H53: 0 | I53: 28.1079 | J53: 33.8142 | K53: 31.0058
A54: E9058 | B54: Plataforma flutuante de 12 x 24 x 1,8 m com capacidade de 150 t | C54: 645070.2092 | D54: 5.0396 | E54: 3.6277 | F54: 0 | G54: 8.3994 | H54: 0 | I54: 28.1079 | J54: 45.1746 | K54: 36.7752
A55: E9059 | B55: Plataforma autoelevatória de 12 x 24 m montada na obra com capacidade de 150 t | C55: 806546.2514 | D55: 6.3011 | E55: 4.5358 | F55: 0 | G55: 14.0025 | H55: 0 | I55: 108.3786 | J55: 133.218 | K55: 119.2155
A56: E9060 | B56: Perfuratriz pneumática rotopercussiva montada em flutuante com pressão de 0,70 MPa e capacidade de 2.500 gpm | C56: 37605.8612 | D56: 1.1752 | E56: 0.2417 | F56: 0 | G56: 1.0446 | H56: 0 | I56: 58.8094 | J56: 61.2709 | K56: 60.2263
A57: E9061 | B57: Lixadeira elétrica manual angular - 2 kW | C57: 1476.7821 | D57: 0.1181 | E57: 0.0273 | F57: 0 | G57: 0.0738 | H57: 0 | I57: 0 | J57: 0.2192 | K57: 0.1454
A58: E9062 | B58: Soprador de ar quente manual - 1,60 kW | C58: 5269.6413 | D58: 0.7026 | E58: 0.1084 | F58: 0 | G58: 0.4391 | H58: 0 | I58: 0 | J58: 1.2501 | K58: 0.811
A59: E9063 | B59: Equipamento de estabilização dinâmica da via - 300 kW | C59: 28362475.73 | D59: 1134.499 | E59: 481.2403 | F59: 0 | G59: 1134.499 | H59: 194.2848 | I59: 43.5797 | J59: 2988.1028 | K59: 1659.319
A60: E9064 | B60: Transportador manual gerica com capacidade de 180 l | C60: 1094.9235 | D60: 1.0949 | E60: 0.0676 | F60: 0 | G60: 0.5475 | H60: 0 | I60: 0 | J60: 1.71 | K60: 1.1625
A61: E9065 | B61: Carro controle ferroviário - 186 kW | C61: 30200192.94 | D61: 1208.0077 | E61: 512.4218 | F61: 0 | G61: 1057.0068 | H61: 120.4566 | I61: 43.5797 | J61: 2941.4726 | K61: 1764.0092
A62: E9066 | B62: Grupo gerador - 14 kVA | C62: 69515.5627 | D62: 3.4758 | E62: 1.2255 | F62: 0 | G62: 2.4827 | H62: 11.2793 | I62: 0 | J62: 18.4633 | K62: 4.7013
A63: E9067 | B63: Veículo ferroviário para capina química com capacidade de 12.000 l - 115 kW | C63: 1702925.5 | D63: 68.117 | E63: 28.8944 | F63: 0 | G63: 42.5731 | H63: 74.4758 | I63: 23.8748 | J63: 237.9351 | K63: 120.8862
A64: E9068 | B64: Perfuratriz hidráulica rotopercussiva para CCPH - 123 kW | C64: 4589751.354 | D64: 305.9834 | E64: 82.5964 | F64: 0 | G64: 305.9834 | H64: 99.571 | I64: 32.4893 | J64: 826.6235 | K64: 421.0691
A65: E9069 | B65: Vibrador de imersão para concreto - 4,10 kW | C65: 4185.6382 | D65: 0.6697 | E65: 0.155 | F65: 0 | G65: 0.4186 | H65: 7.5481 | I65: 0 | J65: 8.7914 | K65: 0.8247
A66: E9070 | B66: Ponte rolante com capacidade de 5 t e vão de até 15 m - 10 kW | C66: 414322.4069 | D66: 16.5729 | E66: 7.03 | F66: 0 | G66: 10.3581 | H66: 0 | I66: 23.8748 | J66: 57.8358 | K66: 47.4777
A67: E9071 | B67: Transportador manual carrinho de mão com capacidade de 80 l | C67: 465.2025 | D67: 0.4652 | E67: 0.0287 | F67: 0 | G67: 0.2326 | H67: 0 | I67: 0 | J67: 0.7265 | K67: 0.4939
A68: E9072 | B68: Martelo hidráulico vibratório com unidade hidráulica - 486 kW | C68: 3163818.919 | D68: 210.9213 | E68: 56.9356 | F68: 0 | G68: 184.5561 | H68: 393.4267 | I68: 43.5797 | J68: 889.4194 | K68: 311.4366
A69: E9073 | B69: Bomba de concreto rebocável com capacidade de 30 m³/h - 74 kW | C69: 483429.1069 | D69: 38.6743 | E69: 8.9483 | F69: 0 | G69: 38.6743 | H69: 75.879 | I69: 23.8748 | J69: 186.0507 | K69: 71.4974
A70: E9074 | B70: Tanque de estocagem de asfalto com agitadores de 60.000 l | C70: 898460.4032 | D70: 37.4359 | E70: 12.9926 | F70: 0 | G70: 23.3974 | H70: 0 | I70: 0 | J70: 73.8259 | K70: 50.4285
A71: E9075 | B71: Trado cavadeira de 12" | C71: 154.2008 | D71: 0.0771 | E71: 0.0071 | F71: 0 | G71: 0.0386 | H71: 0 | I71: 0 | J71: 0.1228 | K71: 0.0842
A72: E9076 | B72: Equipamento para pintura eletrostática com cabine dupla de 7,00 kW e estufa de 80.000 kCal | C72: 162097.0547 | D72: 10.4205 | E72: 2.8575 | F72: 0 | G72: 5.7892 | H72: 0 | I72: 23.8748 | J72: 42.942 | K72: 37.1528
A73: E9077 | B73: Perfuratriz de circulação reversa tipo Wirth ou similar com unidade hidráulica (Power Pack) - 273 kW | C73: 4451377.264 | D73: 296.7585 | E73: 80.1062 | F73: 0 | G73: 296.7585 | H73: 147.3326 | I73: 32.4893 | J73: 853.4451 | K73: 409.354
A74: E9078 | B74: Treliça lançadeira com capacidade de carga de 100 a 120 t e vão máximo de 45 m - 110 kW | C74: 3547484.421 | D74: 94.5996 | E74: 58.3679 | F74: 0 | G74: 59.1247 | H74: 0 | I74: 43.5797 | J74: 255.6719 | K74: 196.5472
A75: E9079 | B75: Bomba submersível com capacidade de 360 m³/h - 23 kW | C75: 179378.3159 | D75: 14.3503 | E75: 3.3203 | F75: 0 | G75: 12.5565 | H75: 0 | I75: 0 | J75: 30.2271 | K75: 17.6706
A76: E9080 | B76: Carrelone com capacidade máxima de 70 t | C76: 1833927.749 | D76: 82.5267 | E76: 31.1172 | F76: 0 | G76: 45.8482 | H76: 0 | I76: 23.8748 | J76: 183.3669 | K76: 137.5187
A77: E9081 | B77: Fischietti simples com capacidade de 70 t | C77: 107613.1404 | D77: 4.8426 | E77: 1.8259 | F77: 0 | G77: 2.6903 | H77: 0 | I77: 23.8748 | J77: 33.2336 | K77: 30.5433
A78: E9083 | B78: Vagão fechado FLT com capacidade de 99 t | C78: 845000 | D78: 13.3792 | E78: 13.4686 | F78: 0 | G78: 7.0417 | H78: 0 | I78: 0 | J78: 33.8895 | K78: 26.8478
A79: E9084 | B79: Vagão tanque convencional TCT com capacidade de 97 t e 103.000 l | C79: 1230000 | D79: 19.475 | E79: 19.6052 | F79: 0 | G79: 10.25 | H79: 0 | I79: 0 | J79: 49.3302 | K79: 39.0802
A80: E9085 | B80: Vagão gôndola GDE com capacidade de 93,5 t / 29 m³ | C80: 620000 | D80: 9.8167 | E80: 9.8823 | F80: 0 | G80: 5.1667 | H80: 0 | I80: 0 | J80: 24.8657 | K80: 19.699
A81: E9086 | B81: Bomba de concreto rebocável com capacidade de 41 m³/h - 74 kW | C81: 533579.1069 | D81: 42.6863 | E81: 9.8765 | F81: 0 | G81: 42.6863 | H81: 75.879 | I81: 23.8748 | J81: 195.0029 | K81: 76.4376
A82: E9089 | B82: Roçadeira costal - 1,40 kW | C82: 3114.5122 | D82: 0.4672 | E82: 0.0641 | F82: 0 | G82: 0.3634 | H82: 8.1004 | I82: 0 | J82: 8.9951 | K82: 0.5313
A83: E9093 | B83: Veículo leve - 53 kW (sem motorista) | C83: 74530.8154 | D83: 4.4718 | E83: 1.3796 | F83: 0.559 | G83: 4.4718 | H83: 25.0902 | I83: 0 | J83: 35.9724 | K83: 6.4104
A84: E9094 | B84: Guindaste móvel sobre pneus com 6 eixos com capacidade máxima de 350 t - 450 kW | C84: 19836168.19 | D84: 991.8084 | E84: 349.6833 | F84: 141.6869 | G84: 1275.1822 | H84: 121.428 | I84: 30.167 | J84: 2909.9558 | K84: 1513.3456
A85: E9095 | B85: Guindaste móvel sobre pneus com 8 eixos com capacidade máxima de 500 t - 500 kW | C85: 32725338.86 | D85: 1636.2669 | E85: 576.901 | F85: 233.7524 | G85: 2103.7718 | H85: 134.92 | I85: 30.167 | J85: 4715.7791 | K85: 2477.0873
A86: E9096 | B86: Minicarregadeira de pneus - 45,50 kW | C86: 407246.7769 | D86: 28.5073 | E86: 7.5381 | F86: 0 | G86: 28.5073 | H86: 61.3886 | I86: 32.4893 | J86: 158.4306 | K86: 68.5347
A87: E9101 | B87: Removedora de faixas de sinalização viária - 9,69 kW | C87: 50895.8682 | D87: 4.0717 | E87: 0.9421 | F87: 0 | G87: 3.5627 | H87: 17.8393 | I87: 0 | J87: 26.4158 | K87: 5.0138
A88: E9102 | B88: Extrusora para sarjeta de concreto - 10,44 kW | C88: 82168.8292 | D88: 6.5735 | E88: 1.5209 | F88: 0 | G88: 5.7518 | H88: 8.4514 | I88: 23.8748 | J88: 46.1724 | K88: 31.9692
A89: E9103 | B89: Extrusora para meio-fio de concreto - 10,44 kW | C89: 67123.8292 | D89: 5.3699 | E89: 1.2425 | F89: 0 | G89: 4.6987 | H89: 8.4514 | I89: 23.8748 | J89: 43.6373 | K89: 30.4872
A90: E9105 | B90: Embarcação empurradora multipropósito - 2 x 186 kW | C90: 5459623.285 | D90: 71.0888 | E90: 31.678 | F90: 0 | G90: 157.9752 | H90: 381.4458 | I90: 135.2063 | J90: 777.3941 | K90: 237.9731
A91: E9106 | B91: Balsa de convés com capacidade de 200 t | C91: 1846636.499 | D91: 14.4268 | E91: 10.3849 | F91: 0 | G91: 24.0447 | H91: 0 | I91: 28.1079 | J91: 76.9643 | K91: 52.9196
A92: E9107 | B92: Compactador manual com soquete vibratório - 2,24 kW | C92: 11442.8394 | D92: 0.7629 | E92: 0.2059 | F92: 0 | G92: 0.7629 | H92: 4.1238 | I92: 0 | J92: 5.8555 | K92: 0.9688
A93: E9108 | B93: Soldadora de trilho por caldeamento na via - 400 kW | C93: 10000000 | D93: 160 | E93: 160.42 | F93: 0 | G93: 200 | H93: 259.0464 | I93: 87.1594 | J93: 866.6258 | K93: 407.5794
A94: E9110 | B94: Escavadeira hidráulica sobre esteiras para rocha com caçamba com capacidade de 1,56 m³ - 118 kW | C94: 1083494.92 | D94: 108.3495 | E94: 21.488 | F94: 0 | G94: 108.3495 | H94: 120.9963 | I94: 32.4893 | J94: 391.6726 | K94: 162.3268
A95: E9111 | B95: Jateador abrasivo úmido com capacidade de 350 kg de abrasivo | C95: 284551.6156 | D95: 25.6096 | E95: 5.2671 | F95: 0 | G95: 25.6096 | H95: 0 | I95: 23.8748 | J95: 80.3611 | K95: 54.7515
A96: E9112 | B96: Sinalizador direcional móvel com sistema fotovoltaico de energia e montado em chassi sobre pneus | C96: 22845.1726 | D96: 2.0561 | E96: 0.4229 | F96: 0 | G96: 1.1423 | H96: 0 | I96: 0 | J96: 3.6213 | K96: 2.479
A97: E9113 | B97: Painel de Mensagem Variável - PMV móvel, com sistema fotovoltaico de energia e montado em chassi sobre pneus | C97: 172499.1069 | D97: 15.5249 | E97: 3.193 | F97: 0 | G97: 8.625 | H97: 0 | I97: 0 | J97: 27.3429 | K97: 18.7179
A98: E9116 | B98: Semáforo móvel com 3 lentes e bateria - D = 200 mm | C98: 8021.3705 | D98: 0.7219 | E98: 0.1485 | F98: 0 | G98: 0.4011 | H98: 0 | I98: 0 | J98: 1.2715 | K98: 0.8704
A99: E9117 | B99: Carregadeira de pneus para rocha com capacidade de 2,50 m³ - 105 kW | C99: 1002302.07 | D99: 100.2302 | E99: 19.8778 | F99: 0 | G99: 100.2302 | H99: 107.6662 | I99: 32.4893 | J99: 360.4937 | K99: 152.5973
A100: E9118 | B100: Cortadora de pavimento com disco diamantado de 450 a 1.500 mm - 55,40 kW | C100: 485942.8516 | D100: 38.8754 | E100: 8.9948 | F100: 0 | G100: 38.8754 | H100: 44.8474 | I100: 23.8748 | J100: 155.4678 | K100: 71.745
A101: E9119 | B101: Minicarregadeira sobre pneus com valetadeira - 55,40 kW | C101: 712238.482 | D101: 49.8567 | E101: 13.1835 | F101: 0 | G101: 49.8567 | H101: 74.7457 | I101: 32.4893 | J101: 220.1319 | K101: 95.5295
A102: E9120 | B102: Equipamento de cravação sobre esteira para geodreno com haste para profundidade de até 20 m - 258 kW | C102: 2620095.036 | D102: 183.4067 | E102: 48.498 | F102: 0 | G102: 183.4067 | H102: 181.0087 | I102: 23.8748 | J102: 620.1949 | K102: 255.7795
A103: E9122 | B103: Perfuratriz tipo Bottom Feed para coluna de brita - 194 kW | C103: 5922548.723 | D103: 394.8366 | E103: 106.5812 | F103: 0 | G103: 394.8366 | H103: 104.6979 | I103: 32.4893 | J103: 1033.4416 | K103: 533.9071
A104: E9125 | B104: Veículo tipo van furgão com capacidade de 1,54 t - 93 kW | C104: 230055.7024 | D104: 11.5028 | E104: 4.14 | F104: 1.6775 | G104: 11.5028 | H104: 25.0951 | I104: 29.0443 | J104: 82.9625 | K104: 46.3646
A105: E9126 | B105: Draga backhoe com capacidade de 7 m³ - 1.000 kW | C105: 122317428.9 | D105: 1376.0711 | E105: 990.5418 | F105: 0 | G105: 3057.9357 | H105: 1025.392 | I105: 64.0854 | J105: 6514.026 | K105: 2430.6983
A106: E9127 | B106: Escavadeira hidráulica com martelo hidráulico de 520 kg - 75 kW | C106: 898512.0524 | D106: 102.6871 | E106: 17.8194 | F106: 0 | G106: 128.3589 | H106: 52.6188 | I106: 32.4893 | J106: 333.9735 | K106: 152.9958
A107: E9134 | B107: Miniônibus com capacidade para 30 passageiros - 111 kW | C107: 655395.1722 | D107: 28.0884 | E107: 11.5537 | F107: 4.6814 | G107: 42.1325 | H107: 113.8185 | I107: 27.7086 | J107: 227.9831 | K107: 72.0321
A108: E9141 | B108: Rebarbador hidráulico com bomba manual com capacidade de força de 9.000 kgf | C108: 96006.431 | D108: 7.6805 | E108: 1.7771 | F108: 0 | G108: 4.8003 | H108: 0 | I108: 0 | J108: 14.2579 | K108: 9.4576
A109: E9144 | B109: Pórtico metálico rolante com talha com capacidade de 5 t - 10 kW | C109: 304073.1158 | D109: 12.1629 | E109: 5.1594 | F109: 0 | G109: 7.6018 | H109: 0 | I109: 23.8748 | J109: 48.7989 | K109: 41.1971
A110: E9148 | B110: Macaco de protensão de fios com bomba - 3,72 kW | C110: 100938.2895 | D110: 5.7679 | E110: 1.7794 | F110: 0 | G110: 5.7679 | H110: 0 | I110: 43.5797 | J110: 56.8949 | K110: 51.127
A111: E9149 | B111: Máquina de aplicação e extração de grampo elástico tipo Pandrol - 6,70 kW | C111: 265414.0531 | D111: 21.2331 | E111: 4.9128 | F111: 0 | G111: 21.2331 | H111: 9.8678 | I111: 0 | J111: 57.2468 | K111: 26.1459
A112: E9151 | B112: Britador de mandíbulas móvel sobre esteiras, sem peneira, com capacidade de 140 m³/h - 170 kW | C112: 2978132.077 | D112: 170.179 | E112: 52.5002 | F112: 0 | G112: 170.179 | H112: 165.1421 | I112: 43.5797 | J112: 601.58 | K112: 266.2589
A113: E9152 | B113: Ferramenta de fixação à pólvora de ação direta | C113: 1052.5047 | D113: 0.0895 | E113: 0.0195 | F113: 0 | G113: 0.0842 | H113: 0 | I113: 0 | J113: 0.1932 | K113: 0.109
A114: E9153 | B114: Ferramenta de fixação à pólvora e sistema à pistão | C114: 994.0469 | D114: 0.0845 | E114: 0.0184 | F114: 0 | G114: 0.0795 | H114: 0 | I114: 0 | J114: 0.1824 | K114: 0.1029
A115: E9154 | B115: Equipamento para selagem com material asfáltico rebocável com capacidade de 370 l - 35 kW | C115: 462884.3563 | D115: 29.7569 | E115: 8.16 | F115: 0 | G115: 9.919 | H115: 28.3332 | I115: 23.8748 | J115: 100.0439 | K115: 61.7917
A116: E9155 | B116: Caldeira de asfalto rebocável com capacidade de 600 l - 5,20 kW | C116: 141091.7197 | D116: 9.0702 | E116: 2.4872 | F116: 0 | G116: 3.0234 | H116: 3.9289 | I116: 0 | J116: 18.5097 | K116: 11.5574
A117: E9156 | B117: Soprador de ar costal - 2,6 kW | C117: 2677.3312 | D117: 0.4284 | E117: 0.0991 | F117: 0 | G117: 0.3748 | H117: 4.7866 | I117: 0 | J117: 5.6889 | K117: 0.5275
A118: E9157 | B118: Locomotiva diesel-elétrica CC - bitola métrica - 2.237 kW | C118: 8678657.723 | D118: 138.8585 | E118: 139.223 | F118: 0 | G118: 173.5732 | H118: 1448.717 | I118: 32.6928 | J118: 1933.0645 | K118: 310.7743
A119: E9158 | B119: Locomotiva diesel-elétrica CC - bitola larga - 2.237 kW | C119: 9062356.378 | D119: 144.9977 | E119: 145.3783 | F119: 0 | G119: 181.2471 | H119: 1448.717 | I119: 32.6928 | J119: 1953.0329 | K119: 323.0688
A120: E9159 | B120: Vagão plataforma PNE com capacidade de 82 t - bitola métrica | C120: 736000 | D120: 11.6533 | E120: 11.7312 | F120: 0 | G120: 6.1333 | H120: 0 | I120: 0 | J120: 29.5178 | K120: 23.3845
A121: E9160 | B121: Vagão plataforma PNT com capacidade de 98 t - bitola larga | C121: 960000 | D121: 15.2 | E121: 15.3016 | F121: 0 | G121: 8 | H121: 0 | I121: 0 | J121: 38.5016 | K121: 30.5016
A122: E9161 | B122: Vagão fechado com porta para carga e descarga de paletes FLD com capacidade de 64 t - bitola métrica | C122: 730000 | D122: 11.5583 | E122: 11.6356 | F122: 0 | G122: 6.0833 | H122: 0 | I122: 0 | J122: 29.2772 | K122: 23.1939
A123: E9162 | B123: Vagão fechado com porta para carga e descarga de paletes FLT com capacidade de 99 t - bitola larga | C123: 845000 | D123: 13.3792 | E123: 13.4686 | F123: 0 | G123: 7.0417 | H123: 0 | I123: 0 | J123: 33.8895 | K123: 26.8478
A124: E9163 | B124: Vagão hopper aberto com descarga automática HNE com capacidade de 45 m³ - bitola métrica | C124: 880000 | D124: 13.9333 | E124: 14.0265 | F124: 0 | G124: 7.3333 | H124: 0 | I124: 0 | J124: 35.2931 | K124: 27.9598
A125: E9164 | B125: Vagão hopper aberto com descarga automática HNT com capacidade de 63 m³ - bitola larga | C125: 1001925 | D125: 15.8638 | E125: 15.9698 | F125: 0 | G125: 8.3494 | H125: 0 | I125: 0 | J125: 40.183 | K125: 31.8336
A126: E9167 | B126: Equipamento para carga e descarga de TLS de até 250 m - 90 kW | C126: 2825882.419 | D126: 45.2141 | E126: 45.3328 | F126: 0 | G126: 56.5176 | H126: 58.2854 | I126: 43.5797 | J126: 248.9296 | K126: 134.1266
A127: E9168 | B127: Carregadeira de pneus com implemento de garfo - 195 kW | C127: 1652947.705 | D127: 115.7063 | E127: 30.5961 | F127: 0 | G127: 115.7063 | H127: 84.1901 | I127: 32.4893 | J127: 378.6881 | K127: 178.7917
A128: E9200 | B128: Carregadeira de pneus para rocha com capacidade de 2,50 m³ - 105 kW com periculosidade | C128: 1002302.07 | D128: 100.2302 | E128: 19.8778 | F128: 0 | G128: 100.2302 | H128: 107.6662 | I128: 40.607 | J128: 368.6114 | K128: 160.715
A129: E9203 | B129: Escavadeira hidráulica com martelo hidráulico de 1.700 kg - 103 kW com periculosidade | C129: 2002859.688 | D129: 228.8983 | E129: 39.721 | F129: 0 | G129: 286.1228 | H129: 72.2632 | I129: 40.607 | J129: 667.6123 | K129: 309.2263
A130: E9204 | B130: Perfuratriz sobre esteiras - 145 kW com periculosidade | C130: 2044197.708 | D130: 136.2798 | E130: 36.787 | F130: 0 | G130: 136.2798 | H130: 117.3804 | I130: 40.607 | J130: 467.334 | K130: 213.6738
A131: E9205 | B131: Equipamento de corte a plasma CNC - 12.000 x 5.500 mm - 19,5 kW | C131: 1085511.197 | D131: 86.8409 | E131: 20.0928 | F131: 0 | G131: 65.1307 | H131: 0 | I131: 0 | J131: 172.0644 | K131: 106.9337
A132: E9206 | B132: Equipamento de solda MIG automática com acessórios - 14,6 kVA | C132: 84973.504 | D132: 6.7979 | E132: 1.5729 | F132: 0 | G132: 6.7979 | H132: 0 | I132: 0 | J132: 15.1687 | K132: 8.3708
A133: E9207 | B133: Máquina de solda elétrica retificadora 425 A - 18,70 kW | C133: 6967.8472 | D133: 0.5574 | E133: 0.129 | F133: 0 | G133: 0.5574 | H133: 0 | I133: 0 | J133: 1.2438 | K133: 0.6864
A134: E9209 | B134: Martelete perfurador/rompedor a ar comprimido de 25 kg para rocha, com insalubridade, com capacidade de 2.040 gpm | C134: 29559.0131 | D134: 2.3647 | E134: 0.5471 | F134: 0 | G134: 2.3647 | H134: 0 | I134: 31.554 | J134: 36.8305 | K134: 34.4658
A135: E9213 | B135: Jumbo eletro-hidráulico com 3 braços - 155 kW/237 kW com periculosidade | C135: 13256261.26 | D135: 883.7508 | E135: 238.5575 | F135: 0 | G135: 1104.6884 | H135: 175.6658 | I135: 55.0568 | J135: 2457.7193 | K135: 1177.3651
A136: E9231 | B136: Maçarico lança-chamas a gás liquefeito de petróleo (GLP) | C136: 88.8145 | D136: 0.0071 | E136: 0.0016 | F136: 0 | G136: 0.0071 | H136: 0 | I136: 0 | J136: 0.0158 | K136: 0.0087
A137: E9242 | B137: Estação transmissora de superfície para televisionamento | C137: 13674.4182 | D137: 0.8791 | E137: 0.2411 | F137: 0 | G137: 0.4884 | H137: 0 | I137: 0 | J137: 1.6086 | K137: 1.1202
A138: E9243 | B138: Câmara hiperbárica com filtro, serpentina e reservatório de ar para mergulho raso - D = 1,80 m e H = 2,22 m | C138: 535493.6834 | D138: 9.3711 | E138: 8.673 | F138: 0 | G138: 13.3873 | H138: 0 | I138: 55.7352 | J138: 87.1666 | K138: 73.7793
A139: E9244 | B139: Estação transmissora de superfície para comunicação sem fio | C139: 39573.7949 | D139: 2.544 | E139: 0.6976 | F139: 0 | G139: 1.4133 | H139: 0 | I139: 0 | J139: 4.6549 | K139: 3.2416
A140: E9245 | B140: Estação transmissora de superfície para comunicação com fio | C140: 6632.7565 | D140: 0.4264 | E140: 0.1169 | F140: 0 | G140: 0.2369 | H140: 0 | I140: 0 | J140: 0.7802 | K140: 0.5433
A141: E9246 | B141: Painel de controle de ar com manômetros e pneufatômetros | C141: 12728.3827 | D141: 0.8183 | E141: 0.2244 | F141: 0 | G141: 0.4546 | H141: 0 | I141: 0 | J141: 1.4973 | K141: 1.0427
A142: E9247 | B142: Sistema de Sino aberto (sinete) para mergulho até 50 m - 33,50 kW | C142: 515180.2585 | D142: 13.7381 | E142: 8.4764 | F142: 0 | G142: 13.7381 | H142: 0 | I142: 55.7352 | J142: 91.6878 | K142: 77.9497
A143: E9248 | B143: Sistema de ar comprimido para mergulho até 30 m com pressão de trabalho de 1,4 MPa - 7,46 kW | C143: 51865.3753 | D143: 3.4577 | E143: 0.9334 | F143: 0 | G143: 3.4577 | H143: 6.8442 | I143: 0 | J143: 14.693 | K143: 4.3911
A144: E9249 | B144: Sistema de ar comprimido para mergulho até 50 m com pressão de trabalho de 1,7 MPa - 16,18 kW | C144: 80750.698 | D144: 5.3834 | E144: 1.4532 | F144: 0 | G144: 5.3834 | H144: 14.8444 | I144: 0 | J144: 27.0644 | K144: 6.8366
A145: E9251 | B145: Fonte de plasma para corte manual - 65A - 15 kW | C145: 32638.627 | D145: 2.6111 | E145: 0.6041 | F145: 0 | G145: 2.6111 | H145: 0 | I145: 0 | J145: 5.8263 | K145: 3.2152
A146: E9252 | B146: Serra de esquadria com braço telescópico - D = 250 mm (10") - 1,80 kW | C146: 5313.023 | D146: 0.4782 | E146: 0.0983 | F146: 0 | G146: 0.2657 | H146: 0 | I146: 0 | J146: 0.8422 | K146: 0.5765
A147: E9253 | B147: Rebordeadeira diâmetro máximo 3,00 m - 4,85 kW | C147: 66629.2245 | D147: 2.6652 | E147: 1.1305 | F147: 0 | G147: 2.332 | H147: 0 | I147: 0 | J147: 6.1277 | K147: 3.7957
A148: E9254 | B148: Dobradeira viradeira manual comprimento máximo de dobra de até 2.000 mm | C148: 19072.9423 | D148: 0.7629 | E148: 0.3236 | F148: 0 | G148: 0.6676 | H148: 0 | I148: 0 | J148: 1.7541 | K148: 1.0865
A149: E9255 | B149: Fonte de plasma para corte manual - 45A - 10 kW | C149: 21818.1888 | D149: 1.7455 | E149: 0.4039 | F149: 0 | G149: 1.7455 | H149: 0 | I149: 0 | J149: 3.8949 | K149: 2.1494
A150: E9256 | B150: Equipamento para pintura com cal rebocável com dois bicos aplicadores e capacidade de 2.200 l | C150: 68611.029 | D150: 3.9206 | E150: 1.2095 | F150: 0 | G150: 3.9206 | H150: 0 | I150: 23.8748 | J150: 32.9255 | K150: 29.0049
A151: E9259 | B151: Ventilador centrífugo média pressão com capacidade de 38 m³/min - 2,21 kW | C151: 17116.1203 | D151: 1.5405 | E151: 0.3168 | F151: 0 | G151: 1.027 | H151: 0 | I151: 0 | J151: 2.8843 | K151: 1.8573
A152: E9260 | B152: Detector de gases com bomba elétrica para espaço confinado | C152: 4178.247 | D152: 0.3343 | E152: 0.0773 | F152: 0 | G152: 0.2089 | H152: 0 | I152: 0 | J152: 0.6205 | K152: 0.4116
A153: E9261 | B153: Equipamento de pintura com pistola airless - 0,90 kW | C153: 2291.5894 | D153: 0.2062 | E153: 0.0424 | F153: 0 | G153: 0.1146 | H153: 0 | I153: 0 | J153: 0.3632 | K153: 0.2486
A154: E9262 | B154: Escova rotativa com cerdas de aço para tratamento de superfície - 0,91 kW | C154: 20072.9229 | D154: 1.6058 | E154: 0.3715 | F154: 0 | G154: 1.0036 | H154: 0 | I154: 23.8748 | J154: 26.8557 | K154: 25.8521
A155: E9263 | B155: Tripé com guincho para espaço confinado | C155: 9869.8171 | D155: 0.7896 | E155: 0.1827 | F155: 0 | G155: 0.5922 | H155: 0 | I155: 0 | J155: 1.5645 | K155: 0.9723
A156: E9264 | B156: Respirador purificador de ar motorizado | C156: 8835.3604 | D156: 0.7068 | E156: 0.1635 | F156: 0 | G156: 0.4418 | H156: 0 | I156: 0 | J156: 1.3121 | K156: 0.8703
A157: E9265 | B157: Respirador de adução de ar tipo linha de ar comprimido para jateamento | C157: 18035.9273 | D157: 1.4429 | E157: 0.3338 | F157: 0 | G157: 0.9018 | H157: 0 | I157: 0 | J157: 2.6785 | K157: 1.7767
A158: E9267 | B158: Exaustor centrífugo alta pressão com capacidade de 35 m³/min - 1,47 kW | C158: 5679.1611 | D158: 0.5111 | E158: 0.1051 | F158: 0 | G158: 0.3407 | H158: 0 | I158: 0 | J158: 0.9569 | K158: 0.6162
A159: E9501 | B159: Ventilador axial para ventilação forçada com velocidade de saída de 32,8 m/s - D = 1.000 mm - 30 kW | C159: 458466.4405 | D159: 41.262 | E159: 8.4862 | F159: 0 | G159: 27.508 | H159: 0 | I159: 0 | J159: 77.2562 | K159: 49.7482
A160: E9502 | B160: Bate-estaca de gravidade para 6 t - 119 kW | C160: 964387.0648 | D160: 55.1078 | E160: 17.0008 | F160: 0 | G160: 41.3309 | H160: 83.4885 | I160: 32.4893 | J160: 229.4173 | K160: 104.5979
A161: E9503 | B161: Guilhotina hidráulica 16 x 6.100 mm - 30 kW | C161: 1331093.539 | D161: 53.2437 | E161: 22.5853 | F161: 0 | G161: 46.5883 | H161: 0 | I161: 23.8748 | J161: 146.2921 | K161: 99.7038
A162: E9505 | B162: Prensa dobradeira capacidade 320 t - comprimento até 3.100 mm - 30 kW | C162: 909336.3174 | D162: 36.3735 | E162: 15.4292 | F162: 0 | G162: 31.8268 | H162: 0 | I162: 23.8748 | J162: 107.5043 | K162: 75.6775
A163: E9507 | B163: Plotadora de recorte com computador e programa computacional | C163: 94215.1921 | D163: 14.1323 | E163: 1.9377 | F163: 0 | G163: 9.4215 | H163: 0 | I163: 0 | J163: 25.4915 | K163: 16.07
A164: E9510 | B164: Ventilador centrífugo baixa pressão com capacidade de 58 m³/min - 3,68 kW | C164: 13985.8671 | D164: 1.2587 | E164: 0.2589 | F164: 0 | G164: 0.8392 | H164: 0 | I164: 0 | J164: 2.3568 | K164: 1.5176
A165: E9511 | B165: Carregadeira de pneus com capacidade de 3,40 m³ - 195 kW | C165: 2119047.231 | D165: 148.3333 | E165: 39.2236 | F165: 0 | G165: 148.3333 | H165: 84.1901 | I165: 32.4893 | J165: 452.5696 | K165: 220.0462
A166: E9512 | B166: Veículo leve - 53 kW | C166: 74530.8154 | D166: 4.4718 | E166: 1.3796 | F166: 0.559 | G166: 4.4718 | H166: 25.0902 | I166: 29.0443 | J166: 65.0167 | K166: 35.4547
A167: E9513 | B167: Compressor de ar portátil de 160,46 l/s (340 PCM) - 81 kW | C167: 318160.2044 | D167: 21.2107 | E167: 5.7256 | F167: 0 | G167: 21.2107 | H167: 74.3139 | I167: 0 | J167: 122.4609 | K167: 26.9363
A168: E9514 | B168: Distribuidor de agregados sobre pneus autopropelido - 130 kW | C168: 991449.4031 | D168: 56.6543 | E168: 17.4778 | F168: 0 | G168: 49.5725 | H168: 133.301 | I168: 32.4893 | J168: 289.4949 | K168: 106.6214
A169: E9515 | B169: Escavadeira hidráulica sobre esteiras com caçamba com capacidade de 1,56 m³ - 118 kW | C169: 1083494.92 | D169: 75.8446 | E169: 20.0555 | F169: 0 | G169: 75.8446 | H169: 82.7869 | I169: 32.4893 | J169: 287.0209 | K169: 128.3894
A170: E9516 | B170: Perfuratriz hidráulica sobre esteiras - 283 kW | C170: 6534824.51 | D170: 435.655 | E170: 117.5996 | F170: 0 | G170: 435.655 | H170: 152.7294 | I170: 32.4893 | J170: 1174.1283 | K170: 585.7439
A171: E9518 | B171: Grade de 24 discos rebocável de D = 60 cm (24") | C171: 43084.2477 | D171: 2.7697 | E171: 0.7595 | F171: 0 | G171: 1.5387 | H171: 0 | I171: 0 | J171: 5.0679 | K171: 3.5292
A172: E9519 | B172: Betoneira com motor a gasolina com capacidade de 600 l - 10 kW | C172: 39602.7407 | D172: 3.1682 | E172: 0.733 | F172: 0 | G172: 2.3762 | H172: 18.41 | I172: 23.8748 | J172: 48.5622 | K172: 27.776
A173: E9521 | B173: Grupo gerador - 3,2 kVA | C173: 3562.8924 | D173: 0.1781 | E173: 0.0628 | F173: 0 | G173: 0.1272 | H173: 4.3763 | I173: 0 | J173: 4.7444 | K173: 0.2409
A174: E9522 | B174: Caldeira de asfalto rebocável com capacidade de 1.500 l - 6,5 kW | C174: 185825.8778 | D174: 11.9459 | E174: 3.2758 | F174: 0 | G174: 3.982 | H174: 4.9111 | I174: 0 | J174: 24.1148 | K174: 15.2217
A175: E9523 | B175: Motoscraper - 304 kW | C175: 6100188.211 | D175: 287.0677 | E175: 105.1655 | F175: 0 | G175: 322.9511 | H175: 262.5004 | I175: 32.4893 | J175: 1010.174 | K175: 424.7225
A176: E9524 | B176: Motoniveladora - 93 kW | C176: 1356260.118 | D176: 67.813 | E176: 23.9089 | F176: 0 | G176: 87.1882 | H176: 75.2854 | I176: 32.4893 | J176: 286.6848 | K176: 124.2112
A177: E9525 | B177: Ponte rolante com capacidade de 15 t e vão de até 15 m - 20 kW | C177: 3483969.231 | D177: 139.3588 | E177: 59.1142 | F177: 0 | G177: 87.0992 | H177: 0 | I177: 47.7496 | J177: 333.3218 | K177: 246.2226
A178: E9526 | B178: Retroescavadeira de pneus - capacidade da caçamba da pá-carregadeira de 0,76 m³ e da retroescavadeira de 0,29 m³ - 58 kW | C178: 458665.6498 | D178: 32.1066 | E178: 8.4899 | F178: 0 | G178: 32.1066 | H178: 40.6919 | I178: 32.4893 | J178: 145.8843 | K178: 73.0858
A179: E9527 | B179: Martelete perfurador/rompedor a ar comprimido de 25 kg para rocha com capacidade de 2.040 gpm | C179: 30449.1401 | D179: 2.4359 | E179: 0.5636 | F179: 0 | G179: 2.4359 | H179: 0 | I179: 23.8748 | J179: 29.3102 | K179: 26.8743
A180: E9528 | B180: Empilhadeira a diesel com capacidade de 4 t - 60 kW | C180: 567808.9824 | D180: 45.4247 | E180: 10.5101 | F180: 0 | G180: 39.7466 | H180: 48.5712 | I180: 23.8748 | J180: 168.1274 | K180: 79.8096
A181: E9529 | B181: Jateador para estruturas metálicas com transportador a roletes - 22 kW | C181: 4524906.604 | D181: 301.6604 | E181: 81.4295 | F181: 0 | G181: 226.2453 | H181: 0 | I181: 23.8748 | J181: 633.21 | K181: 406.9647
A182: E9530 | B182: Rolo compactador liso vibratório autopropelido por pneus de 11 t - 97 kW | C182: 941565.8979 | D182: 62.7711 | E182: 16.9443 | F182: 0 | G182: 62.7711 | H182: 83.7583 | I182: 32.4893 | J182: 258.7341 | K182: 112.2047
A183: E9532 | B183: Equipamento de solda MIG com acessórios - 14,6 kVA | C183: 81549.3785 | D183: 6.524 | E183: 1.5095 | F183: 0 | G183: 6.524 | H183: 0 | I183: 0 | J183: 14.5575 | K183: 8.0335
A184: E9535 | B184: Serra circular com bancada - D = 30 cm - 4 kW | C184: 7201.9517 | D184: 0.6482 | E184: 0.1333 | F184: 0 | G184: 0.3601 | H184: 0 | I184: 23.8748 | J184: 25.0164 | K184: 24.6563
A185: E9536 | B185: Embarcação de transporte de pessoal e apoio logístico - 30 kW | C185: 136659.8197 | D185: 2.1353 | E185: 0.8051 | F185: 0 | G185: 2.3726 | H185: 63.12 | I185: 39.467 | J185: 107.9 | K185: 42.4074
A186: E9538 | B186: Conjunto vibratório para meio tubo de concreto com encaixe PB e 3 jogos de fôrmas - D = 0,30 m - 2,20 kW | C186: 15906.3492 | D186: 2.1208 | E186: 0.4907 | F186: 0 | G186: 1.5906 | H186: 0 | I186: 0 | J186: 4.2021 | K186: 2.6115
A187: E9539 | B187: Equipamento de batimetria monofeixe | C187: 108512.9863 | D187: 6.9758 | E187: 1.9129 | F187: 0 | G187: 3.8755 | H187: 0 | I187: 36.3419 | J187: 49.1061 | K187: 45.2306
A188: E9540 | B188: Trator sobre esteiras com lâmina - 127 kW | C188: 1727440.98 | D188: 67.1783 | E188: 29.6064 | F188: 0 | G188: 95.9689 | H188: 95.9551 | I188: 32.4893 | J188: 321.198 | K188: 129.274
A189: E9541 | B189: Trator sobre esteiras com lâmina - 259 kW | C189: 4801850.622 | D189: 186.7386 | E189: 82.2984 | F189: 0 | G189: 266.7695 | H189: 195.688 | I189: 32.4893 | J189: 763.9838 | K189: 301.5263
A190: E9543 | B190: Compressor de ar respirável com capacidade de até 35 MPa e 3,58 l/s - 5,52 kW | C190: 67124.6516 | D190: 4.475 | E190: 1.208 | F190: 0 | G190: 4.475 | H190: 0 | I190: 0 | J190: 10.158 | K190: 5.683
A191: E9544 | B191: Vassoura mecânica rebocável com largura de 2,44 m | C191: 80008.959 | D191: 7.2008 | E191: 1.481 | F191: 0 | G191: 4.8005 | H191: 0 | I191: 0 | J191: 13.4823 | K191: 8.6818
A192: E9545 | B192: Vibroacabadora de asfalto sobre esteiras - 97 kW | C192: 1602988.897 | D192: 80.1494 | E192: 28.2584 | F192: 0 | G192: 103.0493 | H192: 99.463 | I192: 43.5797 | J192: 354.4998 | K192: 151.9875
A193: E9547 | B193: Máquina de solda elétrica transformadora 250 A - 9,20 kW | C193: 1259.7324 | D193: 0.1008 | E193: 0.0233 | F193: 0 | G193: 0.1008 | H193: 0 | I193: 0 | J193: 0.2249 | K193: 0.1241
A194: E9548 | B194: Bomba centrífuga com capacidade de 7,1 a 22 m³/h - 1,50 kW | C194: 2494.2129 | D194: 0.1995 | E194: 0.0462 | F194: 0 | G194: 0.1746 | H194: 0 | I194: 0 | J194: 0.4203 | K194: 0.2457
A195: E9551 | B195: Obturador mecânico simples com extensão de 12 m | C195: 4894.154 | D195: 0.4405 | E195: 0.0906 | F195: 0 | G195: 0.2447 | H195: 0 | I195: 0 | J195: 0.7758 | K195: 0.5311
A196: E9552 | B196: Nível ótico com capacidade de aumento de 32x | C196: 13194.1783 | D196: 1.0555 | E196: 0.2442 | F196: 0 | G196: 0.6597 | H196: 0 | I196: 0 | J196: 1.9594 | K196: 1.2997
A197: E9553 | B197: Estação total eletrônica com alcance máximo de 3.000 m | C197: 45253.9388 | D197: 4.0729 | E197: 0.8377 | F197: 0 | G197: 2.2627 | H197: 0 | I197: 0 | J197: 7.1733 | K197: 4.9106
A198: E9556 | B198: Compactador manual de placa vibratória - 3,00 kW | C198: 10780.1873 | D198: 0.7187 | E198: 0.194 | F198: 0 | G198: 0.7187 | H198: 5.523 | I198: 0 | J198: 7.1544 | K198: 0.9127
A199: E9558 | B199: Tanque de estocagem de asfalto com capacidade de 30.000 l | C199: 720585.0226 | D199: 30.0244 | E199: 10.4203 | F199: 0 | G199: 18.7652 | H199: 0 | I199: 0 | J199: 59.2099 | K199: 40.4447
A200: E9559 | B200: Aquecedor de fluido térmico - 12 kW | C200: 687866.2157 | D200: 30.954 | E200: 9.5493 | F200: 0 | G200: 20.636 | H200: 9.7142 | I200: 0 | J200: 70.8535 | K200: 40.5033
... 341 more rows

Sheet SINTÉTICO SICRO (hidden)
A1: CGCIT | B1: SISTEMA DE CUSTOS REFERENCIAIS DE OBRAS - SICRO | D1: DNIT
B2: Paraíba - Janeiro/2025
A3: Código | B3: Descrição do Serviço | C3: Unidade | D3: Custo Unitário (R$)
A4: 307731 | B4: Aparelho de apoio de neoprene fretado para estruturas moldadas no local - fornecimento e instalação | C4: dm³ | D4: 135.19
A5: 307732 | B5: Aparelho de apoio de neoprene fretado para estruturas pré-moldadas - fornecimento e instalação | C5: dm³ | D5: 111.89
A6: 308308 | B6: Aparelho de apoio metálico elastomérico fixo com capacidade de 1.500 kN - fornecimento e instalação | C6: un | D6: 5546.55
A7: 308313 | B7: Aparelho de apoio metálico elastomérico fixo com capacidade de 10.000 kN - fornecimento e instalação | C7: un | D7: 34527.12
A8: 308309 | B8: Aparelho de apoio metálico elastomérico fixo com capacidade de 2.500 kN - fornecimento e instalação | C8: un | D8: 9132.36
A9: 308310 | B9: Aparelho de apoio metálico elastomérico fixo com capacidade de 4.000 kN - fornecimento e instalação | C9: un | D9: 12664.35
A10: 308311 | B10: Aparelho de apoio metálico elastomérico fixo com capacidade de 5.500 kN - fornecimento e instalação | C10: un | D10: 17775.8
A11: 308312 | B11: Aparelho de apoio metálico elastomérico fixo com capacidade de 7.500 kN - fornecimento e instalação | C11: un | D11: 24748.83
A12: 308307 | B12: Aparelho de apoio metálico elastomérico fixo com capacidade de 700 kN - fornecimento e instalação | C12: un | D12: 3426.71
A13: 308322 | B13: Aparelho de apoio metálico elastomérico multidirecional com capacidade de 1.500 kN - fornecimento e instalação | C13: un | D13: 4873.09
A14: 308327 | B14: Aparelho de apoio metálico elastomérico multidirecional com capacidade de 10.000 kN - fornecimento e instalação | C14: un | D14: 29587.16
A15: 308323 | B15: Aparelho de apoio metálico elastomérico multidirecional com capacidade de 2.500 kN - fornecimento e instalação | C15: un | D15: 7495.89
A16: 308324 | B16: Aparelho de apoio metálico elastomérico multidirecional com capacidade de 4.000 kN - fornecimento e instalação | C16: un | D16: 11181.41
A17: 308325 | B17: Aparelho de apoio metálico elastomérico multidirecional com capacidade de 5.500 kN - fornecimento e instalação | C17: un | D17: 15775.74
A18: 308326 | B18: Aparelho de apoio metálico elastomérico multidirecional com capacidade de 7.500 kN - fornecimento e instalação | C18: un | D18: 21888.64
A19: 308321 | B19: Aparelho de apoio metálico elastomérico multidirecional com capacidade de 700 kN - fornecimento e instalação | C19: un | D19: 4483.59
A20: 308315 | B20: Aparelho de apoio metálico elastomérico unidirecional com capacidade de 1.500 kN - fornecimento e instalação | C20: un | D20: 6246.39
A21: 308320 | B21: Aparelho de apoio metálico elastomérico unidirecional com capacidade de 10.000 kN - fornecimento e instalação | C21: un | D21: 43442.09
A22: 308316 | B22: Aparelho de apoio metálico elastomérico unidirecional com capacidade de 2.500 kN - fornecimento e instalação | C22: un | D22: 8956.91
A23: 308317 | B23: Aparelho de apoio metálico elastomérico unidirecional com capacidade de 4.000 kN - fornecimento e instalação | C23: un | D23: 17067.41
A24: 308318 | B24: Aparelho de apoio metálico elastomérico unidirecional com capacidade de 5.500 kN - fornecimento e instalação | C24: un | D24: 22307.08
A25: 308319 | B25: Aparelho de apoio metálico elastomérico unidirecional com capacidade de 7.500 kN - fornecimento e instalação | C25: un | D25: 25333.36
A26: 308314 | B26: Aparelho de apoio metálico elastomérico unidirecional com capacidade de 700 kN - fornecimento e instalação | C26: un | D26: 4491.11
A27: 308250 | B27: Aparelho de apoio metálico esférico fixo com capacidade de 1.000 kN - fornecimento e instalação | C27: un | D27: 7107.6
A28: 308251 | B28: Aparelho de apoio metálico esférico fixo com capacidade de 1.500 kN - fornecimento e instalação | C28: un | D28: 11059.49
A29: 308268 | B29: Aparelho de apoio metálico esférico fixo com capacidade de 10.000 kN - fornecimento e instalação | C29: un | D29: 72211.64
A30: 308252 | B30: Aparelho de apoio metálico esférico fixo com capacidade de 2.000 kN - fornecimento e instalação | C30: un | D30: 12857.32
A31: 308253 | B31: Aparelho de apoio metálico esférico fixo com capacidade de 2.500 kN - fornecimento e instalação | C31: un | D31: 15584.43
A32: 308254 | B32: Aparelho de apoio metálico esférico fixo com capacidade de 3.000 kN - fornecimento e instalação | C32: un | D32: 18594.53
A33: 308255 | B33: Aparelho de apoio metálico esférico fixo com capacidade de 3.500 kN - fornecimento e instalação | C33: un | D33: 21489.24
A34: 308256 | B34: Aparelho de apoio metálico esférico fixo com capacidade de 4.000 kN - fornecimento e instalação | C34: un | D34: 28778.51
A35: 308257 | B35: Aparelho de apoio metálico esférico fixo com capacidade de 4.500 kN - fornecimento e instalação | C35: un | D35: 30926.12
A36: 308258 | B36: Aparelho de apoio metálico esférico fixo com capacidade de 5.000 kN - fornecimento e instalação | C36: un | D36: 34534.84
A37: 308259 | B37: Aparelho de apoio metálico esférico fixo com capacidade de 5.500 kN - fornecimento e instalação | C37: un | D37: 36505.49
A38: 308260 | B38: Aparelho de apoio metálico esférico fixo com capacidade de 6.000 kN - fornecimento e instalação | C38: un | D38: 41086.94
A39: 308261 | B39: Aparelho de apoio metálico esférico fixo com capacidade de 6.500 kN - fornecimento e instalação | C39: un | D39: 44363.9
A40: 308262 | B40: Aparelho de apoio metálico esférico fixo com capacidade de 7.000 kN - fornecimento e instalação | C40: un | D40: 52579.65
A41: 308263 | B41: Aparelho de apoio metálico esférico fixo com capacidade de 7.500 kN - fornecimento e instalação | C41: un | D41: 56636.41
A42: 308264 | B42: Aparelho de apoio metálico esférico fixo com capacidade de 8.000 kN - fornecimento e instalação | C42: un | D42: 56844.26
A43: 308265 | B43: Aparelho de apoio metálico esférico fixo com capacidade de 8.500 kN - fornecimento e instalação | C43: un | D43: 57370.88
A44: 308266 | B44: Aparelho de apoio metálico esférico fixo com capacidade de 9.000 kN - fornecimento e instalação | C44: un | D44: 64819.68
A45: 308267 | B45: Aparelho de apoio metálico esférico fixo com capacidade de 9.500 kN - fornecimento e instalação | C45: un | D45: 68763.72
A46: 308288 | B46: Aparelho de apoio metálico esférico multidirecional com capacidade de 1.000 kN - fornecimento e instalação | C46: un | D46: 7949.61
A47: 308289 | B47: Aparelho de apoio metálico esférico multidirecional com capacidade de 1.500 kN - fornecimento e instalação | C47: un | D47: 11015.11
A48: 308306 | B48: Aparelho de apoio metálico esférico multidirecional com capacidade de 10.000 kN - fornecimento e instalação | C48: un | D48: 73149.58
A49: 308290 | B49: Aparelho de apoio metálico esférico multidirecional com capacidade de 2.000 kN - fornecimento e instalação | C49: un | D49: 14432.59
A50: 308291 | B50: Aparelho de apoio metálico esférico multidirecional com capacidade de 2.500 kN - fornecimento e instalação | C50: un | D50: 17259.82
A51: 308292 | B51: Aparelho de apoio metálico esférico multidirecional com capacidade de 3.000 kN - fornecimento e instalação | C51: un | D51: 19928.28
A52: 308293 | B52: Aparelho de apoio metálico esférico multidirecional com capacidade de 3.500 kN - fornecimento e instalação | C52: un | D52: 22531.81
A53: 308294 | B53: Aparelho de apoio metálico esférico multidirecional com capacidade de 4.000 kN - fornecimento e instalação | C53: un | D53: 25542.36
A54: 308295 | B54: Aparelho de apoio metálico esférico multidirecional com capacidade de 4.500 kN - fornecimento e instalação | C54: un | D54: 29475.8
A55: 308296 | B55: Aparelho de apoio metálico esférico multidirecional com capacidade de 5.000 kN - fornecimento e instalação | C55: un | D55: 32818.98
A56: 308297 | B56: Aparelho de apoio metálico esférico multidirecional com capacidade de 5.500 kN - fornecimento e instalação | C56: un | D56: 35528.39
A57: 308298 | B57: Aparelho de apoio metálico esférico multidirecional com capacidade de 6.000 kN - fornecimento e instalação | C57: un | D57: 41873.98
A58: 308299 | B58: Aparelho de apoio metálico esférico multidirecional com capacidade de 6.500 kN - fornecimento e instalação | C58: un | D58: 45225.75
A59: 308300 | B59: Aparelho de apoio metálico esférico multidirecional com capacidade de 7.000 kN - fornecimento e instalação | C59: un | D59: 48664.85
A60: 308301 | B60: Aparelho de apoio metálico esférico multidirecional com capacidade de 7.500 kN - fornecimento e instalação | C60: un | D60: 52487.42
A61: 308302 | B61: Aparelho de apoio metálico esférico multidirecional com capacidade de 8.000 kN - fornecimento e instalação | C61: un | D61: 56970.87
A62: 308303 | B62: Aparelho de apoio metálico esférico multidirecional com capacidade de 8.500 kN - fornecimento e instalação | C62: un | D62: 62170.5
A63: 308304 | B63: Aparelho de apoio metálico esférico multidirecional com capacidade de 9.000 kN - fornecimento e instalação | C63: un | D63: 65667.65
A64: 308305 | B64: Aparelho de apoio metálico esférico multidirecional com capacidade de 9.500 kN - fornecimento e instalação | C64: un | D64: 69673.38
A65: 308269 | B65: Aparelho de apoio metálico esférico unidirecional com capacidade de 1.000 kN - fornecimento e instalação | C65: un | D65: 10637.8
A66: 308270 | B66: Aparelho de apoio metálico esférico unidirecional com capacidade de 1.500 kN - fornecimento e instalação | C66: un | D66: 14327.54
A67: 308287 | B67: Aparelho de apoio metálico esférico unidirecional com capacidade de 10.000 kN - fornecimento e instalação | C67: un | D67: 78593.36
A68: 308271 | B68: Aparelho de apoio metálico esférico unidirecional com capacidade de 2.000 kN - fornecimento e instalação | C68: un | D68: 17449.08
A69: 308272 | B69: Aparelho de apoio metálico esférico unidirecional com capacidade de 2.500 kN - fornecimento e instalação | C69: un | D69: 20709.56
A70: 308273 | B70: Aparelho de apoio metálico esférico unidirecional com capacidade de 3.000 kN - fornecimento e instalação | C70: un | D70: 23679.82
A71: 308274 | B71: Aparelho de apoio metálico esférico unidirecional com capacidade de 3.500 kN - fornecimento e instalação | C71: un | D71: 27448.06
A72: 308275 | B72: Aparelho de apoio metálico esférico unidirecional com capacidade de 4.000 kN - fornecimento e instalação | C72: un | D72: 30647.94
A73: 308276 | B73: Aparelho de apoio metálico esférico unidirecional com capacidade de 4.500 kN - fornecimento e instalação | C73: un | D73: 35238.69
A74: 308277 | B74: Aparelho de apoio metálico esférico unidirecional com capacidade de 5.000 kN - fornecimento e instalação | C74: un | D74: 38981.21
A75: 308278 | B75: Aparelho de apoio metálico esférico unidirecional com capacidade de 5.500 kN - fornecimento e instalação | C75: un | D75: 42176.11
A76: 308279 | B76: Aparelho de apoio metálico esférico unidirecional com capacidade de 6.000 kN - fornecimento e instalação | C76: un | D76: 47116.83
A77: 308280 | B77: Aparelho de apoio metálico esférico unidirecional com capacidade de 6.500 kN - fornecimento e instalação | C77: un | D77: 50503.79
A78: 308281 | B78: Aparelho de apoio metálico esférico unidirecional com capacidade de 7.000 kN - fornecimento e instalação | C78: un | D78: 54250.21
A79: 308282 | B79: Aparelho de apoio metálico esférico unidirecional com capacidade de 7.500 kN - fornecimento e instalação | C79: un | D79: 58193.04
A80: 308283 | B80: Aparelho de apoio metálico esférico unidirecional com capacidade de 8.000 kN - fornecimento e instalação | C80: un | D80: 61877.66
A81: 308284 | B81: Aparelho de apoio metálico esférico unidirecional com capacidade de 8.500 kN - fornecimento e instalação | C81: un | D81: 66660.94
A82: 308285 | B82: Aparelho de apoio metálico esférico unidirecional com capacidade de 9.000 kN - fornecimento e instalação | C82: un | D82: 70573.43
A83: 308286 | B83: Aparelho de apoio metálico esférico unidirecional com capacidade de 9.500 kN - fornecimento e instalação | C83: un | D83: 74630.54
A84: 307733 | B84: Junta de dilatação em elastômero e perfil VV - L = 20 mm e H = 40 mm - fornecimento e instalação | C84: m | D84: 263.1
A85: 307734 | B85: Junta de dilatação em elastômero e perfil VV - L = 25 mm e H = 50 mm - fornecimento e instalação | C85: m | D85: 317.85
A86: 307735 | B86: Junta de dilatação em elastômero e perfil VV - L = 35 mm e H = 60 mm - fornecimento e instalação | C86: m | D86: 417.29
A87: 307736 | B87: Junta de dilatação em elastômero e perfil VV - L = 40 mm e H = 70 mm - fornecimento e instalação | C87: m | D87: 556.98
A88: 307737 | B88: Junta de dilatação em elastômero e perfil VV - L = 50 mm e H = 80 mm - fornecimento e instalação | C88: m | D88: 587.03
A89: 307730 | B89: Junta de dilatação em perfil extrudado de borracha vulcanizada | C89: m | D89: 0
A90: 307084 | B90: Lábios poliméricos em junta de pavimento de concreto - L = 20 mm e H = 30 mm - confecção e assentamento | C90: m | D90: 33.1
A91: 407818 | B91: Armação em aço CA-25 - fornecimento, preparo e colocação | C91: kg | D91: 12.05
A92: 407819 | B92: Armação em aço CA-50 - fornecimento, preparo e colocação | C92: kg | D92: 12.41
A93: 407820 | B93: Armação em aço CA-60 - fornecimento, preparo e colocação | C93: kg | D93: 13.7
A94: 407740 | B94: Chumbador tipo espera em aço CA-25 para fixação de estrutura metálica em concreto - fornecimento e instalação | C94: kg | D94: 14.65
A95: 408037 | B95: Luva de emenda com rosca cônica para aço CA-50 - D = 12,5 mm - fornecimento e instalação | C95: un | D95: 20.97
A96: 408038 | B96: Luva de emenda com rosca cônica para aço CA-50 - D = 16 mm - fornecimento e instalação | C96: un | D96: 33.02
A97: 408039 | B97: Luva de emenda com rosca cônica para aço CA-50 - D = 20 mm - fornecimento e instalação | C97: un | D97: 44.67
A98: 408041 | B98: Luva de emenda com rosca cônica para aço CA-50 - D = 25 mm - fornecimento e instalação | C98: un | D98: 57.95
A99: 408042 | B99: Luva de emenda com rosca cônica para aço CA-50 - D = 32 mm - fornecimento e instalação | C99: un | D99: 83.27
A100: 408031 | B100: Luva de emenda prensada para aço CA-50 - D = 12,5 mm - fornecimento e instalação | C100: un | D100: 23.07
A101: 408032 | B101: Luva de emenda prensada para aço CA-50 - D = 16 mm - fornecimento e instalação | C101: un | D101: 31.66
A102: 408033 | B102: Luva de emenda prensada para aço CA-50 - D = 20 mm - fornecimento e instalação | C102: un | D102: 43.4
A103: 408035 | B103: Luva de emenda prensada para aço CA-50 - D = 25 mm - fornecimento e instalação | C103: un | D103: 73.24
A104: 408036 | B104: Luva de emenda prensada para aço CA-50 - D = 32 mm - fornecimento e instalação | C104: un | D104: 163.64
A105: 408067 | B105: Tela de aço eletrossoldada - fornecimento, preparo e colocação | C105: kg | D105: 11.99
A106: 407743 | B106: Treliça nervurada três barras longitudinais interligadas por duas diagonais sinusoidal - fornecimento e instalação | C106: kg | D106: 12.23
A107: 607137 | B107: Arco metálico galvanizado tipo MP 152S - arco alto - vão = 10,08 m e altura = 6,12 m - aterro rodoviário mínimo = 0,90 m e máximo = 5,00 m - areia e brita comerciais | C107: m | D107: 60638.81
A108: 606785 | B108: Arco metálico galvanizado tipo MP 152S - arco alto - vão = 10,08 m e altura = 6,12 m - aterro rodoviário mínimo = 0,90 m e máximo = 5,00 m - areia extraída e brita produzida | C108: m | D108: 59974.14
A109: 607139 | B109: Arco metálico galvanizado tipo MP 152S - arco alto - vão = 10,31 m e altura = 6,17 m - aterro rodoviário mínimo = 0,90 m e máximo = 4,90 m - areia e brita comerciais | C109: m | D109: 61450.82
A110: 606787 | B110: Arco metálico galvanizado tipo MP 152S - arco alto - vão = 10,31 m e altura = 6,17 m - aterro rodoviário mínimo = 0,90 m e máximo = 4,90 m - areia extraída e brita produzida | C110: m | D110: 60457.6
A111: 607140 | B111: Arco metálico galvanizado tipo MP 152S - arco alto - vão = 10,36 m e altura = 5,38 m - aterro rodoviário mínimo = 1,20 m e máximo = 3,60 m - areia e brita comerciais | C111: m | D111: 56154.41
A112: 606788 | B112: Arco metálico galvanizado tipo MP 152S - arco alto - vão = 10,36 m e altura = 5,38 m - aterro rodoviário mínimo = 1,20 m e máximo = 3,60 m - areia extraída e brita produzida | C112: m | D112: 55882.94
A113: 607141 | B113: Arco metálico galvanizado tipo MP 152S - arco alto - vão = 10,54 m e altura = 6,05 m - aterro rodoviário mínimo = 1,20 m e máximo = 4,20 m - areia e brita comerciais | C113: m | D113: 62513.8
A114: 606789 | B114: Arco metálico galvanizado tipo MP 152S - arco alto - vão = 10,54 m e altura = 6,05 m - aterro rodoviário mínimo = 1,20 m e máximo = 4,20 m - areia extraída e brita produzida | C114: m | D114: 61823.04
A115: 607144 | B115: Arco metálico galvanizado tipo MP 152S - arco alto - vão = 10,57 m e altura = 5,41 m - aterro rodoviário mínimo = 1,20 m e máximo = 4,10 m - areia e brita comerciais | C115: m | D115: 73324.52
A116: 606792 | B116: Arco metálico galvanizado tipo MP 152S - arco alto - vão = 10,57 m e altura = 5,41 m - aterro rodoviário mínimo = 1,20 m e máximo = 4,10 m - areia extraída e brita produzida | C116: m | D116: 72693.58
A117: 607142 | B117: Arco metálico galvanizado tipo MP 152S - arco alto - vão = 10,74 m e altura = 6,48 m - aterro rodoviário mínimo = 1,20 m e máximo = 4,70 m - areia e brita comerciais | C117: m | D117: 65559.14
A118: 606790 | B118: Arco metálico galvanizado tipo MP 152S - arco alto - vão = 10,74 m e altura = 6,48 m - aterro rodoviário mínimo = 1,20 m e máximo = 4,70 m - areia extraída e brita produzida | C118: m | D118: 64816.15
A119: 607145 | B119: Arco metálico galvanizado tipo MP 152S - arco alto - vão = 10,77 m e altura = 6,10 m - aterro rodoviário mínimo = 1,20 m e máximo = 4,70 m - areia e brita comerciais | C119: m | D119: 80895.04
A120: 606793 | B120: Arco metálico galvanizado tipo MP 152S - arco alto - vão = 10,77 m e altura = 6,10 m - aterro rodoviário mínimo = 1,20 m e máximo = 4,70 m - areia extraída e brita produzida | C120: m | D120: 80189.39
A121: 607146 | B121: Arco metálico galvanizado tipo MP 152S - arco alto - vão = 10,97 m e altura = 6,53 m - aterro rodoviário mínimo = 1,20 m e máximo = 4,70 m - areia e brita comerciais | C121: m | D121: 84397.14
A122: 606794 | B122: Arco metálico galvanizado tipo MP 152S - arco alto - vão = 10,97 m e altura = 6,53 m - aterro rodoviário mínimo = 1,20 m e máximo = 4,70 m - areia extraída e brita produzida | C122: m | D122: 83631.26
A123: 607143 | B123: Arco metálico galvanizado tipo MP 152S - arco alto - vão = 11,35 m e altura = 7,12 m - aterro rodoviário mínimo = 1,20 m e máximo = 4,70 m - areia e brita comerciais | C123: m | D123: 70815.36
A124: 606791 | B124: Arco metálico galvanizado tipo MP 152S - arco alto - vão = 11,35 m e altura = 7,12 m - aterro rodoviário mínimo = 1,20 m e máximo = 4,70 m - areia extraída e brita produzida | C124: m | D124: 69959.97
A125: 607147 | B125: Arco metálico galvanizado tipo MP 152S - arco alto - vão = 11,58 m e altura = 7,16 m - aterro rodoviário mínimo = 1,20 m e máximo = 6,40 m - areia e brita comerciais | C125: m | D125: 91050.25
A126: 606795 | B126: Arco metálico galvanizado tipo MP 152S - arco alto - vão = 11,58 m e altura = 7,16 m - aterro rodoviário mínimo = 1,20 m e máximo = 6,40 m - areia extraída e brita produzida | C126: m | D126: 90167.72
A127: 607112 | B127: Arco metálico galvanizado tipo MP 152S - arco alto - vão = 6,12 m e altura = 2,77 m - aterro rodoviário mínimo = 0,75 m e máximo = 5,40 m - areia e brita comerciais | C127: m | D127: 29659.19
A128: 606760 | B128: Arco metálico galvanizado tipo MP 152S - arco alto - vão = 6,12 m e altura = 2,77 m - aterro rodoviário mínimo = 0,75 m e máximo = 5,40 m - areia extraída e brita produzida | C128: m | D128: 29427.85
A129: 607113 | B129: Arco metálico galvanizado tipo MP 152S - arco alto - vão = 6,30 m e altura = 3,68 m - aterro rodoviário mínimo = 0,75 m e máximo = 7,50 m - areia e brita comerciais | C129: m | D129: 36390.15
A130: 606761 | B130: Arco metálico galvanizado tipo MP 152S - arco alto - vão = 6,30 m e altura = 3,68 m - aterro rodoviário mínimo = 0,75 m e máximo = 7,50 m - areia extraída e brita produzida | C130: m | D130: 36124.22
A131: 606762 | B131: Arco metálico galvanizado tipo MP 152S - arco alto - vão = 6,55 m e altura = 3,56 m - aterro rodoviário mínimo = 0,75 m e máximo = 4,9 m - areia extraída e brita produzida | C131: m | D131: 34357.14
A132: 607114 | B132: Arco metálico galvanizado tipo MP 152S - arco alto - vão = 6,55 m e altura = 3,56 m - aterro rodoviário mínimo = 0,75 m e máximo = 4,90 m - areia e brita comerciais | C132: m | D132: 34628.09
A133: 607116 | B133: Arco metálico galvanizado tipo MP 152S - arco alto - vão = 6,78 m e altura = 3,61 m - aterro rodoviário mínimo = 0,75 m e máximo = 4,80 m - areia e brita comerciais | C133: m | D133: 36540.33
A134: 606764 | B134: Arco metálico galvanizado tipo MP 152S - arco alto - vão = 6,78 m e altura = 3,61 m - aterro rodoviário mínimo = 0,75 m e máximo = 4,80 m - areia extraída e brita produzida | C134: m | D134: 36257.97
A135: 607115 | B135: Arco metálico galvanizado tipo MP 152S - arco alto - vão = 6,96 m e altura = 4,42 m - aterro rodoviário mínimo = 0,75 m e máximo = 8,10 m - areia e brita comerciais | C135: m | D135: 41484.82
A136: 606763 | B136: Arco metálico galvanizado tipo MP 152S - arco alto - vão = 6,96 m e altura = 4,42 m - aterro rodoviário mínimo = 0,75 m e máximo = 8,10 m - areia extraída e brita produzida | C136: m | D136: 41145.13
A137: 607117 | B137: Arco metálico galvanizado tipo MP 152S - arco alto - vão = 6,99 m e altura = 4,27 m - aterro rodoviário mínimo = 0,75 m e máximo = 5,70 m - areia e brita comerciais | C137: m | D137: 41466.1
A138: 606765 | B138: Arco metálico galvanizado tipo MP 152S - arco alto - vão = 6,99 m e altura = 4,27 m - aterro rodoviário mínimo = 0,75 m e máximo = 5,70 m - areia extraída e brita produzida | C138: m | D138: 41135.73
A139: 607118 | B139: Arco metálico galvanizado tipo MP 152S - arco alto - vão = 7,01 m e altura = 3,63 m - aterro rodoviário mínimo = 0,75 m e máximo = 4,60 m - areia e brita comerciais | C139: m | D139: 37181.96
A140: 606766 | B140: Arco metálico galvanizado tipo MP 152S - arco alto - vão = 7,01 m e altura = 3,63 m - aterro rodoviário mínimo = 0,75 m e máximo = 4,60 m - areia extraída e brita produzida | C140: m | D140: 36890.47
A141: 607120 | B141: Arco metálico galvanizado tipo MP 152S - arco alto - vão = 7,24 m e altura = 3,68 m - aterro rodoviário mínimo = 0,90 m e máximo = 4,4 m - areia e brita comerciais | C141: m | D141: 37863.08
A142: 606768 | B142: Arco metálico galvanizado tipo MP 152S - arco alto - vão = 7,24 m e altura = 3,68 m - aterro rodoviário mínimo = 0,90 m e máximo = 4,40 m - areia extraída e brita produzida | C142: m | D142: 37556.12
A143: 607119 | B143: Arco metálico galvanizado tipo MP 152S - arco alto - vão = 7,42 m e altura = 4,52 m - aterro rodoviário mínimo = 0,90 m e máximo = 6,40 m - areia e brita comerciais | C143: m | D143: 43504.55
A144: 606767 | B144: Arco metálico galvanizado tipo MP 152S - arco alto - vão = 7,42 m e altura = 4,52 m - aterro rodoviário mínimo = 0,90 m e máximo = 6,40 m - areia extraída e brita produzida | C144: m | D144: 43130.21
A145: 607121 | B145: Arco metálico galvanizado tipo MP 152S - arco alto - vão = 7,47 m e altura = 4,19 m - aterro rodoviário mínimo = 0,90 m e máximo = 4,30 m - areia e brita comerciais | C145: m | D145: 41000.22
A146: 606769 | B146: Arco metálico galvanizado tipo MP 152S - arco alto - vão = 7,47 m e altura = 4,19 m - aterro rodoviário mínimo = 0,90 m e máximo = 4,30 m - areia extraída e brita produzida | C146: m | D146: 40650.25
A147: 607123 | B147: Arco metálico galvanizado tipo MP 152S - arco alto - vão = 7,67 m e altura = 3,99 m - aterro rodoviário mínimo = 0,90 m e máximo = 4,10 m - areia e brita comerciais | C147: m | D147: 40455.09
A148: 606771 | B148: Arco metálico galvanizado tipo MP 152S - arco alto - vão = 7,67 m e altura = 3,99 m - aterro rodoviário mínimo = 0,90 m e máximo = 4,10 m - areia extraída e brita produzida | C148: m | D148: 40106.43
A149: 607122 | B149: Arco metálico galvanizado tipo MP 152S - arco alto - vão = 7,85 m e altura = 4,60 m - aterro rodoviário mínimo = 0,90 m e máximo = 6,00 m - areia e brita comerciais | C149: m | D149: 44858.06
A150: 606770 | B150: Arco metálico galvanizado tipo MP 152S - arco alto - vão = 7,85 m e altura = 4,60 m - aterro rodoviário mínimo = 0,90 m e máximo = 6,00 m - areia extraída e brita produzida | C150: m | D150: 44455.96
A151: 607125 | B151: Arco metálico galvanizado tipo MP 152S - arco alto - vão = 7,90 m e altura = 4,04 m - aterro rodoviário mínimo = 0,90 m e máximo = 4,00 m - areia e brita comerciais | C151: m | D151: 41807.5
A152: 606773 | B152: Arco metálico galvanizado tipo MP 152S - arco alto - vão = 7,90 m e altura = 4,04 m - aterro rodoviário mínimo = 0,90 m e máximo = 4,00 m - areia extraída e brita produzida | C152: m | D152: 41440.65
A153: 607124 | B153: Arco metálico galvanizado tipo MP 152S - arco alto - vão = 8,08 m e altura = 4,65 m - aterro rodoviário mínimo = 0,90 m e máximo = 5,80 m - areia e brita comerciais | C153: m | D153: 45531.2
A154: 606772 | B154: Arco metálico galvanizado tipo MP 152S - arco alto - vão = 8,08 m e altura = 4,65 m - aterro rodoviário mínimo = 0,90 m e máximo = 5,80 m - areia extraída e brita produzida | C154: m | D154: 45116.23
A155: 607126 | B155: Arco metálico galvanizado tipo MP 152S - arco alto - vão = 8,31 m e altura = 4,70 m - aterro rodoviário mínimo = 0,90 m e máximo = 5,60 m - areia e brita comerciais | C155: m | D155: 46788.83
A156: 606774 | B156: Arco metálico galvanizado tipo MP 152S - arco alto - vão = 8,31 m e altura = 4,70 m - aterro rodoviário mínimo = 0,90 m e máximo = 5,60 m - areia extraída e brita produzida | C156: m | D156: 46353.86
A157: 607127 | B157: Arco metálico galvanizado tipo MP 152S - arco alto - vão = 8,36 m e altura = 4,11 m - aterro rodoviário mínimo = 0,90 m e máximo = 3,70 m - areia e brita comerciais | C157: m | D157: 43098.71
A158: 606775 | B158: Arco metálico galvanizado tipo MP 152S - arco alto - vão = 8,36 m e altura = 4,11 m - aterro rodoviário mínimo = 0,90 m e máximo = 3,70 m - areia extraída e brita produzida | C158: m | D158: 42709.82
A159: 607129 | B159: Arco metálico galvanizado tipo MP 152S - arco alto - vão = 8,59 m e altura = 4,39 m - aterro rodoviário mínimo = 0,90 m e máximo = 3,60 m - areia e brita comerciais | C159: m | D159: 45100.81
A160: 606777 | B160: Arco metálico galvanizado tipo MP 152S - arco alto - vão = 8,59 m e altura = 4,39 m - aterro rodoviário mínimo = 0,90 m e máximo = 3,60 m - areia extraída e brita produzida | C160: m | D160: 44674.91
A161: 607128 | B161: Arco metálico galvanizado tipo MP 152S - arco alto - vão = 8,97 m e altura = 5,00 m - aterro rodoviário mínimo = 0,90 m e máximo = 5,80 m - areia e brita comerciais | C161: m | D161: 49581.59
A162: 606776 | B162: Arco metálico galvanizado tipo MP 152S - arco alto - vão = 8,97 m e altura = 5,00 m - aterro rodoviário mínimo = 0,90 m e máximo = 5,80 m - areia extraída e brita produzida | C162: m | D162: 49083.96
A163: 607130 | B163: Arco metálico galvanizado tipo MP 152S - arco alto - vão = 9,17 m e altura = 5,49 m - aterro rodoviário mínimo = 0,90 m e máximo = 5,60 m - areia e brita comerciais | C163: m | D163: 52847.13
A164: 606778 | B164: Arco metálico galvanizado tipo MP 152S - arco alto - vão = 9,17 m e altura = 5,49 m - aterro rodoviário mínimo = 0,90 m e máximo = 5,60 m - areia extraída e brita produzida | C164: m | D164: 52300.15
A165: 607131 | B165: Arco metálico galvanizado tipo MP 152S - arco alto - vão = 9,22 m e altura = 4,70 m - aterro rodoviário mínimo = 0,90 m e máximo = 4,10 m - areia e brita comerciais | C165: m | D165: 49579.69
A166: 606779 | B166: Arco metálico galvanizado tipo MP 152S - arco alto - vão = 9,22 m e altura = 4,70 m - aterro rodoviário mínimo = 0,90 m e máximo = 4,10 m - areia extraída e brita produzida | C166: m | D166: 49095.79
A167: 607133 | B167: Arco metálico galvanizado tipo MP 152S - arco alto - vão = 9,45 m e altura = 4,75 m - aterro rodoviário mínimo = 0,90 m e máximo = 4,00 m - areia e brita comerciais | C167: m | D167: 50324.16
A168: 606781 | B168: Arco metálico galvanizado tipo MP 152S - arco alto - vão = 9,45 m e altura = 4,75 m - aterro rodoviário mínimo = 0,90 m e máximo = 4,00 m - areia extraída e brita produzida | C168: m | D168: 49825.71
A169: 607132 | B169: Arco metálico galvanizado tipo MP 152S - arco alto - vão = 9,63 m e altura = 5,59 m - aterro rodoviário mínimo = 0,90 m e máximo = 5,30 m - areia e brita comerciais | C169: m | D169: 54881.98
A170: 606780 | B170: Arco metálico galvanizado tipo MP 152S - arco alto - vão = 9,63 m e altura = 5,59 m - aterro rodoviário mínimo = 0,90 m e máximo = 5,30 m - areia extraída e brita produzida | C170: m | D170: 54296.65
A171: 607134 | B171: Arco metálico galvanizado tipo MP 152S - arco alto - vão = 9,65 m e altura = 5,41 m - aterro rodoviário mínimo = 0,90 m e máximo = 4,70 m - areia e brita comerciais | C171: m | D171: 54336.49
A172: 606782 | B172: Arco metálico galvanizado tipo MP 152S - arco alto - vão = 9,65 m e altura = 5,41 m - aterro rodoviário mínimo = 0,90 m e máximo = 4,70 m - areia extraída e brita produzida | C172: m | D172: 53764.55
A173: 607136 | B173: Arco metálico galvanizado tipo MP 152S - arco alto - vão = 9,68 m e altura = 5,23 m - aterro rodoviário mínimo = 0,90 m e máximo = 3,90 m - areia e brita comerciais | C173: m | D173: 53608.45
A174: 606784 | B174: Arco metálico galvanizado tipo MP 152S - arco alto - vão = 9,68 m e altura = 5,23 m - aterro rodoviário mínimo = 0,90 m e máximo = 3,90 m - areia extraída e brita produzida | C174: m | D174: 53054.78
A175: 607135 | B175: Arco metálico galvanizado tipo MP 152S - arco alto - vão = 9,86 m e altura = 6,07 m - aterro rodoviário mínimo = 0,90 m e máximo = 5,20 m - areia e brita comerciais | C175: m | D175: 59778.02
A176: 606783 | B176: Arco metálico galvanizado tipo MP 152S - arco alto - vão = 9,86 m e altura = 6,07 m - aterro rodoviário mínimo = 0,90 m e máximo = 5,20 m - areia extraída e brita produzida | C176: m | D176: 59136.17
A177: 607138 | B177: Arco metálico galvanizado tipo MP 152S - arco alto - vão = 9,91 m e altura = 5,28 m - aterro rodoviário mínimo = 0,90 m e máximo = 3,80 m - areia e brita comerciais | C177: m | D177: 54529.92
A178: 606786 | B178: Arco metálico galvanizado tipo MP 152S - arco alto - vão = 9,91 m e altura = 5,28 m - aterro rodoviário mínimo = 0,90 m e máximo = 3,80 m - areia extraída e brita produzida | C178: m | D178: 53940.1
A179: 606842 | B179: Arco metálico galvanizado tipo MP 152S - ovoide - vão = 7,21 m e altura = 7,82 m - aterro rodoviário mínimo = 0,75 m e máximo = 6,70 m - areia e brita comerciais | C179: m | D179: 67790.32
A180: 606832 | B180: Arco metálico galvanizado tipo MP 152S - ovoide - vão = 7,21 m e altura = 7,82 m - aterro rodoviário mínimo = 0,75 m e máximo = 6,70 m - areia extraída e brita produzida | C180: m | D180: 67422.72
A181: 606843 | B181: Arco metálico galvanizado tipo MP 152S - ovoide - vão = 7,31 m e altura = 7,87 m - aterro rodoviário mínimo = 0,90 m e máximo = 6,80 m - areia e brita comerciais | C181: m | D181: 70432.78
A182: 606833 | B182: Arco metálico galvanizado tipo MP 152S - ovoide - vão = 7,31 m e altura = 7,87 m - aterro rodoviário mínimo = 0,90 m e máximo = 6,80 m - areia extraída e brita produzida | C182: m | D182: 70047.84
A183: 606845 | B183: Arco metálico galvanizado tipo MP 152S - ovoide - vão = 7,57 m e altura = 8,44 m - aterro rodoviário mínimo = 0,90 m e máximo = 5,60 m - areia e brita comerciais | C183: m | D183: 73013.46
A184: 606835 | B184: Arco metálico galvanizado tipo MP 152S - ovoide - vão = 7,57 m e altura = 8,44 m - aterro rodoviário mínimo = 0,90 m e máximo = 5,60 m - areia extraída e brita produzida | C184: m | D184: 72628.68
A185: 606844 | B185: Arco metálico galvanizado tipo MP 152S - ovoide - vão = 7,77 m e altura = 7,90 m - aterro rodoviário mínimo = 0,90 m e máximo = 6,80 m - areia e brita comerciais | C185: m | D185: 71528.27
A186: 606834 | B186: Arco metálico galvanizado tipo MP 152S - ovoide - vão = 7,77 m e altura = 7,90 m - aterro rodoviário mínimo = 0,90 m e máximo = 6,80 m - areia extraída e brita produzida | C186: m | D186: 71132.46
A187: 606847 | B187: Arco metálico galvanizado tipo MP 152S - ovoide - vão = 8,13 m e altura = 8,01 m - aterro rodoviário mínimo = 0,90 m e máximo = 3,50 m - areia e brita comerciais | C187: m | D187: 76364.5
A188: 606837 | B188: Arco metálico galvanizado tipo MP 152S - ovoide - vão = 8,13 m e altura = 8,01 m - aterro rodoviário mínimo = 0,90 m e máximo = 3,50 m - areia extraída e brita produzida | C188: m | D188: 75933.79
A189: 606846 | B189: Arco metálico galvanizado tipo MP 152S - ovoide - vão = 8,36 m e altura = 8,23 m - aterro rodoviário mínimo = 0,90 m e máximo = 4,30 m - areia e brita comerciais | C189: m | D189: 78184.86
A190: 606836 | B190: Arco metálico galvanizado tipo MP 152S - ovoide - vão = 8,36 m e altura = 8,23 m - aterro rodoviário mínimo = 0,90 m e máximo = 4,30 m - areia extraída e brita produzida | C190: m | D190: 77748.95
A191: 606848 | B191: Arco metálico galvanizado tipo MP 152S - ovoide - vão = 8,56 m e altura = 8,48 m - aterro rodoviário mínimo = 0,90 m e máximo = 5,30 m - areia e brita comerciais | C191: m | D191: 77107.9
A192: 606838 | B192: Arco metálico galvanizado tipo MP 152S - ovoide - vão = 8,56 m e altura = 8,48 m - aterro rodoviário mínimo = 0,90 m e máximo = 5,30 m - areia extraída e brita produzida | C192: m | D192: 76655.27
A193: 606849 | B193: Arco metálico galvanizado tipo MP 152S - ovoide - vão = 8,71 m e altura = 9,32 m - aterro rodoviário mínimo = 0,90 m e máximo = 6,00 m - areia e brita comerciais | C193: m | D193: 83299.79
A194: 606839 | B194: Arco metálico galvanizado tipo MP 152S - ovoide - vão = 8,71 m e altura = 9,32 m - aterro rodoviário mínimo = 0,90 m e máximo = 6,00 m - areia extraída e brita produzida | C194: m | D194: 82856.75
A195: 606850 | B195: Arco metálico galvanizado tipo MP 152S - ovoide - vão = 9,15 m e altura = 9,04 m - aterro rodoviário mínimo = 0,90 m e máximo = 4,70 m - areia e brita comerciais | C195: m | D195: 83998.26
A196: 606840 | B196: Arco metálico galvanizado tipo MP 152S - ovoide - vão = 9,15 m e altura = 9,04 m - aterro rodoviário mínimo = 0,90 m e máximo = 4,70 m - areia extraída e brita produzida | C196: m | D196: 83515.78
A197: 606851 | B197: Arco metálico galvanizado tipo MP 152S - ovoide - vão = 9,15 m e altura = 9,50 m - aterro rodoviário mínimo = 0,90 m e máximo = 5,70 m - areia e brita comerciais | C197: m | D197: 84764.22
A198: 606841 | B198: Arco metálico galvanizado tipo MP 152S - ovoide - vão = 9,15 m e altura = 9,50 m - aterro rodoviário mínimo = 0,90 m e máximo = 5,70 m - areia extraída e brita produzida | C198: m | D198: 84300.56
A199: 605604 | B199: Argamassa de solo-cimento com 10% de cimento e material de jazida - preparo e injeção em tunnel liner | C199: m³ | D199: 295.1
A200: 605695 | B200: Bueiro metálico com chapas múltiplas MP 100 com revestimento em epóxi - D = 0,60 m - brita comercial | C200: m | D200: 1617.46
... 6292 more rows

Sheet INSUMOS SINAPI (hidden)
A1: SINAPI - Sistema Nacional de Pesquisa de Custos e Índices da Construção Civil
A2: RELATÓRIO DE PREÇOS DE INSUMOS - ENGARGOS SOCIAIS SEM DESONERAÇÃO
A3: Mês de Referência: | B3: 04/2025
A4: Data de emissão: | B4: 09/05/2025 | E4: PB
E5: JOAO PESSOA
A6: Origem de preço: | B6: C = COLETADO | C6: CR = COEFICIENTE DE REPRESENTATIVIDADE | E6: 1.136
A7: Preço em branco para determinado estado significa que não houve coleta mínima de preços no mês de referência | E7: 0.6985
A9: Acessar Fichas de Especificação Técnico dos Insumos
A10: Código do Insumo | B10: Descrição do Insumo | C10: Unidade | D10: Origem de Preço | E10: PB
A11: 45333 | B11: ABERTURA PARA ENCAIXE DE CUBA OU LAVATORIO EM BANCADA DE MARMORE/ GRANITO OU OUTRO TIPO DE PEDRA NATURAL | C11: UN | D11: CR | E11: 142.15
A12: 11270 | B12: ABRACADEIRA DE LATAO PARA FIXACAO DE CABO PARA-RAIO, DIMENSOES 32 X 24 X 24 MM | C12: UN | D12: CR
A13: 412 | B13: ABRACADEIRA DE NYLON PARA AMARRACAO DE CABOS, COMPRIMENTO DE *230* X *7,6* MM | C13: UN | D13: CR | E13: 0.97
A14: 414 | B14: ABRACADEIRA DE NYLON PARA AMARRACAO DE CABOS, COMPRIMENTO DE 100 X 2,5 MM | C14: UN | D14: CR | E14: 0.06
A15: 410 | B15: ABRACADEIRA DE NYLON PARA AMARRACAO DE CABOS, COMPRIMENTO DE 150 X *3,6* MM | C15: UN | D15: CR | E15: 0.15
A16: 411 | B16: ABRACADEIRA DE NYLON PARA AMARRACAO DE CABOS, COMPRIMENTO DE 200 X *4,6* MM | C16: UN | D16: C | E16: 0.19
A17: 408 | B17: ABRACADEIRA DE NYLON PARA AMARRACAO DE CABOS, COMPRIMENTO DE 390 X *4,6* MM | C17: UN | D17: CR | E17: 0.94
A18: 39131 | B18: ABRACADEIRA EM ACO PARA AMARRACAO DE ELETRODUTOS, TIPO D, COM 1 1/2" E CUNHA DE FIXACAO | C18: UN | D18: CR | E18: 4.25
A19: 394 | B19: ABRACADEIRA EM ACO PARA AMARRACAO DE ELETRODUTOS, TIPO D, COM 1 1/2" E PARAFUSO DE FIXACAO | C19: UN | D19: CR | E19: 4.3
A20: 39130 | B20: ABRACADEIRA EM ACO PARA AMARRACAO DE ELETRODUTOS, TIPO D, COM 1 1/4" E CUNHA DE FIXACAO | C20: UN | D20: CR | E20: 3.88
A21: 395 | B21: ABRACADEIRA EM ACO PARA AMARRACAO DE ELETRODUTOS, TIPO D, COM 1 1/4" E PARAFUSO DE FIXACAO | C21: UN | D21: CR | E21: 4.14
A22: 39129 | B22: ABRACADEIRA EM ACO PARA AMARRACAO DE ELETRODUTOS, TIPO D, COM 1" E CUNHA DE FIXACAO | C22: UN | D22: CR | E22: 2.39
A23: 393 | B23: ABRACADEIRA EM ACO PARA AMARRACAO DE ELETRODUTOS, TIPO D, COM 1" E PARAFUSO DE FIXACAO | C23: UN | D23: C | E23: 2.5
A24: 39127 | B24: ABRACADEIRA EM ACO PARA AMARRACAO DE ELETRODUTOS, TIPO D, COM 1/2" E CUNHA DE FIXACAO | C24: UN | D24: CR | E24: 2.04
A25: 392 | B25: ABRACADEIRA EM ACO PARA AMARRACAO DE ELETRODUTOS, TIPO D, COM 1/2" E PARAFUSO DE FIXACAO | C25: UN | D25: CR | E25: 2.1
A26: 39133 | B26: ABRACADEIRA EM ACO PARA AMARRACAO DE ELETRODUTOS, TIPO D, COM 2 1/2" E CUNHA DE FIXACAO | C26: UN | D26: CR | E26: 5.58
A27: 397 | B27: ABRACADEIRA EM ACO PARA AMARRACAO DE ELETRODUTOS, TIPO D, COM 2 1/2" E PARAFUSO DE FIXACAO | C27: UN | D27: CR | E27: 6.17
A28: 39132 | B28: ABRACADEIRA EM ACO PARA AMARRACAO DE ELETRODUTOS, TIPO D, COM 2" E CUNHA DE FIXACAO | C28: UN | D28: CR | E28: 4.46
A29: 396 | B29: ABRACADEIRA EM ACO PARA AMARRACAO DE ELETRODUTOS, TIPO D, COM 2" E PARAFUSO DE FIXACAO | C29: UN | D29: CR | E29: 4.78
A30: 39135 | B30: ABRACADEIRA EM ACO PARA AMARRACAO DE ELETRODUTOS, TIPO D, COM 3 1/2" E CUNHA DE FIXACAO | C30: UN | D30: CR | E30: 8.93
A31: 39134 | B31: ABRACADEIRA EM ACO PARA AMARRACAO DE ELETRODUTOS, TIPO D, COM 3" E CUNHA DE FIXACAO | C31: UN | D31: CR | E31: 7.44
A32: 398 | B32: ABRACADEIRA EM ACO PARA AMARRACAO DE ELETRODUTOS, TIPO D, COM 3" E PARAFUSO DE FIXACAO | C32: UN | D32: CR | E32: 6.86
A33: 39128 | B33: ABRACADEIRA EM ACO PARA AMARRACAO DE ELETRODUTOS, TIPO D, COM 3/4" E CUNHA DE FIXACAO | C33: UN | D33: CR | E33: 2.23
A34: 400 | B34: ABRACADEIRA EM ACO PARA AMARRACAO DE ELETRODUTOS, TIPO D, COM 3/4" E PARAFUSO DE FIXACAO | C34: UN | D34: CR | E34: 2.18
A35: 39125 | B35: ABRACADEIRA EM ACO PARA AMARRACAO DE ELETRODUTOS, TIPO D, COM 3/8" E PARAFUSO DE FIXACAO | C35: UN | D35: CR | E35: 2.23
A36: 39126 | B36: ABRACADEIRA EM ACO PARA AMARRACAO DE ELETRODUTOS, TIPO D, COM 4" E CUNHA DE FIXACAO | C36: UN | D36: CR | E36: 10.05
A37: 399 | B37: ABRACADEIRA EM ACO PARA AMARRACAO DE ELETRODUTOS, TIPO D, COM 4" E PARAFUSO DE FIXACAO | C37: UN | D37: CR | E37: 8.85
A38: 39158 | B38: ABRACADEIRA EM ACO PARA AMARRACAO DE ELETRODUTOS, TIPO ECONOMICA (GOTA), COM 8" | C38: UN | D38: CR | E38: 23.77
A39: 39141 | B39: ABRACADEIRA EM ACO PARA AMARRACAO DE ELETRODUTOS, TIPO U SIMPLES, COM 1 1/2" | C39: UN | D39: CR | E39: 1.72
A40: 39140 | B40: ABRACADEIRA EM ACO PARA AMARRACAO DE ELETRODUTOS, TIPO U SIMPLES, COM 1 1/4" | C40: UN | D40: CR | E40: 1.56
A41: 39139 | B41: ABRACADEIRA EM ACO PARA AMARRACAO DE ELETRODUTOS, TIPO U SIMPLES, COM 1" | C41: UN | D41: CR | E41: 1.3
A42: 39137 | B42: ABRACADEIRA EM ACO PARA AMARRACAO DE ELETRODUTOS, TIPO U SIMPLES, COM 1/2" | C42: UN | D42: CR | E42: 0.9
A43: 39143 | B43: ABRACADEIRA EM ACO PARA AMARRACAO DE ELETRODUTOS, TIPO U SIMPLES, COM 2 1/2" | C43: UN | D43: CR | E43: 3.56
A44: 39142 | B44: ABRACADEIRA EM ACO PARA AMARRACAO DE ELETRODUTOS, TIPO U SIMPLES, COM 2" | C44: UN | D44: CR | E44: 2.55
A45: 39144 | B45: ABRACADEIRA EM ACO PARA AMARRACAO DE ELETRODUTOS, TIPO U SIMPLES, COM 3" | C45: UN | D45: CR | E45: 4.14
A46: 39138 | B46: ABRACADEIRA EM ACO PARA AMARRACAO DE ELETRODUTOS, TIPO U SIMPLES, COM 3/4" | C46: UN | D46: CR | E46: 0.95
A47: 39136 | B47: ABRACADEIRA EM ACO PARA AMARRACAO DE ELETRODUTOS, TIPO U SIMPLES, COM 3/8" | C47: UN | D47: CR | E47: 0.63
A48: 39145 | B48: ABRACADEIRA EM ACO PARA AMARRACAO DE ELETRODUTOS, TIPO U SIMPLES, COM 4" | C48: UN | D48: CR | E48: 6.83
A49: 12615 | B49: ABRACADEIRA PVC, PARA CALHA PLUVIAL, DIAMETRO ENTRE *80 E 100* MM, PARA DRENAGEM PLUVIAL PREDIAL | C49: UN | D49: CR | E49: 11.75
A50: 11927 | B50: ABRACADEIRA, GALVANIZADA/ZINCADA, ROSCA SEM FIM, PARAFUSO INOX, LARGURA FITA *12,6 A *14 MM, D = 2" A 2 1/2" | C50: UN | D50: CR
A51: 11928 | B51: ABRACADEIRA, GALVANIZADA/ZINCADA, ROSCA SEM FIM, PARAFUSO INOX, LARGURA FITA *12,6 A *14 MM, D = 3" A 3 3/4" | C51: UN | D51: CR
A52: 11929 | B52: ABRACADEIRA, GALVANIZADA/ZINCADA, ROSCA SEM FIM, PARAFUSO INOX, LARGURA FITA *12,6 A *14 MM, D = 4" A 4 3/4" | C52: UN | D52: CR
A53: 36801 | B53: ACABAMENTO DE METAL CROMADO PARA REGISTRO PEQUENO, DE PAREDE, 1/2" OU 3/4" | C53: UN | D53: CR | E53: 38.93
A54: 36246 | B54: ACABAMENTO SIMPLES/CONVENCIONAL PARA FORRO PVC, TIPO "U" OU "C", COR BRANCA, COMPRIMENTO 6 M | C54: M | D54: CR | E54: 3.42
A55: 37600 | B55: ACESSORIO DE LIGACAO NAO ELETRICO PARA CARGAS EXPLOSIVAS, TUBO DE 6 M | C55: UN | D55: CR
A56: 37599 | B56: ACESSORIO INICIADOR NAO ELETRICO, TUBO DE 6 M, TEMPO DE RETARDO DE *160* MS | C56: UN | D56: CR
A57: 1 | B57: ACETILENO - RECARGA DE GAS PARA CILINDRO (NAO INCLUI TROCA/MANUTENCAO DO CILINDRO) | C57: KG | D57: C | E57: 94.44
A58: 3 | B58: ACIDO CLORIDRICO / ACIDO MURIATICO, DILUICAO 10% A 12% PARA USO EM LIMPEZA | C58: L | D58: CR | E58: 14.72
A59: 43054 | B59: ACO CA-25, 10,0 MM, OU 12,5 MM, OU 16,0 MM, OU 20,0 MM, OU 25,0 MM, VERGALHAO | C59: KG | D59: CR | E59: 8.48
A60: 42402 | B60: ACO CA-25, 16,0 MM, BARRA DE TRANSFERENCIA | C60: KG | D60: CR | E60: 8.11
A61: 42403 | B61: ACO CA-25, 20,0 MM, BARRA DE TRANSFERENCIA | C61: KG | D61: CR | E61: 10.4
A62: 42404 | B62: ACO CA-25, 25,0 MM, BARRA DE TRANSFERENCIA | C62: KG | D62: CR | E62: 10.34
A63: 42405 | B63: ACO CA-25, 32,0 MM, BARRA DE TRANSFERENCIA | C63: KG | D63: CR | E63: 11.02
A64: 34341 | B64: ACO CA-25, 32,0 MM, VERGALHAO | C64: KG | D64: CR | E64: 9.56
A65: 43053 | B65: ACO CA-25, 6,3 MM OU 8,0 MM, VERGALHAO | C65: KG | D65: CR | E65: 7.58
A66: 43058 | B66: ACO CA-50, 10,0 MM, OU 12,5 MM, OU 16,0 MM, OU 20,0 MM, DOBRADO E CORTADO | C66: KG | D66: CR | E66: 7.86
A67: 34 | B67: ACO CA-50, 10,0 MM, VERGALHAO | C67: KG | D67: CR | E67: 7.89
A68: 43055 | B68: ACO CA-50, 12,5 MM OU 16,0 MM, VERGALHAO | C68: KG | D68: C | E68: 6.84
A69: 43056 | B69: ACO CA-50, 20,0 MM OU 25,0 MM, VERGALHAO | C69: KG | D69: CR | E69: 7.89
A70: 43057 | B70: ACO CA-50, 32,0 MM, VERGALHAO | C70: KG | D70: CR | E70: 8.67
A71: 34449 | B71: ACO CA-50, 6,3 MM, DOBRADO E CORTADO | C71: KG | D71: CR | E71: 9.26
A72: 32 | B72: ACO CA-50, 6,3 MM, VERGALHAO | C72: KG | D72: CR | E72: 8.33
A73: 33 | B73: ACO CA-50, 8,0 MM, VERGALHAO | C73: KG | D73: CR | E73: 8.38
A74: 43061 | B74: ACO CA-60, 4,2 MM OU 5,0 MM, DOBRADO E CORTADO | C74: KG | D74: CR | E74: 7.83
A75: 43059 | B75: ACO CA-60, 4,2 MM, OU 5,0 MM, OU 6,0 MM, OU 7,0 MM, VERGALHAO | C75: KG | D75: CR | E75: 7.47
A76: 43062 | B76: ACO CA-60, 6,0 MM OU 7,0 MM, DOBRADO E CORTADO | C76: KG | D76: CR | E76: 8.28
A77: 43060 | B77: ACO CA-60, 8,0 MM OU 9,5 MM, VERGALHAO | C77: KG | D77: CR | E77: 6.51
A78: 40410 | B78: ACOPLAMENTO RIGIDO EM FERRO FUNDIDO PARA SISTEMA DE TUBULACAO RANHURADA, DN 50 MM (2") | C78: UN | D78: C
A79: 40411 | B79: ACOPLAMENTO RIGIDO EM FERRO FUNDIDO PARA SISTEMA DE TUBULACAO RANHURADA, DN 65 MM (2 1/2") | C79: UN | D79: CR
A80: 40412 | B80: ACOPLAMENTO RIGIDO EM FERRO FUNDIDO PARA SISTEMA DE TUBULACAO RANHURADA, DN 80 MM (3") | C80: UN | D80: CR
A81: 44254 | B81: ADAPTADOR CPVC, ROSCAVEL, COM FLANGES E ANEL DE VEDACAO, 15 MM, CAIXA D'AGUA PARA AGUA QUENTE | C81: UN | D81: CR | E81: 31.59
A82: 44255 | B82: ADAPTADOR CPVC, ROSCAVEL, COM FLANGES E ANEL DE VEDACAO, 22 MM, CAIXA D'AGUA PARA AGUA QUENTE | C82: UN | D82: CR | E82: 35.01
A83: 44256 | B83: ADAPTADOR CPVC, ROSCAVEL, COM FLANGES E ANEL DE VEDACAO, 28 MM, CAIXA D'AGUA PARA AGUA QUENTE | C83: UN | D83: CR | E83: 39.54
A84: 44257 | B84: ADAPTADOR CPVC, ROSCAVEL, COM FLANGES E ANEL DE VEDACAO, 35 MM, CAIXA D'AGUA PARA AGUA QUENTE | C84: UN | D84: CR | E84: 62.56
A85: 44258 | B85: ADAPTADOR CPVC, ROSCAVEL, COM FLANGES E ANEL DE VEDACAO, 42 MM, CAIXA D'AGUA PARA AGUA QUENTE | C85: UN | D85: CR | E85: 71.49
A86: 44259 | B86: ADAPTADOR CPVC, ROSCAVEL, COM FLANGES E ANEL DE VEDACAO, 54 MM, CAIXA D'AGUA PARA AGUA QUENTE | C86: UN | D86: CR | E86: 98.13
A87: 37997 | B87: ADAPTADOR CPVC, SOLDAVEL, 15 MM, PARA AGUA QUENTE | C87: UN | D87: CR | E87: 18.82
A88: 37998 | B88: ADAPTADOR CPVC, SOLDAVEL, 22 MM, PARA AGUA QUENTE | C88: UN | D88: CR | E88: 25.19
A89: 55 | B89: ADAPTADOR DE COMPRESSAO EM POLIPROPILENO (PP), PARA TUBO EM PEAD, 20 MM X 1/2", PARA LIGACAO PREDIAL DE AGUA (NTS 179) | C89: UN | D89: C
A90: 61 | B90: ADAPTADOR DE COMPRESSAO EM POLIPROPILENO (PP), PARA TUBO EM PEAD, 20 MM X 3/4", PARA LIGACAO PREDIAL DE AGUA (NTS 179) | C90: UN | D90: CR
A91: 62 | B91: ADAPTADOR DE COMPRESSAO EM POLIPROPILENO (PP), PARA TUBO EM PEAD, 32 MM X 1", PARA LIGACAO PREDIAL DE AGUA (NTS 179) | C91: UN | D91: CR
A92: 10899 | B92: ADAPTADOR EM LATAO, ENGATE RAPIDO 2 1/2" X ROSCA INTERNA 5 FIOS 2 1/2", PARA INSTALACAO PREDIAL DE COMBATE A INCENDIO | C92: UN | D92: CR | E92: 87.61
A93: 10900 | B93: ADAPTADOR EM LATAO, ENGATE RAPIDO1 1/2" X ROSCA INTERNA 5 FIOS 2 1/2", PARA INSTALACAO PREDIAL DE COMBATE A INCENDIO | C93: UN | D93: CR | E93: 68.57
A94: 47 | B94: ADAPTADOR PVC PBA, BOLSA/ROSCA, JE, DN 100 / DE 110 MM | C94: UN | D94: CR
A95: 48 | B95: ADAPTADOR PVC PBA, BOLSA/ROSCA, JE, DN 50 / DE 60 MM | C95: UN | D95: CR
A96: 46 | B96: ADAPTADOR PVC PBA, BOLSA/ROSCA, JE, DN 75 / DE 85 MM | C96: UN | D96: CR
A97: 52 | B97: ADAPTADOR PVC PBA, PONTA/ROSCA, JE, DN 50 / DE 60 MM | C97: UN | D97: CR
A98: 43 | B98: ADAPTADOR PVC PBA, PONTA/ROSCA, JE, DN 75 / DE 85 MM | C98: UN | D98: CR
A99: 103 | B99: ADAPTADOR PVC SOLDAVEL CURTO COM BOLSA E ROSCA, 110 MM X 4", PARA AGUA FRIA | C99: UN | D99: CR | E99: 43.43
A100: 107 | B100: ADAPTADOR PVC SOLDAVEL CURTO COM BOLSA E ROSCA, 20 MM X 1/2", PARA AGUA FRIA | C100: UN | D100: CR | E100: 0.81
A101: 65 | B101: ADAPTADOR PVC SOLDAVEL CURTO COM BOLSA E ROSCA, 25 MM X 3/4", PARA AGUA FRIA | C101: UN | D101: CR | E101: 0.89
A102: 108 | B102: ADAPTADOR PVC SOLDAVEL CURTO COM BOLSA E ROSCA, 32 MM X 1", PARA AGUA FRIA | C102: UN | D102: CR | E102: 1.8
A103: 110 | B103: ADAPTADOR PVC SOLDAVEL CURTO COM BOLSA E ROSCA, 40 MM X 1 1/2", PARA AGUA FRIA | C103: UN | D103: CR | E103: 6.25
A104: 109 | B104: ADAPTADOR PVC SOLDAVEL CURTO COM BOLSA E ROSCA, 40 MM X 1 1/4", PARA AGUA FRIA | C104: UN | D104: CR | E104: 3.72
A105: 111 | B105: ADAPTADOR PVC SOLDAVEL CURTO COM BOLSA E ROSCA, 50 MM X 1 1/4", PARA AGUA FRIA | C105: UN | D105: CR | E105: 8.45
A106: 112 | B106: ADAPTADOR PVC SOLDAVEL CURTO COM BOLSA E ROSCA, 50 MM X1 1/2", PARA AGUA FRIA | C106: UN | D106: CR | E106: 4.48
A107: 113 | B107: ADAPTADOR PVC SOLDAVEL CURTO COM BOLSA E ROSCA, 60 MM X 2", PARA AGUA FRIA | C107: UN | D107: CR | E107: 11.21
A108: 104 | B108: ADAPTADOR PVC SOLDAVEL CURTO COM BOLSA E ROSCA, 75 MM X 2 1/2", PARA AGUA FRIA | C108: UN | D108: CR | E108: 19.52
A109: 102 | B109: ADAPTADOR PVC SOLDAVEL CURTO COM BOLSA E ROSCA, 85 MM X 3", PARA AGUA FRIA | C109: UN | D109: CR | E109: 26.91
A110: 95 | B110: ADAPTADOR PVC SOLDAVEL, COM FLANGE E ANEL DE VEDACAO, 20 MM X 1/2", PARA CAIXA D'AGUA | C110: UN | D110: CR | E110: 11.37
A111: 96 | B111: ADAPTADOR PVC SOLDAVEL, COM FLANGE E ANEL DE VEDACAO, 25 MM X 3/4", PARA CAIXA D'AGUA | C111: UN | D111: CR | E111: 12.37
A112: 97 | B112: ADAPTADOR PVC SOLDAVEL, COM FLANGE E ANEL DE VEDACAO, 32 MM X 1", PARA CAIXA D'AGUA | C112: UN | D112: CR | E112: 18.61
A113: 98 | B113: ADAPTADOR PVC SOLDAVEL, COM FLANGE E ANEL DE VEDACAO, 40 MM X 1 1/4", PARA CAIXA D'AGUA | C113: UN | D113: CR | E113: 27.86
A114: 99 | B114: ADAPTADOR PVC SOLDAVEL, COM FLANGE E ANEL DE VEDACAO, 50 MM X 1 1/2", PARA CAIXA D'AGUA | C114: UN | D114: CR | E114: 26.33
A115: 60 | B115: ADAPTADOR PVC, COM REGISTRO, PARA PEAD, 20 MM X 3/4", PARA LIGACAO PREDIAL DE AGUA | C115: UN | D115: CR
A116: 72 | B116: ADAPTADOR PVC, ROSCAVEL, COM FLANGES E ANEL DE VEDACAO, 1 1/2", PARA CAIXA D'AGUA | C116: UN | D116: CR | E116: 50.5
A117: 71 | B117: ADAPTADOR PVC, ROSCAVEL, COM FLANGES E ANEL DE VEDACAO, 1", PARA CAIXA D'AGUA | C117: UN | D117: CR | E117: 31.19
A118: 67 | B118: ADAPTADOR PVC, ROSCAVEL, COM FLANGES E ANEL DE VEDACAO, 1/2", PARA CAIXA D'AGUA | C118: UN | D118: CR | E118: 16.33
A119: 73 | B119: ADAPTADOR PVC, ROSCAVEL, COM FLANGES E ANEL DE VEDACAO, 3/4", PARA CAIXA D'AGUA | C119: UN | D119: CR | E119: 15.62
A120: 100 | B120: ADAPTADOR PVC, SOLDAVEL, COM FLANGES E ANEL DE VEDACAO, 60 MM X 2", PARA CAIXA D'AGUA | C120: UN | D120: CR | E120: 46
A121: 75 | B121: ADAPTADOR PVC, SOLDAVEL, COM FLANGES LIVRES, 110 MM X 4", PARA CAIXA D'AGUA | C121: UN | D121: CR | E121: 268.22
A122: 83 | B122: ADAPTADOR PVC, SOLDAVEL, COM FLANGES LIVRES, 75 MM X 2 1/2", PARA CAIXA D'AGUA | C122: UN | D122: CR | E122: 214.43
A123: 74 | B123: ADAPTADOR PVC, SOLDAVEL, COM FLANGES LIVRES, 85 MM X 3", PARA CAIXA D'AGUA | C123: UN | D123: CR | E123: 306.58
A124: 106 | B124: ADAPTADOR PVC, SOLDAVEL, LONGO, COM FLANGE LIVRE, 110 MM X 4", PARA CAIXA D'AGUA | C124: UN | D124: CR | E124: 387.68
A125: 88 | B125: ADAPTADOR PVC, SOLDAVEL, LONGO, COM FLANGE LIVRE, 32 MM X 1", PARA CAIXA D'AGUA | C125: UN | D125: CR | E125: 10.89
A126: 82 | B126: ADAPTADOR PVC, SOLDAVEL, LONGO, COM FLANGE LIVRE, 75 MM X 2 1/2", PARA CAIXA D'AGUA | C126: UN | D126: CR | E126: 204.01
A127: 105 | B127: ADAPTADOR PVC, SOLDAVEL, LONGO, COM FLANGE LIVRE, 85 MM X 3", PARA CAIXA D'AGUA | C127: UN | D127: CR | E127: 289.08
A128: 39719 | B128: ADESIVO / COLA DE CONTATO LIQUIDO, A BASE DE RESINAS, PARA COLAGEM DE ESPUMA PARA ISOLAMENTO TERMICO FLEXIVEL | C128: L | D128: CR | E128: 130.1
A129: 3410 | B129: ADESIVO / COLA PARA EPS (ISOPOR) E OUTROS MATERIAIS | C129: KG | D129: CR | E129: 29.26
A130: 4791 | B130: ADESIVO ACRILICO DE BASE AQUOSA / COLA DE CONTATO | C130: KG | D130: CR | E130: 36.06
A131: 157 | B131: ADESIVO ESTRUTURAL A BASE DE RESINA EPOXI PARA INJECAO EM TRINCAS, BICOMPONENTE, BAIXA VISCOSIDADE | C131: KG | D131: CR | E131: 197.33
A132: 156 | B132: ADESIVO ESTRUTURAL A BASE DE RESINA EPOXI, BICOMPONENTE, FLUIDO | C132: KG | D132: CR | E132: 70.26
A133: 131 | B133: ADESIVO ESTRUTURAL A BASE DE RESINA EPOXI, BICOMPONENTE, PASTOSO (TIXOTROPICO) | C133: KG | D133: CR | E133: 60.09
A134: 21114 | B134: ADESIVO PARA TUBOS CPVC, *75* G | C134: UN | D134: CR | E134: 25.64
A135: 119 | B135: ADESIVO PLASTICO PARA PVC, BISNAGA COM 75 GR | C135: UN | D135: C | E135: 6.5
A136: 122 | B136: ADESIVO PLASTICO PARA PVC, FRASCO COM *850* GR | C136: UN | D136: CR | E136: 50.01
A137: 20080 | B137: ADESIVO PLASTICO PARA PVC, FRASCO COM 175 GR | C137: UN | D137: CR | E137: 16.32
A138: 124 | B138: ADITIVO ACELERADOR DE PEGA E ENDURECIMENTO PARA ARGAMASSAS E CONCRETOS, LIQUIDO E ISENTO DE CLORETOS | C138: L | D138: CR | E138: 23.17
A139: 7334 | B139: ADITIVO ADESIVO LIQUIDO PARA ARGAMASSAS DE REVESTIMENTOS CIMENTICIOS | C139: L | D139: CR | E139: 17.95
A140: 45146 | B140: ADITIVO IMPERMEABILIZANTE CRISTALIZANTE PARA CONCRETO | C140: KG | D140: CR | E140: 44.43
A141: 123 | B141: ADITIVO IMPERMEABILIZANTE DE PEGA NORMAL PARA ARGAMASSAS E CONCRETOS SEM ARMACAO, LIQUIDO E ISENTO DE CLORETOS | C141: L | D141: C | E141: 9.48
A142: 127 | B142: ADITIVO IMPERMEABILIZANTE DE PEGA ULTRARRAPIDA, LIQUIDO E ISENTO DE CLORETOS | C142: L | D142: CR | E142: 22.63
A143: 133 | B143: ADITIVO LIQUIDO INCORPORADOR DE AR PARA CONCRETO E ARGAMASSA, LIQUIDO E ISENTO DE CLORETOS | C143: L | D143: CR | E143: 9.4
A144: 43617 | B144: ADITIVO PLASTIFICANTE E ESTABILIZADOR PARA ARGAMASSAS DE ASSENTAMENTO E REBOCO, LIQUIDO E ISENTO DE CLORETOS | C144: L | D144: CR | E144: 10.5
A145: 132 | B145: ADITIVO PLASTIFICANTE RETARDADOR DE PEGA E REDUTOR DE AGUA PARA CONCRETO, LIQUIDO E ISENTO DE CLORETOS | C145: L | D145: CR | E145: 9.74
A146: 43618 | B146: ADITIVO SUPERPLASTIFICANTE DE PEGA NORMAL PARA CONCRETO, LIQUIDO E ISENTO DE CLORETOS | C146: KG | D146: CR | E146: 24.53
A147: 37476 | B147: ADUELA/ GALERIA PRE-MOLDADA DE CONCRETO ARMADO, SECAO QUADRADA INTERNA DE 1,50 X 1,50 M (L X A), MISULA DE 20 X 20 CM, C = 1,00 M, ESPESSURA MIN = 15 CM, TB-45 E FCK DO CONCRETO = 30 MPA | C147: UN | D147: CR
A148: 37478 | B148: ADUELA/ GALERIA PRE-MOLDADA DE CONCRETO ARMADO, SECAO RETANGULAR INTERNA DE 2,00 X 2,00 M (L X A), MISULA DE 20 X 20 CM, C = 1,00 M, ESPESSURA MIN = 15 CM, TB-45 E FCK DO CONCRETO = 30 MPA | C148: UN | D148: CR
A149: 37477 | B149: ADUELA/ GALERIA PRE-MOLDADA DE CONCRETO ARMADO, SECAO RETANGULAR INTERNA DE 2,50 X 2,50 M (L X A), MISULA DE 20 X 20 CM, C = 1,00 M, ESPESSURA MIN = 15 CM, TB-45 E FCK DO CONCRETO = 30 MPA | C149: UN | D149: CR
A150: 37479 | B150: ADUELA/ GALERIA PRE-MOLDADA DE CONCRETO ARMADO, SECAO RETANGULAR INTERNA DE 3,00 X 3,00 M (L X A), MISULA DE 20 X 20 CM, C = 1.00 M, ESPESSURA MIN = 20 CM, TB-45 E FCK DO CONCRETO = 30 MPA | C150: UN | D150: CR
A151: 4319 | B151: AFASTADOR PARA TELHA DE FIBROCIMENTO CANALETE 90 OU KALHETAO | C151: UN | D151: CR | E151: 2.25
A152: 42409 | B152: AGENTE DE CURA, PROTETOR DA EVAPORACAO DA AGUA DE HIDRATACAO DO CONCRETO | C152: KG | D152: CR | E152: 15.45
A153: 40553 | B153: AGREGADO RECICLADO, TIPO RACHAO RECICLADO CINZA, CLASSE A | C153: M3 | D153: C
A154: 6114 | B154: AJUDANTE DE ARMADOR (HORISTA) | C154: H | D154: CR | E154: 15.57
A155: 40912 | B155: AJUDANTE DE ARMADOR (MENSALISTA) | C155: MES | D155: CR | E155: 2725.53
A156: 247 | B156: AJUDANTE DE ELETRICISTA (HORISTA) | C156: H | D156: CR | E156: 15.57
A157: 40919 | B157: AJUDANTE DE ELETRICISTA (MENSALISTA) | C157: MES | D157: CR | E157: 2725.53
A158: 44499 | B158: AJUDANTE DE ESTRUTURAS METALICAS (HORISTA) | C158: H | D158: CR | E158: 15.57
A159: 40984 | B159: AJUDANTE DE ESTRUTURAS METALICAS (MENSALISTA) | C159: MES | D159: CR | E159: 2725.53
A160: 248 | B160: AJUDANTE DE OPERACAO EM GERAL (HORISTA) | C160: H | D160: CR | E160: 15.76
A161: 41086 | B161: AJUDANTE DE OPERACAO EM GERAL (MENSALISTA) | C161: MES | D161: CR | E161: 2760.6
A162: 34466 | B162: AJUDANTE DE PINTOR (HORISTA) | C162: H | D162: CR | E162: 15.57
A163: 41083 | B163: AJUDANTE DE PINTOR (MENSALISTA) | C163: MES | D163: CR | E163: 2725.53
A164: 252 | B164: AJUDANTE DE SERRALHEIRO (HORISTA) | C164: H | D164: CR | E164: 15.57
A165: 40909 | B165: AJUDANTE DE SERRALHEIRO (MENSALISTA) | C165: MES | D165: CR | E165: 2725.53
A166: 242 | B166: AJUDANTE ESPECIALIZADO (HORISTA) | C166: H | D166: CR | E166: 15.76
A167: 41085 | B167: AJUDANTE ESPECIALIZADO (MENSALISTA) | C167: MES | D167: CR | E167: 2760.6
A168: 427 | B168: ALCA PREFORMADA DE CONTRA POSTE, EM ACO GALVANIZADO, PARA CABO 3/16", COMPRIMENTO *860* MM | C168: UN | D168: CR | E168: 8.83
A169: 417 | B169: ALCA PREFORMADA DE DISTRIBUICAO, EM ACO GALVANIZADO, PARA CABO DE ALUMINIO DIAMETRO 16 A 25 MM | C169: UN | D169: CR | E169: 4.16
A170: 11273 | B170: ALCA PREFORMADA DE DISTRIBUICAO, EM ACO GALVANIZADO, PARA CONDUTORES DE ALUMINIO AWG 1/0 (CAA 6/1 OU CA 7 FIOS) | C170: UN | D170: CR | E170: 12.91
A171: 11272 | B171: ALCA PREFORMADA DE DISTRIBUICAO, EM ACO GALVANIZADO, PARA CONDUTORES DE ALUMINIO AWG 2 (CAA 6/1 OU CA 7 FIOS) | C171: UN | D171: CR | E171: 7.79
A172: 11275 | B172: ALCA PREFORMADA DE SERVICO, EM ACO GALVANIZADO, PARA CONDUTORES DE ALUMINIO AWG 4 (CAA 6/1) | C172: UN | D172: CR | E172: 3.12
A173: 11274 | B173: ALCA PREFORMADA DE SERVICO, EM ACO GALVANIZADO, PARA CONDUTORES DE ALUMINIO AWG 6 (CAA 6/1) | C173: UN | D173: CR | E173: 2.38
A174: 38470 | B174: ALICATE DE CORTE DIAGONAL 6" COM ISOLAMENTO | C174: UN | D174: C | E174: 40
A175: 38547 | B175: ALICATE DE CRIMPAR RJ11, RJ12 E RJ45, COM CATRACA | C175: UN | D175: CR | E175: 109.15
A176: 38467 | B176: ALICATE DE PRESSAO 11" PARA SOLDA, TIPO C | C176: UN | D176: CR | E176: 66.04
A177: 38468 | B177: ALICATE DE PRESSAO 11" PARA SOLDA, TIPO U | C177: UN | D177: CR | E177: 72.67
A178: 38469 | B178: ALICATE DE PRESSAO PARA SOLDA DE CHAPA 18" | C178: UN | D178: CR | E178: 117.37
A179: 38471 | B179: ALICATE PARA ANEIS DE PISTAO, CAPACIDADE *50* A 100 MM | C179: UN | D179: CR | E179: 94.37
A180: 37370 | B180: ALIMENTACAO - HORISTA (COLETADO CAIXA - ENCARGOS COMPLEMENTARES) | C180: H | D180: C | E180: 0.92
A181: 40862 | B181: ALIMENTACAO - MENSALISTA (COLETADO CAIXA - ENCARGOS COMPLEMENTARES) | C181: MES | D181: C | E181: 173.76
A182: 10658 | B182: ALISADORA DE CONCRETO COM MOTOR A GASOLINA DE 5,5 HP, PESO COM MOTOR DE 78 KG, 4 PAS | C182: UN | D182: C
A183: 253 | B183: ALMOXARIFE (HORISTA) | C183: H | D183: C | E183: 19.67
A184: 40809 | B184: ALMOXARIFE (MENSALISTA) | C184: MES | D184: CR | E184: 3441.5
A185: 42428 | B185: ALONGADOR COM TRES ALTURAS, EM TUBO DE ACO CARBONO, PINTURA NO PROCESSO ELETROSTATICO - EQUIPAMENTO DE GINASTICA PARA ACADEMIA AO AR LIVRE / ACADEMIA DA TERCEIRA IDADE - ATI | C185: UN | D185: C
A186: 301 | B186: ANEL BORRACHA PARA TUBO ESGOTO PREDIAL, DN 100 MM (NBR 5688) | C186: UN | D186: C | E186: 3.9
A187: 296 | B187: ANEL BORRACHA PARA TUBO ESGOTO PREDIAL, DN 50 MM (NBR 5688) | C187: UN | D187: CR | E187: 2.2
A188: 297 | B188: ANEL BORRACHA PARA TUBO ESGOTO PREDIAL, DN 75 MM (NBR 5688) | C188: UN | D188: CR | E188: 3.24
A189: 299 | B189: ANEL BORRACHA, DN 100 MM, PARA TUBO SERIE REFORCADA ESGOTO PREDIAL | C189: UN | D189: CR | E189: 4.57
A190: 300 | B190: ANEL BORRACHA, DN 150 MM, PARA TUBO SERIE REFORCADA ESGOTO PREDIAL | C190: UN | D190: CR | E190: 15.83
A191: 20085 | B191: ANEL BORRACHA, DN 50 MM, PARA TUBO SERIE REFORCADA ESGOTO PREDIAL | C191: UN | D191: CR | E191: 2.89
A192: 298 | B192: ANEL BORRACHA, DN 75 MM, PARA TUBO SERIE REFORCADA ESGOTO PREDIAL | C192: UN | D192: CR | E192: 3.52
A193: 311 | B193: ANEL BORRACHA, PARA TUBO PVC DEFOFO, DN 100 MM (NBR 7665) | C193: UN | D193: CR | E193: 13.05
A194: 318 | B194: ANEL BORRACHA, PARA TUBO PVC DEFOFO, DN 150 MM (NBR 7665) | C194: UN | D194: CR | E194: 26.29
A195: 319 | B195: ANEL BORRACHA, PARA TUBO PVC DEFOFO, DN 200 MM (NBR 7665) | C195: UN | D195: CR | E195: 41.22
A196: 303 | B196: ANEL BORRACHA, PARA TUBO PVC, REDE COLETOR ESGOTO, DN 100 MM (NBR 7362) | C196: UN | D196: CR | E196: 4.32
A197: 305 | B197: ANEL BORRACHA, PARA TUBO PVC, REDE COLETOR ESGOTO, DN 150 MM (NBR 7362) | C197: UN | D197: CR | E197: 13.59
A198: 306 | B198: ANEL BORRACHA, PARA TUBO PVC, REDE COLETOR ESGOTO, DN 200 MM (NBR 7362) | C198: UN | D198: CR | E198: 20.61
A199: 307 | B199: ANEL BORRACHA, PARA TUBO PVC, REDE COLETOR ESGOTO, DN 250 MM (NBR 7362) | C199: UN | D199: CR | E199: 52.08
A200: 309 | B200: ANEL BORRACHA, PARA TUBO PVC, REDE COLETOR ESGOTO, DN 350 MM (NBR 7362) | C200: UN | D200: CR | E200: 85.3
A201: 310 | B201: ANEL BORRACHA, PARA TUBO PVC, REDE COLETOR ESGOTO, DN 400 MM (NBR 7362) | C201: UN | D201: CR | E201: 118.23
... 4646 more rows

Sheet COMP Sint. Sinapi (hidden)
A1: SINAPI - Sistema Nacional de Pesquisa de Custos e Índices da Construção Civil
A2: RELATÓRIO DE CUSTOS DE COMPOSIÇÕES - ENCARGOS SOCIAIS SEM DESONERAÇÃO
A3: Mês de Referência: | B3: 04/2025
A4: Data de emissão: | B4: 09/05/2025 | D4: PB
D5: JOAO PESSOA
A6: Observação: | B6: %AS (porcentagem Atribuído São Paulo) corresponde a porcentagem do custo total da | D6: 1.136
B7: composição que foi obtida utilizando preços de insumos de São Paulo por indisponibilidade | D7: 0.6985
B8: dos preços de insumos necessários à composição no estado em questão. Custo zerado (hífen)
B9: indica que pelo menos um dos itens da composição não tem custo/preço. | D9: PB
A10: Código da Composição | B10: Descrição | C10: Unidade | D10: Custo (R$)
A11: 104658 | B11: PISO PODOTÁTIL DE ALERTA OU DIRECIONAL, DE CONCRETO, ASSENTADO SOBRE ARGAMASSA. AF_03/2024 | C11: M2 | D11: 133.5
A12: 105002 | B12: RAMPA DE ACESSIBILIDADE EM CONCRETO MOLDADO IN LOCO, EM CALÇADA NOVA COM LARGURA MAIOR OU IGUAL À 3,00 M, FCK 25MPA, COM PISO PODOTÁTIL. AF_03/2024 | C12: UN | D12: 673.84
A13: 105004 | B13: RAMPA DE ACESSIBILIDADE EM CONCRETO MOLDADO IN LOCO, EM CALÇADA NOVA COM LARGURA MENOR À 3,00 M, FCK 25MPA, COM PISO PODOTÁTIL. AF_03/2024 | C13: M2 | D13: 114.17
A14: 105003 | B14: RAMPA DE ACESSIBILIDADE EM CONCRETO MOLDADO IN LOCO, EM CALÇADA PRÉ EXISTENTE COM LARGURA MAIOR OU IGUAL À 3,00 M, FCK 25MPA, COM PISO PODOTÁTIL. AF_03/2024 | C14: UN | D14: 1049.62
A15: 105005 | B15: RAMPA DE ACESSIBILIDADE EM CONCRETO MOLDADO IN LOCO, EM CALÇADA PRÉ EXISTENTE COM LARGURA MENOR À 3,00 M, FCK 25MPA, COM PISO PODOTÁTIL. AF_03/2024 | C15: M2 | D15: 183.73
A16: 105006 | B16: RAMPA DE ACESSIBILIDADE EM CONCRETO PRÉ MOLDADO, EM CALÇADA NOVA COM LARGURA MAIOR OU IGUAL À 3,00 M, FCK 25MPA, COM PISO PODOTÁTIL. AF_03/2024 | C16: UN | D16: 0
A17: 104999 | B17: RAMPA DE ACESSIBILIDADE EM CONCRETO PRÉ MOLDADO, EM CALÇADA PRÉ EXISTENTE COM LARGURA MAIOR OU IGUAL À 3,00 M, FCK 25MPA, COM PISO PODOTÁTIL. AF_03/2024 | C17: UN | D17: 0
A18: 105000 | B18: RAMPA DE ACESSIBILIDADE PARA ACESSO A EDIFICAÇÕES COM INCLINAÇÃO DE 8,33% EM CONCRETO MOLDADO IN LOCO, COM LARGURA DE 1,20M, FCK 25MPA, NÃO ARMADA, COM JUNTA A CADA 2M COM CORTE À SECO. AF_03/2024 | C18: M | D18: 1316.7
A19: 105001 | B19: RAMPA DE ACESSIBILIDADE PARA ACESSO A EDIFICAÇÕES COM INCLINAÇÃO DE 8,33% EM CONCRETO MOLDADO IN LOCO, COM LARGURA DE 1,50M, FCK 25MPA, NÃO ARMADA, COM JUNTA A CADA 2M COM CORTE À SECO. AF_03/2024 | C19: M | D19: 1348.99
A20: 89306 | B20: ALVENARIA ESTRUTURAL DE BLOCOS CERÂMICOS 14X19X29, (ESPESSURA DE 14 CM), UTILIZANDO COLHER DE PEDREIRO E ARGAMASSA DE ASSENTAMENTO COM PREPARO EM BETONEIRA. AF_03/2023 | C20: M2 | D20: 90.38
A21: 89307 | B21: ALVENARIA ESTRUTURAL DE BLOCOS CERÂMICOS 14X19X29, (ESPESSURA DE 14 CM), UTILIZANDO COLHER DE PEDREIRO E ARGAMASSA DE ASSENTAMENTO COM PREPARO MANUAL. AF_03/2023 | C21: M2 | D21: 92.96
A22: 89290 | B22: ALVENARIA ESTRUTURAL DE BLOCOS CERÂMICOS 14X19X29, (ESPESSURA DE 14 CM), UTILIZANDO PALHETA E ARGAMASSA DE ASSENTAMENTO COM PREPARO EM BETONEIRA. AF_03/2023 | C22: M2 | D22: 75.58
A23: 89291 | B23: ALVENARIA ESTRUTURAL DE BLOCOS CERÂMICOS 14X19X29, (ESPESSURA DE 14 CM), UTILIZANDO PALHETA E ARGAMASSA DE ASSENTAMENTO COM PREPARO MANUAL. AF_03/2023 | C23: M2 | D23: 77.5
A24: 89298 | B24: ALVENARIA ESTRUTURAL DE BLOCOS CERÂMICOS 14X19X39, (ESPESSURA DE 14 CM), UTILIZANDO COLHER DE PEDREIRO E ARGAMASSA DE ASSENTAMENTO COM PREPARO EM BETONEIRA. AF_03/2023 | C24: M2 | D24: 78.94
A25: 89299 | B25: ALVENARIA ESTRUTURAL DE BLOCOS CERÂMICOS 14X19X39, (ESPESSURA DE 14 CM), UTILIZANDO COLHER DE PEDREIRO E ARGAMASSA DE ASSENTAMENTO COM PREPARO MANUAL. AF_03/2023 | C25: M2 | D25: 81.26
A26: 89282 | B26: ALVENARIA ESTRUTURAL DE BLOCOS CERÂMICOS 14X19X39, (ESPESSURA DE 14 CM), UTILIZANDO PALHETA E ARGAMASSA DE ASSENTAMENTO COM PREPARO EM BETONEIRA. AF_03/2023 | C26: M2 | D26: 68.48
A27: 89283 | B27: ALVENARIA ESTRUTURAL DE BLOCOS CERÂMICOS 14X19X39, (ESPESSURA DE 14 CM), UTILIZANDO PALHETA E ARGAMASSA DE ASSENTAMENTO COM PREPARO MANUAL. AF_03/2023 | C27: M2 | D27: 70.21
A28: 89480 | B28: ALVENARIA DE BLOCOS DE CONCRETO ESTRUTURAL 14X19X29 CM (ESPESSURA 14 CM), FBK = 14 MPA, UTILIZANDO COLHER DE PEDREIRO. AF_10/2022 | C28: M2 | D28: 148.52
A29: 89464 | B29: ALVENARIA DE BLOCOS DE CONCRETO ESTRUTURAL 14X19X29 CM (ESPESSURA 14 CM), FBK = 14,0 MPA, UTILIZANDO PALHETA. AF_10/2022 | C29: M2 | D29: 130.12
A30: 89478 | B30: ALVENARIA DE BLOCOS DE CONCRETO ESTRUTURAL 14X19X29 CM (ESPESSURA 14 CM), FBK = 4,5 MPA, UTILIZANDO COLHER DE PEDREIRO. AF_10/2022 | C30: M2 | D30: 127.65
A31: 89462 | B31: ALVENARIA DE BLOCOS DE CONCRETO ESTRUTURAL 14X19X29 CM (ESPESSURA 14 CM), FBK = 4,5 MPA, UTILIZANDO PALHETA. AF_10/2022 | C31: M2 | D31: 110.19
A32: 104444 | B32: ALVENARIA DE BLOCOS DE CONCRETO ESTRUTURAL 14X19X29 CM (ESPESSURA 14 CM), FBK = 8 MPA, UTILIZANDO COLHER DE PEDREIRO. AF_10/2022 | C32: M2 | D32: 0
A33: 104442 | B33: ALVENARIA DE BLOCOS DE CONCRETO ESTRUTURAL 14X19X29 CM (ESPESSURA 14 CM), FBK = 8 MPA, UTILIZANDO PALHETA. AF_10/2022 | C33: M2 | D33: 0
A34: 89472 | B34: ALVENARIA DE BLOCOS DE CONCRETO ESTRUTURAL 14X19X39 CM (ESPESSURA 14 CM), FBK = 14 MPA, UTILIZANDO COLHER DE PEDREIRO. AF_10/2022 | C34: M2 | D34: 114.15
A35: 89455 | B35: ALVENARIA DE BLOCOS DE CONCRETO ESTRUTURAL 14X19X39 CM (ESPESSURA 14 CM), FBK = 14 MPA, UTILIZANDO PALHETA. AF_10/2022 | C35: M2 | D35: 102.5
A36: 89470 | B36: ALVENARIA DE BLOCOS DE CONCRETO ESTRUTURAL 14X19X39 CM (ESPESSURA 14 CM), FBK = 4,5 MPA, UTILIZANDO COLHER DE PEDREIRO. AF_10/2022 | C36: M2 | D36: 94.86
A37: 89453 | B37: ALVENARIA DE BLOCOS DE CONCRETO ESTRUTURAL 14X19X39 CM (ESPESSURA 14 CM), FBK = 4,5 MPA, UTILIZANDO PALHETA. AF_10/2022 | C37: M2 | D37: 84.16
A38: 104443 | B38: ALVENARIA DE BLOCOS DE CONCRETO ESTRUTURAL 14X19X39 CM (ESPESSURA 14 CM), FBK = 8 MPA, UTILIZANDO COLHER DE PEDREIRO. AF_10/2022 | C38: M2 | D38: 0
A39: 104441 | B39: ALVENARIA DE BLOCOS DE CONCRETO ESTRUTURAL 14X19X39 CM (ESPESSURA 14 CM), FBK = 8 MPA, UTILIZANDO PALHETA. AF_10/2022 | C39: M2 | D39: 0
A40: 103354 | B40: ALVENARIA DE VEDAÇÃO DE BLOCOS CERÂMICOS FURADOS NA HORIZONTAL DE 11,5X14X24 CM (ESPESSURA 11,5 CM) E ARGAMASSA DE ASSENTAMENTO COM PREPARO EM BETONEIRA. AF_12/2021 | C40: M2 | D40: 82.23
A41: 103355 | B41: ALVENARIA DE VEDAÇÃO DE BLOCOS CERÂMICOS FURADOS NA HORIZONTAL DE 11,5X14X24 CM (ESPESSURA 11,5 CM) E ARGAMASSA DE ASSENTAMENTO COM PREPARO MANUAL. AF_12/2021 | C41: M2 | D41: 83.67
A42: 103330 | B42: ALVENARIA DE VEDAÇÃO DE BLOCOS CERÂMICOS FURADOS NA HORIZONTAL DE 11,5X19X19 CM (ESPESSURA 11,5 CM) E ARGAMASSA DE ASSENTAMENTO COM PREPARO EM BETONEIRA. AF_12/2021 | C42: M2 | D42: 76.75
A43: 103331 | B43: ALVENARIA DE VEDAÇÃO DE BLOCOS CERÂMICOS FURADOS NA HORIZONTAL DE 11,5X19X19 CM (ESPESSURA 11,5 CM) E ARGAMASSA DE ASSENTAMENTO COM PREPARO MANUAL. AF_12/2021 | C43: M2 | D43: 78.11
A44: 103358 | B44: ALVENARIA DE VEDAÇÃO DE BLOCOS CERÂMICOS FURADOS NA HORIZONTAL DE 11,5X19X29 CM (ESPESSURA 11,5 CM) E ARGAMASSA DE ASSENTAMENTO COM PREPARO EM BETONEIRA. AF_12/2021 | C44: M2 | D44: 65.14
A45: 103359 | B45: ALVENARIA DE VEDAÇÃO DE BLOCOS CERÂMICOS FURADOS NA HORIZONTAL DE 11,5X19X29 CM (ESPESSURA 11,5 CM) E ARGAMASSA DE ASSENTAMENTO COM PREPARO MANUAL. AF_12/2021 | C45: M2 | D45: 66.29
A46: 103366 | B46: ALVENARIA DE VEDAÇÃO DE BLOCOS CERÂMICOS FURADOS NA HORIZONTAL DE 11,5X19X39 CM (ESPESSURA 11,5 CM) E ARGAMASSA DE ASSENTAMENTO COM PREPARO EM BETONEIRA. AF_12/2021 | C46: M2 | D46: 57.47
A47: 103367 | B47: ALVENARIA DE VEDAÇÃO DE BLOCOS CERÂMICOS FURADOS NA HORIZONTAL DE 11,5X19X39 CM (ESPESSURA 11,5 CM) E ARGAMASSA DE ASSENTAMENTO COM PREPARO MANUAL. AF_12/2021 | C47: M2 | D47: 58.51
A48: 103360 | B48: ALVENARIA DE VEDAÇÃO DE BLOCOS CERÂMICOS FURADOS NA HORIZONTAL DE 14X19X29 CM (ESPESSURA 14 CM) E ARGAMASSA DE ASSENTAMENTO COM PREPARO EM BETONEIRA. AF_12/2021 | C48: M2 | D48: 76.06
A49: 103361 | B49: ALVENARIA DE VEDAÇÃO DE BLOCOS CERÂMICOS FURADOS NA HORIZONTAL DE 14X19X29 CM (ESPESSURA 14 CM) E ARGAMASSA DE ASSENTAMENTO COM PREPARO MANUAL. AF_12/2021 | C49: M2 | D49: 77.51
A50: 103368 | B50: ALVENARIA DE VEDAÇÃO DE BLOCOS CERÂMICOS FURADOS NA HORIZONTAL DE 14X19X39 CM (ESPESSURA 14 CM) E ARGAMASSA DE ASSENTAMENTO COM PREPARO EM BETONEIRA. AF_12/2021 | C50: M2 | D50: 64.95
A51: 103369 | B51: ALVENARIA DE VEDAÇÃO DE BLOCOS CERÂMICOS FURADOS NA HORIZONTAL DE 14X19X39 CM (ESPESSURA 14 CM) E ARGAMASSA DE ASSENTAMENTO COM PREPARO MANUAL. AF_12/2021 | C51: M2 | D51: 66.27
A52: 103334 | B52: ALVENARIA DE VEDAÇÃO DE BLOCOS CERÂMICOS FURADOS NA HORIZONTAL DE 14X9X19 CM (ESPESSURA 14 CM, BLOCO DEITADO) E ARGAMASSA DE ASSENTAMENTO COM PREPARO EM BETONEIRA. AF_12/2021 | C52: M2 | D52: 133.35
A53: 103335 | B53: ALVENARIA DE VEDAÇÃO DE BLOCOS CERÂMICOS FURADOS NA HORIZONTAL DE 14X9X19 CM (ESPESSURA 14 CM, BLOCO DEITADO) E ARGAMASSA DE ASSENTAMENTO COM PREPARO MANUAL. AF_12/2021 | C53: M2 | D53: 135.88
A54: 103362 | B54: ALVENARIA DE VEDAÇÃO DE BLOCOS CERÂMICOS FURADOS NA HORIZONTAL DE 19X19X29 CM (ESPESSURA 19 CM) E ARGAMASSA DE ASSENTAMENTO COM PREPARO EM BETONEIRA. AF_12/2021 | C54: M2 | D54: 92.81
A55: 103363 | B55: ALVENARIA DE VEDAÇÃO DE BLOCOS CERÂMICOS FURADOS NA HORIZONTAL DE 19X19X29 CM (ESPESSURA 19 CM) E ARGAMASSA DE ASSENTAMENTO COM PREPARO MANUAL. AF_12/2021 | C55: M2 | D55: 94.44
A56: 103370 | B56: ALVENARIA DE VEDAÇÃO DE BLOCOS CERÂMICOS FURADOS NA HORIZONTAL DE 19X19X39 CM (ESPESSURA 19 CM) E ARGAMASSA DE ASSENTAMENTO COM PREPARO EM BETONEIRA. AF_12/2021 | C56: M2 | D56: 82.6
A57: 103371 | B57: ALVENARIA DE VEDAÇÃO DE BLOCOS CERÂMICOS FURADOS NA HORIZONTAL DE 19X19X39 CM (ESPESSURA 19 CM) E ARGAMASSA DE ASSENTAMENTO COM PREPARO MANUAL. AF_12/2021 | C57: M2 | D57: 84.09
A58: 103332 | B58: ALVENARIA DE VEDAÇÃO DE BLOCOS CERÂMICOS FURADOS NA HORIZONTAL DE 9X14X19 CM (ESPESSURA 9 CM) E ARGAMASSA DE ASSENTAMENTO COM PREPARO EM BETONEIRA. AF_12/2021 | C58: M2 | D58: 110.17
A59: 103333 | B59: ALVENARIA DE VEDAÇÃO DE BLOCOS CERÂMICOS FURADOS NA HORIZONTAL DE 9X14X19 CM (ESPESSURA 9 CM) E ARGAMASSA DE ASSENTAMENTO COM PREPARO MANUAL. AF_12/2021 | C59: M2 | D59: 111.62
A60: 103352 | B60: ALVENARIA DE VEDAÇÃO DE BLOCOS CERÂMICOS FURADOS NA HORIZONTAL DE 9X14X24 CM (ESPESSURA 9 CM) E ARGAMASSA DE ASSENTAMENTO COM PREPARO EM BETONEIRA. AF_12/2021 | C60: M2 | D60: 94.82
A61: 103353 | B61: ALVENARIA DE VEDAÇÃO DE BLOCOS CERÂMICOS FURADOS NA HORIZONTAL DE 9X14X24 CM (ESPESSURA 9 CM) E ARGAMASSA DE ASSENTAMENTO COM PREPARO MANUAL. AF_12/2021 | C61: M2 | D61: 96.17
A62: 103328 | B62: ALVENARIA DE VEDAÇÃO DE BLOCOS CERÂMICOS FURADOS NA HORIZONTAL DE 9X19X19 CM (ESPESSURA 9 CM) E ARGAMASSA DE ASSENTAMENTO COM PREPARO EM BETONEIRA. AF_12/2021 | C62: M2 | D62: 86.95
A63: 103329 | B63: ALVENARIA DE VEDAÇÃO DE BLOCOS CERÂMICOS FURADOS NA HORIZONTAL DE 9X19X19 CM (ESPESSURA 9 CM) E ARGAMASSA DE ASSENTAMENTO COM PREPARO MANUAL. AF_12/2021 | C63: M2 | D63: 88.21
A64: 103356 | B64: ALVENARIA DE VEDAÇÃO DE BLOCOS CERÂMICOS FURADOS NA HORIZONTAL DE 9X19X29 CM (ESPESSURA 9 CM) E ARGAMASSA DE ASSENTAMENTO COM PREPARO EM BETONEIRA. AF_12/2021 | C64: M2 | D64: 57.41
A65: 103357 | B65: ALVENARIA DE VEDAÇÃO DE BLOCOS CERÂMICOS FURADOS NA HORIZONTAL DE 9X19X29 CM (ESPESSURA 9 CM) E ARGAMASSA DE ASSENTAMENTO COM PREPARO MANUAL. AF_12/2021 | C65: M2 | D65: 58.47
A66: 103364 | B66: ALVENARIA DE VEDAÇÃO DE BLOCOS CERÂMICOS FURADOS NA HORIZONTAL DE 9X19X39 CM (ESPESSURA 9 CM) E ARGAMASSA DE ASSENTAMENTO COM PREPARO EM BETONEIRA. AF_12/2021 | C66: M2 | D66: 48.03
A67: 103365 | B67: ALVENARIA DE VEDAÇÃO DE BLOCOS CERÂMICOS FURADOS NA HORIZONTAL DE 9X19X39 CM (ESPESSURA 9 CM) E ARGAMASSA DE ASSENTAMENTO COM PREPARO MANUAL. AF_12/2021 | C67: M2 | D67: 48.76
A68: 103350 | B68: ALVENARIA DE VEDAÇÃO DE BLOCOS CERÂMICOS FURADOS NA HORIZONTAL DE 9X9X19 CM (ESPESSURA 9 CM) E ARGAMASSA DE ASSENTAMENTO COM PREPARO EM BETONEIRA. AF_12/2021 | C68: M2 | D68: 161.01
A69: 103351 | B69: ALVENARIA DE VEDAÇÃO DE BLOCOS CERÂMICOS FURADOS NA HORIZONTAL DE 9X9X19 CM (ESPESSURA 9 CM) E ARGAMASSA DE ASSENTAMENTO COM PREPARO MANUAL. AF_12/2021 | C69: M2 | D69: 162.87
A70: 103344 | B70: ALVENARIA DE VEDAÇÃO DE BLOCOS CERÂMICOS FURADOS NA VERTICAL DE 11,5X19X29 CM (ESPESSURA 11,5 CM) E ARGAMASSA DE ASSENTAMENTO COM PREPARO EM BETONEIRA. AF_12/2021 | C70: M2 | D70: 77.83
A71: 103345 | B71: ALVENARIA DE VEDAÇÃO DE BLOCOS CERÂMICOS FURADOS NA VERTICAL DE 11,5X19X29 CM (ESPESSURA 11,5 CM) E ARGAMASSA DE ASSENTAMENTO COM PREPARO MANUAL. AF_12/2021 | C71: M2 | D71: 79.52
A72: 103348 | B72: ALVENARIA DE VEDAÇÃO DE BLOCOS CERÂMICOS FURADOS NA VERTICAL DE 11,5X19X39 CM (ESPESSURA 11,5 CM) E ARGAMASSA DE ASSENTAMENTO COM PREPARO EM BETONEIRA. AF_12/2021 | C72: M2 | D72: 65.87
A73: 103349 | B73: ALVENARIA DE VEDAÇÃO DE BLOCOS CERÂMICOS FURADOS NA VERTICAL DE 11,5X19X39 CM (ESPESSURA 11,5 CM) E ARGAMASSA DE ASSENTAMENTO COM PREPARO MANUAL. AF_12/2021 | C73: M2 | D73: 67.41
A74: 103346 | B74: ALVENARIA DE VEDAÇÃO DE BLOCOS CERÂMICOS FURADOS NA VERTICAL DE 14X19X29 CM (ESPESSURA 14 CM) E ARGAMASSA DE ASSENTAMENTO COM PREPARO EM BETONEIRA. AF_12/2021 | C74: M2 | D74: 86
A75: 103347 | B75: ALVENARIA DE VEDAÇÃO DE BLOCOS CERÂMICOS FURADOS NA VERTICAL DE 14X19X29 CM (ESPESSURA 14 CM) E ARGAMASSA DE ASSENTAMENTO COM PREPARO MANUAL. AF_12/2021 | C75: M2 | D75: 87.8
A76: 103324 | B76: ALVENARIA DE VEDAÇÃO DE BLOCOS CERÂMICOS FURADOS NA VERTICAL DE 14X19X39 CM (ESPESSURA 14 CM) E ARGAMASSA DE ASSENTAMENTO COM PREPARO EM BETONEIRA. AF_12/2021 | C76: M2 | D76: 74.59
A77: 103325 | B77: ALVENARIA DE VEDAÇÃO DE BLOCOS CERÂMICOS FURADOS NA VERTICAL DE 14X19X39 CM (ESPESSURA 14 CM) E ARGAMASSA DE ASSENTAMENTO COM PREPARO MANUAL. AF_12/2021 | C77: M2 | D77: 76.22
A78: 103326 | B78: ALVENARIA DE VEDAÇÃO DE BLOCOS CERÂMICOS FURADOS NA VERTICAL DE 19X19X39 CM (ESPESSURA 19 CM) E ARGAMASSA DE ASSENTAMENTO COM PREPARO EM BETONEIRA. AF_12/2021 | C78: M2 | D78: 87.89
A79: 103327 | B79: ALVENARIA DE VEDAÇÃO DE BLOCOS CERÂMICOS FURADOS NA VERTICAL DE 19X19X39 CM (ESPESSURA 19 CM) E ARGAMASSA DE ASSENTAMENTO COM PREPARO MANUAL. AF_12/2021 | C79: M2 | D79: 89.8
A80: 103322 | B80: ALVENARIA DE VEDAÇÃO DE BLOCOS CERÂMICOS FURADOS NA VERTICAL DE 9X19X39 CM (ESPESSURA 9 CM) E ARGAMASSA DE ASSENTAMENTO COM PREPARO EM BETONEIRA. AF_12/2021 | C80: M2 | D80: 56.01
A81: 103323 | B81: ALVENARIA DE VEDAÇÃO DE BLOCOS CERÂMICOS FURADOS NA VERTICAL DE 9X19X39 CM (ESPESSURA 9 CM) E ARGAMASSA DE ASSENTAMENTO COM PREPARO MANUAL. AF_12/2021 | C81: M2 | D81: 57.45
A82: 103338 | B82: ALVENARIA DE VEDAÇÃO DE BLOCOS VAZADOS DE CONCRETO APARENTE DE 14X19X39 CM (ESPESSURA 14 CM) E ARGAMASSA DE ASSENTAMENTO COM PREPARO EM BETONEIRA. AF_12/2021 | C82: M2 | D82: 106.5
A83: 103339 | B83: ALVENARIA DE VEDAÇÃO DE BLOCOS VAZADOS DE CONCRETO APARENTE DE 14X19X39 CM (ESPESSURA 14 CM) E ARGAMASSA DE ASSENTAMENTO COM PREPARO MANUAL. AF_12/2021 | C83: M2 | D83: 107.91
A84: 103340 | B84: ALVENARIA DE VEDAÇÃO DE BLOCOS VAZADOS DE CONCRETO APARENTE DE 19X19X39 CM (ESPESSURA 19 CM) E ARGAMASSA DE ASSENTAMENTO COM PREPARO EM BETONEIRA. AF_12/2021 | C84: M2 | D84: 129.17
A85: 103341 | B85: ALVENARIA DE VEDAÇÃO DE BLOCOS VAZADOS DE CONCRETO APARENTE DE 19X19X39 CM (ESPESSURA 19 CM) E ARGAMASSA DE ASSENTAMENTO COM PREPARO MANUAL. AF_12/2021 | C85: M2 | D85: 130.94
A86: 103336 | B86: ALVENARIA DE VEDAÇÃO DE BLOCOS VAZADOS DE CONCRETO APARENTE DE 9X19X39 CM (ESPESSURA 9 CM) E ARGAMASSA DE ASSENTAMENTO COM PREPARO EM BETONEIRA. AF_12/2021 | C86: M2 | D86: 81.23
A87: 103337 | B87: ALVENARIA DE VEDAÇÃO DE BLOCOS VAZADOS DE CONCRETO APARENTE DE 9X19X39 CM (ESPESSURA 9 CM) E ARGAMASSA DE ASSENTAMENTO COM PREPARO MANUAL. AF_12/2021 | C87: M2 | D87: 82.43
A88: 103342 | B88: ALVENARIA DE VEDAÇÃO DE BLOCOS VAZADOS DE CONCRETO DE 14X19X29 CM (ESPESSURA 14 CM) E ARGAMASSA DE ASSENTAMENTO COM PREPARO EM BETONEIRA. AF_12/2021 | C88: M2 | D88: 109.89
A89: 103343 | B89: ALVENARIA DE VEDAÇÃO DE BLOCOS VAZADOS DE CONCRETO DE 14X19X29 CM (ESPESSURA 14 CM) E ARGAMASSA DE ASSENTAMENTO COM PREPARO MANUAL. AF_12/2021 | C89: M2 | D89: 111.45
A90: 103318 | B90: ALVENARIA DE VEDAÇÃO DE BLOCOS VAZADOS DE CONCRETO DE 14X19X39 CM (ESPESSURA 14 CM) E ARGAMASSA DE ASSENTAMENTO COM PREPARO EM BETONEIRA. AF_12/2021 | C90: M2 | D90: 94
A91: 103319 | B91: ALVENARIA DE VEDAÇÃO DE BLOCOS VAZADOS DE CONCRETO DE 14X19X39 CM (ESPESSURA 14 CM) E ARGAMASSA DE ASSENTAMENTO COM PREPARO MANUAL. AF_12/2021 | C91: M2 | D91: 95.41
A92: 103320 | B92: ALVENARIA DE VEDAÇÃO DE BLOCOS VAZADOS DE CONCRETO DE 19X19X39 CM (ESPESSURA 19 CM) E ARGAMASSA DE ASSENTAMENTO COM PREPARO EM BETONEIRA. AF_12/2021 | C92: M2 | D92: 113.22
A93: 103321 | B93: ALVENARIA DE VEDAÇÃO DE BLOCOS VAZADOS DE CONCRETO DE 19X19X39 CM (ESPESSURA 19 CM) E ARGAMASSA DE ASSENTAMENTO COM PREPARO MANUAL. AF_12/2021 | C93: M2 | D93: 114.99
A94: 103316 | B94: ALVENARIA DE VEDAÇÃO DE BLOCOS VAZADOS DE CONCRETO DE 9X19X39 CM (ESPESSURA 9 CM) E ARGAMASSA DE ASSENTAMENTO COM PREPARO EM BETONEIRA. AF_12/2021 | C94: M2 | D94: 72.65
A95: 103317 | B95: ALVENARIA DE VEDAÇÃO DE BLOCOS VAZADOS DE CONCRETO DE 9X19X39 CM (ESPESSURA 9 CM) E ARGAMASSA DE ASSENTAMENTO COM PREPARO MANUAL. AF_12/2021 | C95: M2 | D95: 73.85
A96: 101166 | B96: ALVENARIA DE EMBASAMENTO COM BLOCO ESTRUTURAL DE CERÂMICA, DE 14X19X29CM E ARGAMASSA DE ASSENTAMENTO COM PREPARO EM BETONEIRA. AF_05/2020 | C96: M3 | D96: 621.97
A97: 101165 | B97: ALVENARIA DE EMBASAMENTO COM BLOCO ESTRUTURAL DE CONCRETO, DE 14X19X29CM E ARGAMASSA DE ASSENTAMENTO COM PREPARO EM BETONEIRA. AF_05/2020 | C97: M3 | D97: 934.35
A98: 101163 | B98: ALVENARIA DE VEDAÇÃO COM BLOCO DE VIDRO VAZADO, TIPO VENEZIANA, DE 6X20X20CM E ARGAMASSA DE ASSENTAMENTO COM PREPARO EM BETONEIRA. AF_05/2020 | C98: M2 | D98: 655.33
A99: 101164 | B99: ALVENARIA DE VEDAÇÃO COM BLOCO DE VIDRO, TIPO CANELADO, DE 8X19X19CM E ARGAMASSA DE ASSENTAMENTO COM PREPARO EM BETONEIRA. AF_05/2020 | C99: M2 | D99: 665.22
A100: 101162 | B100: ALVENARIA DE VEDAÇÃO COM ELEMENTO VAZADO DE CERÂMICA (COBOGÓ) DE 7X20X20CM E ARGAMASSA DE ASSENTAMENTO COM PREPARO EM BETONEIRA. AF_05/2020 | C100: M2 | D100: 145.36
A101: 101161 | B101: ALVENARIA DE VEDAÇÃO COM ELEMENTO VAZADO DE CONCRETO (COBOGÓ) DE 7X50X50CM E ARGAMASSA DE ASSENTAMENTO COM PREPARO EM BETONEIRA. AF_05/2020 | C101: M2 | D101: 217.17
A102: 101160 | B102: ALVENARIA DE VEDAÇÃO DE BLOCO DE SOLO-CIMENTO (TIJOLO ECOLÓGICO) DE 7X15X30CM (ESPESSURA 15CM). AF_05/2020 | C102: M2 | D102: 0
A103: 101159 | B103: ALVENARIA DE VEDAÇÃO DE BLOCOS CERÂMICOS MACIÇOS DE 5X10X20CM (ESPESSURA 10CM) E ARGAMASSA DE ASSENTAMENTO COM PREPARO EM BETONEIRA. AF_05/2020 | C103: M2 | D103: 126.35
A104: 101154 | B104: ALVENARIA DE VEDAÇÃO DE BLOCOS DE CONCRETO CELULAR DE 10X30X60CM (ESPESSURA 10CM) E ARGAMASSA DE ASSENTAMENTO COM PREPARO EM BETONEIRA. AF_05/2020 | C104: M2 | D104: 138.05
A105: 101155 | B105: ALVENARIA DE VEDAÇÃO DE BLOCOS DE CONCRETO CELULAR DE 15X30X60CM (ESPESSURA 15CM) E ARGAMASSA DE ASSENTAMENTO COM PREPARO EM BETONEIRA. AF_05/2020 | C105: M2 | D105: 194.94
A106: 101156 | B106: ALVENARIA DE VEDAÇÃO DE BLOCOS DE CONCRETO CELULAR DE 20X30X60CM (ESPESSURA 20CM) E ARGAMASSA DE ASSENTAMENTO COM PREPARO EM BETONEIRA. AF_05/2020 | C106: M2 | D106: 287.65
A107: 101158 | B107: ALVENARIA DE VEDAÇÃO DE BLOCOS DE GESSO DE 10X50X66CM (ESPESSURA 10CM). AF_05/2020 | C107: M2 | D107: 79.99
A108: 101157 | B108: ALVENARIA DE VEDAÇÃO DE BLOCOS DE GESSO DE 7X50X66CM (ESPESSURA 7CM). AF_05/2020 | C108: M2 | D108: 61.06
A109: 87382 | B109: ARGAMASSA INDUSTRIALIZADA MULTIUSO PARA REVESTIMENTOS E ASSENTAMENTO DA ALVENARIA, PREPARO COM MISTURADOR DE EIXO HORIZONTAL DE 160 KG. AF_08/2019 | C109: M3 | D109: 1736.83
A110: 87383 | B110: ARGAMASSA INDUSTRIALIZADA MULTIUSO PARA REVESTIMENTOS E ASSENTAMENTO DA ALVENARIA, PREPARO COM MISTURADOR DE EIXO HORIZONTAL DE 300 KG. AF_08/2019 | C110: M3 | D110: 1737.19
A111: 87384 | B111: ARGAMASSA INDUSTRIALIZADA MULTIUSO PARA REVESTIMENTOS E ASSENTAMENTO DA ALVENARIA, PREPARO COM MISTURADOR DE EIXO HORIZONTAL DE 600 KG. AF_08/2019 | C111: M3 | D111: 1735.35
A112: 87398 | B112: ARGAMASSA INDUSTRIALIZADA MULTIUSO PARA REVESTIMENTOS E ASSENTAMENTO DA ALVENARIA, PREPARO MANUAL. AF_08/2019 | C112: M3 | D112: 1956.19
A113: 87395 | B113: ARGAMASSA INDUSTRIALIZADA PARA CHAPISCO COLANTE, PREPARO COM MISTURADOR DE EIXO HORIZONTAL DE 160 KG. AF_08/2019 | C113: M3 | D113: 3409.81
A114: 87396 | B114: ARGAMASSA INDUSTRIALIZADA PARA CHAPISCO COLANTE, PREPARO COM MISTURADOR DE EIXO HORIZONTAL DE 300 KG. AF_08/2019 | C114: M3 | D114: 3435.52
A115: 87397 | B115: ARGAMASSA INDUSTRIALIZADA PARA CHAPISCO COLANTE, PREPARO COM MISTURADOR DE EIXO HORIZONTAL DE 600 KG. AF_08/2019 | C115: M3 | D115: 3464.92
A116: 87402 | B116: ARGAMASSA INDUSTRIALIZADA PARA CHAPISCO COLANTE, PREPARO MANUAL. AF_08/2019 | C116: M3 | D116: 3691.41
A117: 87391 | B117: ARGAMASSA INDUSTRIALIZADA PARA CHAPISCO ROLADO, PREPARO COM MISTURADOR DE EIXO HORIZONTAL DE 160 KG. AF_08/2019 | C117: M3 | D117: 5423.43
A118: 87393 | B118: ARGAMASSA INDUSTRIALIZADA PARA CHAPISCO ROLADO, PREPARO COM MISTURADOR DE EIXO HORIZONTAL DE 300 KG. AF_08/2019 | C118: M3 | D118: 5476.19
A119: 87394 | B119: ARGAMASSA INDUSTRIALIZADA PARA CHAPISCO ROLADO, PREPARO COM MISTURADOR DE EIXO HORIZONTAL DE 600 KG. AF_08/2019 | C119: M3 | D119: 5531.42
A120: 87401 | B120: ARGAMASSA INDUSTRIALIZADA PARA CHAPISCO ROLADO, PREPARO MANUAL. AF_08/2019 | C120: M3 | D120: 5746.26
A121: 87407 | B121: ARGAMASSA INDUSTRIALIZADA PARA REVESTIMENTOS, MISTURA E PROJEÇÃO DE 1,5 M³/H DE ARGAMASSA. AF_08/2019 | C121: M3 | D121: 1775.25
A122: 87408 | B122: ARGAMASSA INDUSTRIALIZADA PARA REVESTIMENTOS, MISTURA E PROJEÇÃO DE 2 M³/H DE ARGAMASSA. AF_08/2019 | C122: M3 | D122: 1767.77
A123: 87404 | B123: ARGAMASSA PARA REVESTIMENTO DECORATIVO MONOCAMADA (MONOCAPA), MISTURA E PROJEÇÃO DE 1,5 M3/H DE ARGAMASSA. AF_08/2019 | C123: M3 | D123: 5081.92
A124: 87405 | B124: ARGAMASSA PARA REVESTIMENTO DECORATIVO MONOCAMADA (MONOCAPA), MISTURA E PROJEÇÃO DE 2 M3/H DE ARGAMASSA. AF_08/2019 | C124: M3 | D124: 5100.62
A125: 87388 | B125: ARGAMASSA PARA REVESTIMENTO DECORATIVO MONOCAMADA (MONOCAPA), PREPARO COM MISTURADOR DE EIXO HORIZONTAL DE 160 KG. AF_08/2019 | C125: M3 | D125: 4894.41
A126: 87389 | B126: ARGAMASSA PARA REVESTIMENTO DECORATIVO MONOCAMADA (MONOCAPA), PREPARO COM MISTURADOR DE EIXO HORIZONTAL DE 300 KG. AF_08/2019 | C126: M3 | D126: 4917.52
A127: 87390 | B127: ARGAMASSA PARA REVESTIMENTO DECORATIVO MONOCAMADA (MONOCAPA), PREPARO COM MISTURADOR DE EIXO HORIZONTAL DE 600 KG. AF_08/2019 | C127: M3 | D127: 4948.13
A128: 87385 | B128: ARGAMASSA PRONTA PARA CONTRAPISO, PREPARO COM MISTURADOR DE EIXO HORIZONTAL DE 160 KG. AF_08/2019 | C128: M3 | D128: 2034.57
A129: 87386 | B129: ARGAMASSA PRONTA PARA CONTRAPISO, PREPARO COM MISTURADOR DE EIXO HORIZONTAL DE 300 KG. AF_08/2019 | C129: M3 | D129: 2031.68
A130: 87387 | B130: ARGAMASSA PRONTA PARA CONTRAPISO, PREPARO COM MISTURADOR DE EIXO HORIZONTAL DE 600 KG. AF_08/2019 | C130: M3 | D130: 2032.84
A131: 87399 | B131: ARGAMASSA PRONTA PARA CONTRAPISO, PREPARO MANUAL. AF_08/2019 | C131: M3 | D131: 2260.85
A132: 88627 | B132: ARGAMASSA TRAÇO 1:0,5:4,5 (EM VOLUME DE CIMENTO, CAL E AREIA MÉDIA ÚMIDA) PARA ASSENTAMENTO DE ALVENARIA, PREPARO MANUAL. AF_08/2019 | C132: M3 | D132: 656.91
A133: 100463 | B133: ARGAMASSA TRAÇO 1:0,5:4,5 (EM VOLUME DE CIMENTO, CAL E AREIA MÉDIA ÚMIDA), PREPARO MECÂNICO COM BETONEIRA 250 L. AF_08/2019 | C133: M3 | D133: 0
A134: 88626 | B134: ARGAMASSA TRAÇO 1:0,5:4,5 (EM VOLUME DE CIMENTO, CAL E AREIA MÉDIA ÚMIDA), PREPARO MECÂNICO COM BETONEIRA 400 L. AF_08/2019 | C134: M3 | D134: 546.2
A135: 100488 | B135: ARGAMASSA TRAÇO 1:0,5:4,5 (EM VOLUME DE CIMENTO, CAL E AREIA MÉDIA ÚMIDA), PREPARO MECÂNICO COM BETONEIRA 600 L. AF_08/2019 | C135: M3 | D135: 544.48
A136: 100464 | B136: ARGAMASSA TRAÇO 1:0,5:4,5 (EM VOLUME DE CIMENTO, CAL E AREIA MÉDIA ÚMIDA), PREPARO MECÂNICO COM MISTURADOR DE EIXO HORIZONTAL DE 160 KG. AF_08/2019 | C136: M3 | D136: 563.27
A137: 100465 | B137: ARGAMASSA TRAÇO 1:0,5:4,5 (EM VOLUME DE CIMENTO, CAL E AREIA MÉDIA ÚMIDA), PREPARO MECÂNICO COM MISTURADOR DE EIXO HORIZONTAL DE 300 KG. AF_08/2019 | C137: M3 | D137: 534.95
A138: 100466 | B138: ARGAMASSA TRAÇO 1:0,5:4,5 (EM VOLUME DE CIMENTO, CAL E AREIA MÉDIA ÚMIDA), PREPARO MECÂNICO COM MISTURADOR DE EIXO HORIZONTAL DE 600 KG. AF_08/2019 | C138: M3 | D138: 523.47
A139: 87368 | B139: ARGAMASSA TRAÇO 1:1,5:7,5 (EM VOLUME DE CIMENTO, CAL E AREIA MÉDIA ÚMIDA) PARA EMBOÇO/MASSA ÚNICA/ASSENTAMENTO DE ALVENARIA DE VEDAÇÃO, PREPARO MANUAL. AF_08/2019 | C139: M3 | D139: 689.98
A140: 100450 | B140: ARGAMASSA TRAÇO 1:1,5:7,5 (EM VOLUME DE CIMENTO, CAL E AREIA MÉDIA ÚMIDA) PARA EMBOÇO/MASSA ÚNICA/ASSENTAMENTO DE ALVENARIA DE VEDAÇÃO, PREPARO MECÂNICO COM BETONEIRA 250 L. AF_08/2019 | C140: M3 | D140: 0
A141: 87289 | B141: ARGAMASSA TRAÇO 1:1,5:7,5 (EM VOLUME DE CIMENTO, CAL E AREIA MÉDIA ÚMIDA) PARA EMBOÇO/MASSA ÚNICA/ASSENTAMENTO DE ALVENARIA DE VEDAÇÃO, PREPARO MECÂNICO COM BETONEIRA 400 L. AF_08/2019 | C141: M3 | D141: 552.91
A142: 87290 | B142: ARGAMASSA TRAÇO 1:1,5:7,5 (EM VOLUME DE CIMENTO, CAL E AREIA MÉDIA ÚMIDA) PARA EMBOÇO/MASSA ÚNICA/ASSENTAMENTO DE ALVENARIA DE VEDAÇÃO, PREPARO MECÂNICO COM BETONEIRA 600 L. AF_08/2019 | C142: M3 | D142: 550
A143: 87333 | B143: ARGAMASSA TRAÇO 1:1,5:7,5 (EM VOLUME DE CIMENTO, CAL E AREIA MÉDIA ÚMIDA) PARA EMBOÇO/MASSA ÚNICA/ASSENTAMENTO DE ALVENARIA DE VEDAÇÃO, PREPARO MECÂNICO COM MISTURADOR DE EIXO HORIZONTAL DE 300 KG. AF_08/2019 | C143: M3 | D143: 553.29
A144: 87334 | B144: ARGAMASSA TRAÇO 1:1,5:7,5 (EM VOLUME DE CIMENTO, CAL E AREIA MÉDIA ÚMIDA) PARA EMBOÇO/MASSA ÚNICA/ASSENTAMENTO DE ALVENARIA DE VEDAÇÃO, PREPARO MECÂNICO COM MISTURADOR DE EIXO HORIZONTAL DE 600 KG. AF_08/2019 | C144: M3 | D144: 528.01
A145: 105515 | B145: ARGAMASSA TRAÇO 1:1,93 (EM VOLUME DE CIMENTO E AREIA MÉDIA ÚMIDA), FCK 20MPA, PREPARO MECÂNICO COM MISTURADOR DUPLO HORIZONTAL DE ALTA TURBULÊNCIA. AF_03/2020 | C145: M3 | D145: 789.64
A146: 87367 | B146: ARGAMASSA TRAÇO 1:1:6 (EM VOLUME DE CIMENTO, CAL E AREIA MÉDIA ÚMIDA) PARA EMBOÇO/MASSA ÚNICA/ASSENTAMENTO DE ALVENARIA DE VEDAÇÃO, PREPARO MANUAL. AF_08/2019 | C146: M3 | D146: 701.39
A147: 100449 | B147: ARGAMASSA TRAÇO 1:1:6 (EM VOLUME DE CIMENTO, CAL E AREIA MÉDIA ÚMIDA) PARA EMBOÇO/MASSA ÚNICA/ASSENTAMENTO DE ALVENARIA DE VEDAÇÃO, PREPARO MECÂNICO COM BETONEIRA 250 L. AF_08/2019 | C147: M3 | D147: 0
A148: 87286 | B148: ARGAMASSA TRAÇO 1:1:6 (EM VOLUME DE CIMENTO, CAL E AREIA MÉDIA ÚMIDA) PARA EMBOÇO/MASSA ÚNICA/ASSENTAMENTO DE ALVENARIA DE VEDAÇÃO, PREPARO MECÂNICO COM BETONEIRA 400 L. AF_08/2019 | C148: M3 | D148: 566.81
A149: 87287 | B149: ARGAMASSA TRAÇO 1:1:6 (EM VOLUME DE CIMENTO, CAL E AREIA MÉDIA ÚMIDA) PARA EMBOÇO/MASSA ÚNICA/ASSENTAMENTO DE ALVENARIA DE VEDAÇÃO, PREPARO MECÂNICO COM BETONEIRA 600 L. AF_08/2019 | C149: M3 | D149: 559.14
A150: 87331 | B150: ARGAMASSA TRAÇO 1:1:6 (EM VOLUME DE CIMENTO, CAL E AREIA MÉDIA ÚMIDA) PARA EMBOÇO/MASSA ÚNICA/ASSENTAMENTO DE ALVENARIA DE VEDAÇÃO, PREPARO MECÂNICO COM MISTURADOR DE EIXO HORIZONTAL DE 300 KG. AF_08/2019 | C150: M3 | D150: 582.4
A151: 87332 | B151: ARGAMASSA TRAÇO 1:1:6 (EM VOLUME DE CIMENTO, CAL E AREIA MÉDIA ÚMIDA) PARA EMBOÇO/MASSA ÚNICA/ASSENTAMENTO DE ALVENARIA DE VEDAÇÃO, PREPARO MECÂNICO COM MISTURADOR DE EIXO HORIZONTAL DE 600 KG. AF_08/2019 | C151: M3 | D151: 539.03
A152: 87369 | B152: ARGAMASSA TRAÇO 1:2:8 (EM VOLUME DE CIMENTO, CAL E AREIA MÉDIA ÚMIDA) PARA EMBOÇO/MASSA ÚNICA/ASSENTAMENTO DE ALVENARIA DE VEDAÇÃO, PREPARO MANUAL. AF_08/2019 | C152: M3 | D152: 707.59
A153: 100451 | B153: ARGAMASSA TRAÇO 1:2:8 (EM VOLUME DE CIMENTO, CAL E AREIA MÉDIA ÚMIDA) PARA EMBOÇO/MASSA ÚNICA/ASSENTAMENTO DE ALVENARIA DE VEDAÇÃO, PREPARO MECÂNICO COM BETONEIRA 250 L. AF_08/2019 | C153: M3 | D153: 0
A154: 87292 | B154: ARGAMASSA TRAÇO 1:2:8 (EM VOLUME DE CIMENTO, CAL E AREIA MÉDIA ÚMIDA) PARA EMBOÇO/MASSA ÚNICA/ASSENTAMENTO DE ALVENARIA DE VEDAÇÃO, PREPARO MECÂNICO COM BETONEIRA 400 L. AF_08/2019 | C154: M3 | D154: 569.04
A155: 87335 | B155: ARGAMASSA TRAÇO 1:2:8 (EM VOLUME DE CIMENTO, CAL E AREIA MÉDIA ÚMIDA) PARA EMBOÇO/MASSA ÚNICA/ASSENTAMENTO DE ALVENARIA DE VEDAÇÃO, PREPARO MECÂNICO COM MISTURADOR DE EIXO HORIZONTAL DE 300 KG. AF_08/2019 | C155: M3 | D155: 548.57
A156: 87336 | B156: ARGAMASSA TRAÇO 1:2:8 (EM VOLUME DE CIMENTO, CAL E AREIA MÉDIA ÚMIDA) PARA EMBOÇO/MASSA ÚNICA/ASSENTAMENTO DE ALVENARIA DE VEDAÇÃO, PREPARO MECÂNICO COM MISTURADOR DE EIXO HORIZONTAL DE 600 KG. AF_08/2019 | C156: M3 | D156: 547.43
A157: 87370 | B157: ARGAMASSA TRAÇO 1:2:9 (EM VOLUME DE CIMENTO, CAL E AREIA MÉDIA ÚMIDA) PARA EMBOÇO/MASSA ÚNICA/ASSENTAMENTO DE ALVENARIA DE VEDAÇÃO, PREPARO MANUAL. AF_08/2019 | C157: M3 | D157: 684.38
A158: 100452 | B158: ARGAMASSA TRAÇO 1:2:9 (EM VOLUME DE CIMENTO, CAL E AREIA MÉDIA ÚMIDA) PARA EMBOÇO/MASSA ÚNICA/ASSENTAMENTO DE ALVENARIA DE VEDAÇÃO, PREPARO MECÂNICO COM BETONEIRA 250 L. AF_08/2019 | C158: M3 | D158: 0
A159: 88715 | B159: ARGAMASSA TRAÇO 1:2:9 (EM VOLUME DE CIMENTO, CAL E AREIA MÉDIA ÚMIDA) PARA EMBOÇO/MASSA ÚNICA/ASSENTAMENTO DE ALVENARIA DE VEDAÇÃO, PREPARO MECÂNICO COM BETONEIRA 400 L. AF_08/2019 | C159: M3 | D159: 540.46
A160: 87294 | B160: ARGAMASSA TRAÇO 1:2:9 (EM VOLUME DE CIMENTO, CAL E AREIA MÉDIA ÚMIDA) PARA EMBOÇO/MASSA ÚNICA/ASSENTAMENTO DE ALVENARIA DE VEDAÇÃO, PREPARO MECÂNICO COM BETONEIRA 600 L. AF_08/2019 | C160: M3 | D160: 547.99
A161: 87337 | B161: ARGAMASSA TRAÇO 1:2:9 (EM VOLUME DE CIMENTO, CAL E AREIA MÉDIA ÚMIDA) PARA EMBOÇO/MASSA ÚNICA/ASSENTAMENTO DE ALVENARIA DE VEDAÇÃO, PREPARO MECÂNICO COM MISTURADOR DE EIXO HORIZONTAL DE 300 KG. AF_08/2019 | C161: M3 | D161: 544.15
A162: 100487 | B162: ARGAMASSA TRAÇO 1:2:9 (EM VOLUME DE CIMENTO, CAL E AREIA MÉDIA ÚMIDA) PARA EMBOÇO/MASSA ÚNICA/ASSENTAMENTO DE ALVENARIA DE VEDAÇÃO, PREPARO MECÂNICO COM MISTURADOR DE EIXO HORIZONTAL DE 600 KG. AF_08/2019 | C162: M3 | D162: 521.12
A163: 87380 | B163: ARGAMASSA TRAÇO 1:3 (EM VOLUME DE CIMENTO E AREIA GROSSA ÚMIDA) COM ADIÇÃO DE EMULSÃO POLIMÉRICA PARA CHAPISCO ROLADO, PREPARO MANUAL. AF_08/2019 | C163: M3 | D163: 3958.55
A164: 100461 | B164: ARGAMASSA TRAÇO 1:3 (EM VOLUME DE CIMENTO E AREIA GROSSA ÚMIDA) COM ADIÇÃO DE EMULSÃO POLIMÉRICA PARA CHAPISCO ROLADO, PREPARO MECÂNICO COM BETONEIRA 250 L. AF_08/2019 | C164: M3 | D164: 0
A165: 87322 | B165: ARGAMASSA TRAÇO 1:3 (EM VOLUME DE CIMENTO E AREIA GROSSA ÚMIDA) COM ADIÇÃO DE EMULSÃO POLIMÉRICA PARA CHAPISCO ROLADO, PREPARO MECÂNICO COM BETONEIRA 400 L. AF_08/2019 | C165: M3 | D165: 3856.44
